Workbook

Sheet Índice
A1: =Entradas!$D$6&" - Introdução e Índice" -> Força Açoreana, S.A.: Azores PV & BESS (São Miguel Poente) - Introdução e Índice
B4: Visão Geral | I4: Navegação das Folhas
B6: Nome do Projeto: | D6: Azores Photovoltaic Energy Venture | J6: Inputs | L6: Inputs | P6: Resumo | R6: Resumo do Projeto | S6: Cálculos | U6: Cálculos de Produção
B7: Entidade Promotora: | D7: Força Açoreana, S.A. | L7: Geral | R7: Informação-Chave do Projeto | U7: Produção de Eletricidade
B8: Localização: | D8: =Entradas!D7 -> Lagoa, São Miguel, Açores, Portugal | L8: Calendário | R8: Origens e Aplicações
B9: Projeções por: | D9: R. Bercuvitz | F9: rbercuvitz@bell.net | L9: Produção de Eletricidade | R9: Indicadores Financeiros
L10: Receitas | R10: Datas-Chave
L11: Detalhe Mensal de Despesas de Capital | R11: Verificações de Erros | S11: Cálculos | U11: Dívida
L12: Contas de Reserva | R12: Resumo Financeiro | U12: Dívida Subordinada
L13: Financiamento | R13: Curva de Investimento do Projeto (gráfico) | U13: Dívida Sénior
L14: Depreciações e Impostos | R14: Cobertura do Serviço da Dívida (gráfico) | U14: Plano de Amortização
R15: Amortização da Dívida Sénior (gráfico) | U15: Covenants de Dívida
R16: Fluxos de Caixa do Capital Próprio (gráfico)
L17: Guia de Estilos de Células | U17: Capital Próprio
J18: 1234 | L18: Input (específico do projeto) | P18: Cronograma | R18: Cronograma do Projeto | U18: Detalhe de Entradas de Capital Próprio
J19: 1234 | L19: Input referenciado de outra folha | R19: Cronograma | U19: Detalhe de Dividendos
J20: 1234 | L20: Cálculo | U20: Cálculo da TIR
J21: 1234 | L21: Cálculo de Soma ou Máximo | P21: AFS | R21: Demonstrações Financeiras Anuais
J22: OK | L22: Resultado Positivo da Verificação de Erros | R22: Demonstração de Resultados | U22: Custos de Arranque
J23: NO | L23: Resultado Negativo da Verificação de Erros | R23: Balanço | U23: Custos de Arranque
R24: Demonstração de Fluxos de Caixa
R25: Cascata de Caixa | U25: Despesas de Capital
U26: Detalhe e Pressupostos de Despesas de Capital
P27: QFS | R27: Demonstrações Financeiras Trimestrais | U27: Mão de Obra de Construção
R28: Demonstração de Resultados
R29: Balanço | U29: Receitas
R30: Demonstração de Fluxos de Caixa | U30: Cálculo de Receitas (Eletricidade)
R31: Cascata de Caixa
U32: Custos Operacionais
P33: MFS | R33: Demonstrações Financeiras Mensais | U33: Custos Operacionais
R34: Demonstração de Resultados | U34: Pessoal e Remunerações
R35: Balanço | U35: Despesas Mensais
R36: Demonstração de Fluxos de Caixa
R37: Cascata de Caixa | U37: Outros Cálculos
U38: Indicadores e Calendário
U39: Fatores de Indexação
U40: Aplicações de Fundos
U41: Origens de Fundos
U42: Fundo de Maneio
U43: Depreciações
U44: Impostos
U45: Resultados Transitados

Sheet DFA
A1: =Entradas!$D$6&" - Relatórios Financeiros Anuais" -> Força Açoreana, S.A.: Azores PV & BESS (São Miguel Poente) - Relatórios Financeiros Anuais
C2: Ano | F2: 2028-2052 | G2: =YEAR(G3) -> 2026 | H2: =YEAR(H3) -> 2027 | I2: 2028 | J2: 2029 | K2: 2030 | L2: 2031 | M2: 2032 | N2: 2033 | O2: 2034 | P2: 2035 | Q2: 2036 | R2: 2037 | S2: 2038 | T2: 2039 | U2: 2040 | V2: 2041 | W2: 2042 | X2: 2043 | Y2: 2044 | Z2: 2045 | AA2: 2046 | AB2: 2047 | AC2: 2048 | AD2: 2049 | AE2: 2050 | AF2: 2051 | AG2: 2052
C3: Fim do Período | F3: 2052-12-31 | G3: 2026-12-31 | H3: =G3+365 -> 2027-12-31 | I3: =H3+365 -> 2028-12-30 | J3: =I3+366 -> 2029-12-31 | K3: =J3+365 -> 2030-12-31 | L3: 2031-12-31 | M3: 2032-12-30 | N3: =M3+366 -> 2033-12-31 | O3: 2034-12-31 | P3: 2035-12-31 | Q3: 2036-12-30 | R3: =Q3+366 -> 2037-12-31 | S3: 2038-12-31 | T3: 2039-12-31 | U3: 2040-12-30 | V3: =U3+366 -> 2041-12-31 | W3: 2042-12-31 | X3: 2043-12-31 | Y3: 2044-12-30 | Z3: =Y3+366 -> 2045-12-31 | AA3: 2046-12-31 | AB3: 2047-12-31 | AC3: 2048-12-30 | AD3: =AC3+366 -> 2049-12-31 | AE3: 2050-12-31 | AF3: 2051-12-31 | AG3: 2052-12-30
A4: · | B4: Demonstração de Resultados | D4: Unidade
A5: =Resumo!$C$49 -> OK
C6: =Cálculos!C351 -> Receitas | F6: Vida Útil do Projeto
C7: Eletricidade Produzida | D7: Kwh | F7: =SUM(G7:AR7) -> 385103288.2 | G7: =SUMIF(Cálculos!$I$8:$QJ$8, G$2, Cálculos!$I210:$QJ210) -> 0 | H7: =SUMIF(Cálculos!$I$8:$QJ$8, H$2, Cálculos!$I210:$QJ210) -> 0 | I7: =SUMIF(Cálculos!$I$8:$QJ$8, I$2, Cálculos!$I215:$QJ215) -> 17247660.32 | J7: =SUMIF(Cálculos!$I$8:$QJ$8, J$2, Cálculos!$I215:$QJ215) -> 17155722.63 | K7: =SUMIF(Cálculos!$I$8:$QJ$8, K$2, Cálculos!$I215:$QJ215) -> 16984949.53 | L7: =SUMIF(Cálculos!$I$8:$QJ$8, L$2, Cálculos!$I215:$QJ215) -> 16815876.35 | M7: =SUMIF(Cálculos!$I$8:$QJ$8, M$2, Cálculos!$I215:$QJ215) -> 16648486.18 | N7: =SUMIF(Cálculos!$I$8:$QJ$8, N$2, Cálculos!$I215:$QJ215) -> 16482762.26 | O7: =SUMIF(Cálculos!$I$8:$QJ$8, O$2, Cálculos!$I215:$QJ215) -> 16318688 | P7: =SUMIF(Cálculos!$I$8:$QJ$8, P$2, Cálculos!$I215:$QJ215) -> 16156246.99 | Q7: =SUMIF(Cálculos!$I$8:$QJ$8, Q$2, Cálculos!$I215:$QJ215) -> 15995422.96 | R7: =SUMIF(Cálculos!$I$8:$QJ$8, R$2, Cálculos!$I215:$QJ215) -> 15836199.82 | S7: =SUMIF(Cálculos!$I$8:$QJ$8, S$2, Cálculos!$I215:$QJ215) -> 15678561.64 | T7: =SUMIF(Cálculos!$I$8:$QJ$8, T$2, Cálculos!$I215:$QJ215) -> 15522492.63 | U7: =SUMIF(Cálculos!$I$8:$QJ$8, U$2, Cálculos!$I215:$QJ215) -> 15367977.18 | V7: =SUMIF(Cálculos!$I$8:$QJ$8, V$2, Cálculos!$I215:$QJ215) -> 15214999.82 | W7: =SUMIF(Cálculos!$I$8:$QJ$8, W$2, Cálculos!$I215:$QJ215) -> 15063545.24 | X7: =SUMIF(Cálculos!$I$8:$QJ$8, X$2, Cálculos!$I215:$QJ215) -> 14913598.29 | Y7: =SUMIF(Cálculos!$I$8:$QJ$8, Y$2, Cálculos!$I215:$QJ215) -> 14765143.95 | Z7: =SUMIF(Cálculos!$I$8:$QJ$8, Z$2, Cálculos!$I215:$QJ215) -> 14618167.37 | AA7: =SUMIF(Cálculos!$I$8:$QJ$8, AA$2, Cálculos!$I215:$QJ215) -> 14472653.84 | AB7: =SUMIF(Cálculos!$I$8:$QJ$8, AB$2, Cálculos!$I215:$QJ215) -> 14328588.79 | AC7: =SUMIF(Cálculos!$I$8:$QJ$8, AC$2, Cálculos!$I215:$QJ215) -> 14185957.81 | AD7: =SUMIF(Cálculos!$I$8:$QJ$8, AD$2, Cálculos!$I215:$QJ215) -> 14044746.62 | AE7: =SUMIF(Cálculos!$I$8:$QJ$8, AE$2, Cálculos!$I215:$QJ215) -> 13904941.08 | AF7: =SUMIF(Cálculos!$I$8:$QJ$8, AF$2, Cálculos!$I215:$QJ215) -> 13766527.21 | AG7: =SUMIF(Cálculos!$I$8:$QJ$8, AG$2, Cálculos!$I215:$QJ215) -> 13613371.76
C8: Eletricidade Vendida | D8: Kwh | F8: =SUM(G8:AR8) -> 402777644.2 | G8: =SUMIF(Cálculos!$I$8:$QJ$8, G$2, Cálculos!$I215:$QJ215) -> 0 | H8: =SUMIF(Cálculos!$I$8:$QJ$8, H$2, Cálculos!$I215:$QJ215) -> 0 | I8: =SUMIF(Cálculos!$I$8:$QJ$8, I$2, Cálculos!$I218:$QJ218)+SUMIF(Cálculos!$I$8:$QJ$8, I$2, Cálculos!$I225:$QJ225) -> 17410787.78 | J8: =SUMIF(Cálculos!$I$8:$QJ$8, J$2, Cálculos!$I218:$QJ218)+SUMIF(Cálculos!$I$8:$QJ$8, J$2, Cálculos!$I225:$QJ225) -> 17597253.59 | K8: =SUMIF(Cálculos!$I$8:$QJ$8, K$2, Cálculos!$I218:$QJ218)+SUMIF(Cálculos!$I$8:$QJ$8, K$2, Cálculos!$I225:$QJ225) -> 17633186.64 | L8: =SUMIF(Cálculos!$I$8:$QJ$8, L$2, Cálculos!$I218:$QJ218)+SUMIF(Cálculos!$I$8:$QJ$8, L$2, Cálculos!$I225:$QJ225) -> 17613597.31 | M8: =SUMIF(Cálculos!$I$8:$QJ$8, M$2, Cálculos!$I218:$QJ218)+SUMIF(Cálculos!$I$8:$QJ$8, M$2, Cálculos!$I225:$QJ225) -> 17482884.31 | N8: =SUMIF(Cálculos!$I$8:$QJ$8, N$2, Cálculos!$I218:$QJ218)+SUMIF(Cálculos!$I$8:$QJ$8, N$2, Cálculos!$I225:$QJ225) -> 17338493.94 | O8: =SUMIF(Cálculos!$I$8:$QJ$8, O$2, Cálculos!$I218:$QJ218)+SUMIF(Cálculos!$I$8:$QJ$8, O$2, Cálculos!$I225:$QJ225) -> 17185011.57 | P8: =SUMIF(Cálculos!$I$8:$QJ$8, P$2, Cálculos!$I218:$QJ218)+SUMIF(Cálculos!$I$8:$QJ$8, P$2, Cálculos!$I225:$QJ225) -> 17006912.82 | Q8: =SUMIF(Cálculos!$I$8:$QJ$8, Q$2, Cálculos!$I218:$QJ218)+SUMIF(Cálculos!$I$8:$QJ$8, Q$2, Cálculos!$I225:$QJ225) -> 16832890.98 | R8: =SUMIF(Cálculos!$I$8:$QJ$8, R$2, Cálculos!$I218:$QJ218)+SUMIF(Cálculos!$I$8:$QJ$8, R$2, Cálculos!$I225:$QJ225) -> 16656016.2 | S8: =SUMIF(Cálculos!$I$8:$QJ$8, S$2, Cálculos!$I218:$QJ218)+SUMIF(Cálculos!$I$8:$QJ$8, S$2, Cálculos!$I225:$QJ225) -> 16483183.22 | T8: =SUMIF(Cálculos!$I$8:$QJ$8, T$2, Cálculos!$I218:$QJ218)+SUMIF(Cálculos!$I$8:$QJ$8, T$2, Cálculos!$I225:$QJ225) -> 16312070.67 | U8: =SUMIF(Cálculos!$I$8:$QJ$8, U$2, Cálculos!$I218:$QJ218)+SUMIF(Cálculos!$I$8:$QJ$8, U$2, Cálculos!$I225:$QJ225) -> 16144799.18 | V8: =SUMIF(Cálculos!$I$8:$QJ$8, V$2, Cálculos!$I218:$QJ218)+SUMIF(Cálculos!$I$8:$QJ$8, V$2, Cálculos!$I225:$QJ225) -> 15974938.53 | W8: =SUMIF(Cálculos!$I$8:$QJ$8, W$2, Cálculos!$I218:$QJ218)+SUMIF(Cálculos!$I$8:$QJ$8, W$2, Cálculos!$I225:$QJ225) -> 15808885.2 | X8: =SUMIF(Cálculos!$I$8:$QJ$8, X$2, Cálculos!$I218:$QJ218)+SUMIF(Cálculos!$I$8:$QJ$8, X$2, Cálculos!$I225:$QJ225) -> 15644484.81 | Y8: =SUMIF(Cálculos!$I$8:$QJ$8, Y$2, Cálculos!$I218:$QJ218)+SUMIF(Cálculos!$I$8:$QJ$8, Y$2, Cálculos!$I225:$QJ225) -> 15483698.86 | Z8: =SUMIF(Cálculos!$I$8:$QJ$8, Z$2, Cálculos!$I218:$QJ218)+SUMIF(Cálculos!$I$8:$QJ$8, Z$2, Cálculos!$I225:$QJ225) -> 15320577.21 | AA8: =SUMIF(Cálculos!$I$8:$QJ$8, AA$2, Cálculos!$I218:$QJ218)+SUMIF(Cálculos!$I$8:$QJ$8, AA$2, Cálculos!$I225:$QJ225) -> 15161037.58 | AB8: =SUMIF(Cálculos!$I$8:$QJ$8, AB$2, Cálculos!$I218:$QJ218)+SUMIF(Cálculos!$I$8:$QJ$8, AB$2, Cálculos!$I225:$QJ225) -> 15003086.06 | AC8: =SUMIF(Cálculos!$I$8:$QJ$8, AC$2, Cálculos!$I218:$QJ218)+SUMIF(Cálculos!$I$8:$QJ$8, AC$2, Cálculos!$I225:$QJ225) -> 14848531.25 | AD8: =SUMIF(Cálculos!$I$8:$QJ$8, AD$2, Cálculos!$I218:$QJ218)+SUMIF(Cálculos!$I$8:$QJ$8, AD$2, Cálculos!$I225:$QJ225) -> 14691884.25 | AE8: =SUMIF(Cálculos!$I$8:$QJ$8, AE$2, Cálculos!$I218:$QJ218)+SUMIF(Cálculos!$I$8:$QJ$8, AE$2, Cálculos!$I225:$QJ225) -> 14538602.81 | AF8: =SUMIF(Cálculos!$I$8:$QJ$8, AF$2, Cálculos!$I218:$QJ218)+SUMIF(Cálculos!$I$8:$QJ$8, AF$2, Cálculos!$I225:$QJ225) -> 14386847.19 | AG8: =SUMIF(Cálculos!$I$8:$QJ$8, AG$2, Cálculos!$I218:$QJ218)+SUMIF(Cálculos!$I$8:$QJ$8, AG$2, Cálculos!$I225:$QJ225) -> 14217982.22
C9: Preço Médio do PPA | F9: =(F13-F12)/F8 -> 0.13417 | I9: =(I13-I12)/I8 -> 0.13417 | J9: 0.13417 | K9: 0.13417 | L9: 0.13417 | M9: 0.13417 | N9: 0.13417 | O9: 0.13417 | P9: 0.13417 | Q9: 0.13417 | R9: 0.13417 | S9: 0.13417 | T9: 0.13417 | U9: 0.13417 | V9: 0.13417 | W9: 0.13417 | X9: 0.13417 | Y9: 0.13417 | Z9: 0.13417 | AA9: 0.13417 | AB9: 0.13417 | AC9: 0.13417 | AD9: 0.13417 | AE9: 0.13417 | AF9: 0.13417 | AG9: 0.13417
C10: =Cálculos!C352 -> Produção Vendida | D10: EUR | F10: =SUM(G10:AR10) -> 50222612.71 | G10: =SUMIF(Cálculos!$I$8:$QJ$8, G$2, Cálculos!$I352:$QJ352) -> 0 | H10: =SUMIF(Cálculos!$I$8:$QJ$8, H$2, Cálculos!$I352:$QJ352) -> 0 | I10: =SUMIF(Cálculos!$I$8:$QJ$8, I$2, Cálculos!$I229:$QJ229) -> 2150173.861 | J10: =SUMIF(Cálculos!$I$8:$QJ$8, J$2, Cálculos!$I229:$QJ229) -> 2180272.296 | K10: =SUMIF(Cálculos!$I$8:$QJ$8, K$2, Cálculos!$I229:$QJ229) -> 2191094.795 | L10: =SUMIF(Cálculos!$I$8:$QJ$8, L$2, Cálculos!$I229:$QJ229) -> 2192117.467 | M10: =SUMIF(Cálculos!$I$8:$QJ$8, M$2, Cálculos!$I229:$QJ229) -> 2176726.894 | N10: =SUMIF(Cálculos!$I$8:$QJ$8, N$2, Cálculos!$I229:$QJ229) -> 2160310.969 | O10: =SUMIF(Cálculos!$I$8:$QJ$8, O$2, Cálculos!$I229:$QJ229) -> 2142073.425 | P10: =SUMIF(Cálculos!$I$8:$QJ$8, P$2, Cálculos!$I229:$QJ229) -> 2120278.714 | Q10: =SUMIF(Cálculos!$I$8:$QJ$8, Q$2, Cálculos!$I229:$QJ229) -> 2098571.077 | R10: =SUMIF(Cálculos!$I$8:$QJ$8, R$2, Cálculos!$I229:$QJ229) -> 2077337.986 | S10: =SUMIF(Cálculos!$I$8:$QJ$8, S$2, Cálculos!$I229:$QJ229) -> 2056187.67 | T10: =SUMIF(Cálculos!$I$8:$QJ$8, T$2, Cálculos!$I229:$QJ229) -> 2035247.891 | U10: =SUMIF(Cálculos!$I$8:$QJ$8, U$2, Cálculos!$I229:$QJ229) -> 2014386.677 | V10: =SUMIF(Cálculos!$I$8:$QJ$8, V$2, Cálculos!$I229:$QJ229) -> 1993991.581 | W10: =SUMIF(Cálculos!$I$8:$QJ$8, W$2, Cálculos!$I229:$QJ229) -> 1973670.92 | X10: =SUMIF(Cálculos!$I$8:$QJ$8, X$2, Cálculos!$I229:$QJ229) -> 1953552.538 | Y10: =SUMIF(Cálculos!$I$8:$QJ$8, Y$2, Cálculos!$I229:$QJ229) -> 1933504.543 | Z10: =SUMIF(Cálculos!$I$8:$QJ$8, Z$2, Cálculos!$I229:$QJ229) -> 1913914.571 | AA10: =SUMIF(Cálculos!$I$8:$QJ$8, AA$2, Cálculos!$I229:$QJ229) -> 1894391.021 | AB10: =SUMIF(Cálculos!$I$8:$QJ$8, AB$2, Cálculos!$I229:$QJ229) -> 1875061.813 | AC10: =SUMIF(Cálculos!$I$8:$QJ$8, AC$2, Cálculos!$I229:$QJ229) -> 1855795.138 | AD10: =SUMIF(Cálculos!$I$8:$QJ$8, AD$2, Cálculos!$I229:$QJ229) -> 1836978.709 | AE10: =SUMIF(Cálculos!$I$8:$QJ$8, AE$2, Cálculos!$I229:$QJ229) -> 1818221.001 | AF10: =SUMIF(Cálculos!$I$8:$QJ$8, AF$2, Cálculos!$I229:$QJ229) -> 1799650.012 | AG10: =SUMIF(Cálculos!$I$8:$QJ$8, AG$2, Cálculos!$I229:$QJ229) -> 1779101.144
C11: Armazenamento Vendido | D11: EUR | F11: 3818063.808 | G11: =SUMIF(Cálculos!$I$8:$QJ$8, G$2, Cálculos!$I353:$QJ353) -> 0 | H11: =SUMIF(Cálculos!$I$8:$QJ$8, H$2, Cálculos!$I353:$QJ353) -> 0 | I11: =SUMIF(Cálculos!$I$8:$QJ$8, I$2, Cálculos!$I230:$QJ230) -> 185831.536 | J11: =SUMIF(Cálculos!$I$8:$QJ$8, J$2, Cálculos!$I230:$QJ230) -> 180751.2178 | K11: =SUMIF(Cálculos!$I$8:$QJ$8, K$2, Cálculos!$I230:$QJ230) -> 174749.8573 | L11: =SUMIF(Cálculos!$I$8:$QJ$8, L$2, Cálculos!$I230:$QJ230) -> 171098.8839 | M11: =SUMIF(Cálculos!$I$8:$QJ$8, M$2, Cálculos!$I230:$QJ230) -> 168951.694 | N11: =SUMIF(Cálculos!$I$8:$QJ$8, N$2, Cálculos!$I230:$QJ230) -> 165994.7627 | O11: =SUMIF(Cálculos!$I$8:$QJ$8, O$2, Cálculos!$I230:$QJ230) -> 163639.5781 | P11: =SUMIF(Cálculos!$I$8:$QJ$8, P$2, Cálculos!$I230:$QJ230) -> 161538.779 | Q11: =SUMIF(Cálculos!$I$8:$QJ$8, Q$2, Cálculos!$I230:$QJ230) -> 159897.9056 | R11: =SUMIF(Cálculos!$I$8:$QJ$8, R$2, Cálculos!$I230:$QJ230) -> 157399.7084 | S11: =SUMIF(Cálculos!$I$8:$QJ$8, S$2, Cálculos!$I230:$QJ230) -> 155361.0227 | T11: =SUMIF(Cálculos!$I$8:$QJ$8, T$2, Cálculos!$I230:$QJ230) -> 153342.6307 | U11: =SUMIF(Cálculos!$I$8:$QJ$8, U$2, Cálculos!$I230:$QJ230) -> 151761.0286 | V11: =SUMIF(Cálculos!$I$8:$QJ$8, V$2, Cálculos!$I230:$QJ230) -> 149365.9217 | W11: =SUMIF(Cálculos!$I$8:$QJ$8, W$2, Cálculos!$I230:$QJ230) -> 147407.2067 | X11: =SUMIF(Cálculos!$I$8:$QJ$8, X$2, Cálculos!$I230:$QJ230) -> 145467.9893 | Y11: =SUMIF(Cálculos!$I$8:$QJ$8, Y$2, Cálculos!$I230:$QJ230) -> 143943.3335 | Z11: =SUMIF(Cálculos!$I$8:$QJ$8, Z$2, Cálculos!$I230:$QJ230) -> 141647.273 | AA11: =SUMIF(Cálculos!$I$8:$QJ$8, AA$2, Cálculos!$I230:$QJ230) -> 139765.3917 | AB11: =SUMIF(Cálculos!$I$8:$QJ$8, AB$2, Cálculos!$I230:$QJ230) -> 137902.2432 | AC11: =SUMIF(Cálculos!$I$8:$QJ$8, AC$2, Cálculos!$I230:$QJ230) -> 136432.2998 | AD11: =SUMIF(Cálculos!$I$8:$QJ$8, AD$2, Cálculos!$I230:$QJ230) -> 134231.4006 | AE11: =SUMIF(Cálculos!$I$8:$QJ$8, AE$2, Cálculos!$I230:$QJ230) -> 132423.3391 | AF11: =SUMIF(Cálculos!$I$8:$QJ$8, AF$2, Cálculos!$I230:$QJ230) -> 130633.2755 | AG11: =SUMIF(Cálculos!$I$8:$QJ$8, AG$2, Cálculos!$I230:$QJ230) -> 128525.5296
C13: Receitas Brutas | D13: =Cálculos!E355 -> EUR | F13: 54040676.52 | G13: =G10+G11+G12 -> 0 | H13: 0 | I13: 2336005.397 | J13: 2361023.514 | K13: 2365844.652 | L13: 2363216.351 | M13: 2345678.588 | N13: 2326305.732 | O13: 2305713.003 | P13: 2281817.493 | Q13: 2258468.983 | R13: 2234737.694 | S13: 2211548.693 | T13: 2188590.522 | U13: 2166147.705 | V13: 2143357.503 | W13: 2121078.127 | X13: 2099020.527 | Y13: 2077447.876 | Z13: 2055561.844 | AA13: 2034156.413 | AB13: 2012964.057 | AC13: 1992227.438 | AD13: 1971210.11 | AE13: 1950644.34 | AF13: 1930283.287 | AG13: 1907626.674
C14: menos: Custo das Mercadorias Vendidas | D14: =Cálculos!E355 -> EUR | F14: =SUM(G14:AR14) -> -3853913.13 | G14: =SUMIF(Cálculos!$I$8:$QJ$8, G$2, Cálculos!$I231:$QJ232) -> 0 | H14: =SUMIF(Cálculos!$I$8:$QJ$8, H$2, Cálculos!$I231:$QJ232) -> 0 | I14: =SUMIF(Cálculos!$I$8:$QJ$8, I$2, Cálculos!$I354:$QJ354) -> -102621.0439 | J14: =SUMIF(Cálculos!$I$8:$QJ$8, J$2, Cálculos!$I354:$QJ354) -> -130996.7252 | K14: =SUMIF(Cálculos!$I$8:$QJ$8, K$2, Cálculos!$I354:$QJ354) -> -150002.3949 | L14: =SUMIF(Cálculos!$I$8:$QJ$8, L$2, Cálculos!$I354:$QJ354) -> -166969.2192 | M14: =SUMIF(Cálculos!$I$8:$QJ$8, M$2, Cálculos!$I354:$QJ354) -> -171080.3492 | N14: =SUMIF(Cálculos!$I$8:$QJ$8, N$2, Cálculos!$I354:$QJ354) -> -173010.5152 | O14: =SUMIF(Cálculos!$I$8:$QJ$8, O$2, Cálculos!$I354:$QJ354) -> -173903.9424 | P14: =SUMIF(Cálculos!$I$8:$QJ$8, P$2, Cálculos!$I354:$QJ354) -> -171761.0048 | Q14: =SUMIF(Cálculos!$I$8:$QJ$8, Q$2, Cálculos!$I354:$QJ354) -> -170106.3472 | R14: =SUMIF(Cálculos!$I$8:$QJ$8, R$2, Cálculos!$I354:$QJ354) -> -167538.9116 | S14: =SUMIF(Cálculos!$I$8:$QJ$8, S$2, Cálculos!$I354:$QJ354) -> -165459.3334 | T14: =SUMIF(Cálculos!$I$8:$QJ$8, T$2, Cálculos!$I354:$QJ354) -> -163400.4559 | U14: =SUMIF(Cálculos!$I$8:$QJ$8, U$2, Cálculos!$I354:$QJ354) -> -161806.2584 | V14: =SUMIF(Cálculos!$I$8:$QJ$8, V$2, Cálculos!$I354:$QJ354) -> -159343.9809 | W14: =SUMIF(Cálculos!$I$8:$QJ$8, W$2, Cálculos!$I354:$QJ354) -> -157345.9774 | X14: =SUMIF(Cálculos!$I$8:$QJ$8, X$2, Cálculos!$I354:$QJ354) -> -155367.8627 | Y14: =SUMIF(Cálculos!$I$8:$QJ$8, Y$2, Cálculos!$I354:$QJ354) -> -153831.7537 | Z14: =SUMIF(Cálculos!$I$8:$QJ$8, Z$2, Cálculos!$I354:$QJ354) -> -151470.5093 | AA14: =SUMIF(Cálculos!$I$8:$QJ$8, AA$2, Cálculos!$I354:$QJ354) -> -149550.8807 | AB14: =SUMIF(Cálculos!$I$8:$QJ$8, AB$2, Cálculos!$I354:$QJ354) -> -147650.3607 | AC14: =SUMIF(Cálculos!$I$8:$QJ$8, AC$2, Cálculos!$I354:$QJ354) -> -146170.0615 | AD14: =SUMIF(Cálculos!$I$8:$QJ$8, AD$2, Cálculos!$I354:$QJ354) -> -143905.8872 | AE14: =SUMIF(Cálculos!$I$8:$QJ$8, AE$2, Cálculos!$I354:$QJ354) -> -142061.559 | AF14: =SUMIF(Cálculos!$I$8:$QJ$8, AF$2, Cálculos!$I354:$QJ354) -> -140235.5899 | AG14: =SUMIF(Cálculos!$I$8:$QJ$8, AG$2, Cálculos!$I354:$QJ354) -> -138322.2058
C15: =Cálculos!C356 -> Menos: Custos Operacionais | D15: =Cálculos!E356 -> EUR | F15: -18691139.3 | G15: =SUMIF(Cálculos!$I$8:$QJ$8, G$2, Cálculos!$I356:$QJ356) -> 0 | H15: =SUMIF(Cálculos!$I$8:$QJ$8, H$2, Cálculos!$I356:$QJ356) -> 0 | I15: =SUMIF(Cálculos!$I$8:$QJ$8, I$2, Cálculos!$I356:$QJ356) -> -624000.8839 | J15: =SUMIF(Cálculos!$I$8:$QJ$8, J$2, Cálculos!$I356:$QJ356) -> -646555.9828 | K15: =SUMIF(Cálculos!$I$8:$QJ$8, K$2, Cálculos!$I356:$QJ356) -> -649915.0968 | L15: =SUMIF(Cálculos!$I$8:$QJ$8, L$2, Cálculos!$I356:$QJ356) -> -654007.0691 | M15: =SUMIF(Cálculos!$I$8:$QJ$8, M$2, Cálculos!$I356:$QJ356) -> -658378.0184 | N15: =SUMIF(Cálculos!$I$8:$QJ$8, N$2, Cálculos!$I356:$QJ356) -> -661648.1546 | O15: =SUMIF(Cálculos!$I$8:$QJ$8, O$2, Cálculos!$I356:$QJ356) -> -665239.4062 | P15: =SUMIF(Cálculos!$I$8:$QJ$8, P$2, Cálculos!$I356:$QJ356) -> -668925.8538 | Q15: =SUMIF(Cálculos!$I$8:$QJ$8, Q$2, Cálculos!$I356:$QJ356) -> -672943.219 | R15: =SUMIF(Cálculos!$I$8:$QJ$8, R$2, Cálculos!$I356:$QJ356) -> -676623.3863 | S15: =SUMIF(Cálculos!$I$8:$QJ$8, S$2, Cálculos!$I356:$QJ356) -> -680639.6016 | T15: =SUMIF(Cálculos!$I$8:$QJ$8, T$2, Cálculos!$I356:$QJ356) -> -684770.9795 | U15: =SUMIF(Cálculos!$I$8:$QJ$8, U$2, Cálculos!$I356:$QJ356) -> -689243.8107 | V15: =SUMIF(Cálculos!$I$8:$QJ$8, V$2, Cálculos!$I356:$QJ356) -> -693390.2219 | W15: =SUMIF(Cálculos!$I$8:$QJ$8, W$2, Cálculos!$I356:$QJ356) -> -697883.7618 | X15: =SUMIF(Cálculos!$I$8:$QJ$8, X$2, Cálculos!$I356:$QJ356) -> -702503.8185 | Y15: =SUMIF(Cálculos!$I$8:$QJ$8, Y$2, Cálculos!$I356:$QJ356) -> -707476.9808 | Z15: =SUMIF(Cálculos!$I$8:$QJ$8, Z$2, Cálculos!$I356:$QJ356) -> -712135.6468 | AA15: =SUMIF(Cálculos!$I$8:$QJ$8, AA$2, Cálculos!$I356:$QJ356) -> -717153.6947 | AB15: =SUMIF(Cálculos!$I$8:$QJ$8, AB$2, Cálculos!$I356:$QJ356) -> -722310.8161 | AC15: =SUMIF(Cálculos!$I$8:$QJ$8, AC$2, Cálculos!$I356:$QJ356) -> -727833.9273 | AD15: =SUMIF(Cálculos!$I$8:$QJ$8, AD$2, Cálculos!$I356:$QJ356) -> -733055.7289 | AE15: =SUMIF(Cálculos!$I$8:$QJ$8, AE$2, Cálculos!$I356:$QJ356) -> -738650.4597 | AF15: =SUMIF(Cálculos!$I$8:$QJ$8, AF$2, Cálculos!$I356:$QJ356) -> -744398.1466 | AG15: =SUMIF(Cálculos!$I$8:$QJ$8, AG$2, Cálculos!$I356:$QJ356) -> -2161454.63
C16: =Cálculos!C357 -> EBITDA | D16: =Cálculos!E357 -> EUR | F16: 31495624.1 | G16: =SUM(G13:G15) -> 0 | H16: 0 | I16: 1609383.469 | J16: 1583470.806 | K16: 1565927.16 | L16: 1542240.062 | M16: 1516220.22 | N16: 1491647.062 | O16: 1466569.654 | P16: 1441130.634 | Q16: 1415419.417 | R16: 1390575.396 | S16: 1365449.758 | T16: 1340419.087 | U16: 1315097.636 | V16: 1290623.3 | W16: 1265848.388 | X16: 1241148.846 | Y16: 1216139.141 | Z16: 1191955.688 | AA16: 1167451.837 | AB16: 1143002.88 | AC16: 1118223.449 | AD16: 1094248.493 | AE16: 1069932.321 | AF16: 1045649.551 | AG16: -392150.1621
C18: =Cálculos!C359 -> Menos: Depreciações e Amortizações | D18: =Cálculos!E359 -> EUR | F18: =SUM(G18:AR18) -> -14937688.52 | G18: =SUMIF(Cálculos!$I$8:$QJ$8, G$2, Cálculos!$I359:$QJ359) -> 0 | H18: =SUMIF(Cálculos!$I$8:$QJ$8, H$2, Cálculos!$I359:$QJ359) -> 0 | I18: =SUMIF(Cálculos!$I$8:$QJ$8, I$2, Cálculos!$I359:$QJ359) -> -1165501.438 | J18: =SUMIF(Cálculos!$I$8:$QJ$8, J$2, Cálculos!$I359:$QJ359) -> -1165501.438 | K18: =SUMIF(Cálculos!$I$8:$QJ$8, K$2, Cálculos!$I359:$QJ359) -> -1165501.438 | L18: =SUMIF(Cálculos!$I$8:$QJ$8, L$2, Cálculos!$I359:$QJ359) -> -1165501.438 | M18: =SUMIF(Cálculos!$I$8:$QJ$8, M$2, Cálculos!$I359:$QJ359) -> -1165501.438 | N18: =SUMIF(Cálculos!$I$8:$QJ$8, N$2, Cálculos!$I359:$QJ359) -> -1143401.438 | O18: =SUMIF(Cálculos!$I$8:$QJ$8, O$2, Cálculos!$I359:$QJ359) -> -1143401.438 | P18: =SUMIF(Cálculos!$I$8:$QJ$8, P$2, Cálculos!$I359:$QJ359) -> -640483.6281 | Q18: =SUMIF(Cálculos!$I$8:$QJ$8, Q$2, Cálculos!$I359:$QJ359) -> -640483.6281 | R18: =SUMIF(Cálculos!$I$8:$QJ$8, R$2, Cálculos!$I359:$QJ359) -> -640263.6281 | S18: =SUMIF(Cálculos!$I$8:$QJ$8, S$2, Cálculos!$I359:$QJ359) -> -422560.1485 | T18: =SUMIF(Cálculos!$I$8:$QJ$8, T$2, Cálculos!$I359:$QJ359) -> -422560.1485 | U18: =SUMIF(Cálculos!$I$8:$QJ$8, U$2, Cálculos!$I359:$QJ359) -> -365055.2914 | V18: =SUMIF(Cálculos!$I$8:$QJ$8, V$2, Cálculos!$I359:$QJ359) -> -307550.4342 | W18: =SUMIF(Cálculos!$I$8:$QJ$8, W$2, Cálculos!$I359:$QJ359) -> -307550.4342 | X18: =SUMIF(Cálculos!$I$8:$QJ$8, X$2, Cálculos!$I359:$QJ359) -> -307550.4342 | Y18: =SUMIF(Cálculos!$I$8:$QJ$8, Y$2, Cálculos!$I359:$QJ359) -> -307550.4342 | Z18: =SUMIF(Cálculos!$I$8:$QJ$8, Z$2, Cálculos!$I359:$QJ359) -> -307641.5526 | AA18: =SUMIF(Cálculos!$I$8:$QJ$8, AA$2, Cálculos!$I359:$QJ359) -> -307732.671 | AB18: =SUMIF(Cálculos!$I$8:$QJ$8, AB$2, Cálculos!$I359:$QJ359) -> -307732.671 | AC18: =SUMIF(Cálculos!$I$8:$QJ$8, AC$2, Cálculos!$I359:$QJ359) -> -307732.671 | AD18: =SUMIF(Cálculos!$I$8:$QJ$8, AD$2, Cálculos!$I359:$QJ359) -> -307732.671 | AE18: =SUMIF(Cálculos!$I$8:$QJ$8, AE$2, Cálculos!$I359:$QJ359) -> -307732.671 | AF18: =SUMIF(Cálculos!$I$8:$QJ$8, AF$2, Cálculos!$I359:$QJ359) -> -307732.671 | AG18: =SUMIF(Cálculos!$I$8:$QJ$8, AG$2, Cálculos!$I359:$QJ359) -> -307732.671
C19: =Cálculos!C360 -> EBIT | D19: =Cálculos!E360 -> EUR | F19: =SUM(G19:AR19) -> 16557935.57 | G19: =G16+G18 -> 0 | H19: =H16+H18 -> 0 | I19: 443882.0312 | J19: 417969.3682 | K19: 400425.7226 | L19: 376738.6248 | M19: 350718.7824 | N19: 348245.6245 | O19: 323168.2166 | P19: 800647.0061 | Q19: 774935.7888 | R19: 750311.7679 | S19: 942889.6096 | T19: 917858.9383 | U19: 950042.345 | V19: 983072.8658 | W19: 958297.9538 | X19: 933598.4116 | Y19: 908588.7072 | Z19: 884314.1356 | AA19: 859719.1661 | AB19: 835270.2088 | AC19: 810490.7779 | AD19: 786515.8225 | AE19: 762199.6499 | AF19: 737916.88 | AG19: -699882.8331
C21: =Cálculos!C362 -> Menos: Juros da Dívida Sénior | D21: =Cálculos!E362 -> EUR | F21: =SUM(G21:AR21) -> -4700943.598 | G21: =SUMIF(Cálculos!$I$8:$QJ$8, G$2, Cálculos!$I362:$QJ362) -> 0 | H21: =SUMIF(Cálculos!$I$8:$QJ$8, H$2, Cálculos!$I362:$QJ362) -> 0 | I21: =SUMIF(Cálculos!$I$8:$QJ$8, I$2, Cálculos!$I362:$QJ362) -> -444040.6871 | J21: =SUMIF(Cálculos!$I$8:$QJ$8, J$2, Cálculos!$I362:$QJ362) -> -429160.0436 | K21: =SUMIF(Cálculos!$I$8:$QJ$8, K$2, Cálculos!$I362:$QJ362) -> -412568.4836 | L21: =SUMIF(Cálculos!$I$8:$QJ$8, L$2, Cálculos!$I362:$QJ362) -> -395041.0293 | M21: =SUMIF(Cálculos!$I$8:$QJ$8, M$2, Cálculos!$I362:$QJ362) -> -376524.8887 | N21: =SUMIF(Cálculos!$I$8:$QJ$8, N$2, Cálculos!$I362:$QJ362) -> -356964.2923 | O21: =SUMIF(Cálculos!$I$8:$QJ$8, O$2, Cálculos!$I362:$QJ362) -> -336300.3244 | P21: =SUMIF(Cálculos!$I$8:$QJ$8, P$2, Cálculos!$I362:$QJ362) -> -314470.7464 | Q21: =SUMIF(Cálculos!$I$8:$QJ$8, Q$2, Cálculos!$I362:$QJ362) -> -291409.8085 | R21: =SUMIF(Cálculos!$I$8:$QJ$8, R$2, Cálculos!$I362:$QJ362) -> -267048.0525 | S21: =SUMIF(Cálculos!$I$8:$QJ$8, S$2, Cálculos!$I362:$QJ362) -> -241312.102 | T21: =SUMIF(Cálculos!$I$8:$QJ$8, T$2, Cálculos!$I362:$QJ362) -> -214124.4416 | U21: =SUMIF(Cálculos!$I$8:$QJ$8, U$2, Cálculos!$I362:$QJ362) -> -185403.1834 | V21: =SUMIF(Cálculos!$I$8:$QJ$8, V$2, Cálculos!$I362:$QJ362) -> -155061.8205 | W21: =SUMIF(Cálculos!$I$8:$QJ$8, W$2, Cálculos!$I362:$QJ362) -> -123008.9662 | X21: =SUMIF(Cálculos!$I$8:$QJ$8, X$2, Cálculos!$I362:$QJ362) -> -89148.07897 | Y21: =SUMIF(Cálculos!$I$8:$QJ$8, Y$2, Cálculos!$I362:$QJ362) -> -53377.17157 | Z21: =SUMIF(Cálculos!$I$8:$QJ$8, Z$2, Cálculos!$I362:$QJ362) -> -15979.47711 | AA21: =SUMIF(Cálculos!$I$8:$QJ$8, AA$2, Cálculos!$I362:$QJ362) -> 0 | AB21: =SUMIF(Cálculos!$I$8:$QJ$8, AB$2, Cálculos!$I362:$QJ362) -> 0 | AC21: =SUMIF(Cálculos!$I$8:$QJ$8, AC$2, Cálculos!$I362:$QJ362) -> 0 | AD21: =SUMIF(Cálculos!$I$8:$QJ$8, AD$2, Cálculos!$I362:$QJ362) -> 0 | AE21: =SUMIF(Cálculos!$I$8:$QJ$8, AE$2, Cálculos!$I362:$QJ362) -> 0 | AF21: =SUMIF(Cálculos!$I$8:$QJ$8, AF$2, Cálculos!$I362:$QJ362) -> 0 | AG21: =SUMIF(Cálculos!$I$8:$QJ$8, AG$2, Cálculos!$I362:$QJ362) -> 0
C22: =Cálculos!C363 -> Menos: Juros da Dívida Subordinada | D22: =Cálculos!E363 -> EUR | F22: =SUM(G22:AR22) -> -5079271.693 | G22: =SUMIF(Cálculos!$I$8:$QJ$8, G$2, Cálculos!$I363:$QJ363) -> 0 | H22: 0 | I22: =SUMIF(Cálculos!$I$8:$QJ$8, I$2, Cálculos!$I363:$QJ363) -> -488505.3632 | J22: =SUMIF(Cálculos!$I$8:$QJ$8, J$2, Cálculos!$I363:$QJ363) -> -479691.9128 | K22: =SUMIF(Cálculos!$I$8:$QJ$8, K$2, Cálculos!$I363:$QJ363) -> -470025.5566 | L22: =SUMIF(Cálculos!$I$8:$QJ$8, L$2, Cálculos!$I363:$QJ363) -> -459133.2646 | M22: =SUMIF(Cálculos!$I$8:$QJ$8, M$2, Cálculos!$I363:$QJ363) -> -446859.5572 | N22: =SUMIF(Cálculos!$I$8:$QJ$8, N$2, Cálculos!$I363:$QJ363) -> -433029.2366 | O22: =SUMIF(Cálculos!$I$8:$QJ$8, O$2, Cálculos!$I363:$QJ363) -> -417444.8852 | P22: =SUMIF(Cálculos!$I$8:$QJ$8, P$2, Cálculos!$I363:$QJ363) -> -399884.0479 | Q22: =SUMIF(Cálculos!$I$8:$QJ$8, Q$2, Cálculos!$I363:$QJ363) -> -380096.0569 | R22: =SUMIF(Cálculos!$I$8:$QJ$8, R$2, Cálculos!$I363:$QJ363) -> -357798.4533 | S22: =SUMIF(Cálculos!$I$8:$QJ$8, S$2, Cálculos!$I363:$QJ363) -> -332672.9555 | T22: =SUMIF(Cálculos!$I$8:$QJ$8, T$2, Cálculos!$I363:$QJ363) -> -304360.9157 | U22: =SUMIF(Cálculos!$I$8:$QJ$8, U$2, Cálculos!$I363:$QJ363) -> -272458.2005 | V22: =SUMIF(Cálculos!$I$8:$QJ$8, V$2, Cálculos!$I363:$QJ363) -> -236509.4226 | W22: =SUMIF(Cálculos!$I$8:$QJ$8, W$2, Cálculos!$I363:$QJ363) -> -196001.4398 | X22: =SUMIF(Cálculos!$I$8:$QJ$8, X$2, Cálculos!$I363:$QJ363) -> -150356.0309 | Y22: =SUMIF(Cálculos!$I$8:$QJ$8, Y$2, Cálculos!$I363:$QJ363) -> -98921.64161 | Z22: =SUMIF(Cálculos!$I$8:$QJ$8, Z$2, Cálculos!$I363:$QJ363) -> -40964.08435 | AA22: =SUMIF(Cálculos!$I$8:$QJ$8, AA$2, Cálculos!$I363:$QJ363) -> 24343.94185 | AB22: =SUMIF(Cálculos!$I$8:$QJ$8, AB$2, Cálculos!$I363:$QJ363) -> 97934.66044 | AC22: =SUMIF(Cálculos!$I$8:$QJ$8, AC$2, Cálculos!$I363:$QJ363) -> 180858.5241 | AD22: =SUMIF(Cálculos!$I$8:$QJ$8, AD$2, Cálculos!$I363:$QJ363) -> 274299.2093 | AE22: =SUMIF(Cálculos!$I$8:$QJ$8, AE$2, Cálculos!$I363:$QJ363) -> 308004.9965 | AF22: =SUMIF(Cálculos!$I$8:$QJ$8, AF$2, Cálculos!$I363:$QJ363) -> 0 | AG22: =SUMIF(Cálculos!$I$8:$QJ$8, AG$2, Cálculos!$I363:$QJ363) -> 0
C23: =Cálculos!C364 -> Mais: Juros das Contas de Reserva | D23: =Cálculos!E364 -> EUR | F23: =SUM(G23:AR23) -> 0 | G23: =SUMIF(Cálculos!$I$8:$QJ$8, G$2, Cálculos!$I364:$QJ364) -> 0 | H23: =SUMIF(Cálculos!$I$8:$QJ$8, H$2, Cálculos!$I364:$QJ364) -> 0 | I23: =SUMIF(Cálculos!$I$8:$QJ$8, I$2, Cálculos!$I364:$QJ364) -> 0 | J23: =SUMIF(Cálculos!$I$8:$QJ$8, J$2, Cálculos!$I364:$QJ364) -> 0 | K23: =SUMIF(Cálculos!$I$8:$QJ$8, K$2, Cálculos!$I364:$QJ364) -> 0 | L23: =SUMIF(Cálculos!$I$8:$QJ$8, L$2, Cálculos!$I364:$QJ364) -> 0 | M23: =SUMIF(Cálculos!$I$8:$QJ$8, M$2, Cálculos!$I364:$QJ364) -> 0 | N23: =SUMIF(Cálculos!$I$8:$QJ$8, N$2, Cálculos!$I364:$QJ364) -> 0 | O23: =SUMIF(Cálculos!$I$8:$QJ$8, O$2, Cálculos!$I364:$QJ364) -> 0 | P23: =SUMIF(Cálculos!$I$8:$QJ$8, P$2, Cálculos!$I364:$QJ364) -> 0 | Q23: =SUMIF(Cálculos!$I$8:$QJ$8, Q$2, Cálculos!$I364:$QJ364) -> 0 | R23: =SUMIF(Cálculos!$I$8:$QJ$8, R$2, Cálculos!$I364:$QJ364) -> 0 | S23: =SUMIF(Cálculos!$I$8:$QJ$8, S$2, Cálculos!$I364:$QJ364) -> 0 | T23: =SUMIF(Cálculos!$I$8:$QJ$8, T$2, Cálculos!$I364:$QJ364) -> 0 | U23: =SUMIF(Cálculos!$I$8:$QJ$8, U$2, Cálculos!$I364:$QJ364) -> 0 | V23: =SUMIF(Cálculos!$I$8:$QJ$8, V$2, Cálculos!$I364:$QJ364) -> 0 | W23: =SUMIF(Cálculos!$I$8:$QJ$8, W$2, Cálculos!$I364:$QJ364) -> 0 | X23: =SUMIF(Cálculos!$I$8:$QJ$8, X$2, Cálculos!$I364:$QJ364) -> 0 | Y23: =SUMIF(Cálculos!$I$8:$QJ$8, Y$2, Cálculos!$I364:$QJ364) -> 0 | Z23: =SUMIF(Cálculos!$I$8:$QJ$8, Z$2, Cálculos!$I364:$QJ364) -> 0 | AA23: =SUMIF(Cálculos!$I$8:$QJ$8, AA$2, Cálculos!$I364:$QJ364) -> 0 | AB23: =SUMIF(Cálculos!$I$8:$QJ$8, AB$2, Cálculos!$I364:$QJ364) -> 0 | AC23: =SUMIF(Cálculos!$I$8:$QJ$8, AC$2, Cálculos!$I364:$QJ364) -> 0 | AD23: =SUMIF(Cálculos!$I$8:$QJ$8, AD$2, Cálculos!$I364:$QJ364) -> 0 | AE23: =SUMIF(Cálculos!$I$8:$QJ$8, AE$2, Cálculos!$I364:$QJ364) -> 0 | AF23: =SUMIF(Cálculos!$I$8:$QJ$8, AF$2, Cálculos!$I364:$QJ364) -> 0 | AG23: =SUMIF(Cálculos!$I$8:$QJ$8, AG$2, Cálculos!$I364:$QJ364) -> 0
C24: =Cálculos!C365 -> EBT | D24: =Cálculos!E365 -> EUR | F24: =SUM(G24:AR24) -> 6777720.282 | G24: =G19+SUM(G21:G23) -> 0 | H24: 0 | I24: -488664.019 | J24: -490882.5882 | K24: -482168.3176 | L24: -477435.669 | M24: -472665.6636 | N24: -441747.9044 | O24: -430576.993 | P24: 86292.21186 | Q24: 103429.9234 | R24: 125465.2621 | S24: 368904.5521 | T24: 399373.5811 | U24: 492180.9611 | V24: 591501.6227 | W24: 639287.5478 | X24: 694094.3017 | Y24: 756289.8941 | Z24: 827370.5742 | AA24: 884063.1079 | AB24: 933204.8693 | AC24: 991349.3021 | AD24: 1060815.032 | AE24: 1070204.646 | AF24: 737916.88 | AG24: -699882.8331
C26: =Cálculos!C367 -> Menos: Impostos | D26: =Cálculos!E367 -> EUR | F26: =SUM(G26:AR26) -> -1001128.501 | G26: =SUMIF(Cálculos!$I$8:$QJ$8, G$2, Cálculos!$I367:$QJ367) -> 0 | H26: =SUMIF(Cálculos!$I$8:$QJ$8, H$2, Cálculos!$I367:$QJ367) -> 0 | I26: =SUMIF(Cálculos!$I$8:$QJ$8, I$2, Cálculos!$I367:$QJ367) -> 0 | J26: =SUMIF(Cálculos!$I$8:$QJ$8, J$2, Cálculos!$I367:$QJ367) -> 0 | K26: =SUMIF(Cálculos!$I$8:$QJ$8, K$2, Cálculos!$I367:$QJ367) -> 0 | L26: =SUMIF(Cálculos!$I$8:$QJ$8, L$2, Cálculos!$I367:$QJ367) -> 0 | M26: =SUMIF(Cálculos!$I$8:$QJ$8, M$2, Cálculos!$I367:$QJ367) -> 0 | N26: =SUMIF(Cálculos!$I$8:$QJ$8, N$2, Cálculos!$I367:$QJ367) -> 0 | O26: =SUMIF(Cálculos!$I$8:$QJ$8, O$2, Cálculos!$I367:$QJ367) -> 0 | P26: =SUMIF(Cálculos!$I$8:$QJ$8, P$2, Cálculos!$I367:$QJ367) -> 0 | Q26: =SUMIF(Cálculos!$I$8:$QJ$8, Q$2, Cálculos!$I367:$QJ367) -> 0 | R26: =SUMIF(Cálculos!$I$8:$QJ$8, R$2, Cálculos!$I367:$QJ367) -> 0 | S26: =SUMIF(Cálculos!$I$8:$QJ$8, S$2, Cálculos!$I367:$QJ367) -> 0 | T26: =SUMIF(Cálculos!$I$8:$QJ$8, T$2, Cálculos!$I367:$QJ367) -> 0 | U26: =SUMIF(Cálculos!$I$8:$QJ$8, U$2, Cálculos!$I367:$QJ367) -> 0 | V26: =SUMIF(Cálculos!$I$8:$QJ$8, V$2, Cálculos!$I367:$QJ367) -> 0 | W26: =SUMIF(Cálculos!$I$8:$QJ$8, W$2, Cálculos!$I367:$QJ367) -> 0 | X26: =SUMIF(Cálculos!$I$8:$QJ$8, X$2, Cálculos!$I367:$QJ367) -> 0 | Y26: =SUMIF(Cálculos!$I$8:$QJ$8, Y$2, Cálculos!$I367:$QJ367) -> 0 | Z26: =SUMIF(Cálculos!$I$8:$QJ$8, Z$2, Cálculos!$I367:$QJ367) -> 0 | AA26: =SUMIF(Cálculos!$I$8:$QJ$8, AA$2, Cálculos!$I367:$QJ367) -> -11970.75212 | AB26: =SUMIF(Cálculos!$I$8:$QJ$8, AB$2, Cálculos!$I367:$QJ367) -> -166226.4907 | AC26: =SUMIF(Cálculos!$I$8:$QJ$8, AC$2, Cálculos!$I367:$QJ367) -> -176515.9536 | AD26: =SUMIF(Cálculos!$I$8:$QJ$8, AD$2, Cálculos!$I367:$QJ367) -> -188558.8243 | AE26: =SUMIF(Cálculos!$I$8:$QJ$8, AE$2, Cálculos!$I367:$QJ367) -> -192975.6839 | AF26: =SUMIF(Cálculos!$I$8:$QJ$8, AF$2, Cálculos!$I367:$QJ367) -> -134509.1913 | AG26: =SUMIF(Cálculos!$I$8:$QJ$8, AG$2, Cálculos!$I367:$QJ367) -> -130371.6052
C27: =Cálculos!C368 -> Mais: Variação do Ativo por Impostos Diferidos | D27: =Cálculos!E368 -> EUR | F27: =SUM(G27:AR27) -> 240646.6832 | G27: =SUMIF(Cálculos!$I$8:$QJ$8, G$2, Cálculos!$I368:$QJ368) -> 0 | H27: 0 | I27: =SUMIF(Cálculos!$I$8:$QJ$8, I$2, Cálculos!$I368:$QJ368) -> 146793.631 | J27: =SUMIF(Cálculos!$I$8:$QJ$8, J$2, Cálculos!$I368:$QJ368) -> 147166.3506 | K27: =SUMIF(Cálculos!$I$8:$QJ$8, K$2, Cálculos!$I368:$QJ368) -> 145702.3532 | L27: =SUMIF(Cálculos!$I$8:$QJ$8, L$2, Cálculos!$I368:$QJ368) -> 144907.2682 | M27: =SUMIF(Cálculos!$I$8:$QJ$8, M$2, Cálculos!$I368:$QJ368) -> 144105.9073 | N27: =SUMIF(Cálculos!$I$8:$QJ$8, N$2, Cálculos!$I368:$QJ368) -> 142624.5238 | O27: =SUMIF(Cálculos!$I$8:$QJ$8, O$2, Cálculos!$I368:$QJ368) -> 140747.8106 | P27: =SUMIF(Cálculos!$I$8:$QJ$8, P$2, Cálculos!$I368:$QJ368) -> 138403.9762 | Q27: =SUMIF(Cálculos!$I$8:$QJ$8, Q$2, Cálculos!$I368:$QJ368) -> 135524.8407 | R27: =SUMIF(Cálculos!$I$8:$QJ$8, R$2, Cálculos!$I368:$QJ368) -> 131859.8638 | S27: =SUMIF(Cálculos!$I$8:$QJ$8, S$2, Cálculos!$I368:$QJ368) -> -132966.0697 | T27: =SUMIF(Cálculos!$I$8:$QJ$8, T$2, Cálculos!$I368:$QJ368) -> -138084.8666 | U27: =SUMIF(Cálculos!$I$8:$QJ$8, U$2, Cálculos!$I368:$QJ368) -> -144015.6904 | V27: =SUMIF(Cálculos!$I$8:$QJ$8, V$2, Cálculos!$I368:$QJ368) -> -151040.7456 | W27: =SUMIF(Cálculos!$I$8:$QJ$8, W$2, Cálculos!$I368:$QJ368) -> -159068.781 | X27: =SUMIF(Cálculos!$I$8:$QJ$8, X$2, Cálculos!$I368:$QJ368) -> -168276.3156 | Y27: =SUMIF(Cálculos!$I$8:$QJ$8, Y$2, Cálculos!$I368:$QJ368) -> -178725.1752 | Z27: =SUMIF(Cálculos!$I$8:$QJ$8, Z$2, Cálculos!$I368:$QJ368) -> -190627.5916 | AA27: =SUMIF(Cálculos!$I$8:$QJ$8, AA$2, Cálculos!$I368:$QJ368) -> -153764.8356 | AB27: =SUMIF(Cálculos!$I$8:$QJ$8, AB$2, Cálculos!$I368:$QJ368) -> -893.8262321 | AC27: =SUMIF(Cálculos!$I$8:$QJ$8, AC$2, Cálculos!$I368:$QJ368) -> -372.6280433 | AD27: =SUMIF(Cálculos!$I$8:$QJ$8, AD$2, Cálculos!$I368:$QJ368) -> 0 | AE27: =SUMIF(Cálculos!$I$8:$QJ$8, AE$2, Cálculos!$I368:$QJ368) -> 2839.404403 | AF27: =SUMIF(Cálculos!$I$8:$QJ$8, AF$2, Cálculos!$I368:$QJ368) -> 197.2565432 | AG27: =SUMIF(Cálculos!$I$8:$QJ$8, AG$2, Cálculos!$I368:$QJ368) -> 237610.0223
C28: =Cálculos!C369 -> Resultado Líquido / (Prejuízo) | D28: =Cálculos!E369 -> EUR | F28: =SUM(G28:AR28) -> 6017238.464 | G28: =G24+SUM(G26:G27) -> 0 | H28: =H24+SUM(H26:H27) -> 0 | I28: -341870.388 | J28: -343716.2376 | K28: -336465.9644 | L28: -332528.4008 | M28: -328559.7563 | N28: -299123.3806 | O28: -289829.1823 | P28: 224696.1881 | Q28: 238954.7641 | R28: 257325.1259 | S28: 235938.4824 | T28: 261288.7145 | U28: 348165.2707 | V28: 440460.8772 | W28: 480218.7668 | X28: 525817.9861 | Y28: 577564.7189 | Z28: 636742.9826 | AA28: 718327.5202 | AB28: 766084.5523 | AC28: 814460.7204 | AD28: 872256.2075 | AE28: 880068.3669 | AF28: 603604.9452 | AG28: -592644.4161
A30: · | B30: Balanço | D30: Unidade
B32: Ativos Correntes
C33: Caixa Não Restrita | D33: =Cálculos!E374 -> EUR | G33: =LOOKUP(G$3, Cálculos!$I$4:$QJ$4, Cálculos!$I374:$QJ374) -> 25703.12416 | H33: =LOOKUP(H$3, Cálculos!$I$4:$QJ$4, Cálculos!$I374:$QJ374) -> 503085.7702 | I33: =LOOKUP(I$3, Cálculos!$I$4:$QJ$4, Cálculos!$I374:$QJ374) -> 598256.0516 | J33: =LOOKUP(J$3, Cálculos!$I$4:$QJ$4, Cálculos!$I374:$QJ374) -> 1026627.576 | K33: =LOOKUP(K$3, Cálculos!$I$4:$QJ$4, Cálculos!$I374:$QJ374) -> 1315691.81 | L33: =LOOKUP(L$3, Cálculos!$I$4:$QJ$4, Cálculos!$I374:$QJ374) -> 1581050.062 | M33: =LOOKUP(M$3, Cálculos!$I$4:$QJ$4, Cálculos!$I374:$QJ374) -> 1708342.485 | N33: =LOOKUP(N$3, Cálculos!$I$4:$QJ$4, Cálculos!$I374:$QJ374) -> 2035098.266 | O33: =LOOKUP(O$3, Cálculos!$I$4:$QJ$4, Cálculos!$I374:$QJ374) -> 2224731.249 | P33: =LOOKUP(P$3, Cálculos!$I$4:$QJ$4, Cálculos!$I374:$QJ374) -> 2388907.523 | Q33: =LOOKUP(Q$3, Cálculos!$I$4:$QJ$4, Cálculos!$I374:$QJ374) -> 2423268.633 | R33: =LOOKUP(R$3, Cálculos!$I$4:$QJ$4, Cálculos!$I374:$QJ374) -> 2640941.739 | S33: =LOOKUP(S$3, Cálculos!$I$4:$QJ$4, Cálculos!$I374:$QJ374) -> 2729385.858 | T33: =LOOKUP(T$3, Cálculos!$I$4:$QJ$4, Cálculos!$I374:$QJ374) -> 2792782.811 | U33: =LOOKUP(U$3, Cálculos!$I$4:$QJ$4, Cálculos!$I374:$QJ374) -> 2734579.093 | V33: =LOOKUP(V$3, Cálculos!$I$4:$QJ$4, Cálculos!$I374:$QJ374) -> 2844411.192 | W33: =LOOKUP(W$3, Cálculos!$I$4:$QJ$4, Cálculos!$I374:$QJ374) -> 2833189.758 | X33: =LOOKUP(X$3, Cálculos!$I$4:$QJ$4, Cálculos!$I374:$QJ374) -> 2797253.488 | Y33: =LOOKUP(Y$3, Cálculos!$I$4:$QJ$4, Cálculos!$I374:$QJ374) -> 2647760.467 | Z33: =LOOKUP(Z$3, Cálculos!$I$4:$QJ$4, Cálculos!$I374:$QJ374) -> 3224059.335 | AA33: =LOOKUP(AA$3, Cálculos!$I$4:$QJ$4, Cálculos!$I374:$QJ374) -> 1378114.112 | AB33: =LOOKUP(AB$3, Cálculos!$I$4:$QJ$4, Cálculos!$I374:$QJ374) -> 1801850.487 | AC33: =LOOKUP(AC$3, Cálculos!$I$4:$QJ$4, Cálculos!$I374:$QJ374) -> 2123132.628 | AD33: =LOOKUP(AD$3, Cálculos!$I$4:$QJ$4, Cálculos!$I374:$QJ374) -> 2545397.349 | AE33: =LOOKUP(AE$3, Cálculos!$I$4:$QJ$4, Cálculos!$I374:$QJ374) -> 6423378.381 | AF33: =LOOKUP(AF$3, Cálculos!$I$4:$QJ$4, Cálculos!$I374:$QJ374) -> 7336258.051 | AG33: =LOOKUP(AG$3, Cálculos!$I$4:$QJ$4, Cálculos!$I374:$QJ374) -> 8164001.384
C34: DSRA | D34: =Cálculos!E375 -> EUR | G34: =LOOKUP(G$3, Cálculos!$I$4:$QJ$4, Cálculos!$I375:$QJ375) -> 0 | H34: =LOOKUP(H$3, Cálculos!$I$4:$QJ$4, Cálculos!$I375:$QJ375) -> 180823.9114 | I34: =LOOKUP(I$3, Cálculos!$I$4:$QJ$4, Cálculos!$I375:$QJ375) -> 361647.8228 | J34: =LOOKUP(J$3, Cálculos!$I$4:$QJ$4, Cálculos!$I375:$QJ375) -> 361647.8228 | K34: =LOOKUP(K$3, Cálculos!$I$4:$QJ$4, Cálculos!$I375:$QJ375) -> 361647.8228 | L34: =LOOKUP(L$3, Cálculos!$I$4:$QJ$4, Cálculos!$I375:$QJ375) -> 361647.8228 | M34: =LOOKUP(M$3, Cálculos!$I$4:$QJ$4, Cálculos!$I375:$QJ375) -> 361647.8228 | N34: =LOOKUP(N$3, Cálculos!$I$4:$QJ$4, Cálculos!$I375:$QJ375) -> 361647.8228 | O34: =LOOKUP(O$3, Cálculos!$I$4:$QJ$4, Cálculos!$I375:$QJ375) -> 361647.8228 | P34: =LOOKUP(P$3, Cálculos!$I$4:$QJ$4, Cálculos!$I375:$QJ375) -> 361647.8228 | Q34: =LOOKUP(Q$3, Cálculos!$I$4:$QJ$4, Cálculos!$I375:$QJ375) -> 361647.8228 | R34: =LOOKUP(R$3, Cálculos!$I$4:$QJ$4, Cálculos!$I375:$QJ375) -> 361647.8228 | S34: =LOOKUP(S$3, Cálculos!$I$4:$QJ$4, Cálculos!$I375:$QJ375) -> 361647.8228 | T34: =LOOKUP(T$3, Cálculos!$I$4:$QJ$4, Cálculos!$I375:$QJ375) -> 361647.8228 | U34: =LOOKUP(U$3, Cálculos!$I$4:$QJ$4, Cálculos!$I375:$QJ375) -> 361647.8228 | V34: =LOOKUP(V$3, Cálculos!$I$4:$QJ$4, Cálculos!$I375:$QJ375) -> 361647.8228 | W34: =LOOKUP(W$3, Cálculos!$I$4:$QJ$4, Cálculos!$I375:$QJ375) -> 361647.8228 | X34: =LOOKUP(X$3, Cálculos!$I$4:$QJ$4, Cálculos!$I375:$QJ375) -> 361647.8228 | Y34: =LOOKUP(Y$3, Cálculos!$I$4:$QJ$4, Cálculos!$I375:$QJ375) -> 361647.8228 | Z34: =LOOKUP(Z$3, Cálculos!$I$4:$QJ$4, Cálculos!$I375:$QJ375) -> 0 | AA34: =LOOKUP(AA$3, Cálculos!$I$4:$QJ$4, Cálculos!$I375:$QJ375) -> 0 | AB34: =LOOKUP(AB$3, Cálculos!$I$4:$QJ$4, Cálculos!$I375:$QJ375) -> 0 | AC34: =LOOKUP(AC$3, Cálculos!$I$4:$QJ$4, Cálculos!$I375:$QJ375) -> 0 | AD34: =LOOKUP(AD$3, Cálculos!$I$4:$QJ$4, Cálculos!$I375:$QJ375) -> 0 | AE34: =LOOKUP(AE$3, Cálculos!$I$4:$QJ$4, Cálculos!$I375:$QJ375) -> 0 | AF34: =LOOKUP(AF$3, Cálculos!$I$4:$QJ$4, Cálculos!$I375:$QJ375) -> 0 | AG34: =LOOKUP(AG$3, Cálculos!$I$4:$QJ$4, Cálculos!$I375:$QJ375) -> 0
C35: =Cálculos!C376 -> Conta Reserva de Manutenção (MMRA) | D35: =Cálculos!E376 -> EUR | G35: =LOOKUP(G$3, Cálculos!$I$4:$QJ$4, Cálculos!$I376:$QJ376) -> 0 | H35: =LOOKUP(H$3, Cálculos!$I$4:$QJ$4, Cálculos!$I376:$QJ376) -> 0 | I35: =LOOKUP(I$3, Cálculos!$I$4:$QJ$4, Cálculos!$I376:$QJ376) -> 0 | J35: =LOOKUP(J$3, Cálculos!$I$4:$QJ$4, Cálculos!$I376:$QJ376) -> 0 | K35: =LOOKUP(K$3, Cálculos!$I$4:$QJ$4, Cálculos!$I376:$QJ376) -> 0 | L35: =LOOKUP(L$3, Cálculos!$I$4:$QJ$4, Cálculos!$I376:$QJ376) -> 0 | M35: =LOOKUP(M$3, Cálculos!$I$4:$QJ$4, Cálculos!$I376:$QJ376) -> 0 | N35: =LOOKUP(N$3, Cálculos!$I$4:$QJ$4, Cálculos!$I376:$QJ376) -> 0 | O35: =LOOKUP(O$3, Cálculos!$I$4:$QJ$4, Cálculos!$I376:$QJ376) -> 0 | P35: =LOOKUP(P$3, Cálculos!$I$4:$QJ$4, Cálculos!$I376:$QJ376) -> 0 | Q35: =LOOKUP(Q$3, Cálculos!$I$4:$QJ$4, Cálculos!$I376:$QJ376) -> 0 | R35: =LOOKUP(R$3, Cálculos!$I$4:$QJ$4, Cálculos!$I376:$QJ376) -> 0 | S35: =LOOKUP(S$3, Cálculos!$I$4:$QJ$4, Cálculos!$I376:$QJ376) -> 0 | T35: =LOOKUP(T$3, Cálculos!$I$4:$QJ$4, Cálculos!$I376:$QJ376) -> 0 | U35: =LOOKUP(U$3, Cálculos!$I$4:$QJ$4, Cálculos!$I376:$QJ376) -> 0 | V35: =LOOKUP(V$3, Cálculos!$I$4:$QJ$4, Cálculos!$I376:$QJ376) -> 0 | W35: =LOOKUP(W$3, Cálculos!$I$4:$QJ$4, Cálculos!$I376:$QJ376) -> 0 | X35: =LOOKUP(X$3, Cálculos!$I$4:$QJ$4, Cálculos!$I376:$QJ376) -> 0 | Y35: =LOOKUP(Y$3, Cálculos!$I$4:$QJ$4, Cálculos!$I376:$QJ376) -> 0 | Z35: =LOOKUP(Z$3, Cálculos!$I$4:$QJ$4, Cálculos!$I376:$QJ376) -> 0 | AA35: =LOOKUP(AA$3, Cálculos!$I$4:$QJ$4, Cálculos!$I376:$QJ376) -> 0 | AB35: =LOOKUP(AB$3, Cálculos!$I$4:$QJ$4, Cálculos!$I376:$QJ376) -> 0 | AC35: =LOOKUP(AC$3, Cálculos!$I$4:$QJ$4, Cálculos!$I376:$QJ376) -> 0 | AD35: =LOOKUP(AD$3, Cálculos!$I$4:$QJ$4, Cálculos!$I376:$QJ376) -> 0 | AE35: =LOOKUP(AE$3, Cálculos!$I$4:$QJ$4, Cálculos!$I376:$QJ376) -> 0 | AF35: =LOOKUP(AF$3, Cálculos!$I$4:$QJ$4, Cálculos!$I376:$QJ376) -> 0 | AG35: =LOOKUP(AG$3, Cálculos!$I$4:$QJ$4, Cálculos!$I376:$QJ376) -> 0
C36: =Cálculos!C377 -> Contas a Receber | D36: =Cálculos!E377 -> EUR | G36: =LOOKUP(G$3, Cálculos!$I$4:$QJ$4, Cálculos!$I377:$QJ377) -> 141391.3081 | H36: =LOOKUP(H$3, Cálculos!$I$4:$QJ$4, Cálculos!$I377:$QJ377) -> 0 | I36: =LOOKUP(I$3, Cálculos!$I$4:$QJ$4, Cálculos!$I377:$QJ377) -> 306667.0645 | J36: =LOOKUP(J$3, Cálculos!$I$4:$QJ$4, Cálculos!$I377:$QJ377) -> 213665.8413 | K36: =LOOKUP(K$3, Cálculos!$I$4:$QJ$4, Cálculos!$I377:$QJ377) -> 211450.0527 | L36: =LOOKUP(L$3, Cálculos!$I$4:$QJ$4, Cálculos!$I377:$QJ377) -> 209256.3208 | M36: =LOOKUP(M$3, Cálculos!$I$4:$QJ$4, Cálculos!$I377:$QJ377) -> 295013.3649 | N36: =LOOKUP(N$3, Cálculos!$I$4:$QJ$4, Cálculos!$I377:$QJ377) -> 204934.1506 | O36: =LOOKUP(O$3, Cálculos!$I$4:$QJ$4, Cálculos!$I377:$QJ377) -> 202805.2799 | P36: =LOOKUP(P$3, Cálculos!$I$4:$QJ$4, Cálculos!$I377:$QJ377) -> 200697.6005 | Q36: =LOOKUP(Q$3, Cálculos!$I$4:$QJ$4, Cálculos!$I377:$QJ377) -> 283090.6889 | R36: =LOOKUP(R$3, Cálculos!$I$4:$QJ$4, Cálculos!$I377:$QJ377) -> 196544.9744 | S36: =LOOKUP(S$3, Cálculos!$I$4:$QJ$4, Cálculos!$I377:$QJ377) -> 194499.612 | T36: =LOOKUP(T$3, Cálculos!$I$4:$QJ$4, Cálculos!$I377:$QJ377) -> 192474.6097 | U36: =LOOKUP(U$3, Cálculos!$I$4:$QJ$4, Cálculos!$I377:$QJ377) -> 271635.6987 | V36: =LOOKUP(V$3, Cálculos!$I$4:$QJ$4, Cálculos!$I377:$QJ377) -> 188484.8768 | W36: =LOOKUP(W$3, Cálculos!$I$4:$QJ$4, Cálculos!$I377:$QJ377) -> 186519.747 | X36: =LOOKUP(X$3, Cálculos!$I$4:$QJ$4, Cálculos!$I377:$QJ377) -> 184574.1786 | Y36: =LOOKUP(Y$3, Cálculos!$I$4:$QJ$4, Cálculos!$I377:$QJ377) -> 260630.0486 | Z36: =LOOKUP(Z$3, Cálculos!$I$4:$QJ$4, Cálculos!$I377:$QJ377) -> 180740.9494 | AA36: =LOOKUP(AA$3, Cálculos!$I$4:$QJ$4, Cálculos!$I377:$QJ377) -> 178852.9048 | AB36: =LOOKUP(AB$3, Cálculos!$I$4:$QJ$4, Cálculos!$I377:$QJ377) -> 176983.6545 | AC36: =LOOKUP(AC$3, Cálculos!$I$4:$QJ$4, Cálculos!$I377:$QJ377) -> 250056.1126 | AD36: =LOOKUP(AD$3, Cálculos!$I$4:$QJ$4, Cálculos!$I377:$QJ377) -> 173300.7897 | AE36: =LOOKUP(AE$3, Cálculos!$I$4:$QJ$4, Cálculos!$I377:$QJ377) -> 171486.8067 | AF36: =LOOKUP(AF$3, Cálculos!$I$4:$QJ$4, Cálculos!$I377:$QJ377) -> 169690.8807 | AG36: =LOOKUP(AG$3, Cálculos!$I$4:$QJ$4, Cálculos!$I377:$QJ377) -> 239896.956
C37: =Cálculos!C378 -> Total do Ativo Corrente | D37: =Cálculos!E378 -> EUR | G37: =SUM(G33:G36) -> 167094.4323 | H37: =SUM(H33:H36) -> 683909.6816 | I37: 1266570.939 | J37: 1601941.24 | K37: 1888789.686 | L37: 2151954.206 | M37: 2365003.673 | N37: 2601680.239 | O37: 2789184.352 | P37: 2951252.946 | Q37: 3068007.145 | R37: 3199134.536 | S37: 3285533.293 | T37: 3346905.243 | U37: 3367862.615 | V37: 3394543.892 | W37: 3381357.328 | X37: 3343475.489 | Y37: 3270038.338 | Z37: 3404800.285 | AA37: 1556967.017 | AB37: 1978834.142 | AC37: 2373188.74 | AD37: 2718698.139 | AE37: =SUM(AE33:AE36) -> 6594865.187 | AF37: 7505948.931 | AG37: 8403898.34
B39: Ativos Não Correntes
C40: =Cálculos!C381 -> Ativos Fixos Tangíveis Líquidos | D40: =Cálculos!E381 -> EUR | G40: =LOOKUP(G$3, Cálculos!$I$4:$QJ$4, Cálculos!$I381:$QJ381) -> 8079155.568 | H40: =LOOKUP(H$3, Cálculos!$I$4:$QJ$4, Cálculos!$I381:$QJ381) -> 15506090.32 | I40: =LOOKUP(I$3, Cálculos!$I$4:$QJ$4, Cálculos!$I381:$QJ381) -> 14437714 | J40: =LOOKUP(J$3, Cálculos!$I$4:$QJ$4, Cálculos!$I381:$QJ381) -> 13175087.44 | K40: =LOOKUP(K$3, Cálculos!$I$4:$QJ$4, Cálculos!$I381:$QJ381) -> 12009586.01 | L40: =LOOKUP(L$3, Cálculos!$I$4:$QJ$4, Cálculos!$I381:$QJ381) -> 10844084.57 | M40: =LOOKUP(M$3, Cálculos!$I$4:$QJ$4, Cálculos!$I381:$QJ381) -> 9775708.25 | N40: =LOOKUP(N$3, Cálculos!$I$4:$QJ$4, Cálculos!$I381:$QJ381) -> 8535181.693 | O40: =LOOKUP(O$3, Cálculos!$I$4:$QJ$4, Cálculos!$I381:$QJ381) -> 7391780.255 | P40: =LOOKUP(P$3, Cálculos!$I$4:$QJ$4, Cálculos!$I381:$QJ381) -> 6751296.627 | Q40: =LOOKUP(Q$3, Cálculos!$I$4:$QJ$4, Cálculos!$I381:$QJ381) -> 6164186.634 | R40: =LOOKUP(R$3, Cálculos!$I$4:$QJ$4, Cálculos!$I381:$QJ381) -> 5470549.371 | S40: =LOOKUP(S$3, Cálculos!$I$4:$QJ$4, Cálculos!$I381:$QJ381) -> 5047989.222 | T40: =LOOKUP(T$3, Cálculos!$I$4:$QJ$4, Cálculos!$I381:$QJ381) -> 4625429.073 | U40: =LOOKUP(U$3, Cálculos!$I$4:$QJ$4, Cálculos!$I381:$QJ381) -> 4286002.985 | V40: =LOOKUP(V$3, Cálculos!$I$4:$QJ$4, Cálculos!$I381:$QJ381) -> 3952823.348 | W40: =LOOKUP(W$3, Cálculos!$I$4:$QJ$4, Cálculos!$I381:$QJ381) -> 3645272.914 | X40: =LOOKUP(X$3, Cálculos!$I$4:$QJ$4, Cálculos!$I381:$QJ381) -> 3337722.479 | Y40: =LOOKUP(Y$3, Cálculos!$I$4:$QJ$4, Cálculos!$I381:$QJ381) -> 3055801.248 | Z40: =LOOKUP(Z$3, Cálculos!$I$4:$QJ$4, Cálculos!$I381:$QJ381) -> 2730308.452 | AA40: =LOOKUP(AA$3, Cálculos!$I$4:$QJ$4, Cálculos!$I381:$QJ381) -> 4876535.31 | AB40: =LOOKUP(AB$3, Cálculos!$I$4:$QJ$4, Cálculos!$I381:$QJ381) -> 4568802.639 | AC40: =LOOKUP(AC$3, Cálculos!$I$4:$QJ$4, Cálculos!$I381:$QJ381) -> 4286714.357 | AD40: =LOOKUP(AD$3, Cálculos!$I$4:$QJ$4, Cálculos!$I381:$QJ381) -> 3953337.297 | AE40: =LOOKUP(AE$3, Cálculos!$I$4:$QJ$4, Cálculos!$I381:$QJ381) -> 3645604.626 | AF40: =LOOKUP(AF$3, Cálculos!$I$4:$QJ$4, Cálculos!$I381:$QJ381) -> 3337871.955 | AG40: =LOOKUP(AG$3, Cálculos!$I$4:$QJ$4, Cálculos!$I381:$QJ381) -> 3055783.673
C41: =Cálculos!C382 -> Goodwill (líquido de amortização) | D41: =Cálculos!E382 -> EUR | G41: =LOOKUP(G$3, Cálculos!$I$4:$QJ$4, Cálculos!$I382:$QJ382) -> 0 | H41: =LOOKUP(H$3, Cálculos!$I$4:$QJ$4, Cálculos!$I382:$QJ382) -> 0 | I41: =LOOKUP(I$3, Cálculos!$I$4:$QJ$4, Cálculos!$I382:$QJ382) -> 0 | J41: =LOOKUP(J$3, Cálculos!$I$4:$QJ$4, Cálculos!$I382:$QJ382) -> 0 | K41: =LOOKUP(K$3, Cálculos!$I$4:$QJ$4, Cálculos!$I382:$QJ382) -> 0 | L41: =LOOKUP(L$3, Cálculos!$I$4:$QJ$4, Cálculos!$I382:$QJ382) -> 0 | M41: =LOOKUP(M$3, Cálculos!$I$4:$QJ$4, Cálculos!$I382:$QJ382) -> 0 | N41: =LOOKUP(N$3, Cálculos!$I$4:$QJ$4, Cálculos!$I382:$QJ382) -> 0 | O41: =LOOKUP(O$3, Cálculos!$I$4:$QJ$4, Cálculos!$I382:$QJ382) -> 0 | P41: =LOOKUP(P$3, Cálculos!$I$4:$QJ$4, Cálculos!$I382:$QJ382) -> 0 | Q41: =LOOKUP(Q$3, Cálculos!$I$4:$QJ$4, Cálculos!$I382:$QJ382) -> 0 | R41: =LOOKUP(R$3, Cálculos!$I$4:$QJ$4, Cálculos!$I382:$QJ382) -> 0 | S41: =LOOKUP(S$3, Cálculos!$I$4:$QJ$4, Cálculos!$I382:$QJ382) -> 0 | T41: =LOOKUP(T$3, Cálculos!$I$4:$QJ$4, Cálculos!$I382:$QJ382) -> 0 | U41: =LOOKUP(U$3, Cálculos!$I$4:$QJ$4, Cálculos!$I382:$QJ382) -> 0 | V41: =LOOKUP(V$3, Cálculos!$I$4:$QJ$4, Cálculos!$I382:$QJ382) -> 0 | W41: =LOOKUP(W$3, Cálculos!$I$4:$QJ$4, Cálculos!$I382:$QJ382) -> 0 | X41: =LOOKUP(X$3, Cálculos!$I$4:$QJ$4, Cálculos!$I382:$QJ382) -> 0 | Y41: =LOOKUP(Y$3, Cálculos!$I$4:$QJ$4, Cálculos!$I382:$QJ382) -> 0 | Z41: =LOOKUP(Z$3, Cálculos!$I$4:$QJ$4, Cálculos!$I382:$QJ382) -> 0 | AA41: =LOOKUP(AA$3, Cálculos!$I$4:$QJ$4, Cálculos!$I382:$QJ382) -> 0 | AB41: =LOOKUP(AB$3, Cálculos!$I$4:$QJ$4, Cálculos!$I382:$QJ382) -> 0 | AC41: =LOOKUP(AC$3, Cálculos!$I$4:$QJ$4, Cálculos!$I382:$QJ382) -> 0 | AD41: =LOOKUP(AD$3, Cálculos!$I$4:$QJ$4, Cálculos!$I382:$QJ382) -> 0 | AE41: =LOOKUP(AE$3, Cálculos!$I$4:$QJ$4, Cálculos!$I382:$QJ382) -> 0 | AF41: =LOOKUP(AF$3, Cálculos!$I$4:$QJ$4, Cálculos!$I382:$QJ382) -> 0 | AG41: =LOOKUP(AG$3, Cálculos!$I$4:$QJ$4, Cálculos!$I382:$QJ382) -> 0
C42: =Cálculos!C383 -> Ativo por Impostos Diferidos | D42: =Cálculos!E383 -> EUR | G42: =LOOKUP(G$3, Cálculos!$I$4:$QJ$4, Cálculos!$I383:$QJ383) -> 0 | H42: =LOOKUP(H$3, Cálculos!$I$4:$QJ$4, Cálculos!$I383:$QJ383) -> 0 | I42: =LOOKUP(I$3, Cálculos!$I$4:$QJ$4, Cálculos!$I383:$QJ383) -> 117377.849 | J42: =LOOKUP(J$3, Cálculos!$I$4:$QJ$4, Cálculos!$I383:$QJ383) -> 293959.9817 | K42: =LOOKUP(K$3, Cálculos!$I$4:$QJ$4, Cálculos!$I383:$QJ383) -> 439662.3349 | L42: =LOOKUP(L$3, Cálculos!$I$4:$QJ$4, Cálculos!$I383:$QJ383) -> 584569.6031 | M42: =LOOKUP(M$3, Cálculos!$I$4:$QJ$4, Cálculos!$I383:$QJ383) -> 699696.4299 | N42: =LOOKUP(N$3, Cálculos!$I$4:$QJ$4, Cálculos!$I383:$QJ383) -> 871300.0341 | O42: =LOOKUP(O$3, Cálculos!$I$4:$QJ$4, Cálculos!$I383:$QJ383) -> 1012047.845 | P42: =LOOKUP(P$3, Cálculos!$I$4:$QJ$4, Cálculos!$I383:$QJ383) -> 1150451.821 | Q42: =LOOKUP(Q$3, Cálculos!$I$4:$QJ$4, Cálculos!$I383:$QJ383) -> 1258451.47 | R42: =LOOKUP(R$3, Cálculos!$I$4:$QJ$4, Cálculos!$I383:$QJ383) -> 1417836.525 | S42: =LOOKUP(S$3, Cálculos!$I$4:$QJ$4, Cálculos!$I383:$QJ383) -> 1284870.456 | T42: =LOOKUP(T$3, Cálculos!$I$4:$QJ$4, Cálculos!$I383:$QJ383) -> 1146785.589 | U42: =LOOKUP(U$3, Cálculos!$I$4:$QJ$4, Cálculos!$I383:$QJ383) -> 999308.07 | V42: =LOOKUP(V$3, Cálculos!$I$4:$QJ$4, Cálculos!$I383:$QJ383) -> 851729.1532 | W42: =LOOKUP(W$3, Cálculos!$I$4:$QJ$4, Cálculos!$I383:$QJ383) -> 692660.3723 | X42: =LOOKUP(X$3, Cálculos!$I$4:$QJ$4, Cálculos!$I383:$QJ383) -> 524384.0566 | Y42: =LOOKUP(Y$3, Cálculos!$I$4:$QJ$4, Cálculos!$I383:$QJ383) -> 345893.007 | Z42: =LOOKUP(Z$3, Cálculos!$I$4:$QJ$4, Cálculos!$I383:$QJ383) -> 155031.2899 | AA42: =LOOKUP(AA$3, Cálculos!$I$4:$QJ$4, Cálculos!$I383:$QJ383) -> 1266.454275 | AB42: =LOOKUP(AB$3, Cálculos!$I$4:$QJ$4, Cálculos!$I383:$QJ383) -> 372.6280433 | AC42: =LOOKUP(AC$3, Cálculos!$I$4:$QJ$4, Cálculos!$I383:$QJ383) -> 0 | AD42: =LOOKUP(AD$3, Cálculos!$I$4:$QJ$4, Cálculos!$I383:$QJ383) -> 0 | AE42: =LOOKUP(AE$3, Cálculos!$I$4:$QJ$4, Cálculos!$I383:$QJ383) -> 2839.404403 | AF42: =LOOKUP(AF$3, Cálculos!$I$4:$QJ$4, Cálculos!$I383:$QJ383) -> 3036.660946 | AG42: =LOOKUP(AG$3, Cálculos!$I$4:$QJ$4, Cálculos!$I383:$QJ383) -> 0
C43: =Cálculos!C384 -> Total do Ativo Não Corrente | D43: =Cálculos!E384 -> EUR | G43: =SUM(G40:G42) -> 8079155.568 | H43: =SUM(H40:H42) -> 15506090.32 | I43: 14555091.85 | J43: 13469047.42 | K43: 12449248.34 | L43: 11428654.17 | M43: 10475404.68 | N43: 9406481.727 | O43: 8403828.1 | P43: 7901748.448 | Q43: 7422638.105 | R43: 6888385.896 | S43: 6332859.678 | T43: 5772214.663 | U43: 5285311.055 | V43: 4804552.501 | W43: 4337933.286 | X43: 3862106.536 | Y43: 3401694.255 | Z43: 2885339.742 | AA43: 4877801.764 | AB43: 4569175.267 | AC43: 4286714.357 | AD43: 3953337.297 | AE43: =SUM(AE40:AE42) -> 3648444.03 | AF43: 3340908.616 | AG43: 3055783.673
B45: Total de Ativos | D45: =Cálculos!E386 -> EUR | G45: =G37+G43 -> 8246250 | H45: =H37+H43 -> 16190000 | I45: 15821662.79 | J45: 15070988.66 | K45: 14338038.03 | L45: 13580608.38 | M45: 12840408.35 | N45: 12008161.97 | O45: 11193012.45 | P45: 10853001.39 | Q45: 10490645.25 | R45: 10087520.43 | S45: 9618392.97 | T45: 9119119.906 | U45: 8653173.67 | V45: 8199096.393 | W45: 7719290.614 | X45: 7205582.025 | Y45: 6671732.593 | Z45: 6290140.027 | AA45: 6434768.781 | AB45: 6548009.408 | AC45: 6659903.097 | AD45: 6672035.435 | AE45: =AE37+AE43 -> 10243309.22 | AF45: 10846857.55 | AG45: 11459682.01
B47: Passivos Correntes
C48: =Cálculos!C389 -> Contas a Pagar | D48: =Cálculos!E389 -> EUR | G48: =LOOKUP(G$3, Cálculos!$I$4:$QJ$4, Cálculos!$I389:$QJ389) -> 0 | H48: =LOOKUP(H$3, Cálculos!$I$4:$QJ$4, Cálculos!$I389:$QJ389) -> 0 | I48: =LOOKUP(I$3, Cálculos!$I$4:$QJ$4, Cálculos!$I389:$QJ389) -> 4951.845017 | J48: =LOOKUP(J$3, Cálculos!$I$4:$QJ$4, Cálculos!$I389:$QJ389) -> 5075.641143 | K48: =LOOKUP(K$3, Cálculos!$I$4:$QJ$4, Cálculos!$I389:$QJ389) -> 5202.532171 | L48: =LOOKUP(L$3, Cálculos!$I$4:$QJ$4, Cálculos!$I389:$QJ389) -> 5332.595475 | M48: =LOOKUP(M$3, Cálculos!$I$4:$QJ$4, Cálculos!$I389:$QJ389) -> 5465.910362 | N48: =LOOKUP(N$3, Cálculos!$I$4:$QJ$4, Cálculos!$I389:$QJ389) -> 5602.558121 | O48: =LOOKUP(O$3, Cálculos!$I$4:$QJ$4, Cálculos!$I389:$QJ389) -> 5742.622074 | P48: =LOOKUP(P$3, Cálculos!$I$4:$QJ$4, Cálculos!$I389:$QJ389) -> 5886.187626 | Q48: =LOOKUP(Q$3, Cálculos!$I$4:$QJ$4, Cálculos!$I389:$QJ389) -> 6033.342317 | R48: =LOOKUP(R$3, Cálculos!$I$4:$QJ$4, Cálculos!$I389:$QJ389) -> 6184.175875 | S48: =LOOKUP(S$3, Cálculos!$I$4:$QJ$4, Cálculos!$I389:$QJ389) -> 6338.780272 | T48: =LOOKUP(T$3, Cálculos!$I$4:$QJ$4, Cálculos!$I389:$QJ389) -> 6497.249778 | U48: =LOOKUP(U$3, Cálculos!$I$4:$QJ$4, Cálculos!$I389:$QJ389) -> 6659.681023 | V48: =LOOKUP(V$3, Cálculos!$I$4:$QJ$4, Cálculos!$I389:$QJ389) -> 6826.173048 | W48: =LOOKUP(W$3, Cálculos!$I$4:$QJ$4, Cálculos!$I389:$QJ389) -> 6996.827375 | X48: =LOOKUP(X$3, Cálculos!$I$4:$QJ$4, Cálculos!$I389:$QJ389) -> 7171.748059 | Y48: =LOOKUP(Y$3, Cálculos!$I$4:$QJ$4, Cálculos!$I389:$QJ389) -> 7351.041761 | Z48: =LOOKUP(Z$3, Cálculos!$I$4:$QJ$4, Cálculos!$I389:$QJ389) -> 7534.817805 | AA48: =LOOKUP(AA$3, Cálculos!$I$4:$QJ$4, Cálculos!$I389:$QJ389) -> 14089.95374 | AB48: =LOOKUP(AB$3, Cálculos!$I$4:$QJ$4, Cálculos!$I389:$QJ389) -> 15090.64912 | AC48: =LOOKUP(AC$3, Cálculos!$I$4:$QJ$4, Cálculos!$I389:$QJ389) -> 20815.48876 | AD48: =LOOKUP(AD$3, Cálculos!$I$4:$QJ$4, Cálculos!$I389:$QJ389) -> 17533.497 | AE48: =LOOKUP(AE$3, Cálculos!$I$4:$QJ$4, Cálculos!$I389:$QJ389) -> 13029.32777 | AF48: =LOOKUP(AF$3, Cálculos!$I$4:$QJ$4, Cálculos!$I389:$QJ389) -> 12972.71204 | AG48: =LOOKUP(AG$3, Cálculos!$I$4:$QJ$4, Cálculos!$I389:$QJ389) -> 17573.04875
C49: =Cálculos!C390 -> Juros a Pagar: Dívida Subordinada | D49: =Cálculos!E390 -> EUR | G49: =LOOKUP(G$3, Cálculos!$I$4:$QJ$4, Cálculos!$I390:$QJ390) -> 0 | H49: =LOOKUP(H$3, Cálculos!$I$4:$QJ$4, Cálculos!$I390:$QJ390) -> 0 | I49: =LOOKUP(I$3, Cálculos!$I$4:$QJ$4, Cálculos!$I390:$QJ390) -> 39974.35884 | J49: =LOOKUP(J$3, Cálculos!$I$4:$QJ$4, Cálculos!$I390:$QJ390) -> 78846.66464 | K49: =LOOKUP(K$3, Cálculos!$I$4:$QJ$4, Cálculos!$I390:$QJ390) -> 77154.4026 | L49: =LOOKUP(L$3, Cálculos!$I$4:$QJ$4, Cálculos!$I390:$QJ390) -> 75247.51937 | M49: =LOOKUP(M$3, Cálculos!$I$4:$QJ$4, Cálculos!$I390:$QJ390) -> 36367.56001 | N49: =LOOKUP(N$3, Cálculos!$I$4:$QJ$4, Cálculos!$I390:$QJ390) -> 70677.55992 | O49: =LOOKUP(O$3, Cálculos!$I$4:$QJ$4, Cálculos!$I390:$QJ390) -> 67949.25092 | P49: =LOOKUP(P$3, Cálculos!$I$4:$QJ$4, Cálculos!$I390:$QJ390) -> 64874.92406 | Q49: =LOOKUP(Q$3, Cálculos!$I$4:$QJ$4, Cálculos!$I390:$QJ390) -> 30552.58487 | R49: =LOOKUP(R$3, Cálculos!$I$4:$QJ$4, Cálculos!$I390:$QJ390) -> 57507.11626 | S49: =LOOKUP(S$3, Cálculos!$I$4:$QJ$4, Cálculos!$I390:$QJ390) -> 53108.46535 | T49: =LOOKUP(T$3, Cálculos!$I$4:$QJ$4, Cálculos!$I390:$QJ390) -> 48151.95541 | U49: =LOOKUP(U$3, Cálculos!$I$4:$QJ$4, Cálculos!$I390:$QJ390) -> 21177.53032 | V49: =LOOKUP(V$3, Cálculos!$I$4:$QJ$4, Cálculos!$I390:$QJ390) -> 36273.38353 | W49: =LOOKUP(W$3, Cálculos!$I$4:$QJ$4, Cálculos!$I390:$QJ390) -> 29181.76383 | X49: =LOOKUP(X$3, Cálculos!$I$4:$QJ$4, Cálculos!$I390:$QJ390) -> 21190.74925 | Y49: =LOOKUP(Y$3, Cálculos!$I$4:$QJ$4, Cálculos!$I390:$QJ390) -> 6062.822887 | Z49: =LOOKUP(Z$3, Cálculos!$I$4:$QJ$4, Cálculos!$I390:$QJ390) -> 2039.80591 | AA49: =LOOKUP(AA$3, Cálculos!$I$4:$QJ$4, Cálculos!$I390:$QJ390) -> -9393.488304 | AB49: =LOOKUP(AB$3, Cálculos!$I$4:$QJ$4, Cálculos!$I390:$QJ390) -> -22276.8104 | AC49: =LOOKUP(AC$3, Cálculos!$I$4:$QJ$4, Cálculos!$I390:$QJ390) -> -18305.50259 | AD49: =LOOKUP(AD$3, Cálculos!$I$4:$QJ$4, Cálculos!$I390:$QJ390) -> -53152.46067 | AE49: =LOOKUP(AE$3, Cálculos!$I$4:$QJ$4, Cálculos!$I390:$QJ390) -> 0 | AF49: =LOOKUP(AF$3, Cálculos!$I$4:$QJ$4, Cálculos!$I390:$QJ390) -> 0 | AG49: =LOOKUP(AG$3, Cálculos!$I$4:$QJ$4, Cálculos!$I390:$QJ390) -> 0
C50: =Cálculos!C391 -> Juros a Pagar: Dívida Sénior | D50: =Cálculos!E391 -> EUR | G50: =LOOKUP(G$3, Cálculos!$I$4:$QJ$4, Cálculos!$I391:$QJ391) -> 0 | H50: =LOOKUP(H$3, Cálculos!$I$4:$QJ$4, Cálculos!$I391:$QJ391) -> 0 | I50: =LOOKUP(I$3, Cálculos!$I$4:$QJ$4, Cálculos!$I391:$QJ391) -> 36317.26981 | J50: =LOOKUP(J$3, Cálculos!$I$4:$QJ$4, Cálculos!$I391:$QJ391) -> 70123.1748 | K50: =LOOKUP(K$3, Cálculos!$I$4:$QJ$4, Cálculos!$I391:$QJ391) -> 67294.30578 | L50: =LOOKUP(L$3, Cálculos!$I$4:$QJ$4, Cálculos!$I391:$QJ391) -> 64305.86631 | M50: =LOOKUP(M$3, Cálculos!$I$4:$QJ$4, Cálculos!$I391:$QJ391) -> 30504.52148 | N50: =LOOKUP(N$3, Cálculos!$I$4:$QJ$4, Cálculos!$I391:$QJ391) -> 57813.76418 | O50: =LOOKUP(O$3, Cálculos!$I$4:$QJ$4, Cálculos!$I391:$QJ391) -> 54290.54764 | P50: =LOOKUP(P$3, Cálculos!$I$4:$QJ$4, Cálculos!$I391:$QJ391) -> 50568.594 | Q50: =LOOKUP(Q$3, Cálculos!$I$4:$QJ$4, Cálculos!$I391:$QJ391) -> 23265.03076 | R50: =LOOKUP(R$3, Cálculos!$I$4:$QJ$4, Cálculos!$I391:$QJ391) -> 42483.0017 | S50: =LOOKUP(S$3, Cálculos!$I$4:$QJ$4, Cálculos!$I391:$QJ391) -> 38095.00966 | T50: =LOOKUP(T$3, Cálculos!$I$4:$QJ$4, Cálculos!$I391:$QJ391) -> 33459.50037 | U50: =LOOKUP(U$3, Cálculos!$I$4:$QJ$4, Cálculos!$I391:$QJ391) -> 14248.60291 | V50: =LOOKUP(V$3, Cálculos!$I$4:$QJ$4, Cálculos!$I391:$QJ391) -> 23389.29483 | W50: =LOOKUP(W$3, Cálculos!$I$4:$QJ$4, Cálculos!$I391:$QJ391) -> 17924.26763 | X50: =LOOKUP(X$3, Cálculos!$I$4:$QJ$4, Cálculos!$I391:$QJ391) -> 12150.96994 | Y50: =LOOKUP(Y$3, Cálculos!$I$4:$QJ$4, Cálculos!$I391:$QJ391) -> 3019.087699 | Z50: =LOOKUP(Z$3, Cálculos!$I$4:$QJ$4, Cálculos!$I391:$QJ391) -> 0 | AA50: =LOOKUP(AA$3, Cálculos!$I$4:$QJ$4, Cálculos!$I391:$QJ391) -> 0 | AB50: =LOOKUP(AB$3, Cálculos!$I$4:$QJ$4, Cálculos!$I391:$QJ391) -> 0 | AC50: =LOOKUP(AC$3, Cálculos!$I$4:$QJ$4, Cálculos!$I391:$QJ391) -> 0 | AD50: =LOOKUP(AD$3, Cálculos!$I$4:$QJ$4, Cálculos!$I391:$QJ391) -> 0 | AE50: =LOOKUP(AE$3, Cálculos!$I$4:$QJ$4, Cálculos!$I391:$QJ391) -> 0 | AF50: =LOOKUP(AF$3, Cálculos!$I$4:$QJ$4, Cálculos!$I391:$QJ391) -> 0 | AG50: =LOOKUP(AG$3, Cálculos!$I$4:$QJ$4, Cálculos!$I391:$QJ391) -> 0
C51: =Cálculos!C392 -> Imposto a Pagar | D51: =Cálculos!E392 -> EUR | G51: =LOOKUP(G$3, Cálculos!$I$4:$QJ$4, Cálculos!$I392:$QJ392) -> 0 | H51: =LOOKUP(H$3, Cálculos!$I$4:$QJ$4, Cálculos!$I392:$QJ392) -> 0 | I51: =LOOKUP(I$3, Cálculos!$I$4:$QJ$4, Cálculos!$I392:$QJ392) -> 0 | J51: =LOOKUP(J$3, Cálculos!$I$4:$QJ$4, Cálculos!$I392:$QJ392) -> 0 | K51: =LOOKUP(K$3, Cálculos!$I$4:$QJ$4, Cálculos!$I392:$QJ392) -> 0 | L51: =LOOKUP(L$3, Cálculos!$I$4:$QJ$4, Cálculos!$I392:$QJ392) -> 0 | M51: =LOOKUP(M$3, Cálculos!$I$4:$QJ$4, Cálculos!$I392:$QJ392) -> 0 | N51: =LOOKUP(N$3, Cálculos!$I$4:$QJ$4, Cálculos!$I392:$QJ392) -> 0 | O51: =LOOKUP(O$3, Cálculos!$I$4:$QJ$4, Cálculos!$I392:$QJ392) -> 0 | P51: =LOOKUP(P$3, Cálculos!$I$4:$QJ$4, Cálculos!$I392:$QJ392) -> 0 | Q51: =LOOKUP(Q$3, Cálculos!$I$4:$QJ$4, Cálculos!$I392:$QJ392) -> 0 | R51: =LOOKUP(R$3, Cálculos!$I$4:$QJ$4, Cálculos!$I392:$QJ392) -> 0 | S51: =LOOKUP(S$3, Cálculos!$I$4:$QJ$4, Cálculos!$I392:$QJ392) -> 0 | T51: =LOOKUP(T$3, Cálculos!$I$4:$QJ$4, Cálculos!$I392:$QJ392) -> 0 | U51: =LOOKUP(U$3, Cálculos!$I$4:$QJ$4, Cálculos!$I392:$QJ392) -> 0 | V51: =LOOKUP(V$3, Cálculos!$I$4:$QJ$4, Cálculos!$I392:$QJ392) -> 0 | W51: =LOOKUP(W$3, Cálculos!$I$4:$QJ$4, Cálculos!$I392:$QJ392) -> 0 | X51: =LOOKUP(X$3, Cálculos!$I$4:$QJ$4, Cálculos!$I392:$QJ392) -> 0 | Y51: =LOOKUP(Y$3, Cálculos!$I$4:$QJ$4, Cálculos!$I392:$QJ392) -> 0 | Z51: =LOOKUP(Z$3, Cálculos!$I$4:$QJ$4, Cálculos!$I392:$QJ392) -> 0 | AA51: =LOOKUP(AA$3, Cálculos!$I$4:$QJ$4, Cálculos!$I392:$QJ392) -> 0 | AB51: =LOOKUP(AB$3, Cálculos!$I$4:$QJ$4, Cálculos!$I392:$QJ392) -> 0 | AC51: =LOOKUP(AC$3, Cálculos!$I$4:$QJ$4, Cálculos!$I392:$QJ392) -> 8118.531113 | AD51: =LOOKUP(AD$3, Cálculos!$I$4:$QJ$4, Cálculos!$I392:$QJ392) -> 1843.904659 | AE51: =LOOKUP(AE$3, Cálculos!$I$4:$QJ$4, Cálculos!$I392:$QJ392) -> 0 | AF51: =LOOKUP(AF$3, Cálculos!$I$4:$QJ$4, Cálculos!$I392:$QJ392) -> 0 | AG51: =LOOKUP(AG$3, Cálculos!$I$4:$QJ$4, Cálculos!$I392:$QJ392) -> 3964.584789
C52: =Cálculos!C393 -> Parcela Corrente da Dívida Subordinada | D52: =Cálculos!E393 -> EUR | G52: =LOOKUP(G$3, Cálculos!$I$4:$QJ$4, Cálculos!$I393:$QJ393) -> 0 | H52: =LOOKUP(H$3, Cálculos!$I$4:$QJ$4, Cálculos!$I393:$QJ393) -> 50064.11563 | I52: =LOOKUP(I$3, Cálculos!$I$4:$QJ$4, Cálculos!$I393:$QJ393) -> 74716.25064 | J52: =LOOKUP(J$3, Cálculos!$I$4:$QJ$4, Cálculos!$I393:$QJ393) -> 84192.14138 | K52: =LOOKUP(K$3, Cálculos!$I$4:$QJ$4, Cálculos!$I393:$QJ393) -> 94869.81225 | L52: =LOOKUP(L$3, Cálculos!$I$4:$QJ$4, Cálculos!$I393:$QJ393) -> 106901.679 | M52: =LOOKUP(M$3, Cálculos!$I$4:$QJ$4, Cálculos!$I393:$QJ393) -> 120459.4877 | N52: =LOOKUP(N$3, Cálculos!$I$4:$QJ$4, Cálculos!$I393:$QJ393) -> 135736.7659 | O52: =LOOKUP(O$3, Cálculos!$I$4:$QJ$4, Cálculos!$I393:$QJ393) -> 152951.5853 | P52: =LOOKUP(P$3, Cálculos!$I$4:$QJ$4, Cálculos!$I393:$QJ393) -> 172349.6747 | Q52: =LOOKUP(Q$3, Cálculos!$I$4:$QJ$4, Cálculos!$I393:$QJ393) -> 194207.9274 | R52: =LOOKUP(R$3, Cálculos!$I$4:$QJ$4, Cálculos!$I393:$QJ393) -> 218838.3536 | S52: =LOOKUP(S$3, Cálculos!$I$4:$QJ$4, Cálculos!$I393:$QJ393) -> 246592.5344 | T52: =LOOKUP(T$3, Cálculos!$I$4:$QJ$4, Cálculos!$I393:$QJ393) -> 277866.64 | U52: =LOOKUP(U$3, Cálculos!$I$4:$QJ$4, Cálculos!$I393:$QJ393) -> 313107.085 | V52: =LOOKUP(V$3, Cálculos!$I$4:$QJ$4, Cálculos!$I393:$QJ393) -> 352816.9005 | W52: =LOOKUP(W$3, Cálculos!$I$4:$QJ$4, Cálculos!$I393:$QJ393) -> 397562.9146 | X52: =LOOKUP(X$3, Cálculos!$I$4:$QJ$4, Cálculos!$I393:$QJ393) -> 447983.8432 | Y52: =LOOKUP(Y$3, Cálculos!$I$4:$QJ$4, Cálculos!$I393:$QJ393) -> 504799.4076 | Z52: =LOOKUP(Z$3, Cálculos!$I$4:$QJ$4, Cálculos!$I393:$QJ393) -> 101482.8811 | AA52: =LOOKUP(AA$3, Cálculos!$I$4:$QJ$4, Cálculos!$I393:$QJ393) -> -467337.7266 | AB52: =LOOKUP(AB$3, Cálculos!$I$4:$QJ$4, Cálculos!$I393:$QJ393) -> -1108299.025 | AC52: =LOOKUP(AC$3, Cálculos!$I$4:$QJ$4, Cálculos!$I393:$QJ393) -> -1830550.259 | AD52: =LOOKUP(AD$3, Cálculos!$I$4:$QJ$4, Cálculos!$I393:$QJ393) -> -2644401.028 | AE52: =LOOKUP(AE$3, Cálculos!$I$4:$QJ$4, Cálculos!$I393:$QJ393) -> 0 | AF52: =LOOKUP(AF$3, Cálculos!$I$4:$QJ$4, Cálculos!$I393:$QJ393) -> 0 | AG52: =LOOKUP(AG$3, Cálculos!$I$4:$QJ$4, Cálculos!$I393:$QJ393) -> 0
C53: =Cálculos!C394 -> Parcela Corrente da Dívida Sénior | D53: =Cálculos!E394 -> EUR | G53: =LOOKUP(G$3, Cálculos!$I$4:$QJ$4, Cálculos!$I394:$QJ394) -> 2175000 | H53: =LOOKUP(H$3, Cálculos!$I$4:$QJ$4, Cálculos!$I394:$QJ394) -> 171232.0409 | I53: =LOOKUP(I$3, Cálculos!$I$4:$QJ$4, Cálculos!$I394:$QJ394) -> 291457.783 | J53: =LOOKUP(J$3, Cálculos!$I$4:$QJ$4, Cálculos!$I394:$QJ394) -> 307898.293 | K53: =LOOKUP(K$3, Cálculos!$I$4:$QJ$4, Cálculos!$I394:$QJ394) -> 325266.1769 | L53: =LOOKUP(L$3, Cálculos!$I$4:$QJ$4, Cálculos!$I394:$QJ394) -> 343613.746 | M53: =LOOKUP(M$3, Cálculos!$I$4:$QJ$4, Cálculos!$I394:$QJ394) -> 362996.2622 | N53: =LOOKUP(N$3, Cálculos!$I$4:$QJ$4, Cálculos!$I394:$QJ394) -> 383472.1047 | O53: =LOOKUP(O$3, Cálculos!$I$4:$QJ$4, Cálculos!$I394:$QJ394) -> 405102.9456 | P53: =LOOKUP(P$3, Cálculos!$I$4:$QJ$4, Cálculos!$I394:$QJ394) -> 427953.936 | Q53: =LOOKUP(Q$3, Cálculos!$I$4:$QJ$4, Cálculos!$I394:$QJ394) -> 452093.9019 | R53: =LOOKUP(R$3, Cálculos!$I$4:$QJ$4, Cálculos!$I394:$QJ394) -> 477595.5516 | S53: =LOOKUP(S$3, Cálculos!$I$4:$QJ$4, Cálculos!$I394:$QJ394) -> 504535.6948 | T53: =LOOKUP(T$3, Cálculos!$I$4:$QJ$4, Cálculos!$I394:$QJ394) -> 532995.4738 | U53: =LOOKUP(U$3, Cálculos!$I$4:$QJ$4, Cálculos!$I394:$QJ394) -> 563060.6081 | V53: =LOOKUP(V$3, Cálculos!$I$4:$QJ$4, Cálculos!$I394:$QJ394) -> 594821.6523 | W53: =LOOKUP(W$3, Cálculos!$I$4:$QJ$4, Cálculos!$I394:$QJ394) -> 628374.269 | X53: =LOOKUP(X$3, Cálculos!$I$4:$QJ$4, Cálculos!$I394:$QJ394) -> 663819.517 | Y53: =LOOKUP(Y$3, Cálculos!$I$4:$QJ$4, Cálculos!$I394:$QJ394) -> 658710.0434 | Z53: =LOOKUP(Z$3, Cálculos!$I$4:$QJ$4, Cálculos!$I394:$QJ394) -> 0 | AA53: =LOOKUP(AA$3, Cálculos!$I$4:$QJ$4, Cálculos!$I394:$QJ394) -> 0 | AB53: =LOOKUP(AB$3, Cálculos!$I$4:$QJ$4, Cálculos!$I394:$QJ394) -> 0 | AC53: =LOOKUP(AC$3, Cálculos!$I$4:$QJ$4, Cálculos!$I394:$QJ394) -> 0 | AD53: =LOOKUP(AD$3, Cálculos!$I$4:$QJ$4, Cálculos!$I394:$QJ394) -> 0 | AE53: =LOOKUP(AE$3, Cálculos!$I$4:$QJ$4, Cálculos!$I394:$QJ394) -> 0 | AF53: =LOOKUP(AF$3, Cálculos!$I$4:$QJ$4, Cálculos!$I394:$QJ394) -> 0 | AG53: =LOOKUP(AG$3, Cálculos!$I$4:$QJ$4, Cálculos!$I394:$QJ394) -> 0
C54: =Cálculos!C395 -> Total do Passivo Corrente | D54: =Cálculos!E395 -> EUR | G54: =SUM(G48:G53) -> 2175000 | H54: =SUM(H48:H53) -> 221296.1565 | I54: 447417.5073 | J54: 546135.9149 | K54: 569787.2297 | L54: 595401.4062 | M54: 555793.7418 | N54: 653302.7528 | O54: 686036.9515 | P54: 721633.3164 | Q54: 706152.7872 | R54: 802608.1991 | S54: 848670.4845 | T54: 898970.8194 | U54: 918253.5074 | V54: 1014127.404 | W54: 1080040.042 | X54: 1152316.827 | Y54: 1179942.403 | Z54: 111057.5048 | AA54: -462641.2611 | AB54: -1115485.186 | AC54: -1819921.742 | AD54: -2678176.087 | AE54: =SUM(AE48:AE53) -> 13029.32777 | AF54: 12972.71204 | AG54: 21537.63354
B56: Passivos Não Correntes
C57: =Cálculos!C398 -> Dívida Subordinada | D57: =Cálculos!E398 -> EUR | G57: =LOOKUP(G$3, Cálculos!$I$4:$QJ$4, Cálculos!$I398:$QJ398) -> 2023750 | H57: =LOOKUP(H$3, Cálculos!$I$4:$QJ$4, Cálculos!$I398:$QJ398) -> 3997435.884 | I57: =LOOKUP(I$3, Cálculos!$I$4:$QJ$4, Cálculos!$I398:$QJ398) -> 3922719.634 | J57: =LOOKUP(J$3, Cálculos!$I$4:$QJ$4, Cálculos!$I398:$QJ398) -> 3838527.492 | K57: =LOOKUP(K$3, Cálculos!$I$4:$QJ$4, Cálculos!$I398:$QJ398) -> 3743657.68 | L57: =LOOKUP(L$3, Cálculos!$I$4:$QJ$4, Cálculos!$I398:$QJ398) -> 3636756.001 | M57: =LOOKUP(M$3, Cálculos!$I$4:$QJ$4, Cálculos!$I398:$QJ398) -> 3516296.513 | N57: =LOOKUP(N$3, Cálculos!$I$4:$QJ$4, Cálculos!$I398:$QJ398) -> 3380559.747 | O57: =LOOKUP(O$3, Cálculos!$I$4:$QJ$4, Cálculos!$I398:$QJ398) -> 3227608.162 | P57: =LOOKUP(P$3, Cálculos!$I$4:$QJ$4, Cálculos!$I398:$QJ398) -> 3055258.487 | Q57: =LOOKUP(Q$3, Cálculos!$I$4:$QJ$4, Cálculos!$I398:$QJ398) -> 2861050.56 | R57: =LOOKUP(R$3, Cálculos!$I$4:$QJ$4, Cálculos!$I398:$QJ398) -> 2642212.206 | S57: =LOOKUP(S$3, Cálculos!$I$4:$QJ$4, Cálculos!$I398:$QJ398) -> 2395619.672 | T57: =LOOKUP(T$3, Cálculos!$I$4:$QJ$4, Cálculos!$I398:$QJ398) -> 2117753.032 | U57: =LOOKUP(U$3, Cálculos!$I$4:$QJ$4, Cálculos!$I398:$QJ398) -> 1804645.947 | V57: =LOOKUP(V$3, Cálculos!$I$4:$QJ$4, Cálculos!$I398:$QJ398) -> 1451829.046 | W57: =LOOKUP(W$3, Cálculos!$I$4:$QJ$4, Cálculos!$I398:$QJ398) -> 1054266.132 | X57: =LOOKUP(X$3, Cálculos!$I$4:$QJ$4, Cálculos!$I398:$QJ398) -> 606282.2887 | Y57: =LOOKUP(Y$3, Cálculos!$I$4:$QJ$4, Cálculos!$I398:$QJ398) -> 101482.8811 | Z57: =LOOKUP(Z$3, Cálculos!$I$4:$QJ$4, Cálculos!$I398:$QJ398) -> 0 | AA57: =LOOKUP(AA$3, Cálculos!$I$4:$QJ$4, Cálculos!$I398:$QJ398) -> 0 | AB57: =LOOKUP(AB$3, Cálculos!$I$4:$QJ$4, Cálculos!$I398:$QJ398) -> 0 | AC57: =LOOKUP(AC$3, Cálculos!$I$4:$QJ$4, Cálculos!$I398:$QJ398) -> 0 | AD57: =LOOKUP(AD$3, Cálculos!$I$4:$QJ$4, Cálculos!$I398:$QJ398) -> 0 | AE57: =LOOKUP(AE$3, Cálculos!$I$4:$QJ$4, Cálculos!$I398:$QJ398) -> 0 | AF57: =LOOKUP(AF$3, Cálculos!$I$4:$QJ$4, Cálculos!$I398:$QJ398) -> 0 | AG57: =LOOKUP(AG$3, Cálculos!$I$4:$QJ$4, Cálculos!$I398:$QJ398) -> 0
C58: =Cálculos!C399 -> Dívida Sénior de Longo Prazo | D58: =Cálculos!E399 -> EUR | G58: =LOOKUP(G$3, Cálculos!$I$4:$QJ$4, Cálculos!$I399:$QJ399) -> 0 | H58: =LOOKUP(H$3, Cálculos!$I$4:$QJ$4, Cálculos!$I399:$QJ399) -> 7923767.959 | I58: =LOOKUP(I$3, Cálculos!$I$4:$QJ$4, Cálculos!$I399:$QJ399) -> 7632310.176 | J58: =LOOKUP(J$3, Cálculos!$I$4:$QJ$4, Cálculos!$I399:$QJ399) -> 7324411.883 | K58: =LOOKUP(K$3, Cálculos!$I$4:$QJ$4, Cálculos!$I399:$QJ399) -> 6999145.706 | L58: =LOOKUP(L$3, Cálculos!$I$4:$QJ$4, Cálculos!$I399:$QJ399) -> 6655531.96 | M58: =LOOKUP(M$3, Cálculos!$I$4:$QJ$4, Cálculos!$I399:$QJ399) -> 6292535.698 | N58: =LOOKUP(N$3, Cálculos!$I$4:$QJ$4, Cálculos!$I399:$QJ399) -> 5909063.593 | O58: =LOOKUP(O$3, Cálculos!$I$4:$QJ$4, Cálculos!$I399:$QJ399) -> 5503960.648 | P58: =LOOKUP(P$3, Cálculos!$I$4:$QJ$4, Cálculos!$I399:$QJ399) -> 5076006.712 | Q58: =LOOKUP(Q$3, Cálculos!$I$4:$QJ$4, Cálculos!$I399:$QJ399) -> 4623912.81 | R58: =LOOKUP(R$3, Cálculos!$I$4:$QJ$4, Cálculos!$I399:$QJ399) -> 4146317.258 | S58: =LOOKUP(S$3, Cálculos!$I$4:$QJ$4, Cálculos!$I399:$QJ399) -> 3641781.563 | T58: =LOOKUP(T$3, Cálculos!$I$4:$QJ$4, Cálculos!$I399:$QJ399) -> 3108786.09 | U58: =LOOKUP(U$3, Cálculos!$I$4:$QJ$4, Cálculos!$I399:$QJ399) -> 2545725.482 | V58: =LOOKUP(V$3, Cálculos!$I$4:$QJ$4, Cálculos!$I399:$QJ399) -> 1950903.829 | W58: =LOOKUP(W$3, Cálculos!$I$4:$QJ$4, Cálculos!$I399:$QJ399) -> 1322529.56 | X58: =LOOKUP(X$3, Cálculos!$I$4:$QJ$4, Cálculos!$I399:$QJ399) -> 658710.0434 | Y58: =LOOKUP(Y$3, Cálculos!$I$4:$QJ$4, Cálculos!$I399:$QJ399) -> 0 | Z58: =LOOKUP(Z$3, Cálculos!$I$4:$QJ$4, Cálculos!$I399:$QJ399) -> 0 | AA58: =LOOKUP(AA$3, Cálculos!$I$4:$QJ$4, Cálculos!$I399:$QJ399) -> 0 | AB58: =LOOKUP(AB$3, Cálculos!$I$4:$QJ$4, Cálculos!$I399:$QJ399) -> 0 | AC58: =LOOKUP(AC$3, Cálculos!$I$4:$QJ$4, Cálculos!$I399:$QJ399) -> 0 | AD58: =LOOKUP(AD$3, Cálculos!$I$4:$QJ$4, Cálculos!$I399:$QJ399) -> 0 | AE58: =LOOKUP(AE$3, Cálculos!$I$4:$QJ$4, Cálculos!$I399:$QJ399) -> 0 | AF58: =LOOKUP(AF$3, Cálculos!$I$4:$QJ$4, Cálculos!$I399:$QJ399) -> 0 | AG58: =LOOKUP(AG$3, Cálculos!$I$4:$QJ$4, Cálculos!$I399:$QJ399) -> 0
C59: =Cálculos!C400 -> Total do Passivo Não Corrente | D59: =Cálculos!E400 -> EUR | G59: =SUM(G57:G58) -> 2023750 | H59: 11921203.84 | I59: 11555029.81 | J59: 11162939.38 | K59: 10742803.39 | L59: 10292287.96 | M59: 9808832.211 | N59: 9289623.341 | O59: 8731568.81 | P59: 8131265.199 | Q59: 7484963.37 | R59: 6788529.465 | S59: 6037401.236 | T59: 5226539.122 | U59: 4350371.429 | V59: 3402732.876 | W59: 2376795.692 | X59: 1264992.332 | Y59: 101482.8811 | Z59: 0 | AA59: 0 | AB59: 0 | AC59: 0 | AD59: 0 | AE59: 0 | AF59: 0 | AG59: 0
B61: Total de Passivos | D61: =Cálculos!E402 -> EUR | G61: =G54+G59 -> 4198750 | H61: 12142500 | I61: 12002447.32 | J61: 11709075.29 | K61: 11312590.62 | L61: 10887689.37 | M61: 10364625.95 | N61: 9942926.094 | O61: 9417605.761 | P61: 8852898.516 | Q61: 8191116.157 | R61: 7591137.664 | S61: 6886071.72 | T61: 6125509.941 | U61: 5268624.936 | V61: 4416860.28 | W61: 3456835.735 | X61: 2417309.16 | Y61: 1281425.284 | Z61: 111057.5048 | AA61: -462641.2611 | AB61: -1115485.186 | AC61: -1819921.742 | AD61: -2678176.087 | AE61: 13029.32777 | AF61: 12972.71204 | AG61: 21537.63354
B63: Capital Próprio
C64: =Cálculos!C405 -> Capital Social | D64: =Cálculos!E405 -> EUR | G64: =LOOKUP(G$3, Cálculos!$I$4:$QJ$4, Cálculos!$I405:$QJ405) -> 4047500 | H64: =LOOKUP(H$3, Cálculos!$I$4:$QJ$4, Cálculos!$I405:$QJ405) -> 4047500 | I64: =LOOKUP(I$3, Cálculos!$I$4:$QJ$4, Cálculos!$I405:$QJ405) -> 4047500 | J64: =LOOKUP(J$3, Cálculos!$I$4:$QJ$4, Cálculos!$I405:$QJ405) -> 4047500 | K64: =LOOKUP(K$3, Cálculos!$I$4:$QJ$4, Cálculos!$I405:$QJ405) -> 4047500 | L64: =LOOKUP(L$3, Cálculos!$I$4:$QJ$4, Cálculos!$I405:$QJ405) -> 4047500 | M64: =LOOKUP(M$3, Cálculos!$I$4:$QJ$4, Cálculos!$I405:$QJ405) -> 4047500 | N64: =LOOKUP(N$3, Cálculos!$I$4:$QJ$4, Cálculos!$I405:$QJ405) -> 4047500 | O64: =LOOKUP(O$3, Cálculos!$I$4:$QJ$4, Cálculos!$I405:$QJ405) -> 4047500 | P64: =LOOKUP(P$3, Cálculos!$I$4:$QJ$4, Cálculos!$I405:$QJ405) -> 4047500 | Q64: =LOOKUP(Q$3, Cálculos!$I$4:$QJ$4, Cálculos!$I405:$QJ405) -> 4047500 | R64: =LOOKUP(R$3, Cálculos!$I$4:$QJ$4, Cálculos!$I405:$QJ405) -> 4047500 | S64: =LOOKUP(S$3, Cálculos!$I$4:$QJ$4, Cálculos!$I405:$QJ405) -> 4047500 | T64: =LOOKUP(T$3, Cálculos!$I$4:$QJ$4, Cálculos!$I405:$QJ405) -> 4047500 | U64: =LOOKUP(U$3, Cálculos!$I$4:$QJ$4, Cálculos!$I405:$QJ405) -> 4047500 | V64: =LOOKUP(V$3, Cálculos!$I$4:$QJ$4, Cálculos!$I405:$QJ405) -> 4047500 | W64: =LOOKUP(W$3, Cálculos!$I$4:$QJ$4, Cálculos!$I405:$QJ405) -> 4047500 | X64: =LOOKUP(X$3, Cálculos!$I$4:$QJ$4, Cálculos!$I405:$QJ405) -> 4047500 | Y64: =LOOKUP(Y$3, Cálculos!$I$4:$QJ$4, Cálculos!$I405:$QJ405) -> 4047500 | Z64: =LOOKUP(Z$3, Cálculos!$I$4:$QJ$4, Cálculos!$I405:$QJ405) -> 4047500 | AA64: =LOOKUP(AA$3, Cálculos!$I$4:$QJ$4, Cálculos!$I405:$QJ405) -> 4047500 | AB64: =LOOKUP(AB$3, Cálculos!$I$4:$QJ$4, Cálculos!$I405:$QJ405) -> 4047500 | AC64: =LOOKUP(AC$3, Cálculos!$I$4:$QJ$4, Cálculos!$I405:$QJ405) -> 4047500 | AD64: =LOOKUP(AD$3, Cálculos!$I$4:$QJ$4, Cálculos!$I405:$QJ405) -> 4047500 | AE64: =LOOKUP(AE$3, Cálculos!$I$4:$QJ$4, Cálculos!$I405:$QJ405) -> 4047500 | AF64: =LOOKUP(AF$3, Cálculos!$I$4:$QJ$4, Cálculos!$I405:$QJ405) -> 4047500 | AG64: =LOOKUP(AG$3, Cálculos!$I$4:$QJ$4, Cálculos!$I405:$QJ405) -> 4047500
C65: =Cálculos!C406 -> Resultados Transitados | D65: =Cálculos!E406 -> EUR | G65: =LOOKUP(G$3, Cálculos!$I$4:$QJ$4, Cálculos!$I406:$QJ406) -> 0 | H65: =LOOKUP(H$3, Cálculos!$I$4:$QJ$4, Cálculos!$I406:$QJ406) -> 0 | I65: =LOOKUP(I$3, Cálculos!$I$4:$QJ$4, Cálculos!$I406:$QJ406) -> -228285 | J65: =LOOKUP(J$3, Cálculos!$I$4:$QJ$4, Cálculos!$I406:$QJ406) -> -685586 | K65: =LOOKUP(K$3, Cálculos!$I$4:$QJ$4, Cálculos!$I406:$QJ406) -> -1022051 | L65: =LOOKUP(L$3, Cálculos!$I$4:$QJ$4, Cálculos!$I406:$QJ406) -> -1354579 | M65: =LOOKUP(M$3, Cálculos!$I$4:$QJ$4, Cálculos!$I406:$QJ406) -> -1571716 | N65: =LOOKUP(N$3, Cálculos!$I$4:$QJ$4, Cálculos!$I406:$QJ406) -> -1982264 | O65: =LOOKUP(O$3, Cálculos!$I$4:$QJ$4, Cálculos!$I406:$QJ406) -> -2272095 | P65: =LOOKUP(P$3, Cálculos!$I$4:$QJ$4, Cálculos!$I406:$QJ406) -> -2047397 | Q65: =LOOKUP(Q$3, Cálculos!$I$4:$QJ$4, Cálculos!$I406:$QJ406) -> -1747970 | R65: =LOOKUP(R$3, Cálculos!$I$4:$QJ$4, Cálculos!$I406:$QJ406) -> -1551116 | S65: =LOOKUP(S$3, Cálculos!$I$4:$QJ$4, Cálculos!$I406:$QJ406) -> -1315176 | T65: =LOOKUP(T$3, Cálculos!$I$4:$QJ$4, Cálculos!$I406:$QJ406) -> -1053887 | U65: =LOOKUP(U$3, Cálculos!$I$4:$QJ$4, Cálculos!$I406:$QJ406) -> -662949 | V65: =LOOKUP(V$3, Cálculos!$I$4:$QJ$4, Cálculos!$I406:$QJ406) -> -265262 | W65: =LOOKUP(W$3, Cálculos!$I$4:$QJ$4, Cálculos!$I406:$QJ406) -> 214956 | X65: =LOOKUP(X$3, Cálculos!$I$4:$QJ$4, Cálculos!$I406:$QJ406) -> 740774 | Y65: =LOOKUP(Y$3, Cálculos!$I$4:$QJ$4, Cálculos!$I406:$QJ406) -> 1342809 | Z65: =LOOKUP(Z$3, Cálculos!$I$4:$QJ$4, Cálculos!$I406:$QJ406) -> 1955083 | AA65: =LOOKUP(AA$3, Cálculos!$I$4:$QJ$4, Cálculos!$I406:$QJ406) -> 2673410 | AB65: =LOOKUP(AB$3, Cálculos!$I$4:$QJ$4, Cálculos!$I406:$QJ406) -> 3439494 | AC65: =LOOKUP(AC$3, Cálculos!$I$4:$QJ$4, Cálculos!$I406:$QJ406) -> 4255824 | AD65: =LOOKUP(AD$3, Cálculos!$I$4:$QJ$4, Cálculos!$I406:$QJ406) -> 5126212 | AE65: =LOOKUP(AE$3, Cálculos!$I$4:$QJ$4, Cálculos!$I406:$QJ406) -> 6006280 | AF65: =LOOKUP(AF$3, Cálculos!$I$4:$QJ$4, Cálculos!$I406:$QJ406) -> 6609884 | AG65: =LOOKUP(AG$3, Cálculos!$I$4:$QJ$4, Cálculos!$I406:$QJ406) -> 7214143
C66: =Cálculos!C407 -> Ajuste de Arredondamento | D66: =Cálculos!E407 -> 0 | G66: =LOOKUP(G$3, Cálculos!$I$4:$QJ$4, Cálculos!$I407:$QJ407) -> -9.313225746e-10 | H66: =LOOKUP(H$3, Cálculos!$I$4:$QJ$4, Cálculos!$I407:$QJ407) -> 1.862645149e-09 | I66: =LOOKUP(I$3, Cálculos!$I$4:$QJ$4, Cálculos!$I407:$QJ407) -> 0.4712994806 | J66: =LOOKUP(J$3, Cálculos!$I$4:$QJ$4, Cálculos!$I407:$QJ407) -> -0.6255738977 | K66: =LOOKUP(K$3, Cálculos!$I$4:$QJ$4, Cálculos!$I407:$QJ407) -> -1.590023391 | L66: =LOOKUP(L$3, Cálculos!$I$4:$QJ$4, Cálculos!$I407:$QJ407) -> -1.990828624 | M66: =LOOKUP(M$3, Cálculos!$I$4:$QJ$4, Cálculos!$I407:$QJ407) -> -1.600318646 | N66: =LOOKUP(N$3, Cálculos!$I$4:$QJ$4, Cálculos!$I407:$QJ407) -> -0.1276819296 | O66: =LOOKUP(O$3, Cálculos!$I$4:$QJ$4, Cálculos!$I407:$QJ407) -> 1.689999431 | P66: =LOOKUP(P$3, Cálculos!$I$4:$QJ$4, Cálculos!$I407:$QJ407) -> -0.1219086666 | Q66: =LOOKUP(Q$3, Cálculos!$I$4:$QJ$4, Cálculos!$I407:$QJ407) -> -0.9075955804 | R66: =LOOKUP(R$3, Cálculos!$I$4:$QJ$4, Cálculos!$I407:$QJ407) -> -1.231924732 | S66: =LOOKUP(S$3, Cálculos!$I$4:$QJ$4, Cálculos!$I407:$QJ407) -> -2.749547507 | T66: =LOOKUP(T$3, Cálculos!$I$4:$QJ$4, Cálculos!$I407:$QJ407) -> -3.035053848 | U66: =LOOKUP(U$3, Cálculos!$I$4:$QJ$4, Cálculos!$I407:$QJ407) -> -2.266264298 | V66: =LOOKUP(V$3, Cálculos!$I$4:$QJ$4, Cálculos!$I407:$QJ407) -> -1.887206889 | W66: =LOOKUP(W$3, Cálculos!$I$4:$QJ$4, Cálculos!$I407:$QJ407) -> -1.120401727 | X66: =LOOKUP(X$3, Cálculos!$I$4:$QJ$4, Cálculos!$I407:$QJ407) -> -1.13431738 | Y66: =LOOKUP(Y$3, Cálculos!$I$4:$QJ$4, Cálculos!$I407:$QJ407) -> -1.691216701 | Z66: =LOOKUP(Z$3, Cálculos!$I$4:$QJ$4, Cálculos!$I407:$QJ407) -> 176499.5222 | AA66: =LOOKUP(AA$3, Cálculos!$I$4:$QJ$4, Cálculos!$I407:$QJ407) -> 176500.0424 | AB66: =LOOKUP(AB$3, Cálculos!$I$4:$QJ$4, Cálculos!$I407:$QJ407) -> 176500.5947 | AC66: =LOOKUP(AC$3, Cálculos!$I$4:$QJ$4, Cálculos!$I407:$QJ407) -> 176500.8393 | AD66: =LOOKUP(AD$3, Cálculos!$I$4:$QJ$4, Cálculos!$I407:$QJ407) -> 176499.5226 | AE66: =LOOKUP(AE$3, Cálculos!$I$4:$QJ$4, Cálculos!$I407:$QJ407) -> 176499.8895 | AF66: =LOOKUP(AF$3, Cálculos!$I$4:$QJ$4, Cálculos!$I407:$QJ407) -> 176500.8347 | AG66: =LOOKUP(AG$3, Cálculos!$I$4:$QJ$4, Cálculos!$I407:$QJ407) -> 176501.379
C67: =Cálculos!C408 -> Total do Capital Próprio | D67: =Cálculos!E408 -> EUR | G67: =LOOKUP(G$3, Cálculos!$I$4:$QJ$4, Cálculos!$I408:$QJ408) -> 4047500 | H67: =LOOKUP(H$3, Cálculos!$I$4:$QJ$4, Cálculos!$I408:$QJ408) -> 4047500 | I67: =LOOKUP(I$3, Cálculos!$I$4:$QJ$4, Cálculos!$I408:$QJ408) -> 3819215.471 | J67: =LOOKUP(J$3, Cálculos!$I$4:$QJ$4, Cálculos!$I408:$QJ408) -> 3361913.374 | K67: =LOOKUP(K$3, Cálculos!$I$4:$QJ$4, Cálculos!$I408:$QJ408) -> 3025447.41 | L67: =LOOKUP(L$3, Cálculos!$I$4:$QJ$4, Cálculos!$I408:$QJ408) -> 2692919.009 | M67: =LOOKUP(M$3, Cálculos!$I$4:$QJ$4, Cálculos!$I408:$QJ408) -> 2475782.4 | N67: =LOOKUP(N$3, Cálculos!$I$4:$QJ$4, Cálculos!$I408:$QJ408) -> 2065235.872 | O67: =LOOKUP(O$3, Cálculos!$I$4:$QJ$4, Cálculos!$I408:$QJ408) -> 1775406.69 | P67: =LOOKUP(P$3, Cálculos!$I$4:$QJ$4, Cálculos!$I408:$QJ408) -> 2000102.878 | Q67: =LOOKUP(Q$3, Cálculos!$I$4:$QJ$4, Cálculos!$I408:$QJ408) -> 2299529.092 | R67: =LOOKUP(R$3, Cálculos!$I$4:$QJ$4, Cálculos!$I408:$QJ408) -> 2496382.768 | S67: =LOOKUP(S$3, Cálculos!$I$4:$QJ$4, Cálculos!$I408:$QJ408) -> 2732321.25 | T67: =LOOKUP(T$3, Cálculos!$I$4:$QJ$4, Cálculos!$I408:$QJ408) -> 2993609.965 | U67: =LOOKUP(U$3, Cálculos!$I$4:$QJ$4, Cálculos!$I408:$QJ408) -> 3384548.734 | V67: =LOOKUP(V$3, Cálculos!$I$4:$QJ$4, Cálculos!$I408:$QJ408) -> 3782236.113 | W67: =LOOKUP(W$3, Cálculos!$I$4:$QJ$4, Cálculos!$I408:$QJ408) -> 4262454.88 | X67: =LOOKUP(X$3, Cálculos!$I$4:$QJ$4, Cálculos!$I408:$QJ408) -> 4788272.866 | Y67: =LOOKUP(Y$3, Cálculos!$I$4:$QJ$4, Cálculos!$I408:$QJ408) -> 5390307.309 | Z67: =LOOKUP(Z$3, Cálculos!$I$4:$QJ$4, Cálculos!$I408:$QJ408) -> 6179082.522 | AA67: =LOOKUP(AA$3, Cálculos!$I$4:$QJ$4, Cálculos!$I408:$QJ408) -> 6897410.042 | AB67: =LOOKUP(AB$3, Cálculos!$I$4:$QJ$4, Cálculos!$I408:$QJ408) -> 7663494.595 | AC67: =LOOKUP(AC$3, Cálculos!$I$4:$QJ$4, Cálculos!$I408:$QJ408) -> 8479824.839 | AD67: =LOOKUP(AD$3, Cálculos!$I$4:$QJ$4, Cálculos!$I408:$QJ408) -> 9350211.523 | AE67: =LOOKUP(AE$3, Cálculos!$I$4:$QJ$4, Cálculos!$I408:$QJ408) -> 10230279.89 | AF67: =LOOKUP(AF$3, Cálculos!$I$4:$QJ$4, Cálculos!$I408:$QJ408) -> 10833884.83 | AG67: =LOOKUP(AG$3, Cálculos!$I$4:$QJ$4, Cálculos!$I408:$QJ408) -> 11438144.38
B69: Total de Passivos e Capital Próprio | D69: =Cálculos!E410 -> EUR | G69: =G61+G67 -> 8246250 | H69: =H61+H67 -> 16190000 | I69: 15821662.79 | J69: 15070988.66 | K69: 14338038.03 | L69: 13580608.38 | M69: 12840408.35 | N69: 12008161.97 | O69: 11193012.45 | P69: 10853001.39 | Q69: 10490645.25 | R69: 10087520.43 | S69: 9618392.97 | T69: 9119119.906 | U69: 8653173.67 | V69: 8199096.393 | W69: 7719290.614 | X69: 7205582.025 | Y69: 6671732.593 | Z69: 6290140.027 | AA69: 6434768.781 | AB69: 6548009.408 | AC69: 6659903.097 | AD69: 6672035.435 | AE69: =AE61+AE67 -> 10243309.22 | AF69: 10846857.55 | AG69: 11459682.01
K70: =K45-K69 -> 0 | L70: =L45-L69 -> 0 | M70: =M45-M69 -> 0 | N70: 0 | O70: 0 | P70: 0 | Q70: 0 | R70: 0 | S70: 0 | T70: 0
C71: Verificação do Balanço | D71: Check | F71: =IF(COUNTIF(G71:AR71, "NO")>0, "NO", "OK") -> OK | G71: =IF(ROUND(G45-G69, 0)=0, "OK", "NO") -> OK | H71: =IF(ROUND(H45-H69, 0)=0, "OK", "NO") -> OK | I71: OK | J71: OK | K71: OK | L71: OK | M71: OK | N71: OK | O71: OK | P71: OK | Q71: OK | R71: OK | S71: OK | T71: OK | U71: OK | V71: OK | W71: OK | X71: OK | Y71: OK | Z71: OK | AA71: OK | AB71: OK | AC71: OK | AD71: OK | AE71: OK | AF71: OK | AG71: OK
A73: · | B73: Demonstração de Fluxos de Caixa | D73: Unidade
B75: Atividades Operacionais
C76: =Cálculos!C417 -> Resultado Líquido | D76: =Cálculos!E417 -> EUR | F76: =SUM(G76:AR76) -> 6017238.464 | G76: =SUMIF(Cálculos!$I$8:$QJ$8, G$2, Cálculos!$I417:$QJ417) -> 0 | H76: 0 | I76: =SUMIF(Cálculos!$I$8:$QJ$8, I$2, Cálculos!$I417:$QJ417) -> -341870.388 | J76: =SUMIF(Cálculos!$I$8:$QJ$8, J$2, Cálculos!$I417:$QJ417) -> -343716.2376 | K76: =SUMIF(Cálculos!$I$8:$QJ$8, K$2, Cálculos!$I417:$QJ417) -> -336465.9644 | L76: =SUMIF(Cálculos!$I$8:$QJ$8, L$2, Cálculos!$I417:$QJ417) -> -332528.4008 | M76: =SUMIF(Cálculos!$I$8:$QJ$8, M$2, Cálculos!$I417:$QJ417) -> -328559.7563 | N76: =SUMIF(Cálculos!$I$8:$QJ$8, N$2, Cálculos!$I417:$QJ417) -> -299123.3806 | O76: =SUMIF(Cálculos!$I$8:$QJ$8, O$2, Cálculos!$I417:$QJ417) -> -289829.1823 | P76: =SUMIF(Cálculos!$I$8:$QJ$8, P$2, Cálculos!$I417:$QJ417) -> 224696.1881 | Q76: =SUMIF(Cálculos!$I$8:$QJ$8, Q$2, Cálculos!$I417:$QJ417) -> 238954.7641 | R76: =SUMIF(Cálculos!$I$8:$QJ$8, R$2, Cálculos!$I417:$QJ417) -> 257325.1259 | S76: =SUMIF(Cálculos!$I$8:$QJ$8, S$2, Cálculos!$I417:$QJ417) -> 235938.4824 | T76: =SUMIF(Cálculos!$I$8:$QJ$8, T$2, Cálculos!$I417:$QJ417) -> 261288.7145 | U76: =SUMIF(Cálculos!$I$8:$QJ$8, U$2, Cálculos!$I417:$QJ417) -> 348165.2707 | V76: =SUMIF(Cálculos!$I$8:$QJ$8, V$2, Cálculos!$I417:$QJ417) -> 440460.8772 | W76: =SUMIF(Cálculos!$I$8:$QJ$8, W$2, Cálculos!$I417:$QJ417) -> 480218.7668 | X76: =SUMIF(Cálculos!$I$8:$QJ$8, X$2, Cálculos!$I417:$QJ417) -> 525817.9861 | Y76: =SUMIF(Cálculos!$I$8:$QJ$8, Y$2, Cálculos!$I417:$QJ417) -> 577564.7189 | Z76: =SUMIF(Cálculos!$I$8:$QJ$8, Z$2, Cálculos!$I417:$QJ417) -> 636742.9826 | AA76: =SUMIF(Cálculos!$I$8:$QJ$8, AA$2, Cálculos!$I417:$QJ417) -> 718327.5202 | AB76: =SUMIF(Cálculos!$I$8:$QJ$8, AB$2, Cálculos!$I417:$QJ417) -> 766084.5523 | AC76: =SUMIF(Cálculos!$I$8:$QJ$8, AC$2, Cálculos!$I417:$QJ417) -> 814460.7204 | AD76: =SUMIF(Cálculos!$I$8:$QJ$8, AD$2, Cálculos!$I417:$QJ417) -> 872256.2075 | AE76: =SUMIF(Cálculos!$I$8:$QJ$8, AE$2, Cálculos!$I417:$QJ417) -> 880068.3669 | AF76: =SUMIF(Cálculos!$I$8:$QJ$8, AF$2, Cálculos!$I417:$QJ417) -> 603604.9452 | AG76: =SUMIF(Cálculos!$I$8:$QJ$8, AG$2, Cálculos!$I417:$QJ417) -> -592644.4161
C77: =Cálculos!C418 -> Menos: Variação do Fundo de Maneio | D77: =Cálculos!E418 -> EUR | F77: -152755.1899 | G77: =SUMIF(Cálculos!$I$8:$QJ$8, G$2, Cálculos!$I418:$QJ418) -> -141391.3081 | H77: =SUMIF(Cálculos!$I$8:$QJ$8, H$2, Cálculos!$I418:$QJ418) -> 141391.3081 | I77: =SUMIF(Cálculos!$I$8:$QJ$8, I$2, Cálculos!$I418:$QJ418) -> -210610.4308 | J77: =SUMIF(Cálculos!$I$8:$QJ$8, J$2, Cálculos!$I418:$QJ418) -> 2020.230671 | K77: =SUMIF(Cálculos!$I$8:$QJ$8, K$2, Cálculos!$I418:$QJ418) -> 2342.679595 | L77: =SUMIF(Cálculos!$I$8:$QJ$8, L$2, Cálculos!$I418:$QJ418) -> 2323.79526 | M77: =SUMIF(Cálculos!$I$8:$QJ$8, M$2, Cálculos!$I418:$QJ418) -> 2305.209791 | N77: =SUMIF(Cálculos!$I$8:$QJ$8, N$2, Cálculos!$I418:$QJ418) -> 2286.922983 | O77: =SUMIF(Cálculos!$I$8:$QJ$8, O$2, Cálculos!$I418:$QJ418) -> 2268.934706 | P77: =SUMIF(Cálculos!$I$8:$QJ$8, P$2, Cálculos!$I418:$QJ418) -> 2251.2449 | Q77: =SUMIF(Cálculos!$I$8:$QJ$8, Q$2, Cálculos!$I418:$QJ418) -> 2233.853579 | R77: =SUMIF(Cálculos!$I$8:$QJ$8, R$2, Cálculos!$I418:$QJ418) -> 2216.760833 | S77: =SUMIF(Cálculos!$I$8:$QJ$8, S$2, Cálculos!$I418:$QJ418) -> 2199.966825 | T77: =SUMIF(Cálculos!$I$8:$QJ$8, T$2, Cálculos!$I418:$QJ418) -> 2183.471796 | U77: =SUMIF(Cálculos!$I$8:$QJ$8, U$2, Cálculos!$I418:$QJ418) -> 2167.276066 | V77: =SUMIF(Cálculos!$I$8:$QJ$8, V$2, Cálculos!$I418:$QJ418) -> 2151.380033 | W77: =SUMIF(Cálculos!$I$8:$QJ$8, W$2, Cálculos!$I418:$QJ418) -> 2135.784175 | X77: =SUMIF(Cálculos!$I$8:$QJ$8, X$2, Cálculos!$I418:$QJ418) -> 2120.489054 | Y77: =SUMIF(Cálculos!$I$8:$QJ$8, Y$2, Cálculos!$I418:$QJ418) -> 2105.495312 | Z77: =SUMIF(Cálculos!$I$8:$QJ$8, Z$2, Cálculos!$I418:$QJ418) -> 2090.803678 | AA77: =SUMIF(Cálculos!$I$8:$QJ$8, AA$2, Cálculos!$I418:$QJ418) -> 8443.180453 | AB77: =SUMIF(Cálculos!$I$8:$QJ$8, AB$2, Cálculos!$I418:$QJ418) -> 2869.94575 | AC77: =SUMIF(Cálculos!$I$8:$QJ$8, AC$2, Cálculos!$I418:$QJ418) -> 3651.047117 | AD77: =SUMIF(Cálculos!$I$8:$QJ$8, AD$2, Cálculos!$I418:$QJ418) -> 4318.57019 | AE77: =SUMIF(Cálculos!$I$8:$QJ$8, AE$2, Cálculos!$I418:$QJ418) -> -4534.090905 | AF77: =SUMIF(Cálculos!$I$8:$QJ$8, AF$2, Cálculos!$I418:$QJ418) -> 1739.310331 | AG77: =SUMIF(Cálculos!$I$8:$QJ$8, AG$2, Cálculos!$I418:$QJ418) -> 3962.978719
C78: =Cálculos!C419 -> Menos: Variação do Ativo por Impostos Diferidos | D78: =Cálculos!E419 -> EUR | F78: -240646.6832 | G78: =SUMIF(Cálculos!$I$8:$QJ$8, G$2, Cálculos!$I419:$QJ419) -> 0 | H78: 0 | I78: =SUMIF(Cálculos!$I$8:$QJ$8, I$2, Cálculos!$I419:$QJ419) -> -146793.631 | J78: =SUMIF(Cálculos!$I$8:$QJ$8, J$2, Cálculos!$I419:$QJ419) -> -147166.3506 | K78: =SUMIF(Cálculos!$I$8:$QJ$8, K$2, Cálculos!$I419:$QJ419) -> -145702.3532 | L78: =SUMIF(Cálculos!$I$8:$QJ$8, L$2, Cálculos!$I419:$QJ419) -> -144907.2682 | M78: =SUMIF(Cálculos!$I$8:$QJ$8, M$2, Cálculos!$I419:$QJ419) -> -144105.9073 | N78: =SUMIF(Cálculos!$I$8:$QJ$8, N$2, Cálculos!$I419:$QJ419) -> -142624.5238 | O78: =SUMIF(Cálculos!$I$8:$QJ$8, O$2, Cálculos!$I419:$QJ419) -> -140747.8106 | P78: =SUMIF(Cálculos!$I$8:$QJ$8, P$2, Cálculos!$I419:$QJ419) -> -138403.9762 | Q78: =SUMIF(Cálculos!$I$8:$QJ$8, Q$2, Cálculos!$I419:$QJ419) -> -135524.8407 | R78: =SUMIF(Cálculos!$I$8:$QJ$8, R$2, Cálculos!$I419:$QJ419) -> -131859.8638 | S78: =SUMIF(Cálculos!$I$8:$QJ$8, S$2, Cálculos!$I419:$QJ419) -> 132966.0697 | T78: =SUMIF(Cálculos!$I$8:$QJ$8, T$2, Cálculos!$I419:$QJ419) -> 138084.8666 | U78: =SUMIF(Cálculos!$I$8:$QJ$8, U$2, Cálculos!$I419:$QJ419) -> 144015.6904 | V78: =SUMIF(Cálculos!$I$8:$QJ$8, V$2, Cálculos!$I419:$QJ419) -> 151040.7456 | W78: =SUMIF(Cálculos!$I$8:$QJ$8, W$2, Cálculos!$I419:$QJ419) -> 159068.781 | X78: =SUMIF(Cálculos!$I$8:$QJ$8, X$2, Cálculos!$I419:$QJ419) -> 168276.3156 | Y78: =SUMIF(Cálculos!$I$8:$QJ$8, Y$2, Cálculos!$I419:$QJ419) -> 178725.1752 | Z78: =SUMIF(Cálculos!$I$8:$QJ$8, Z$2, Cálculos!$I419:$QJ419) -> 190627.5916 | AA78: =SUMIF(Cálculos!$I$8:$QJ$8, AA$2, Cálculos!$I419:$QJ419) -> 153764.8356 | AB78: =SUMIF(Cálculos!$I$8:$QJ$8, AB$2, Cálculos!$I419:$QJ419) -> 893.8262321 | AC78: =SUMIF(Cálculos!$I$8:$QJ$8, AC$2, Cálculos!$I419:$QJ419) -> 372.6280433 | AD78: =SUMIF(Cálculos!$I$8:$QJ$8, AD$2, Cálculos!$I419:$QJ419) -> 0 | AE78: =SUMIF(Cálculos!$I$8:$QJ$8, AE$2, Cálculos!$I419:$QJ419) -> -2839.404403 | AF78: =SUMIF(Cálculos!$I$8:$QJ$8, AF$2, Cálculos!$I419:$QJ419) -> -197.2565432 | AG78: =SUMIF(Cálculos!$I$8:$QJ$8, AG$2, Cálculos!$I419:$QJ419) -> -237610.0223
C79: =Cálculos!C420 -> Mais: Depreciações | D79: =Cálculos!E420 -> EUR | F79: 14937688.52 | G79: =SUMIF(Cálculos!$I$8:$QJ$8, G$2, Cálculos!$I420:$QJ420) -> 0 | H79: =SUMIF(Cálculos!$I$8:$QJ$8, H$2, Cálculos!$I420:$QJ420) -> 0 | I79: =SUMIF(Cálculos!$I$8:$QJ$8, I$2, Cálculos!$I420:$QJ420) -> 1165501.438 | J79: =SUMIF(Cálculos!$I$8:$QJ$8, J$2, Cálculos!$I420:$QJ420) -> 1165501.438 | K79: =SUMIF(Cálculos!$I$8:$QJ$8, K$2, Cálculos!$I420:$QJ420) -> 1165501.438 | L79: =SUMIF(Cálculos!$I$8:$QJ$8, L$2, Cálculos!$I420:$QJ420) -> 1165501.438 | M79: =SUMIF(Cálculos!$I$8:$QJ$8, M$2, Cálculos!$I420:$QJ420) -> 1165501.438 | N79: =SUMIF(Cálculos!$I$8:$QJ$8, N$2, Cálculos!$I420:$QJ420) -> 1143401.438 | O79: =SUMIF(Cálculos!$I$8:$QJ$8, O$2, Cálculos!$I420:$QJ420) -> 1143401.438 | P79: =SUMIF(Cálculos!$I$8:$QJ$8, P$2, Cálculos!$I420:$QJ420) -> 640483.6281 | Q79: =SUMIF(Cálculos!$I$8:$QJ$8, Q$2, Cálculos!$I420:$QJ420) -> 640483.6281 | R79: =SUMIF(Cálculos!$I$8:$QJ$8, R$2, Cálculos!$I420:$QJ420) -> 640263.6281 | S79: =SUMIF(Cálculos!$I$8:$QJ$8, S$2, Cálculos!$I420:$QJ420) -> 422560.1485 | T79: =SUMIF(Cálculos!$I$8:$QJ$8, T$2, Cálculos!$I420:$QJ420) -> 422560.1485 | U79: =SUMIF(Cálculos!$I$8:$QJ$8, U$2, Cálculos!$I420:$QJ420) -> 365055.2914 | V79: =SUMIF(Cálculos!$I$8:$QJ$8, V$2, Cálculos!$I420:$QJ420) -> 307550.4342 | W79: =SUMIF(Cálculos!$I$8:$QJ$8, W$2, Cálculos!$I420:$QJ420) -> 307550.4342 | X79: =SUMIF(Cálculos!$I$8:$QJ$8, X$2, Cálculos!$I420:$QJ420) -> 307550.4342 | Y79: =SUMIF(Cálculos!$I$8:$QJ$8, Y$2, Cálculos!$I420:$QJ420) -> 307550.4342 | Z79: =SUMIF(Cálculos!$I$8:$QJ$8, Z$2, Cálculos!$I420:$QJ420) -> 307641.5526 | AA79: =SUMIF(Cálculos!$I$8:$QJ$8, AA$2, Cálculos!$I420:$QJ420) -> 307732.671 | AB79: =SUMIF(Cálculos!$I$8:$QJ$8, AB$2, Cálculos!$I420:$QJ420) -> 307732.671 | AC79: =SUMIF(Cálculos!$I$8:$QJ$8, AC$2, Cálculos!$I420:$QJ420) -> 307732.671 | AD79: =SUMIF(Cálculos!$I$8:$QJ$8, AD$2, Cálculos!$I420:$QJ420) -> 307732.671 | AE79: =SUMIF(Cálculos!$I$8:$QJ$8, AE$2, Cálculos!$I420:$QJ420) -> 307732.671 | AF79: =SUMIF(Cálculos!$I$8:$QJ$8, AF$2, Cálculos!$I420:$QJ420) -> 307732.671 | AG79: =SUMIF(Cálculos!$I$8:$QJ$8, AG$2, Cálculos!$I420:$QJ420) -> 307732.671
C80: =Cálculos!C421 -> Mais: Juros da Dívida Sénior | D80: =Cálculos!E421 -> EUR | F80: 4700943.598 | G80: =SUMIF(Cálculos!$I$8:$QJ$8, G$2, Cálculos!$I421:$QJ421) -> 0 | H80: =SUMIF(Cálculos!$I$8:$QJ$8, H$2, Cálculos!$I421:$QJ421) -> 0 | I80: =SUMIF(Cálculos!$I$8:$QJ$8, I$2, Cálculos!$I421:$QJ421) -> 444040.6871 | J80: =SUMIF(Cálculos!$I$8:$QJ$8, J$2, Cálculos!$I421:$QJ421) -> 429160.0436 | K80: =SUMIF(Cálculos!$I$8:$QJ$8, K$2, Cálculos!$I421:$QJ421) -> 412568.4836 | L80: =SUMIF(Cálculos!$I$8:$QJ$8, L$2, Cálculos!$I421:$QJ421) -> 395041.0293 | M80: =SUMIF(Cálculos!$I$8:$QJ$8, M$2, Cálculos!$I421:$QJ421) -> 376524.8887 | N80: =SUMIF(Cálculos!$I$8:$QJ$8, N$2, Cálculos!$I421:$QJ421) -> 356964.2923 | O80: =SUMIF(Cálculos!$I$8:$QJ$8, O$2, Cálculos!$I421:$QJ421) -> 336300.3244 | P80: =SUMIF(Cálculos!$I$8:$QJ$8, P$2, Cálculos!$I421:$QJ421) -> 314470.7464 | Q80: =SUMIF(Cálculos!$I$8:$QJ$8, Q$2, Cálculos!$I421:$QJ421) -> 291409.8085 | R80: =SUMIF(Cálculos!$I$8:$QJ$8, R$2, Cálculos!$I421:$QJ421) -> 267048.0525 | S80: =SUMIF(Cálculos!$I$8:$QJ$8, S$2, Cálculos!$I421:$QJ421) -> 241312.102 | T80: =SUMIF(Cálculos!$I$8:$QJ$8, T$2, Cálculos!$I421:$QJ421) -> 214124.4416 | U80: =SUMIF(Cálculos!$I$8:$QJ$8, U$2, Cálculos!$I421:$QJ421) -> 185403.1834 | V80: =SUMIF(Cálculos!$I$8:$QJ$8, V$2, Cálculos!$I421:$QJ421) -> 155061.8205 | W80: =SUMIF(Cálculos!$I$8:$QJ$8, W$2, Cálculos!$I421:$QJ421) -> 123008.9662 | X80: =SUMIF(Cálculos!$I$8:$QJ$8, X$2, Cálculos!$I421:$QJ421) -> 89148.07897 | Y80: =SUMIF(Cálculos!$I$8:$QJ$8, Y$2, Cálculos!$I421:$QJ421) -> 53377.17157 | Z80: =SUMIF(Cálculos!$I$8:$QJ$8, Z$2, Cálculos!$I421:$QJ421) -> 15979.47711 | AA80: =SUMIF(Cálculos!$I$8:$QJ$8, AA$2, Cálculos!$I421:$QJ421) -> 0 | AB80: =SUMIF(Cálculos!$I$8:$QJ$8, AB$2, Cálculos!$I421:$QJ421) -> 0 | AC80: =SUMIF(Cálculos!$I$8:$QJ$8, AC$2, Cálculos!$I421:$QJ421) -> 0 | AD80: =SUMIF(Cálculos!$I$8:$QJ$8, AD$2, Cálculos!$I421:$QJ421) -> 0 | AE80: =SUMIF(Cálculos!$I$8:$QJ$8, AE$2, Cálculos!$I421:$QJ421) -> 0 | AF80: =SUMIF(Cálculos!$I$8:$QJ$8, AF$2, Cálculos!$I421:$QJ421) -> 0 | AG80: =SUMIF(Cálculos!$I$8:$QJ$8, AG$2, Cálculos!$I421:$QJ421) -> 0
C81: =Cálculos!C422 -> Mais: Juros da Dívida Subordinada | D81: =Cálculos!E422 -> EUR | F81: 5079271.693 | G81: =SUMIF(Cálculos!$I$8:$QJ$8, G$2, Cálculos!$I422:$QJ422) -> 0 | H81: =SUMIF(Cálculos!$I$8:$QJ$8, H$2, Cálculos!$I422:$QJ422) -> 0 | I81: =SUMIF(Cálculos!$I$8:$QJ$8, I$2, Cálculos!$I422:$QJ422) -> 488505.3632 | J81: =SUMIF(Cálculos!$I$8:$QJ$8, J$2, Cálculos!$I422:$QJ422) -> 479691.9128 | K81: =SUMIF(Cálculos!$I$8:$QJ$8, K$2, Cálculos!$I422:$QJ422) -> 470025.5566 | L81: =SUMIF(Cálculos!$I$8:$QJ$8, L$2, Cálculos!$I422:$QJ422) -> 459133.2646 | M81: =SUMIF(Cálculos!$I$8:$QJ$8, M$2, Cálculos!$I422:$QJ422) -> 446859.5572 | N81: =SUMIF(Cálculos!$I$8:$QJ$8, N$2, Cálculos!$I422:$QJ422) -> 433029.2366 | O81: =SUMIF(Cálculos!$I$8:$QJ$8, O$2, Cálculos!$I422:$QJ422) -> 417444.8852 | P81: =SUMIF(Cálculos!$I$8:$QJ$8, P$2, Cálculos!$I422:$QJ422) -> 399884.0479 | Q81: =SUMIF(Cálculos!$I$8:$QJ$8, Q$2, Cálculos!$I422:$QJ422) -> 380096.0569 | R81: =SUMIF(Cálculos!$I$8:$QJ$8, R$2, Cálculos!$I422:$QJ422) -> 357798.4533 | S81: =SUMIF(Cálculos!$I$8:$QJ$8, S$2, Cálculos!$I422:$QJ422) -> 332672.9555 | T81: =SUMIF(Cálculos!$I$8:$QJ$8, T$2, Cálculos!$I422:$QJ422) -> 304360.9157 | U81: =SUMIF(Cálculos!$I$8:$QJ$8, U$2, Cálculos!$I422:$QJ422) -> 272458.2005 | V81: =SUMIF(Cálculos!$I$8:$QJ$8, V$2, Cálculos!$I422:$QJ422) -> 236509.4226 | W81: =SUMIF(Cálculos!$I$8:$QJ$8, W$2, Cálculos!$I422:$QJ422) -> 196001.4398 | X81: =SUMIF(Cálculos!$I$8:$QJ$8, X$2, Cálculos!$I422:$QJ422) -> 150356.0309 | Y81: =SUMIF(Cálculos!$I$8:$QJ$8, Y$2, Cálculos!$I422:$QJ422) -> 98921.64161 | Z81: =SUMIF(Cálculos!$I$8:$QJ$8, Z$2, Cálculos!$I422:$QJ422) -> 40964.08435 | AA81: =SUMIF(Cálculos!$I$8:$QJ$8, AA$2, Cálculos!$I422:$QJ422) -> -24343.94185 | AB81: =SUMIF(Cálculos!$I$8:$QJ$8, AB$2, Cálculos!$I422:$QJ422) -> -97934.66044 | AC81: =SUMIF(Cálculos!$I$8:$QJ$8, AC$2, Cálculos!$I422:$QJ422) -> -180858.5241 | AD81: =SUMIF(Cálculos!$I$8:$QJ$8, AD$2, Cálculos!$I422:$QJ422) -> -274299.2093 | AE81: =SUMIF(Cálculos!$I$8:$QJ$8, AE$2, Cálculos!$I422:$QJ422) -> -308004.9965 | AF81: =SUMIF(Cálculos!$I$8:$QJ$8, AF$2, Cálculos!$I422:$QJ422) -> 0 | AG81: =SUMIF(Cálculos!$I$8:$QJ$8, AG$2, Cálculos!$I422:$QJ422) -> 0
C82: =Cálculos!C423 -> Menos: Juros das Contas de Reserva | D82: =Cálculos!E423 -> EUR | F82: 0 | G82: =SUMIF(Cálculos!$I$8:$QJ$8, G$2, Cálculos!$I423:$QJ423) -> 0 | H82: =SUMIF(Cálculos!$I$8:$QJ$8, H$2, Cálculos!$I423:$QJ423) -> 0 | I82: =SUMIF(Cálculos!$I$8:$QJ$8, I$2, Cálculos!$I423:$QJ423) -> 0 | J82: =SUMIF(Cálculos!$I$8:$QJ$8, J$2, Cálculos!$I423:$QJ423) -> 0 | K82: =SUMIF(Cálculos!$I$8:$QJ$8, K$2, Cálculos!$I423:$QJ423) -> 0 | L82: =SUMIF(Cálculos!$I$8:$QJ$8, L$2, Cálculos!$I423:$QJ423) -> 0 | M82: =SUMIF(Cálculos!$I$8:$QJ$8, M$2, Cálculos!$I423:$QJ423) -> 0 | N82: =SUMIF(Cálculos!$I$8:$QJ$8, N$2, Cálculos!$I423:$QJ423) -> 0 | O82: =SUMIF(Cálculos!$I$8:$QJ$8, O$2, Cálculos!$I423:$QJ423) -> 0 | P82: =SUMIF(Cálculos!$I$8:$QJ$8, P$2, Cálculos!$I423:$QJ423) -> 0 | Q82: =SUMIF(Cálculos!$I$8:$QJ$8, Q$2, Cálculos!$I423:$QJ423) -> 0 | R82: =SUMIF(Cálculos!$I$8:$QJ$8, R$2, Cálculos!$I423:$QJ423) -> 0 | S82: =SUMIF(Cálculos!$I$8:$QJ$8, S$2, Cálculos!$I423:$QJ423) -> 0 | T82: =SUMIF(Cálculos!$I$8:$QJ$8, T$2, Cálculos!$I423:$QJ423) -> 0 | U82: =SUMIF(Cálculos!$I$8:$QJ$8, U$2, Cálculos!$I423:$QJ423) -> 0 | V82: =SUMIF(Cálculos!$I$8:$QJ$8, V$2, Cálculos!$I423:$QJ423) -> 0 | W82: =SUMIF(Cálculos!$I$8:$QJ$8, W$2, Cálculos!$I423:$QJ423) -> 0 | X82: =SUMIF(Cálculos!$I$8:$QJ$8, X$2, Cálculos!$I423:$QJ423) -> 0 | Y82: =SUMIF(Cálculos!$I$8:$QJ$8, Y$2, Cálculos!$I423:$QJ423) -> 0 | Z82: =SUMIF(Cálculos!$I$8:$QJ$8, Z$2, Cálculos!$I423:$QJ423) -> 0 | AA82: =SUMIF(Cálculos!$I$8:$QJ$8, AA$2, Cálculos!$I423:$QJ423) -> 0 | AB82: =SUMIF(Cálculos!$I$8:$QJ$8, AB$2, Cálculos!$I423:$QJ423) -> 0 | AC82: =SUMIF(Cálculos!$I$8:$QJ$8, AC$2, Cálculos!$I423:$QJ423) -> 0 | AD82: =SUMIF(Cálculos!$I$8:$QJ$8, AD$2, Cálculos!$I423:$QJ423) -> 0 | AE82: =SUMIF(Cálculos!$I$8:$QJ$8, AE$2, Cálculos!$I423:$QJ423) -> 0 | AF82: =SUMIF(Cálculos!$I$8:$QJ$8, AF$2, Cálculos!$I423:$QJ423) -> 0 | AG82: =SUMIF(Cálculos!$I$8:$QJ$8, AG$2, Cálculos!$I423:$QJ423) -> 0
C83: =Cálculos!C424 -> Fluxos de Caixa Operacionais | D83: =Cálculos!E424 -> EUR | F83: 30341740.4 | G83: =SUM(G76:G82) -> -141391.3081 | H83: =SUM(H76:H82) -> 141391.3081 | I83: =SUM(I76:I82) -> 1398773.038 | J83: 1585491.036 | K83: 1568269.84 | L83: 1544563.858 | M83: 1518525.43 | N83: 1493933.985 | O83: 1468838.589 | P83: 1443381.879 | Q83: 1417653.271 | R83: 1392792.157 | S83: 1367649.725 | T83: 1342602.559 | U83: 1317264.912 | V83: 1292774.68 | W83: 1267984.172 | X83: 1243269.335 | Y83: 1218244.637 | Z83: 1194046.492 | AA83: 1163924.265 | AB83: 979646.3349 | AC83: 945358.5424 | AD83: 910008.2394 | AE83: =SUM(AE76:AE82) -> 872422.5461 | AF83: 912879.67 | AG83: -518558.7886
B85: Atividades de Investimento
C86: =Cálculos!C427 -> Investimento (CapEx) | D86: =Cálculos!E427 -> EUR | F86: =SUM(G86:AR86) -> -17967827.81 | G86: =SUMIF(Cálculos!$I$8:$QJ$8, G$2, Cálculos!$I429:$QJ429) -> -8079155.568 | H86: =SUMIF(Cálculos!$I$8:$QJ$8, H$2, Cálculos!$I429:$QJ429) -> -7426934.751 | I86: =SUMIF(Cálculos!$I$8:$QJ$8, I$2, Cálculos!$I429:$QJ429) -> 0 | J86: =SUMIF(Cálculos!$I$8:$QJ$8, J$2, Cálculos!$I429:$QJ429) -> 0 | K86: =SUMIF(Cálculos!$I$8:$QJ$8, K$2, Cálculos!$I429:$QJ429) -> 0 | L86: =SUMIF(Cálculos!$I$8:$QJ$8, L$2, Cálculos!$I429:$QJ429) -> 0 | M86: =SUMIF(Cálculos!$I$8:$QJ$8, M$2, Cálculos!$I429:$QJ429) -> 0 | N86: =SUMIF(Cálculos!$I$8:$QJ$8, N$2, Cálculos!$I429:$QJ429) -> 0 | O86: =SUMIF(Cálculos!$I$8:$QJ$8, O$2, Cálculos!$I429:$QJ429) -> 0 | P86: =SUMIF(Cálculos!$I$8:$QJ$8, P$2, Cálculos!$I429:$QJ429) -> 0 | Q86: =SUMIF(Cálculos!$I$8:$QJ$8, Q$2, Cálculos!$I429:$QJ429) -> 0 | R86: =SUMIF(Cálculos!$I$8:$QJ$8, R$2, Cálculos!$I429:$QJ429) -> 0 | S86: =SUMIF(Cálculos!$I$8:$QJ$8, S$2, Cálculos!$I429:$QJ429) -> 0 | T86: =SUMIF(Cálculos!$I$8:$QJ$8, T$2, Cálculos!$I429:$QJ429) -> 0 | U86: =SUMIF(Cálculos!$I$8:$QJ$8, U$2, Cálculos!$I429:$QJ429) -> 0 | V86: =SUMIF(Cálculos!$I$8:$QJ$8, V$2, Cálculos!$I429:$QJ429) -> 0 | W86: =SUMIF(Cálculos!$I$8:$QJ$8, W$2, Cálculos!$I429:$QJ429) -> 0 | X86: =SUMIF(Cálculos!$I$8:$QJ$8, X$2, Cálculos!$I429:$QJ429) -> 0 | Y86: =SUMIF(Cálculos!$I$8:$QJ$8, Y$2, Cálculos!$I429:$QJ429) -> 0 | Z86: =SUMIF(Cálculos!$I$8:$QJ$8, Z$2, Cálculos!$I429:$QJ429) -> -7777.95982 | AA86: =SUMIF(Cálculos!$I$8:$QJ$8, AA$2, Cálculos!$I429:$QJ429) -> -2453959.528 | AB86: =SUMIF(Cálculos!$I$8:$QJ$8, AB$2, Cálculos!$I429:$QJ429) -> 0 | AC86: =SUMIF(Cálculos!$I$8:$QJ$8, AC$2, Cálculos!$I429:$QJ429) -> 0 | AD86: =SUMIF(Cálculos!$I$8:$QJ$8, AD$2, Cálculos!$I429:$QJ429) -> 0 | AE86: =SUMIF(Cálculos!$I$8:$QJ$8, AE$2, Cálculos!$I429:$QJ429) -> 0 | AF86: =SUMIF(Cálculos!$I$8:$QJ$8, AF$2, Cálculos!$I429:$QJ429) -> 0 | AG86: =SUMIF(Cálculos!$I$8:$QJ$8, AG$2, Cálculos!$I429:$QJ429) -> 0
C87: =Cálculos!C429 -> Fluxos de Caixa de Investimento | D87: =Cálculos!E429 -> EUR | F87: =SUM(G87:AR87) -> -17967827.81 | G87: =SUM(G86) -> -8079155.568 | H87: =SUM(H86) -> -7426934.751 | I87: 0 | J87: 0 | K87: 0 | L87: 0 | M87: 0 | N87: 0 | O87: 0 | P87: 0 | Q87: 0 | R87: 0 | S87: 0 | T87: 0 | U87: 0 | V87: 0 | W87: 0 | X87: 0 | Y87: 0 | Z87: -7777.95982 | AA87: -2453959.528 | AB87: 0 | AC87: 0 | AD87: 0 | AE87: =SUM(AE86) -> 0 | AF87: 0 | AG87: 0
B89: Atividades de Financiamento
C90: =Cálculos!C432 -> Entradas de Capital Próprio | D90: =Cálculos!E432 -> EUR | F90: =SUM(G90:AR90) -> 4047500 | G90: =SUMIF(Cálculos!$I$8:$QJ$8, G$2, Cálculos!$I432:$QJ432) -> 4047500 | H90: =SUMIF(Cálculos!$I$8:$QJ$8, H$2, Cálculos!$I432:$QJ432) -> 0 | I90: =SUMIF(Cálculos!$I$8:$QJ$8, I$2, Cálculos!$I432:$QJ432) -> 0 | J90: =SUMIF(Cálculos!$I$8:$QJ$8, J$2, Cálculos!$I432:$QJ432) -> 0 | K90: =SUMIF(Cálculos!$I$8:$QJ$8, K$2, Cálculos!$I432:$QJ432) -> 0 | L90: =SUMIF(Cálculos!$I$8:$QJ$8, L$2, Cálculos!$I432:$QJ432) -> 0 | M90: =SUMIF(Cálculos!$I$8:$QJ$8, M$2, Cálculos!$I432:$QJ432) -> 0 | N90: =SUMIF(Cálculos!$I$8:$QJ$8, N$2, Cálculos!$I432:$QJ432) -> 0 | O90: =SUMIF(Cálculos!$I$8:$QJ$8, O$2, Cálculos!$I432:$QJ432) -> 0 | P90: =SUMIF(Cálculos!$I$8:$QJ$8, P$2, Cálculos!$I432:$QJ432) -> 0 | Q90: =SUMIF(Cálculos!$I$8:$QJ$8, Q$2, Cálculos!$I432:$QJ432) -> 0 | R90: =SUMIF(Cálculos!$I$8:$QJ$8, R$2, Cálculos!$I432:$QJ432) -> 0 | S90: =SUMIF(Cálculos!$I$8:$QJ$8, S$2, Cálculos!$I432:$QJ432) -> 0 | T90: =SUMIF(Cálculos!$I$8:$QJ$8, T$2, Cálculos!$I432:$QJ432) -> 0 | U90: =SUMIF(Cálculos!$I$8:$QJ$8, U$2, Cálculos!$I432:$QJ432) -> 0 | V90: =SUMIF(Cálculos!$I$8:$QJ$8, V$2, Cálculos!$I432:$QJ432) -> 0 | W90: =SUMIF(Cálculos!$I$8:$QJ$8, W$2, Cálculos!$I432:$QJ432) -> 0 | X90: =SUMIF(Cálculos!$I$8:$QJ$8, X$2, Cálculos!$I432:$QJ432) -> 0 | Y90: =SUMIF(Cálculos!$I$8:$QJ$8, Y$2, Cálculos!$I432:$QJ432) -> 0 | Z90: =SUMIF(Cálculos!$I$8:$QJ$8, Z$2, Cálculos!$I432:$QJ432) -> 0 | AA90: =SUMIF(Cálculos!$I$8:$QJ$8, AA$2, Cálculos!$I432:$QJ432) -> 0 | AB90: =SUMIF(Cálculos!$I$8:$QJ$8, AB$2, Cálculos!$I432:$QJ432) -> 0 | AC90: =SUMIF(Cálculos!$I$8:$QJ$8, AC$2, Cálculos!$I432:$QJ432) -> 0 | AD90: =SUMIF(Cálculos!$I$8:$QJ$8, AD$2, Cálculos!$I432:$QJ432) -> 0 | AE90: =SUMIF(Cálculos!$I$8:$QJ$8, AE$2, Cálculos!$I432:$QJ432) -> 0 | AF90: =SUMIF(Cálculos!$I$8:$QJ$8, AF$2, Cálculos!$I432:$QJ432) -> 0 | AG90: =SUMIF(Cálculos!$I$8:$QJ$8, AG$2, Cálculos!$I432:$QJ432) -> 0
C91: =Cálculos!C433 -> Utilização de Dívida Subordinada | D91: =Cálculos!E433 -> EUR | F91: 4047500 | G91: =SUMIF(Cálculos!$I$8:$QJ$8, G$2, Cálculos!$I433:$QJ433) -> 2023750 | H91: =SUMIF(Cálculos!$I$8:$QJ$8, H$2, Cálculos!$I433:$QJ433) -> 2023750 | I91: =SUMIF(Cálculos!$I$8:$QJ$8, I$2, Cálculos!$I433:$QJ433) -> 0 | J91: =SUMIF(Cálculos!$I$8:$QJ$8, J$2, Cálculos!$I433:$QJ433) -> 0 | K91: =SUMIF(Cálculos!$I$8:$QJ$8, K$2, Cálculos!$I433:$QJ433) -> 0 | L91: =SUMIF(Cálculos!$I$8:$QJ$8, L$2, Cálculos!$I433:$QJ433) -> 0 | M91: =SUMIF(Cálculos!$I$8:$QJ$8, M$2, Cálculos!$I433:$QJ433) -> 0 | N91: =SUMIF(Cálculos!$I$8:$QJ$8, N$2, Cálculos!$I433:$QJ433) -> 0 | O91: =SUMIF(Cálculos!$I$8:$QJ$8, O$2, Cálculos!$I433:$QJ433) -> 0 | P91: =SUMIF(Cálculos!$I$8:$QJ$8, P$2, Cálculos!$I433:$QJ433) -> 0 | Q91: =SUMIF(Cálculos!$I$8:$QJ$8, Q$2, Cálculos!$I433:$QJ433) -> 0 | R91: =SUMIF(Cálculos!$I$8:$QJ$8, R$2, Cálculos!$I433:$QJ433) -> 0 | S91: =SUMIF(Cálculos!$I$8:$QJ$8, S$2, Cálculos!$I433:$QJ433) -> 0 | T91: =SUMIF(Cálculos!$I$8:$QJ$8, T$2, Cálculos!$I433:$QJ433) -> 0 | U91: =SUMIF(Cálculos!$I$8:$QJ$8, U$2, Cálculos!$I433:$QJ433) -> 0 | V91: =SUMIF(Cálculos!$I$8:$QJ$8, V$2, Cálculos!$I433:$QJ433) -> 0 | W91: =SUMIF(Cálculos!$I$8:$QJ$8, W$2, Cálculos!$I433:$QJ433) -> 0 | X91: =SUMIF(Cálculos!$I$8:$QJ$8, X$2, Cálculos!$I433:$QJ433) -> 0 | Y91: =SUMIF(Cálculos!$I$8:$QJ$8, Y$2, Cálculos!$I433:$QJ433) -> 0 | Z91: =SUMIF(Cálculos!$I$8:$QJ$8, Z$2, Cálculos!$I433:$QJ433) -> 0 | AA91: =SUMIF(Cálculos!$I$8:$QJ$8, AA$2, Cálculos!$I433:$QJ433) -> 0 | AB91: =SUMIF(Cálculos!$I$8:$QJ$8, AB$2, Cálculos!$I433:$QJ433) -> 0 | AC91: =SUMIF(Cálculos!$I$8:$QJ$8, AC$2, Cálculos!$I433:$QJ433) -> 0 | AD91: =SUMIF(Cálculos!$I$8:$QJ$8, AD$2, Cálculos!$I433:$QJ433) -> 0 | AE91: =SUMIF(Cálculos!$I$8:$QJ$8, AE$2, Cálculos!$I433:$QJ433) -> 0 | AF91: =SUMIF(Cálculos!$I$8:$QJ$8, AF$2, Cálculos!$I433:$QJ433) -> 0 | AG91: =SUMIF(Cálculos!$I$8:$QJ$8, AG$2, Cálculos!$I433:$QJ433) -> 0
C92: =Cálculos!C434 -> Utilização do Empréstimo de Construção | D92: =Cálculos!E434 -> EUR | F92: 8095000 | G92: =SUMIF(Cálculos!$I$8:$QJ$8, G$2, Cálculos!$I434:$QJ434) -> 2175000 | H92: =SUMIF(Cálculos!$I$8:$QJ$8, H$2, Cálculos!$I434:$QJ434) -> 5920000 | I92: =SUMIF(Cálculos!$I$8:$QJ$8, I$2, Cálculos!$I434:$QJ434) -> 0 | J92: =SUMIF(Cálculos!$I$8:$QJ$8, J$2, Cálculos!$I434:$QJ434) -> 0 | K92: =SUMIF(Cálculos!$I$8:$QJ$8, K$2, Cálculos!$I434:$QJ434) -> 0 | L92: =SUMIF(Cálculos!$I$8:$QJ$8, L$2, Cálculos!$I434:$QJ434) -> 0 | M92: =SUMIF(Cálculos!$I$8:$QJ$8, M$2, Cálculos!$I434:$QJ434) -> 0 | N92: =SUMIF(Cálculos!$I$8:$QJ$8, N$2, Cálculos!$I434:$QJ434) -> 0 | O92: =SUMIF(Cálculos!$I$8:$QJ$8, O$2, Cálculos!$I434:$QJ434) -> 0 | P92: =SUMIF(Cálculos!$I$8:$QJ$8, P$2, Cálculos!$I434:$QJ434) -> 0 | Q92: =SUMIF(Cálculos!$I$8:$QJ$8, Q$2, Cálculos!$I434:$QJ434) -> 0 | R92: =SUMIF(Cálculos!$I$8:$QJ$8, R$2, Cálculos!$I434:$QJ434) -> 0 | S92: =SUMIF(Cálculos!$I$8:$QJ$8, S$2, Cálculos!$I434:$QJ434) -> 0 | T92: =SUMIF(Cálculos!$I$8:$QJ$8, T$2, Cálculos!$I434:$QJ434) -> 0 | U92: =SUMIF(Cálculos!$I$8:$QJ$8, U$2, Cálculos!$I434:$QJ434) -> 0 | V92: =SUMIF(Cálculos!$I$8:$QJ$8, V$2, Cálculos!$I434:$QJ434) -> 0 | W92: =SUMIF(Cálculos!$I$8:$QJ$8, W$2, Cálculos!$I434:$QJ434) -> 0 | X92: =SUMIF(Cálculos!$I$8:$QJ$8, X$2, Cálculos!$I434:$QJ434) -> 0 | Y92: =SUMIF(Cálculos!$I$8:$QJ$8, Y$2, Cálculos!$I434:$QJ434) -> 0 | Z92: =SUMIF(Cálculos!$I$8:$QJ$8, Z$2, Cálculos!$I434:$QJ434) -> 0 | AA92: =SUMIF(Cálculos!$I$8:$QJ$8, AA$2, Cálculos!$I434:$QJ434) -> 0 | AB92: =SUMIF(Cálculos!$I$8:$QJ$8, AB$2, Cálculos!$I434:$QJ434) -> 0 | AC92: =SUMIF(Cálculos!$I$8:$QJ$8, AC$2, Cálculos!$I434:$QJ434) -> 0 | AD92: =SUMIF(Cálculos!$I$8:$QJ$8, AD$2, Cálculos!$I434:$QJ434) -> 0 | AE92: =SUMIF(Cálculos!$I$8:$QJ$8, AE$2, Cálculos!$I434:$QJ434) -> 0 | AF92: =SUMIF(Cálculos!$I$8:$QJ$8, AF$2, Cálculos!$I434:$QJ434) -> 0 | AG92: =SUMIF(Cálculos!$I$8:$QJ$8, AG$2, Cálculos!$I434:$QJ434) -> 0
C93: =Cálculos!C435 -> Utilização do Empréstimo Operacional | D93: =Cálculos!E435 -> 0 | F93: 0 | G93: =SUMIF(Cálculos!$I$8:$QJ$8, G$2, Cálculos!$I435:$QJ435) -> 0 | H93: =SUMIF(Cálculos!$I$8:$QJ$8, H$2, Cálculos!$I435:$QJ435) -> 0 | I93: =SUMIF(Cálculos!$I$8:$QJ$8, I$2, Cálculos!$I435:$QJ435) -> 0 | J93: =SUMIF(Cálculos!$I$8:$QJ$8, J$2, Cálculos!$I435:$QJ435) -> 0 | K93: =SUMIF(Cálculos!$I$8:$QJ$8, K$2, Cálculos!$I435:$QJ435) -> 0 | L93: =SUMIF(Cálculos!$I$8:$QJ$8, L$2, Cálculos!$I435:$QJ435) -> 0 | M93: =SUMIF(Cálculos!$I$8:$QJ$8, M$2, Cálculos!$I435:$QJ435) -> 0 | N93: =SUMIF(Cálculos!$I$8:$QJ$8, N$2, Cálculos!$I435:$QJ435) -> 0 | O93: =SUMIF(Cálculos!$I$8:$QJ$8, O$2, Cálculos!$I435:$QJ435) -> 0 | P93: =SUMIF(Cálculos!$I$8:$QJ$8, P$2, Cálculos!$I435:$QJ435) -> 0 | Q93: =SUMIF(Cálculos!$I$8:$QJ$8, Q$2, Cálculos!$I435:$QJ435) -> 0 | R93: =SUMIF(Cálculos!$I$8:$QJ$8, R$2, Cálculos!$I435:$QJ435) -> 0 | S93: =SUMIF(Cálculos!$I$8:$QJ$8, S$2, Cálculos!$I435:$QJ435) -> 0 | T93: =SUMIF(Cálculos!$I$8:$QJ$8, T$2, Cálculos!$I435:$QJ435) -> 0 | U93: =SUMIF(Cálculos!$I$8:$QJ$8, U$2, Cálculos!$I435:$QJ435) -> 0 | V93: =SUMIF(Cálculos!$I$8:$QJ$8, V$2, Cálculos!$I435:$QJ435) -> 0 | W93: =SUMIF(Cálculos!$I$8:$QJ$8, W$2, Cálculos!$I435:$QJ435) -> 0 | X93: =SUMIF(Cálculos!$I$8:$QJ$8, X$2, Cálculos!$I435:$QJ435) -> 0 | Y93: =SUMIF(Cálculos!$I$8:$QJ$8, Y$2, Cálculos!$I435:$QJ435) -> 0 | Z93: =SUMIF(Cálculos!$I$8:$QJ$8, Z$2, Cálculos!$I435:$QJ435) -> 0 | AA93: =SUMIF(Cálculos!$I$8:$QJ$8, AA$2, Cálculos!$I435:$QJ435) -> 0 | AB93: =SUMIF(Cálculos!$I$8:$QJ$8, AB$2, Cálculos!$I435:$QJ435) -> 0 | AC93: =SUMIF(Cálculos!$I$8:$QJ$8, AC$2, Cálculos!$I435:$QJ435) -> 0 | AD93: =SUMIF(Cálculos!$I$8:$QJ$8, AD$2, Cálculos!$I435:$QJ435) -> 0 | AE93: =SUMIF(Cálculos!$I$8:$QJ$8, AE$2, Cálculos!$I435:$QJ435) -> 0 | AF93: =SUMIF(Cálculos!$I$8:$QJ$8, AF$2, Cálculos!$I435:$QJ435) -> 0 | AG93: =SUMIF(Cálculos!$I$8:$QJ$8, AG$2, Cálculos!$I435:$QJ435) -> 0
C94: =Cálculos!C436 -> Reembolso de Capital – Dívida Subordinada | D94: =Cálculos!E436 -> EUR | F94: -4047500 | G94: =SUMIF(Cálculos!$I$8:$QJ$8, G$2, Cálculos!$I436:$QJ436) -> 0 | H94: =SUMIF(Cálculos!$I$8:$QJ$8, H$2, Cálculos!$I436:$QJ436) -> 0 | I94: =SUMIF(Cálculos!$I$8:$QJ$8, I$2, Cálculos!$I436:$QJ436) -> -50064.11563 | J94: =SUMIF(Cálculos!$I$8:$QJ$8, J$2, Cálculos!$I436:$QJ436) -> -74716.25064 | K94: =SUMIF(Cálculos!$I$8:$QJ$8, K$2, Cálculos!$I436:$QJ436) -> -84192.14138 | L94: =SUMIF(Cálculos!$I$8:$QJ$8, L$2, Cálculos!$I436:$QJ436) -> -94869.81225 | M94: =SUMIF(Cálculos!$I$8:$QJ$8, M$2, Cálculos!$I436:$QJ436) -> -106901.679 | N94: =SUMIF(Cálculos!$I$8:$QJ$8, N$2, Cálculos!$I436:$QJ436) -> -120459.4877 | O94: =SUMIF(Cálculos!$I$8:$QJ$8, O$2, Cálculos!$I436:$QJ436) -> -135736.7659 | P94: =SUMIF(Cálculos!$I$8:$QJ$8, P$2, Cálculos!$I436:$QJ436) -> -152951.5853 | Q94: =SUMIF(Cálculos!$I$8:$QJ$8, Q$2, Cálculos!$I436:$QJ436) -> -172349.6747 | R94: =SUMIF(Cálculos!$I$8:$QJ$8, R$2, Cálculos!$I436:$QJ436) -> -194207.9274 | S94: =SUMIF(Cálculos!$I$8:$QJ$8, S$2, Cálculos!$I436:$QJ436) -> -218838.3536 | T94: =SUMIF(Cálculos!$I$8:$QJ$8, T$2, Cálculos!$I436:$QJ436) -> -246592.5344 | U94: =SUMIF(Cálculos!$I$8:$QJ$8, U$2, Cálculos!$I436:$QJ436) -> -277866.64 | V94: =SUMIF(Cálculos!$I$8:$QJ$8, V$2, Cálculos!$I436:$QJ436) -> -313107.085 | W94: =SUMIF(Cálculos!$I$8:$QJ$8, W$2, Cálculos!$I436:$QJ436) -> -352816.9005 | X94: =SUMIF(Cálculos!$I$8:$QJ$8, X$2, Cálculos!$I436:$QJ436) -> -397562.9146 | Y94: =SUMIF(Cálculos!$I$8:$QJ$8, Y$2, Cálculos!$I436:$QJ436) -> -447983.8432 | Z94: =SUMIF(Cálculos!$I$8:$QJ$8, Z$2, Cálculos!$I436:$QJ436) -> -504799.4076 | AA94: =SUMIF(Cálculos!$I$8:$QJ$8, AA$2, Cálculos!$I436:$QJ436) -> -568820.6077 | AB94: =SUMIF(Cálculos!$I$8:$QJ$8, AB$2, Cálculos!$I436:$QJ436) -> -640961.2984 | AC94: =SUMIF(Cálculos!$I$8:$QJ$8, AC$2, Cálculos!$I436:$QJ436) -> -722251.2344 | AD94: =SUMIF(Cálculos!$I$8:$QJ$8, AD$2, Cálculos!$I436:$QJ436) -> -813850.7689 | AE94: =SUMIF(Cálculos!$I$8:$QJ$8, AE$2, Cálculos!$I436:$QJ436) -> 2644401.028 | AF94: =SUMIF(Cálculos!$I$8:$QJ$8, AF$2, Cálculos!$I436:$QJ436) -> 0 | AG94: =SUMIF(Cálculos!$I$8:$QJ$8, AG$2, Cálculos!$I436:$QJ436) -> 0
C95: =Cálculos!C437 -> Reembolso do Empréstimo de Construção | D95: =Cálculos!E437 -> EUR | F95: 0 | G95: =SUMIF(Cálculos!$I$8:$QJ$8, G$2, Cálculos!$I437:$QJ437) -> 0 | H95: =SUMIF(Cálculos!$I$8:$QJ$8, H$2, Cálculos!$I437:$QJ437) -> 0 | I95: =SUMIF(Cálculos!$I$8:$QJ$8, I$2, Cálculos!$I437:$QJ437) -> 0 | J95: =SUMIF(Cálculos!$I$8:$QJ$8, J$2, Cálculos!$I437:$QJ437) -> 0 | K95: =SUMIF(Cálculos!$I$8:$QJ$8, K$2, Cálculos!$I437:$QJ437) -> 0 | L95: =SUMIF(Cálculos!$I$8:$QJ$8, L$2, Cálculos!$I437:$QJ437) -> 0 | M95: =SUMIF(Cálculos!$I$8:$QJ$8, M$2, Cálculos!$I437:$QJ437) -> 0 | N95: =SUMIF(Cálculos!$I$8:$QJ$8, N$2, Cálculos!$I437:$QJ437) -> 0 | O95: =SUMIF(Cálculos!$I$8:$QJ$8, O$2, Cálculos!$I437:$QJ437) -> 0 | P95: =SUMIF(Cálculos!$I$8:$QJ$8, P$2, Cálculos!$I437:$QJ437) -> 0 | Q95: =SUMIF(Cálculos!$I$8:$QJ$8, Q$2, Cálculos!$I437:$QJ437) -> 0 | R95: =SUMIF(Cálculos!$I$8:$QJ$8, R$2, Cálculos!$I437:$QJ437) -> 0 | S95: =SUMIF(Cálculos!$I$8:$QJ$8, S$2, Cálculos!$I437:$QJ437) -> 0 | T95: =SUMIF(Cálculos!$I$8:$QJ$8, T$2, Cálculos!$I437:$QJ437) -> 0 | U95: =SUMIF(Cálculos!$I$8:$QJ$8, U$2, Cálculos!$I437:$QJ437) -> 0 | V95: =SUMIF(Cálculos!$I$8:$QJ$8, V$2, Cálculos!$I437:$QJ437) -> 0 | W95: =SUMIF(Cálculos!$I$8:$QJ$8, W$2, Cálculos!$I437:$QJ437) -> 0 | X95: =SUMIF(Cálculos!$I$8:$QJ$8, X$2, Cálculos!$I437:$QJ437) -> 0 | Y95: =SUMIF(Cálculos!$I$8:$QJ$8, Y$2, Cálculos!$I437:$QJ437) -> 0 | Z95: =SUMIF(Cálculos!$I$8:$QJ$8, Z$2, Cálculos!$I437:$QJ437) -> 0 | AA95: =SUMIF(Cálculos!$I$8:$QJ$8, AA$2, Cálculos!$I437:$QJ437) -> 0 | AB95: =SUMIF(Cálculos!$I$8:$QJ$8, AB$2, Cálculos!$I437:$QJ437) -> 0 | AC95: =SUMIF(Cálculos!$I$8:$QJ$8, AC$2, Cálculos!$I437:$QJ437) -> 0 | AD95: =SUMIF(Cálculos!$I$8:$QJ$8, AD$2, Cálculos!$I437:$QJ437) -> 0 | AE95: =SUMIF(Cálculos!$I$8:$QJ$8, AE$2, Cálculos!$I437:$QJ437) -> 0 | AF95: =SUMIF(Cálculos!$I$8:$QJ$8, AF$2, Cálculos!$I437:$QJ437) -> 0 | AG95: =SUMIF(Cálculos!$I$8:$QJ$8, AG$2, Cálculos!$I437:$QJ437) -> 0
C96: =Cálculos!C438 -> Reembolso do Empréstimo Operacional | D96: =Cálculos!E438 -> EUR | F96: -7918498.045 | G96: =SUMIF(Cálculos!$I$8:$QJ$8, G$2, Cálculos!$I438:$QJ438) -> 0 | H96: =SUMIF(Cálculos!$I$8:$QJ$8, H$2, Cálculos!$I438:$QJ438) -> 0 | I96: =SUMIF(Cálculos!$I$8:$QJ$8, I$2, Cálculos!$I438:$QJ438) -> -171232.0409 | J96: =SUMIF(Cálculos!$I$8:$QJ$8, J$2, Cálculos!$I438:$QJ438) -> -291457.783 | K96: =SUMIF(Cálculos!$I$8:$QJ$8, K$2, Cálculos!$I438:$QJ438) -> -307898.293 | L96: =SUMIF(Cálculos!$I$8:$QJ$8, L$2, Cálculos!$I438:$QJ438) -> -325266.1769 | M96: =SUMIF(Cálculos!$I$8:$QJ$8, M$2, Cálculos!$I438:$QJ438) -> -343613.746 | N96: =SUMIF(Cálculos!$I$8:$QJ$8, N$2, Cálculos!$I438:$QJ438) -> -362996.2622 | O96: =SUMIF(Cálculos!$I$8:$QJ$8, O$2, Cálculos!$I438:$QJ438) -> -383472.1047 | P96: =SUMIF(Cálculos!$I$8:$QJ$8, P$2, Cálculos!$I438:$QJ438) -> -405102.9456 | Q96: =SUMIF(Cálculos!$I$8:$QJ$8, Q$2, Cálculos!$I438:$QJ438) -> -427953.936 | R96: =SUMIF(Cálculos!$I$8:$QJ$8, R$2, Cálculos!$I438:$QJ438) -> -452093.9019 | S96: =SUMIF(Cálculos!$I$8:$QJ$8, S$2, Cálculos!$I438:$QJ438) -> -477595.5516 | T96: =SUMIF(Cálculos!$I$8:$QJ$8, T$2, Cálculos!$I438:$QJ438) -> -504535.6948 | U96: =SUMIF(Cálculos!$I$8:$QJ$8, U$2, Cálculos!$I438:$QJ438) -> -532995.4738 | V96: =SUMIF(Cálculos!$I$8:$QJ$8, V$2, Cálculos!$I438:$QJ438) -> -563060.6081 | W96: =SUMIF(Cálculos!$I$8:$QJ$8, W$2, Cálculos!$I438:$QJ438) -> -594821.6523 | X96: =SUMIF(Cálculos!$I$8:$QJ$8, X$2, Cálculos!$I438:$QJ438) -> -628374.269 | Y96: =SUMIF(Cálculos!$I$8:$QJ$8, Y$2, Cálculos!$I438:$QJ438) -> -663819.517 | Z96: =SUMIF(Cálculos!$I$8:$QJ$8, Z$2, Cálculos!$I438:$QJ438) -> -482208.0883 | AA96: =SUMIF(Cálculos!$I$8:$QJ$8, AA$2, Cálculos!$I438:$QJ438) -> 0 | AB96: =SUMIF(Cálculos!$I$8:$QJ$8, AB$2, Cálculos!$I438:$QJ438) -> 0 | AC96: =SUMIF(Cálculos!$I$8:$QJ$8, AC$2, Cálculos!$I438:$QJ438) -> 0 | AD96: =SUMIF(Cálculos!$I$8:$QJ$8, AD$2, Cálculos!$I438:$QJ438) -> 0 | AE96: =SUMIF(Cálculos!$I$8:$QJ$8, AE$2, Cálculos!$I438:$QJ438) -> 0 | AF96: =SUMIF(Cálculos!$I$8:$QJ$8, AF$2, Cálculos!$I438:$QJ438) -> 0 | AG96: =SUMIF(Cálculos!$I$8:$QJ$8, AG$2, Cálculos!$I438:$QJ438) -> 0
C97: =Cálculos!C439 -> Pagamento de Juros – Dívida Sénior | D97: =Cálculos!E439 -> EUR | F97: -4700943.598 | G97: =SUMIF(Cálculos!$I$8:$QJ$8, G$2, Cálculos!$I439:$QJ439) -> 0 | H97: =SUMIF(Cálculos!$I$8:$QJ$8, H$2, Cálculos!$I439:$QJ439) -> 0 | I97: =SUMIF(Cálculos!$I$8:$QJ$8, I$2, Cálculos!$I439:$QJ439) -> -371239.6933 | J97: =SUMIF(Cálculos!$I$8:$QJ$8, J$2, Cálculos!$I439:$QJ439) -> -431837.8626 | K97: =SUMIF(Cálculos!$I$8:$QJ$8, K$2, Cálculos!$I439:$QJ439) -> -415397.3527 | L97: =SUMIF(Cálculos!$I$8:$QJ$8, L$2, Cálculos!$I439:$QJ439) -> -398029.4687 | M97: =SUMIF(Cálculos!$I$8:$QJ$8, M$2, Cálculos!$I439:$QJ439) -> -379681.8996 | N97: =SUMIF(Cálculos!$I$8:$QJ$8, N$2, Cálculos!$I439:$QJ439) -> -360299.3834 | O97: =SUMIF(Cálculos!$I$8:$QJ$8, O$2, Cálculos!$I439:$QJ439) -> -339823.541 | P97: =SUMIF(Cálculos!$I$8:$QJ$8, P$2, Cálculos!$I439:$QJ439) -> -318192.7 | Q97: =SUMIF(Cálculos!$I$8:$QJ$8, Q$2, Cálculos!$I439:$QJ439) -> -295341.7096 | R97: =SUMIF(Cálculos!$I$8:$QJ$8, R$2, Cálculos!$I439:$QJ439) -> -271201.7437 | S97: =SUMIF(Cálculos!$I$8:$QJ$8, S$2, Cálculos!$I439:$QJ439) -> -245700.094 | T97: =SUMIF(Cálculos!$I$8:$QJ$8, T$2, Cálculos!$I439:$QJ439) -> -218759.9508 | U97: =SUMIF(Cálculos!$I$8:$QJ$8, U$2, Cálculos!$I439:$QJ439) -> -190300.1718 | V97: =SUMIF(Cálculos!$I$8:$QJ$8, V$2, Cálculos!$I439:$QJ439) -> -160235.0375 | W97: =SUMIF(Cálculos!$I$8:$QJ$8, W$2, Cálculos!$I439:$QJ439) -> -128473.9934 | X97: =SUMIF(Cálculos!$I$8:$QJ$8, X$2, Cálculos!$I439:$QJ439) -> -94921.37666 | Y97: =SUMIF(Cálculos!$I$8:$QJ$8, Y$2, Cálculos!$I439:$QJ439) -> -59476.12863 | Z97: =SUMIF(Cálculos!$I$8:$QJ$8, Z$2, Cálculos!$I439:$QJ439) -> -22031.48999 | AA97: =SUMIF(Cálculos!$I$8:$QJ$8, AA$2, Cálculos!$I439:$QJ439) -> 0 | AB97: =SUMIF(Cálculos!$I$8:$QJ$8, AB$2, Cálculos!$I439:$QJ439) -> 0 | AC97: =SUMIF(Cálculos!$I$8:$QJ$8, AC$2, Cálculos!$I439:$QJ439) -> 0 | AD97: =SUMIF(Cálculos!$I$8:$QJ$8, AD$2, Cálculos!$I439:$QJ439) -> 0 | AE97: =SUMIF(Cálculos!$I$8:$QJ$8, AE$2, Cálculos!$I439:$QJ439) -> 0 | AF97: =SUMIF(Cálculos!$I$8:$QJ$8, AF$2, Cálculos!$I439:$QJ439) -> 0 | AG97: =SUMIF(Cálculos!$I$8:$QJ$8, AG$2, Cálculos!$I439:$QJ439) -> 0
C98: =Cálculos!C440 -> Pagamento de Juros – Dívida Subordinada | D98: =Cálculos!E440 -> EUR | F98: -5079271.693 | G98: =SUMIF(Cálculos!$I$8:$QJ$8, G$2, Cálculos!$I440:$QJ440) -> 0 | H98: =SUMIF(Cálculos!$I$8:$QJ$8, H$2, Cálculos!$I440:$QJ440) -> 0 | I98: =SUMIF(Cálculos!$I$8:$QJ$8, I$2, Cálculos!$I440:$QJ440) -> -408156.9019 | J98: =SUMIF(Cálculos!$I$8:$QJ$8, J$2, Cálculos!$I440:$QJ440) -> -481193.7094 | K98: =SUMIF(Cálculos!$I$8:$QJ$8, K$2, Cálculos!$I440:$QJ440) -> -471717.8187 | L98: =SUMIF(Cálculos!$I$8:$QJ$8, L$2, Cálculos!$I440:$QJ440) -> -461040.1478 | M98: =SUMIF(Cálculos!$I$8:$QJ$8, M$2, Cálculos!$I440:$QJ440) -> -449008.281 | N98: =SUMIF(Cálculos!$I$8:$QJ$8, N$2, Cálculos!$I440:$QJ440) -> -435450.4723 | O98: =SUMIF(Cálculos!$I$8:$QJ$8, O$2, Cálculos!$I440:$QJ440) -> -420173.1942 | P98: =SUMIF(Cálculos!$I$8:$QJ$8, P$2, Cálculos!$I440:$QJ440) -> -402958.3747 | Q98: =SUMIF(Cálculos!$I$8:$QJ$8, Q$2, Cálculos!$I440:$QJ440) -> -383560.2853 | R98: =SUMIF(Cálculos!$I$8:$QJ$8, R$2, Cálculos!$I440:$QJ440) -> -361702.0326 | S98: =SUMIF(Cálculos!$I$8:$QJ$8, S$2, Cálculos!$I440:$QJ440) -> -337071.6064 | T98: =SUMIF(Cálculos!$I$8:$QJ$8, T$2, Cálculos!$I440:$QJ440) -> -309317.4256 | U98: =SUMIF(Cálculos!$I$8:$QJ$8, U$2, Cálculos!$I440:$QJ440) -> -278043.32 | V98: =SUMIF(Cálculos!$I$8:$QJ$8, V$2, Cálculos!$I440:$QJ440) -> -242802.875 | W98: =SUMIF(Cálculos!$I$8:$QJ$8, W$2, Cálculos!$I440:$QJ440) -> -203093.0595 | X98: =SUMIF(Cálculos!$I$8:$QJ$8, X$2, Cálculos!$I440:$QJ440) -> -158347.0455 | Y98: =SUMIF(Cálculos!$I$8:$QJ$8, Y$2, Cálculos!$I440:$QJ440) -> -107926.1169 | Z98: =SUMIF(Cálculos!$I$8:$QJ$8, Z$2, Cálculos!$I440:$QJ440) -> -51110.55245 | AA98: =SUMIF(Cálculos!$I$8:$QJ$8, AA$2, Cálculos!$I440:$QJ440) -> 12910.64763 | AB98: =SUMIF(Cálculos!$I$8:$QJ$8, AB$2, Cálculos!$I440:$QJ440) -> 85051.33834 | AC98: =SUMIF(Cálculos!$I$8:$QJ$8, AC$2, Cálculos!$I440:$QJ440) -> 166341.2743 | AD98: =SUMIF(Cálculos!$I$8:$QJ$8, AD$2, Cálculos!$I440:$QJ440) -> 257940.8089 | AE98: =SUMIF(Cálculos!$I$8:$QJ$8, AE$2, Cálculos!$I440:$QJ440) -> 361157.4572 | AF98: =SUMIF(Cálculos!$I$8:$QJ$8, AF$2, Cálculos!$I440:$QJ440) -> 0 | AG98: =SUMIF(Cálculos!$I$8:$QJ$8, AG$2, Cálculos!$I440:$QJ440) -> 0
C99: =Cálculos!C441 -> Dividendos | D99: =Cálculos!E441 -> EUR | F99: 0 | G99: =SUMIF(Cálculos!$I$8:$QJ$8, G$2, Cálculos!$I441:$QJ441) -> 0 | H99: =SUMIF(Cálculos!$I$8:$QJ$8, H$2, Cálculos!$I441:$QJ441) -> 0 | I99: =SUMIF(Cálculos!$I$8:$QJ$8, I$2, Cálculos!$I441:$QJ441) -> 0 | J99: =SUMIF(Cálculos!$I$8:$QJ$8, J$2, Cálculos!$I441:$QJ441) -> 0 | K99: =SUMIF(Cálculos!$I$8:$QJ$8, K$2, Cálculos!$I441:$QJ441) -> 0 | L99: =SUMIF(Cálculos!$I$8:$QJ$8, L$2, Cálculos!$I441:$QJ441) -> 0 | M99: =SUMIF(Cálculos!$I$8:$QJ$8, M$2, Cálculos!$I441:$QJ441) -> 0 | N99: =SUMIF(Cálculos!$I$8:$QJ$8, N$2, Cálculos!$I441:$QJ441) -> 0 | O99: =SUMIF(Cálculos!$I$8:$QJ$8, O$2, Cálculos!$I441:$QJ441) -> 0 | P99: =SUMIF(Cálculos!$I$8:$QJ$8, P$2, Cálculos!$I441:$QJ441) -> 0 | Q99: =SUMIF(Cálculos!$I$8:$QJ$8, Q$2, Cálculos!$I441:$QJ441) -> 0 | R99: =SUMIF(Cálculos!$I$8:$QJ$8, R$2, Cálculos!$I441:$QJ441) -> 0 | S99: =SUMIF(Cálculos!$I$8:$QJ$8, S$2, Cálculos!$I441:$QJ441) -> 0 | T99: =SUMIF(Cálculos!$I$8:$QJ$8, T$2, Cálculos!$I441:$QJ441) -> 0 | U99: =SUMIF(Cálculos!$I$8:$QJ$8, U$2, Cálculos!$I441:$QJ441) -> 0 | V99: =SUMIF(Cálculos!$I$8:$QJ$8, V$2, Cálculos!$I441:$QJ441) -> 0 | W99: =SUMIF(Cálculos!$I$8:$QJ$8, W$2, Cálculos!$I441:$QJ441) -> 0 | X99: =SUMIF(Cálculos!$I$8:$QJ$8, X$2, Cálculos!$I441:$QJ441) -> 0 | Y99: =SUMIF(Cálculos!$I$8:$QJ$8, Y$2, Cálculos!$I441:$QJ441) -> 0 | Z99: =SUMIF(Cálculos!$I$8:$QJ$8, Z$2, Cálculos!$I441:$QJ441) -> 0 | AA99: =SUMIF(Cálculos!$I$8:$QJ$8, AA$2, Cálculos!$I441:$QJ441) -> 0 | AB99: =SUMIF(Cálculos!$I$8:$QJ$8, AB$2, Cálculos!$I441:$QJ441) -> 0 | AC99: =SUMIF(Cálculos!$I$8:$QJ$8, AC$2, Cálculos!$I441:$QJ441) -> 0 | AD99: =SUMIF(Cálculos!$I$8:$QJ$8, AD$2, Cálculos!$I441:$QJ441) -> 0 | AE99: =SUMIF(Cálculos!$I$8:$QJ$8, AE$2, Cálculos!$I441:$QJ441) -> 0 | AF99: =SUMIF(Cálculos!$I$8:$QJ$8, AF$2, Cálculos!$I441:$QJ441) -> 0 | AG99: =SUMIF(Cálculos!$I$8:$QJ$8, AG$2, Cálculos!$I441:$QJ441) -> 0
C100: =Cálculos!C442 -> Variação da DSRA | D100: =Cálculos!E442 -> EUR | F100: 0 | G100: =SUMIF(Cálculos!$I$8:$QJ$8, G$2, Cálculos!$I442:$QJ442) -> 0 | H100: =SUMIF(Cálculos!$I$8:$QJ$8, H$2, Cálculos!$I442:$QJ442) -> -180823.9114 | I100: =SUMIF(Cálculos!$I$8:$QJ$8, I$2, Cálculos!$I442:$QJ442) -> -180823.9114 | J100: =SUMIF(Cálculos!$I$8:$QJ$8, J$2, Cálculos!$I442:$QJ442) -> 0 | K100: =SUMIF(Cálculos!$I$8:$QJ$8, K$2, Cálculos!$I442:$QJ442) -> 0 | L100: =SUMIF(Cálculos!$I$8:$QJ$8, L$2, Cálculos!$I442:$QJ442) -> 0 | M100: =SUMIF(Cálculos!$I$8:$QJ$8, M$2, Cálculos!$I442:$QJ442) -> 0 | N100: =SUMIF(Cálculos!$I$8:$QJ$8, N$2, Cálculos!$I442:$QJ442) -> 0 | O100: =SUMIF(Cálculos!$I$8:$QJ$8, O$2, Cálculos!$I442:$QJ442) -> 0 | P100: =SUMIF(Cálculos!$I$8:$QJ$8, P$2, Cálculos!$I442:$QJ442) -> 0 | Q100: =SUMIF(Cálculos!$I$8:$QJ$8, Q$2, Cálculos!$I442:$QJ442) -> 0 | R100: =SUMIF(Cálculos!$I$8:$QJ$8, R$2, Cálculos!$I442:$QJ442) -> 0 | S100: =SUMIF(Cálculos!$I$8:$QJ$8, S$2, Cálculos!$I442:$QJ442) -> 0 | T100: =SUMIF(Cálculos!$I$8:$QJ$8, T$2, Cálculos!$I442:$QJ442) -> 0 | U100: =SUMIF(Cálculos!$I$8:$QJ$8, U$2, Cálculos!$I442:$QJ442) -> 0 | V100: =SUMIF(Cálculos!$I$8:$QJ$8, V$2, Cálculos!$I442:$QJ442) -> 0 | W100: =SUMIF(Cálculos!$I$8:$QJ$8, W$2, Cálculos!$I442:$QJ442) -> 0 | X100: =SUMIF(Cálculos!$I$8:$QJ$8, X$2, Cálculos!$I442:$QJ442) -> 0 | Y100: =SUMIF(Cálculos!$I$8:$QJ$8, Y$2, Cálculos!$I442:$QJ442) -> 0 | Z100: =SUMIF(Cálculos!$I$8:$QJ$8, Z$2, Cálculos!$I442:$QJ442) -> 361647.8228 | AA100: =SUMIF(Cálculos!$I$8:$QJ$8, AA$2, Cálculos!$I442:$QJ442) -> 0 | AB100: =SUMIF(Cálculos!$I$8:$QJ$8, AB$2, Cálculos!$I442:$QJ442) -> 0 | AC100: =SUMIF(Cálculos!$I$8:$QJ$8, AC$2, Cálculos!$I442:$QJ442) -> 0 | AD100: =SUMIF(Cálculos!$I$8:$QJ$8, AD$2, Cálculos!$I442:$QJ442) -> 0 | AE100: =SUMIF(Cálculos!$I$8:$QJ$8, AE$2, Cálculos!$I442:$QJ442) -> 0 | AF100: =SUMIF(Cálculos!$I$8:$QJ$8, AF$2, Cálculos!$I442:$QJ442) -> 0 | AG100: =SUMIF(Cálculos!$I$8:$QJ$8, AG$2, Cálculos!$I442:$QJ442) -> 0
C101: =Cálculos!C443 -> Variação da MMRA | D101: =Cálculos!E443 -> EUR | F101: 0 | G101: =SUMIF(Cálculos!$I$8:$QJ$8, G$2, Cálculos!$I443:$QJ443) -> 0 | H101: =SUMIF(Cálculos!$I$8:$QJ$8, H$2, Cálculos!$I443:$QJ443) -> 0 | I101: =SUMIF(Cálculos!$I$8:$QJ$8, I$2, Cálculos!$I443:$QJ443) -> 0 | J101: =SUMIF(Cálculos!$I$8:$QJ$8, J$2, Cálculos!$I443:$QJ443) -> 0 | K101: =SUMIF(Cálculos!$I$8:$QJ$8, K$2, Cálculos!$I443:$QJ443) -> 0 | L101: =SUMIF(Cálculos!$I$8:$QJ$8, L$2, Cálculos!$I443:$QJ443) -> 0 | M101: =SUMIF(Cálculos!$I$8:$QJ$8, M$2, Cálculos!$I443:$QJ443) -> 0 | N101: =SUMIF(Cálculos!$I$8:$QJ$8, N$2, Cálculos!$I443:$QJ443) -> 0 | O101: =SUMIF(Cálculos!$I$8:$QJ$8, O$2, Cálculos!$I443:$QJ443) -> 0 | P101: =SUMIF(Cálculos!$I$8:$QJ$8, P$2, Cálculos!$I443:$QJ443) -> 0 | Q101: =SUMIF(Cálculos!$I$8:$QJ$8, Q$2, Cálculos!$I443:$QJ443) -> 0 | R101: =SUMIF(Cálculos!$I$8:$QJ$8, R$2, Cálculos!$I443:$QJ443) -> 0 | S101: =SUMIF(Cálculos!$I$8:$QJ$8, S$2, Cálculos!$I443:$QJ443) -> 0 | T101: =SUMIF(Cálculos!$I$8:$QJ$8, T$2, Cálculos!$I443:$QJ443) -> 0 | U101: =SUMIF(Cálculos!$I$8:$QJ$8, U$2, Cálculos!$I443:$QJ443) -> 0 | V101: =SUMIF(Cálculos!$I$8:$QJ$8, V$2, Cálculos!$I443:$QJ443) -> 0 | W101: =SUMIF(Cálculos!$I$8:$QJ$8, W$2, Cálculos!$I443:$QJ443) -> 0 | X101: =SUMIF(Cálculos!$I$8:$QJ$8, X$2, Cálculos!$I443:$QJ443) -> 0 | Y101: =SUMIF(Cálculos!$I$8:$QJ$8, Y$2, Cálculos!$I443:$QJ443) -> 0 | Z101: =SUMIF(Cálculos!$I$8:$QJ$8, Z$2, Cálculos!$I443:$QJ443) -> 0 | AA101: =SUMIF(Cálculos!$I$8:$QJ$8, AA$2, Cálculos!$I443:$QJ443) -> 0 | AB101: =SUMIF(Cálculos!$I$8:$QJ$8, AB$2, Cálculos!$I443:$QJ443) -> 0 | AC101: =SUMIF(Cálculos!$I$8:$QJ$8, AC$2, Cálculos!$I443:$QJ443) -> 0 | AD101: =SUMIF(Cálculos!$I$8:$QJ$8, AD$2, Cálculos!$I443:$QJ443) -> 0 | AE101: =SUMIF(Cálculos!$I$8:$QJ$8, AE$2, Cálculos!$I443:$QJ443) -> 0 | AF101: =SUMIF(Cálculos!$I$8:$QJ$8, AF$2, Cálculos!$I443:$QJ443) -> 0 | AG101: =SUMIF(Cálculos!$I$8:$QJ$8, AG$2, Cálculos!$I443:$QJ443) -> 0
C102: =Cálculos!C444 -> Financiamento Inicial do Fundo de Maneio | D102: =Cálculos!E444 -> EUR | F102: 0 | G102: =SUMIF(Cálculos!$I$8:$QJ$8, G$2, Cálculos!$I444:$QJ444) -> 0 | H102: =SUMIF(Cálculos!$I$8:$QJ$8, H$2, Cálculos!$I444:$QJ444) -> 0 | I102: =SUMIF(Cálculos!$I$8:$QJ$8, I$2, Cálculos!$I444:$QJ444) -> 0 | J102: =SUMIF(Cálculos!$I$8:$QJ$8, J$2, Cálculos!$I444:$QJ444) -> 0 | K102: =SUMIF(Cálculos!$I$8:$QJ$8, K$2, Cálculos!$I444:$QJ444) -> 0 | L102: =SUMIF(Cálculos!$I$8:$QJ$8, L$2, Cálculos!$I444:$QJ444) -> 0 | M102: =SUMIF(Cálculos!$I$8:$QJ$8, M$2, Cálculos!$I444:$QJ444) -> 0 | N102: =SUMIF(Cálculos!$I$8:$QJ$8, N$2, Cálculos!$I444:$QJ444) -> 0 | O102: =SUMIF(Cálculos!$I$8:$QJ$8, O$2, Cálculos!$I444:$QJ444) -> 0 | P102: =SUMIF(Cálculos!$I$8:$QJ$8, P$2, Cálculos!$I444:$QJ444) -> 0 | Q102: =SUMIF(Cálculos!$I$8:$QJ$8, Q$2, Cálculos!$I444:$QJ444) -> 0 | R102: =SUMIF(Cálculos!$I$8:$QJ$8, R$2, Cálculos!$I444:$QJ444) -> 0 | S102: =SUMIF(Cálculos!$I$8:$QJ$8, S$2, Cálculos!$I444:$QJ444) -> 0 | T102: =SUMIF(Cálculos!$I$8:$QJ$8, T$2, Cálculos!$I444:$QJ444) -> 0 | U102: =SUMIF(Cálculos!$I$8:$QJ$8, U$2, Cálculos!$I444:$QJ444) -> 0 | V102: =SUMIF(Cálculos!$I$8:$QJ$8, V$2, Cálculos!$I444:$QJ444) -> 0 | W102: =SUMIF(Cálculos!$I$8:$QJ$8, W$2, Cálculos!$I444:$QJ444) -> 0 | X102: =SUMIF(Cálculos!$I$8:$QJ$8, X$2, Cálculos!$I444:$QJ444) -> 0 | Y102: =SUMIF(Cálculos!$I$8:$QJ$8, Y$2, Cálculos!$I444:$QJ444) -> 0 | Z102: =SUMIF(Cálculos!$I$8:$QJ$8, Z$2, Cálculos!$I444:$QJ444) -> 0 | AA102: =SUMIF(Cálculos!$I$8:$QJ$8, AA$2, Cálculos!$I444:$QJ444) -> 0 | AB102: =SUMIF(Cálculos!$I$8:$QJ$8, AB$2, Cálculos!$I444:$QJ444) -> 0 | AC102: =SUMIF(Cálculos!$I$8:$QJ$8, AC$2, Cálculos!$I444:$QJ444) -> 0 | AD102: =SUMIF(Cálculos!$I$8:$QJ$8, AD$2, Cálculos!$I444:$QJ444) -> 0 | AE102: =SUMIF(Cálculos!$I$8:$QJ$8, AE$2, Cálculos!$I444:$QJ444) -> 0 | AF102: =SUMIF(Cálculos!$I$8:$QJ$8, AF$2, Cálculos!$I444:$QJ444) -> 0 | AG102: =SUMIF(Cálculos!$I$8:$QJ$8, AG$2, Cálculos!$I444:$QJ444) -> 0
C103: =Cálculos!C445 -> Juros das Contas de Reserva | D103: =Cálculos!E445 -> EUR | F103: 0 | G103: =SUMIF(Cálculos!$I$8:$QJ$8, G$2, Cálculos!$I445:$QJ445) -> 0 | H103: =SUMIF(Cálculos!$I$8:$QJ$8, H$2, Cálculos!$I445:$QJ445) -> 0 | I103: =SUMIF(Cálculos!$I$8:$QJ$8, I$2, Cálculos!$I445:$QJ445) -> 0 | J103: =SUMIF(Cálculos!$I$8:$QJ$8, J$2, Cálculos!$I445:$QJ445) -> 0 | K103: =SUMIF(Cálculos!$I$8:$QJ$8, K$2, Cálculos!$I445:$QJ445) -> 0 | L103: =SUMIF(Cálculos!$I$8:$QJ$8, L$2, Cálculos!$I445:$QJ445) -> 0 | M103: =SUMIF(Cálculos!$I$8:$QJ$8, M$2, Cálculos!$I445:$QJ445) -> 0 | N103: =SUMIF(Cálculos!$I$8:$QJ$8, N$2, Cálculos!$I445:$QJ445) -> 0 | O103: =SUMIF(Cálculos!$I$8:$QJ$8, O$2, Cálculos!$I445:$QJ445) -> 0 | P103: =SUMIF(Cálculos!$I$8:$QJ$8, P$2, Cálculos!$I445:$QJ445) -> 0 | Q103: =SUMIF(Cálculos!$I$8:$QJ$8, Q$2, Cálculos!$I445:$QJ445) -> 0 | R103: =SUMIF(Cálculos!$I$8:$QJ$8, R$2, Cálculos!$I445:$QJ445) -> 0 | S103: =SUMIF(Cálculos!$I$8:$QJ$8, S$2, Cálculos!$I445:$QJ445) -> 0 | T103: =SUMIF(Cálculos!$I$8:$QJ$8, T$2, Cálculos!$I445:$QJ445) -> 0 | U103: =SUMIF(Cálculos!$I$8:$QJ$8, U$2, Cálculos!$I445:$QJ445) -> 0 | V103: =SUMIF(Cálculos!$I$8:$QJ$8, V$2, Cálculos!$I445:$QJ445) -> 0 | W103: =SUMIF(Cálculos!$I$8:$QJ$8, W$2, Cálculos!$I445:$QJ445) -> 0 | X103: =SUMIF(Cálculos!$I$8:$QJ$8, X$2, Cálculos!$I445:$QJ445) -> 0 | Y103: =SUMIF(Cálculos!$I$8:$QJ$8, Y$2, Cálculos!$I445:$QJ445) -> 0 | Z103: =SUMIF(Cálculos!$I$8:$QJ$8, Z$2, Cálculos!$I445:$QJ445) -> 0 | AA103: =SUMIF(Cálculos!$I$8:$QJ$8, AA$2, Cálculos!$I445:$QJ445) -> 0 | AB103: =SUMIF(Cálculos!$I$8:$QJ$8, AB$2, Cálculos!$I445:$QJ445) -> 0 | AC103: =SUMIF(Cálculos!$I$8:$QJ$8, AC$2, Cálculos!$I445:$QJ445) -> 0 | AD103: =SUMIF(Cálculos!$I$8:$QJ$8, AD$2, Cálculos!$I445:$QJ445) -> 0 | AE103: =SUMIF(Cálculos!$I$8:$QJ$8, AE$2, Cálculos!$I445:$QJ445) -> 0 | AF103: =SUMIF(Cálculos!$I$8:$QJ$8, AF$2, Cálculos!$I445:$QJ445) -> 0 | AG103: =SUMIF(Cálculos!$I$8:$QJ$8, AG$2, Cálculos!$I445:$QJ445) -> 0
C104: =Cálculos!C446 -> Fluxos de Caixa de Financiamento | D104: =Cálculos!E446 -> EUR | F104: -5556213.335 | G104: =SUM(G90:G103) -> 8246250 | H104: 7762926.089 | I104: -1181516.663 | J104: -1279205.606 | K104: -1279205.606 | L104: -1279205.606 | M104: -1279205.606 | N104: -1279205.606 | O104: -1279205.606 | P104: -1279205.606 | Q104: -1279205.606 | R104: -1279205.606 | S104: -1279205.606 | T104: -1279205.606 | U104: -1279205.606 | V104: -1279205.606 | W104: -1279205.606 | X104: -1279205.606 | Y104: -1279205.606 | Z104: -698501.7155 | AA104: -555909.96 | AB104: -555909.96 | AC104: -555909.96 | AD104: -555909.96 | AE104: 3005558.485 | AF104: 0 | AG104: 0
B106: Variação Líquida de Caixa | D106: =Cálculos!E448 -> EUR | F106: =SUM(G106:AR106) -> 6817699.262 | G106: =G83+G87+G104 -> 25703.12416 | H106: 477382.646 | I106: 217256.3749 | J106: 306285.4308 | K106: 289064.2342 | L106: 265358.2521 | M106: 239319.8242 | N106: 214728.3795 | O106: 189632.9833 | P106: 164176.2735 | Q106: 138447.6648 | R106: 113586.5512 | S106: 88444.11924 | T106: 63396.95293 | U106: 38059.30678 | V106: 13569.07437 | W106: -11221.43349 | X106: -35936.2708 | Y106: -60960.96888 | Z106: 487766.8166 | AA106: -1845945.223 | AB106: 423736.3748 | AC106: 389448.5824 | AD106: 354098.2794 | AE106: 3877981.031 | AF106: 912879.67 | AG106: -518558.7886
B108: Posição de Caixa
C109: =Cálculos!C451 -> Início do Período | D109: =Cálculos!E451 -> EUR | G109: =F110 -> 0 | H109: =G110 -> 25703.12416 | I109: 503085.7702 | J109: 720342.1451 | K109: 1026627.576 | L109: =K110 -> 1315691.81 | M109: 1581050.062 | N109: 1820369.886 | O109: 2035098.266 | P109: 2224731.249 | Q109: 2388907.523 | R109: 2527355.187 | S109: 2640941.739 | T109: 2729385.858 | U109: 2792782.811 | V109: 2830842.118 | W109: 2844411.192 | X109: 2833189.758 | Y109: 2797253.488 | Z109: 2736292.519 | AA109: 3224059.335 | AB109: 1378114.112 | AC109: 1801850.487 | AD109: 2191299.07 | AE109: =AD110 -> 2545397.349 | AF109: 6423378.381 | AG109: 7336258.051
C110: =Cálculos!C452 -> Fim do Período | D110: =Cálculos!E452 -> EUR | F110: 0 | G110: =G106+G109 -> 25703.12416 | H110: =H106+H109 -> 503085.7702 | I110: 720342.1451 | J110: 1026627.576 | K110: 1315691.81 | L110: 1581050.062 | M110: 1820369.886 | N110: 2035098.266 | O110: 2224731.249 | P110: 2388907.523 | Q110: 2527355.187 | R110: 2640941.739 | S110: 2729385.858 | T110: 2792782.811 | U110: 2830842.118 | V110: 2844411.192 | W110: 2833189.758 | X110: 2797253.488 | Y110: 2736292.519 | Z110: 3224059.335 | AA110: 1378114.112 | AB110: 1801850.487 | AC110: 2191299.07 | AD110: 2545397.349 | AE110: =AE106+AE109 -> 6423378.381 | AF110: 7336258.051 | AG110: 6817699.262
A112: · | B112: Cascata de Caixa | D112: Unidade
C114: =Cálculos!C459 -> Entrada de Capital Próprio | D114: =Cálculos!E459 -> EUR | F114: =SUM(G114:AR114) -> 4047500 | G114: =SUMIF(Cálculos!$I$8:$QJ$8, G$2, Cálculos!$I459:$QJ459) -> 4047500 | H114: =SUMIF(Cálculos!$I$8:$QJ$8, H$2, Cálculos!$I459:$QJ459) -> 0 | I114: =SUMIF(Cálculos!$I$8:$QJ$8, I$2, Cálculos!$I459:$QJ459) -> 0 | J114: =SUMIF(Cálculos!$I$8:$QJ$8, J$2, Cálculos!$I459:$QJ459) -> 0 | K114: =SUMIF(Cálculos!$I$8:$QJ$8, K$2, Cálculos!$I459:$QJ459) -> 0 | L114: =SUMIF(Cálculos!$I$8:$QJ$8, L$2, Cálculos!$I459:$QJ459) -> 0 | M114: =SUMIF(Cálculos!$I$8:$QJ$8, M$2, Cálculos!$I459:$QJ459) -> 0 | N114: =SUMIF(Cálculos!$I$8:$QJ$8, N$2, Cálculos!$I459:$QJ459) -> 0 | O114: =SUMIF(Cálculos!$I$8:$QJ$8, O$2, Cálculos!$I459:$QJ459) -> 0 | P114: =SUMIF(Cálculos!$I$8:$QJ$8, P$2, Cálculos!$I459:$QJ459) -> 0 | Q114: =SUMIF(Cálculos!$I$8:$QJ$8, Q$2, Cálculos!$I459:$QJ459) -> 0 | R114: =SUMIF(Cálculos!$I$8:$QJ$8, R$2, Cálculos!$I459:$QJ459) -> 0 | S114: =SUMIF(Cálculos!$I$8:$QJ$8, S$2, Cálculos!$I459:$QJ459) -> 0 | T114: =SUMIF(Cálculos!$I$8:$QJ$8, T$2, Cálculos!$I459:$QJ459) -> 0 | U114: =SUMIF(Cálculos!$I$8:$QJ$8, U$2, Cálculos!$I459:$QJ459) -> 0 | V114: =SUMIF(Cálculos!$I$8:$QJ$8, V$2, Cálculos!$I459:$QJ459) -> 0 | W114: =SUMIF(Cálculos!$I$8:$QJ$8, W$2, Cálculos!$I459:$QJ459) -> 0 | X114: =SUMIF(Cálculos!$I$8:$QJ$8, X$2, Cálculos!$I459:$QJ459) -> 0 | Y114: =SUMIF(Cálculos!$I$8:$QJ$8, Y$2, Cálculos!$I459:$QJ459) -> 0 | Z114: =SUMIF(Cálculos!$I$8:$QJ$8, Z$2, Cálculos!$I459:$QJ459) -> 0 | AA114: =SUMIF(Cálculos!$I$8:$QJ$8, AA$2, Cálculos!$I459:$QJ459) -> 0 | AB114: =SUMIF(Cálculos!$I$8:$QJ$8, AB$2, Cálculos!$I459:$QJ459) -> 0 | AC114: =SUMIF(Cálculos!$I$8:$QJ$8, AC$2, Cálculos!$I459:$QJ459) -> 0 | AD114: =SUMIF(Cálculos!$I$8:$QJ$8, AD$2, Cálculos!$I459:$QJ459) -> 0 | AE114: =SUMIF(Cálculos!$I$8:$QJ$8, AE$2, Cálculos!$I459:$QJ459) -> 0 | AF114: =SUMIF(Cálculos!$I$8:$QJ$8, AF$2, Cálculos!$I459:$QJ459) -> 0 | AG114: =SUMIF(Cálculos!$I$8:$QJ$8, AG$2, Cálculos!$I459:$QJ459) -> 0
C115: =Cálculos!C460 -> Juros das Contas de Reserva | D115: =Cálculos!E460 -> EUR | F115: 0 | G115: =SUMIF(Cálculos!$I$8:$QJ$8, G$2, Cálculos!$I460:$QJ460) -> 0 | H115: =SUMIF(Cálculos!$I$8:$QJ$8, H$2, Cálculos!$I460:$QJ460) -> 0 | I115: =SUMIF(Cálculos!$I$8:$QJ$8, I$2, Cálculos!$I460:$QJ460) -> 0 | J115: =SUMIF(Cálculos!$I$8:$QJ$8, J$2, Cálculos!$I460:$QJ460) -> 0 | K115: =SUMIF(Cálculos!$I$8:$QJ$8, K$2, Cálculos!$I460:$QJ460) -> 0 | L115: =SUMIF(Cálculos!$I$8:$QJ$8, L$2, Cálculos!$I460:$QJ460) -> 0 | M115: =SUMIF(Cálculos!$I$8:$QJ$8, M$2, Cálculos!$I460:$QJ460) -> 0 | N115: =SUMIF(Cálculos!$I$8:$QJ$8, N$2, Cálculos!$I460:$QJ460) -> 0 | O115: =SUMIF(Cálculos!$I$8:$QJ$8, O$2, Cálculos!$I460:$QJ460) -> 0 | P115: =SUMIF(Cálculos!$I$8:$QJ$8, P$2, Cálculos!$I460:$QJ460) -> 0 | Q115: =SUMIF(Cálculos!$I$8:$QJ$8, Q$2, Cálculos!$I460:$QJ460) -> 0 | R115: =SUMIF(Cálculos!$I$8:$QJ$8, R$2, Cálculos!$I460:$QJ460) -> 0 | S115: =SUMIF(Cálculos!$I$8:$QJ$8, S$2, Cálculos!$I460:$QJ460) -> 0 | T115: =SUMIF(Cálculos!$I$8:$QJ$8, T$2, Cálculos!$I460:$QJ460) -> 0 | U115: =SUMIF(Cálculos!$I$8:$QJ$8, U$2, Cálculos!$I460:$QJ460) -> 0 | V115: =SUMIF(Cálculos!$I$8:$QJ$8, V$2, Cálculos!$I460:$QJ460) -> 0 | W115: =SUMIF(Cálculos!$I$8:$QJ$8, W$2, Cálculos!$I460:$QJ460) -> 0 | X115: =SUMIF(Cálculos!$I$8:$QJ$8, X$2, Cálculos!$I460:$QJ460) -> 0 | Y115: =SUMIF(Cálculos!$I$8:$QJ$8, Y$2, Cálculos!$I460:$QJ460) -> 0 | Z115: =SUMIF(Cálculos!$I$8:$QJ$8, Z$2, Cálculos!$I460:$QJ460) -> 0 | AA115: =SUMIF(Cálculos!$I$8:$QJ$8, AA$2, Cálculos!$I460:$QJ460) -> 0 | AB115: =SUMIF(Cálculos!$I$8:$QJ$8, AB$2, Cálculos!$I460:$QJ460) -> 0 | AC115: =SUMIF(Cálculos!$I$8:$QJ$8, AC$2, Cálculos!$I460:$QJ460) -> 0 | AD115: =SUMIF(Cálculos!$I$8:$QJ$8, AD$2, Cálculos!$I460:$QJ460) -> 0 | AE115: =SUMIF(Cálculos!$I$8:$QJ$8, AE$2, Cálculos!$I460:$QJ460) -> 0 | AF115: =SUMIF(Cálculos!$I$8:$QJ$8, AF$2, Cálculos!$I460:$QJ460) -> 0 | AG115: =SUMIF(Cálculos!$I$8:$QJ$8, AG$2, Cálculos!$I460:$QJ460) -> 0
C116: =Cálculos!C461 -> Caixa Disponível para Serviço da Dívida | D116: =Cálculos!E461 -> EUR | F116: 34389240.4 | G116: =SUMIF(Cálculos!$I$8:$QJ$8, G$2, Cálculos!$I461:$QJ461) -> 3906108.692 | H116: =SUMIF(Cálculos!$I$8:$QJ$8, H$2, Cálculos!$I461:$QJ461) -> 141391.3081 | I116: =SUMIF(Cálculos!$I$8:$QJ$8, I$2, Cálculos!$I461:$QJ461) -> 1398773.038 | J116: =SUMIF(Cálculos!$I$8:$QJ$8, J$2, Cálculos!$I461:$QJ461) -> 1585491.036 | K116: =SUMIF(Cálculos!$I$8:$QJ$8, K$2, Cálculos!$I461:$QJ461) -> 1568269.84 | L116: =SUMIF(Cálculos!$I$8:$QJ$8, L$2, Cálculos!$I461:$QJ461) -> 1544563.858 | M116: =SUMIF(Cálculos!$I$8:$QJ$8, M$2, Cálculos!$I461:$QJ461) -> 1518525.43 | N116: =SUMIF(Cálculos!$I$8:$QJ$8, N$2, Cálculos!$I461:$QJ461) -> 1493933.985 | O116: =SUMIF(Cálculos!$I$8:$QJ$8, O$2, Cálculos!$I461:$QJ461) -> 1468838.589 | P116: =SUMIF(Cálculos!$I$8:$QJ$8, P$2, Cálculos!$I461:$QJ461) -> 1443381.879 | Q116: =SUMIF(Cálculos!$I$8:$QJ$8, Q$2, Cálculos!$I461:$QJ461) -> 1417653.271 | R116: =SUMIF(Cálculos!$I$8:$QJ$8, R$2, Cálculos!$I461:$QJ461) -> 1392792.157 | S116: =SUMIF(Cálculos!$I$8:$QJ$8, S$2, Cálculos!$I461:$QJ461) -> 1367649.725 | T116: =SUMIF(Cálculos!$I$8:$QJ$8, T$2, Cálculos!$I461:$QJ461) -> 1342602.559 | U116: =SUMIF(Cálculos!$I$8:$QJ$8, U$2, Cálculos!$I461:$QJ461) -> 1317264.912 | V116: =SUMIF(Cálculos!$I$8:$QJ$8, V$2, Cálculos!$I461:$QJ461) -> 1292774.68 | W116: =SUMIF(Cálculos!$I$8:$QJ$8, W$2, Cálculos!$I461:$QJ461) -> 1267984.172 | X116: =SUMIF(Cálculos!$I$8:$QJ$8, X$2, Cálculos!$I461:$QJ461) -> 1243269.335 | Y116: =SUMIF(Cálculos!$I$8:$QJ$8, Y$2, Cálculos!$I461:$QJ461) -> 1218244.637 | Z116: =SUMIF(Cálculos!$I$8:$QJ$8, Z$2, Cálculos!$I461:$QJ461) -> 1194046.492 | AA116: =SUMIF(Cálculos!$I$8:$QJ$8, AA$2, Cálculos!$I461:$QJ461) -> 1163924.265 | AB116: =SUMIF(Cálculos!$I$8:$QJ$8, AB$2, Cálculos!$I461:$QJ461) -> 979646.3349 | AC116: =SUMIF(Cálculos!$I$8:$QJ$8, AC$2, Cálculos!$I461:$QJ461) -> 945358.5424 | AD116: =SUMIF(Cálculos!$I$8:$QJ$8, AD$2, Cálculos!$I461:$QJ461) -> 910008.2394 | AE116: =SUMIF(Cálculos!$I$8:$QJ$8, AE$2, Cálculos!$I461:$QJ461) -> 872422.5461 | AF116: =SUMIF(Cálculos!$I$8:$QJ$8, AF$2, Cálculos!$I461:$QJ461) -> 912879.67 | AG116: =SUMIF(Cálculos!$I$8:$QJ$8, AG$2, Cálculos!$I461:$QJ461) -> -518558.7886
C117: =Cálculos!C462 -> Menos: Juros da Dívida Sénior | D117: =Cálculos!E462 -> EUR | F117: -4700943.598 | G117: =SUMIF(Cálculos!$I$8:$QJ$8, G$2, Cálculos!$I462:$QJ462) -> 0 | H117: =SUMIF(Cálculos!$I$8:$QJ$8, H$2, Cálculos!$I462:$QJ462) -> 0 | I117: =SUMIF(Cálculos!$I$8:$QJ$8, I$2, Cálculos!$I462:$QJ462) -> -371239.6933 | J117: =SUMIF(Cálculos!$I$8:$QJ$8, J$2, Cálculos!$I462:$QJ462) -> -431837.8626 | K117: =SUMIF(Cálculos!$I$8:$QJ$8, K$2, Cálculos!$I462:$QJ462) -> -415397.3527 | L117: =SUMIF(Cálculos!$I$8:$QJ$8, L$2, Cálculos!$I462:$QJ462) -> -398029.4687 | M117: =SUMIF(Cálculos!$I$8:$QJ$8, M$2, Cálculos!$I462:$QJ462) -> -379681.8996 | N117: =SUMIF(Cálculos!$I$8:$QJ$8, N$2, Cálculos!$I462:$QJ462) -> -360299.3834 | O117: =SUMIF(Cálculos!$I$8:$QJ$8, O$2, Cálculos!$I462:$QJ462) -> -339823.541 | P117: =SUMIF(Cálculos!$I$8:$QJ$8, P$2, Cálculos!$I462:$QJ462) -> -318192.7 | Q117: =SUMIF(Cálculos!$I$8:$QJ$8, Q$2, Cálculos!$I462:$QJ462) -> -295341.7096 | R117: =SUMIF(Cálculos!$I$8:$QJ$8, R$2, Cálculos!$I462:$QJ462) -> -271201.7437 | S117: =SUMIF(Cálculos!$I$8:$QJ$8, S$2, Cálculos!$I462:$QJ462) -> -245700.094 | T117: =SUMIF(Cálculos!$I$8:$QJ$8, T$2, Cálculos!$I462:$QJ462) -> -218759.9508 | U117: =SUMIF(Cálculos!$I$8:$QJ$8, U$2, Cálculos!$I462:$QJ462) -> -190300.1718 | V117: =SUMIF(Cálculos!$I$8:$QJ$8, V$2, Cálculos!$I462:$QJ462) -> -160235.0375 | W117: =SUMIF(Cálculos!$I$8:$QJ$8, W$2, Cálculos!$I462:$QJ462) -> -128473.9934 | X117: =SUMIF(Cálculos!$I$8:$QJ$8, X$2, Cálculos!$I462:$QJ462) -> -94921.37666 | Y117: =SUMIF(Cálculos!$I$8:$QJ$8, Y$2, Cálculos!$I462:$QJ462) -> -59476.12863 | Z117: =SUMIF(Cálculos!$I$8:$QJ$8, Z$2, Cálculos!$I462:$QJ462) -> -22031.48999 | AA117: =SUMIF(Cálculos!$I$8:$QJ$8, AA$2, Cálculos!$I462:$QJ462) -> 0 | AB117: =SUMIF(Cálculos!$I$8:$QJ$8, AB$2, Cálculos!$I462:$QJ462) -> 0 | AC117: =SUMIF(Cálculos!$I$8:$QJ$8, AC$2, Cálculos!$I462:$QJ462) -> 0 | AD117: =SUMIF(Cálculos!$I$8:$QJ$8, AD$2, Cálculos!$I462:$QJ462) -> 0 | AE117: =SUMIF(Cálculos!$I$8:$QJ$8, AE$2, Cálculos!$I462:$QJ462) -> 0 | AF117: =SUMIF(Cálculos!$I$8:$QJ$8, AF$2, Cálculos!$I462:$QJ462) -> 0 | AG117: =SUMIF(Cálculos!$I$8:$QJ$8, AG$2, Cálculos!$I462:$QJ462) -> 0
C118: =Cálculos!C463 -> Mais: Utilização de Dívida Sénior | D118: =Cálculos!E463 -> EUR | F118: 8095000 | G118: =SUMIF(Cálculos!$I$8:$QJ$8, G$2, Cálculos!$I463:$QJ463) -> 2175000 | H118: =SUMIF(Cálculos!$I$8:$QJ$8, H$2, Cálculos!$I463:$QJ463) -> 5920000 | I118: =SUMIF(Cálculos!$I$8:$QJ$8, I$2, Cálculos!$I463:$QJ463) -> 0 | J118: =SUMIF(Cálculos!$I$8:$QJ$8, J$2, Cálculos!$I463:$QJ463) -> 0 | K118: =SUMIF(Cálculos!$I$8:$QJ$8, K$2, Cálculos!$I463:$QJ463) -> 0 | L118: =SUMIF(Cálculos!$I$8:$QJ$8, L$2, Cálculos!$I463:$QJ463) -> 0 | M118: =SUMIF(Cálculos!$I$8:$QJ$8, M$2, Cálculos!$I463:$QJ463) -> 0 | N118: =SUMIF(Cálculos!$I$8:$QJ$8, N$2, Cálculos!$I463:$QJ463) -> 0 | O118: =SUMIF(Cálculos!$I$8:$QJ$8, O$2, Cálculos!$I463:$QJ463) -> 0 | P118: =SUMIF(Cálculos!$I$8:$QJ$8, P$2, Cálculos!$I463:$QJ463) -> 0 | Q118: =SUMIF(Cálculos!$I$8:$QJ$8, Q$2, Cálculos!$I463:$QJ463) -> 0 | R118: =SUMIF(Cálculos!$I$8:$QJ$8, R$2, Cálculos!$I463:$QJ463) -> 0 | S118: =SUMIF(Cálculos!$I$8:$QJ$8, S$2, Cálculos!$I463:$QJ463) -> 0 | T118: =SUMIF(Cálculos!$I$8:$QJ$8, T$2, Cálculos!$I463:$QJ463) -> 0 | U118: =SUMIF(Cálculos!$I$8:$QJ$8, U$2, Cálculos!$I463:$QJ463) -> 0 | V118: =SUMIF(Cálculos!$I$8:$QJ$8, V$2, Cálculos!$I463:$QJ463) -> 0 | W118: =SUMIF(Cálculos!$I$8:$QJ$8, W$2, Cálculos!$I463:$QJ463) -> 0 | X118: =SUMIF(Cálculos!$I$8:$QJ$8, X$2, Cálculos!$I463:$QJ463) -> 0 | Y118: =SUMIF(Cálculos!$I$8:$QJ$8, Y$2, Cálculos!$I463:$QJ463) -> 0 | Z118: =SUMIF(Cálculos!$I$8:$QJ$8, Z$2, Cálculos!$I463:$QJ463) -> 0 | AA118: =SUMIF(Cálculos!$I$8:$QJ$8, AA$2, Cálculos!$I463:$QJ463) -> 0 | AB118: =SUMIF(Cálculos!$I$8:$QJ$8, AB$2, Cálculos!$I463:$QJ463) -> 0 | AC118: =SUMIF(Cálculos!$I$8:$QJ$8, AC$2, Cálculos!$I463:$QJ463) -> 0 | AD118: =SUMIF(Cálculos!$I$8:$QJ$8, AD$2, Cálculos!$I463:$QJ463) -> 0 | AE118: =SUMIF(Cálculos!$I$8:$QJ$8, AE$2, Cálculos!$I463:$QJ463) -> 0 | AF118: =SUMIF(Cálculos!$I$8:$QJ$8, AF$2, Cálculos!$I463:$QJ463) -> 0 | AG118: =SUMIF(Cálculos!$I$8:$QJ$8, AG$2, Cálculos!$I463:$QJ463) -> 0
C119: =Cálculos!C464 -> Menos: Reembolso de Capital – Dívida Sénior | D119: =Cálculos!E464 -> EUR | F119: -7918498.045 | G119: =SUMIF(Cálculos!$I$8:$QJ$8, G$2, Cálculos!$I464:$QJ464) -> 0 | H119: =SUMIF(Cálculos!$I$8:$QJ$8, H$2, Cálculos!$I464:$QJ464) -> 0 | I119: =SUMIF(Cálculos!$I$8:$QJ$8, I$2, Cálculos!$I464:$QJ464) -> -171232.0409 | J119: =SUMIF(Cálculos!$I$8:$QJ$8, J$2, Cálculos!$I464:$QJ464) -> -291457.783 | K119: =SUMIF(Cálculos!$I$8:$QJ$8, K$2, Cálculos!$I464:$QJ464) -> -307898.293 | L119: =SUMIF(Cálculos!$I$8:$QJ$8, L$2, Cálculos!$I464:$QJ464) -> -325266.1769 | M119: =SUMIF(Cálculos!$I$8:$QJ$8, M$2, Cálculos!$I464:$QJ464) -> -343613.746 | N119: =SUMIF(Cálculos!$I$8:$QJ$8, N$2, Cálculos!$I464:$QJ464) -> -362996.2622 | O119: =SUMIF(Cálculos!$I$8:$QJ$8, O$2, Cálculos!$I464:$QJ464) -> -383472.1047 | P119: =SUMIF(Cálculos!$I$8:$QJ$8, P$2, Cálculos!$I464:$QJ464) -> -405102.9456 | Q119: =SUMIF(Cálculos!$I$8:$QJ$8, Q$2, Cálculos!$I464:$QJ464) -> -427953.936 | R119: =SUMIF(Cálculos!$I$8:$QJ$8, R$2, Cálculos!$I464:$QJ464) -> -452093.9019 | S119: =SUMIF(Cálculos!$I$8:$QJ$8, S$2, Cálculos!$I464:$QJ464) -> -477595.5516 | T119: =SUMIF(Cálculos!$I$8:$QJ$8, T$2, Cálculos!$I464:$QJ464) -> -504535.6948 | U119: =SUMIF(Cálculos!$I$8:$QJ$8, U$2, Cálculos!$I464:$QJ464) -> -532995.4738 | V119: =SUMIF(Cálculos!$I$8:$QJ$8, V$2, Cálculos!$I464:$QJ464) -> -563060.6081 | W119: =SUMIF(Cálculos!$I$8:$QJ$8, W$2, Cálculos!$I464:$QJ464) -> -594821.6523 | X119: =SUMIF(Cálculos!$I$8:$QJ$8, X$2, Cálculos!$I464:$QJ464) -> -628374.269 | Y119: =SUMIF(Cálculos!$I$8:$QJ$8, Y$2, Cálculos!$I464:$QJ464) -> -663819.517 | Z119: =SUMIF(Cálculos!$I$8:$QJ$8, Z$2, Cálculos!$I464:$QJ464) -> -482208.0883 | AA119: =SUMIF(Cálculos!$I$8:$QJ$8, AA$2, Cálculos!$I464:$QJ464) -> 0 | AB119: =SUMIF(Cálculos!$I$8:$QJ$8, AB$2, Cálculos!$I464:$QJ464) -> 0 | AC119: =SUMIF(Cálculos!$I$8:$QJ$8, AC$2, Cálculos!$I464:$QJ464) -> 0 | AD119: =SUMIF(Cálculos!$I$8:$QJ$8, AD$2, Cálculos!$I464:$QJ464) -> 0 | AE119: =SUMIF(Cálculos!$I$8:$QJ$8, AE$2, Cálculos!$I464:$QJ464) -> 0 | AF119: =SUMIF(Cálculos!$I$8:$QJ$8, AF$2, Cálculos!$I464:$QJ464) -> 0 | AG119: =SUMIF(Cálculos!$I$8:$QJ$8, AG$2, Cálculos!$I464:$QJ464) -> 0
C120: =Cálculos!C465 -> Caixa Disponível para Contas de Reserva | D120: =Cálculos!E465 -> EUR | F120: 29864798.76 | G120: =SUMIF(Cálculos!$I$8:$QJ$8, G$2, Cálculos!$I465:$QJ465) -> 6081108.692 | H120: =SUMIF(Cálculos!$I$8:$QJ$8, H$2, Cálculos!$I465:$QJ465) -> 6061391.308 | I120: =SUMIF(Cálculos!$I$8:$QJ$8, I$2, Cálculos!$I465:$QJ465) -> 856301.3038 | J120: =SUMIF(Cálculos!$I$8:$QJ$8, J$2, Cálculos!$I465:$QJ465) -> 862195.3909 | K120: =SUMIF(Cálculos!$I$8:$QJ$8, K$2, Cálculos!$I465:$QJ465) -> 844974.1942 | L120: =SUMIF(Cálculos!$I$8:$QJ$8, L$2, Cálculos!$I465:$QJ465) -> 821268.2121 | M120: =SUMIF(Cálculos!$I$8:$QJ$8, M$2, Cálculos!$I465:$QJ465) -> 795229.7842 | N120: =SUMIF(Cálculos!$I$8:$QJ$8, N$2, Cálculos!$I465:$QJ465) -> 770638.3395 | O120: =SUMIF(Cálculos!$I$8:$QJ$8, O$2, Cálculos!$I465:$QJ465) -> 745542.9434 | P120: =SUMIF(Cálculos!$I$8:$QJ$8, P$2, Cálculos!$I465:$QJ465) -> 720086.2335 | Q120: =SUMIF(Cálculos!$I$8:$QJ$8, Q$2, Cálculos!$I465:$QJ465) -> 694357.6249 | R120: =SUMIF(Cálculos!$I$8:$QJ$8, R$2, Cálculos!$I465:$QJ465) -> 669496.5113 | S120: =SUMIF(Cálculos!$I$8:$QJ$8, S$2, Cálculos!$I465:$QJ465) -> 644354.0793 | T120: =SUMIF(Cálculos!$I$8:$QJ$8, T$2, Cálculos!$I465:$QJ465) -> 619306.913 | U120: =SUMIF(Cálculos!$I$8:$QJ$8, U$2, Cálculos!$I465:$QJ465) -> 593969.2668 | V120: =SUMIF(Cálculos!$I$8:$QJ$8, V$2, Cálculos!$I465:$QJ465) -> 569479.0344 | W120: =SUMIF(Cálculos!$I$8:$QJ$8, W$2, Cálculos!$I465:$QJ465) -> 544688.5265 | X120: =SUMIF(Cálculos!$I$8:$QJ$8, X$2, Cálculos!$I465:$QJ465) -> 519973.6892 | Y120: =SUMIF(Cálculos!$I$8:$QJ$8, Y$2, Cálculos!$I465:$QJ465) -> 494948.9912 | Z120: =SUMIF(Cálculos!$I$8:$QJ$8, Z$2, Cálculos!$I465:$QJ465) -> 689806.9136 | AA120: =SUMIF(Cálculos!$I$8:$QJ$8, AA$2, Cálculos!$I465:$QJ465) -> 1163924.265 | AB120: =SUMIF(Cálculos!$I$8:$QJ$8, AB$2, Cálculos!$I465:$QJ465) -> 979646.3349 | AC120: =SUMIF(Cálculos!$I$8:$QJ$8, AC$2, Cálculos!$I465:$QJ465) -> 945358.5424 | AD120: =SUMIF(Cálculos!$I$8:$QJ$8, AD$2, Cálculos!$I465:$QJ465) -> 910008.2394 | AE120: =SUMIF(Cálculos!$I$8:$QJ$8, AE$2, Cálculos!$I465:$QJ465) -> 872422.5461 | AF120: =SUMIF(Cálculos!$I$8:$QJ$8, AF$2, Cálculos!$I465:$QJ465) -> 912879.67 | AG120: =SUMIF(Cálculos!$I$8:$QJ$8, AG$2, Cálculos!$I465:$QJ465) -> -518558.7886
C121: =Cálculos!C466 -> Menos: Variação da DSRA | D121: =Cálculos!E466 -> EUR | F121: 0 | G121: =SUMIF(Cálculos!$I$8:$QJ$8, G$2, Cálculos!$I466:$QJ466) -> 0 | H121: =SUMIF(Cálculos!$I$8:$QJ$8, H$2, Cálculos!$I466:$QJ466) -> -180823.9114 | I121: =SUMIF(Cálculos!$I$8:$QJ$8, I$2, Cálculos!$I466:$QJ466) -> -180823.9114 | J121: =SUMIF(Cálculos!$I$8:$QJ$8, J$2, Cálculos!$I466:$QJ466) -> 0 | K121: =SUMIF(Cálculos!$I$8:$QJ$8, K$2, Cálculos!$I466:$QJ466) -> 0 | L121: =SUMIF(Cálculos!$I$8:$QJ$8, L$2, Cálculos!$I466:$QJ466) -> 0 | M121: =SUMIF(Cálculos!$I$8:$QJ$8, M$2, Cálculos!$I466:$QJ466) -> 0 | N121: =SUMIF(Cálculos!$I$8:$QJ$8, N$2, Cálculos!$I466:$QJ466) -> 0 | O121: =SUMIF(Cálculos!$I$8:$QJ$8, O$2, Cálculos!$I466:$QJ466) -> 0 | P121: =SUMIF(Cálculos!$I$8:$QJ$8, P$2, Cálculos!$I466:$QJ466) -> 0 | Q121: =SUMIF(Cálculos!$I$8:$QJ$8, Q$2, Cálculos!$I466:$QJ466) -> 0 | R121: =SUMIF(Cálculos!$I$8:$QJ$8, R$2, Cálculos!$I466:$QJ466) -> 0 | S121: =SUMIF(Cálculos!$I$8:$QJ$8, S$2, Cálculos!$I466:$QJ466) -> 0 | T121: =SUMIF(Cálculos!$I$8:$QJ$8, T$2, Cálculos!$I466:$QJ466) -> 0 | U121: =SUMIF(Cálculos!$I$8:$QJ$8, U$2, Cálculos!$I466:$QJ466) -> 0 | V121: =SUMIF(Cálculos!$I$8:$QJ$8, V$2, Cálculos!$I466:$QJ466) -> 0 | W121: =SUMIF(Cálculos!$I$8:$QJ$8, W$2, Cálculos!$I466:$QJ466) -> 0 | X121: =SUMIF(Cálculos!$I$8:$QJ$8, X$2, Cálculos!$I466:$QJ466) -> 0 | Y121: =SUMIF(Cálculos!$I$8:$QJ$8, Y$2, Cálculos!$I466:$QJ466) -> 0 | Z121: =SUMIF(Cálculos!$I$8:$QJ$8, Z$2, Cálculos!$I466:$QJ466) -> 361647.8228 | AA121: =SUMIF(Cálculos!$I$8:$QJ$8, AA$2, Cálculos!$I466:$QJ466) -> 0 | AB121: =SUMIF(Cálculos!$I$8:$QJ$8, AB$2, Cálculos!$I466:$QJ466) -> 0 | AC121: =SUMIF(Cálculos!$I$8:$QJ$8, AC$2, Cálculos!$I466:$QJ466) -> 0 | AD121: =SUMIF(Cálculos!$I$8:$QJ$8, AD$2, Cálculos!$I466:$QJ466) -> 0 | AE121: =SUMIF(Cálculos!$I$8:$QJ$8, AE$2, Cálculos!$I466:$QJ466) -> 0 | AF121: =SUMIF(Cálculos!$I$8:$QJ$8, AF$2, Cálculos!$I466:$QJ466) -> 0 | AG121: =SUMIF(Cálculos!$I$8:$QJ$8, AG$2, Cálculos!$I466:$QJ466) -> 0
C122: =Cálculos!C467 -> Menos: Variação da MMRA | D122: =Cálculos!E467 -> EUR | F122: 0 | G122: =SUMIF(Cálculos!$I$8:$QJ$8, G$2, Cálculos!$I467:$QJ467) -> 0 | H122: =SUMIF(Cálculos!$I$8:$QJ$8, H$2, Cálculos!$I467:$QJ467) -> 0 | I122: =SUMIF(Cálculos!$I$8:$QJ$8, I$2, Cálculos!$I467:$QJ467) -> 0 | J122: =SUMIF(Cálculos!$I$8:$QJ$8, J$2, Cálculos!$I467:$QJ467) -> 0 | K122: =SUMIF(Cálculos!$I$8:$QJ$8, K$2, Cálculos!$I467:$QJ467) -> 0 | L122: =SUMIF(Cálculos!$I$8:$QJ$8, L$2, Cálculos!$I467:$QJ467) -> 0 | M122: =SUMIF(Cálculos!$I$8:$QJ$8, M$2, Cálculos!$I467:$QJ467) -> 0 | N122: =SUMIF(Cálculos!$I$8:$QJ$8, N$2, Cálculos!$I467:$QJ467) -> 0 | O122: =SUMIF(Cálculos!$I$8:$QJ$8, O$2, Cálculos!$I467:$QJ467) -> 0 | P122: =SUMIF(Cálculos!$I$8:$QJ$8, P$2, Cálculos!$I467:$QJ467) -> 0 | Q122: =SUMIF(Cálculos!$I$8:$QJ$8, Q$2, Cálculos!$I467:$QJ467) -> 0 | R122: =SUMIF(Cálculos!$I$8:$QJ$8, R$2, Cálculos!$I467:$QJ467) -> 0 | S122: =SUMIF(Cálculos!$I$8:$QJ$8, S$2, Cálculos!$I467:$QJ467) -> 0 | T122: =SUMIF(Cálculos!$I$8:$QJ$8, T$2, Cálculos!$I467:$QJ467) -> 0 | U122: =SUMIF(Cálculos!$I$8:$QJ$8, U$2, Cálculos!$I467:$QJ467) -> 0 | V122: =SUMIF(Cálculos!$I$8:$QJ$8, V$2, Cálculos!$I467:$QJ467) -> 0 | W122: =SUMIF(Cálculos!$I$8:$QJ$8, W$2, Cálculos!$I467:$QJ467) -> 0 | X122: =SUMIF(Cálculos!$I$8:$QJ$8, X$2, Cálculos!$I467:$QJ467) -> 0 | Y122: =SUMIF(Cálculos!$I$8:$QJ$8, Y$2, Cálculos!$I467:$QJ467) -> 0 | Z122: =SUMIF(Cálculos!$I$8:$QJ$8, Z$2, Cálculos!$I467:$QJ467) -> 0 | AA122: =SUMIF(Cálculos!$I$8:$QJ$8, AA$2, Cálculos!$I467:$QJ467) -> 0 | AB122: =SUMIF(Cálculos!$I$8:$QJ$8, AB$2, Cálculos!$I467:$QJ467) -> 0 | AC122: =SUMIF(Cálculos!$I$8:$QJ$8, AC$2, Cálculos!$I467:$QJ467) -> 0 | AD122: =SUMIF(Cálculos!$I$8:$QJ$8, AD$2, Cálculos!$I467:$QJ467) -> 0 | AE122: =SUMIF(Cálculos!$I$8:$QJ$8, AE$2, Cálculos!$I467:$QJ467) -> 0 | AF122: =SUMIF(Cálculos!$I$8:$QJ$8, AF$2, Cálculos!$I467:$QJ467) -> 0 | AG122: =SUMIF(Cálculos!$I$8:$QJ$8, AG$2, Cálculos!$I467:$QJ467) -> 0
C123: =Cálculos!C468 -> Caixa Disponível para Dívida Subordinada | D123: =Cálculos!E468 -> EUR | F123: 29864798.76 | G123: =SUMIF(Cálculos!$I$8:$QJ$8, G$2, Cálculos!$I468:$QJ468) -> 6081108.692 | H123: =SUMIF(Cálculos!$I$8:$QJ$8, H$2, Cálculos!$I468:$QJ468) -> 5880567.397 | I123: =SUMIF(Cálculos!$I$8:$QJ$8, I$2, Cálculos!$I468:$QJ468) -> 675477.3924 | J123: =SUMIF(Cálculos!$I$8:$QJ$8, J$2, Cálculos!$I468:$QJ468) -> 862195.3909 | K123: =SUMIF(Cálculos!$I$8:$QJ$8, K$2, Cálculos!$I468:$QJ468) -> 844974.1942 | L123: =SUMIF(Cálculos!$I$8:$QJ$8, L$2, Cálculos!$I468:$QJ468) -> 821268.2121 | M123: =SUMIF(Cálculos!$I$8:$QJ$8, M$2, Cálculos!$I468:$QJ468) -> 795229.7842 | N123: =SUMIF(Cálculos!$I$8:$QJ$8, N$2, Cálculos!$I468:$QJ468) -> 770638.3395 | O123: =SUMIF(Cálculos!$I$8:$QJ$8, O$2, Cálculos!$I468:$QJ468) -> 745542.9434 | P123: =SUMIF(Cálculos!$I$8:$QJ$8, P$2, Cálculos!$I468:$QJ468) -> 720086.2335 | Q123: =SUMIF(Cálculos!$I$8:$QJ$8, Q$2, Cálculos!$I468:$QJ468) -> 694357.6249 | R123: =SUMIF(Cálculos!$I$8:$QJ$8, R$2, Cálculos!$I468:$QJ468) -> 669496.5113 | S123: =SUMIF(Cálculos!$I$8:$QJ$8, S$2, Cálculos!$I468:$QJ468) -> 644354.0793 | T123: =SUMIF(Cálculos!$I$8:$QJ$8, T$2, Cálculos!$I468:$QJ468) -> 619306.913 | U123: =SUMIF(Cálculos!$I$8:$QJ$8, U$2, Cálculos!$I468:$QJ468) -> 593969.2668 | V123: =SUMIF(Cálculos!$I$8:$QJ$8, V$2, Cálculos!$I468:$QJ468) -> 569479.0344 | W123: =SUMIF(Cálculos!$I$8:$QJ$8, W$2, Cálculos!$I468:$QJ468) -> 544688.5265 | X123: =SUMIF(Cálculos!$I$8:$QJ$8, X$2, Cálculos!$I468:$QJ468) -> 519973.6892 | Y123: =SUMIF(Cálculos!$I$8:$QJ$8, Y$2, Cálculos!$I468:$QJ468) -> 494948.9912 | Z123: =SUMIF(Cálculos!$I$8:$QJ$8, Z$2, Cálculos!$I468:$QJ468) -> 1051454.736 | AA123: =SUMIF(Cálculos!$I$8:$QJ$8, AA$2, Cálculos!$I468:$QJ468) -> 1163924.265 | AB123: =SUMIF(Cálculos!$I$8:$QJ$8, AB$2, Cálculos!$I468:$QJ468) -> 979646.3349 | AC123: =SUMIF(Cálculos!$I$8:$QJ$8, AC$2, Cálculos!$I468:$QJ468) -> 945358.5424 | AD123: =SUMIF(Cálculos!$I$8:$QJ$8, AD$2, Cálculos!$I468:$QJ468) -> 910008.2394 | AE123: =SUMIF(Cálculos!$I$8:$QJ$8, AE$2, Cálculos!$I468:$QJ468) -> 872422.5461 | AF123: =SUMIF(Cálculos!$I$8:$QJ$8, AF$2, Cálculos!$I468:$QJ468) -> 912879.67 | AG123: =SUMIF(Cálculos!$I$8:$QJ$8, AG$2, Cálculos!$I468:$QJ468) -> -518558.7886
C124: =Cálculos!C469 -> Menos: Juros da Dívida Subordinada | D124: =Cálculos!E469 -> EUR | F124: -5079271.693 | G124: =SUMIF(Cálculos!$I$8:$QJ$8, G$2, Cálculos!$I469:$QJ469) -> 0 | H124: =SUMIF(Cálculos!$I$8:$QJ$8, H$2, Cálculos!$I469:$QJ469) -> 0 | I124: =SUMIF(Cálculos!$I$8:$QJ$8, I$2, Cálculos!$I469:$QJ469) -> -408156.9019 | J124: =SUMIF(Cálculos!$I$8:$QJ$8, J$2, Cálculos!$I469:$QJ469) -> -481193.7094 | K124: =SUMIF(Cálculos!$I$8:$QJ$8, K$2, Cálculos!$I469:$QJ469) -> -471717.8187 | L124: =SUMIF(Cálculos!$I$8:$QJ$8, L$2, Cálculos!$I469:$QJ469) -> -461040.1478 | M124: =SUMIF(Cálculos!$I$8:$QJ$8, M$2, Cálculos!$I469:$QJ469) -> -449008.281 | N124: =SUMIF(Cálculos!$I$8:$QJ$8, N$2, Cálculos!$I469:$QJ469) -> -435450.4723 | O124: =SUMIF(Cálculos!$I$8:$QJ$8, O$2, Cálculos!$I469:$QJ469) -> -420173.1942 | P124: =SUMIF(Cálculos!$I$8:$QJ$8, P$2, Cálculos!$I469:$QJ469) -> -402958.3747 | Q124: =SUMIF(Cálculos!$I$8:$QJ$8, Q$2, Cálculos!$I469:$QJ469) -> -383560.2853 | R124: =SUMIF(Cálculos!$I$8:$QJ$8, R$2, Cálculos!$I469:$QJ469) -> -361702.0326 | S124: =SUMIF(Cálculos!$I$8:$QJ$8, S$2, Cálculos!$I469:$QJ469) -> -337071.6064 | T124: =SUMIF(Cálculos!$I$8:$QJ$8, T$2, Cálculos!$I469:$QJ469) -> -309317.4256 | U124: =SUMIF(Cálculos!$I$8:$QJ$8, U$2, Cálculos!$I469:$QJ469) -> -278043.32 | V124: =SUMIF(Cálculos!$I$8:$QJ$8, V$2, Cálculos!$I469:$QJ469) -> -242802.875 | W124: =SUMIF(Cálculos!$I$8:$QJ$8, W$2, Cálculos!$I469:$QJ469) -> -203093.0595 | X124: =SUMIF(Cálculos!$I$8:$QJ$8, X$2, Cálculos!$I469:$QJ469) -> -158347.0455 | Y124: =SUMIF(Cálculos!$I$8:$QJ$8, Y$2, Cálculos!$I469:$QJ469) -> -107926.1169 | Z124: =SUMIF(Cálculos!$I$8:$QJ$8, Z$2, Cálculos!$I469:$QJ469) -> -51110.55245 | AA124: =SUMIF(Cálculos!$I$8:$QJ$8, AA$2, Cálculos!$I469:$QJ469) -> 12910.64763 | AB124: =SUMIF(Cálculos!$I$8:$QJ$8, AB$2, Cálculos!$I469:$QJ469) -> 85051.33834 | AC124: =SUMIF(Cálculos!$I$8:$QJ$8, AC$2, Cálculos!$I469:$QJ469) -> 166341.2743 | AD124: =SUMIF(Cálculos!$I$8:$QJ$8, AD$2, Cálculos!$I469:$QJ469) -> 257940.8089 | AE124: =SUMIF(Cálculos!$I$8:$QJ$8, AE$2, Cálculos!$I469:$QJ469) -> 361157.4572 | AF124: =SUMIF(Cálculos!$I$8:$QJ$8, AF$2, Cálculos!$I469:$QJ469) -> 0 | AG124: =SUMIF(Cálculos!$I$8:$QJ$8, AG$2, Cálculos!$I469:$QJ469) -> 0
C125: =Cálculos!C470 -> Mais: Utilização de Dívida Subordinada | D125: =Cálculos!E470 -> EUR | F125: 4047500 | G125: =SUMIF(Cálculos!$I$8:$QJ$8, G$2, Cálculos!$I470:$QJ470) -> 2023750 | H125: =SUMIF(Cálculos!$I$8:$QJ$8, H$2, Cálculos!$I470:$QJ470) -> 2023750 | I125: =SUMIF(Cálculos!$I$8:$QJ$8, I$2, Cálculos!$I470:$QJ470) -> 0 | J125: =SUMIF(Cálculos!$I$8:$QJ$8, J$2, Cálculos!$I470:$QJ470) -> 0 | K125: =SUMIF(Cálculos!$I$8:$QJ$8, K$2, Cálculos!$I470:$QJ470) -> 0 | L125: =SUMIF(Cálculos!$I$8:$QJ$8, L$2, Cálculos!$I470:$QJ470) -> 0 | M125: =SUMIF(Cálculos!$I$8:$QJ$8, M$2, Cálculos!$I470:$QJ470) -> 0 | N125: =SUMIF(Cálculos!$I$8:$QJ$8, N$2, Cálculos!$I470:$QJ470) -> 0 | O125: =SUMIF(Cálculos!$I$8:$QJ$8, O$2, Cálculos!$I470:$QJ470) -> 0 | P125: =SUMIF(Cálculos!$I$8:$QJ$8, P$2, Cálculos!$I470:$QJ470) -> 0 | Q125: =SUMIF(Cálculos!$I$8:$QJ$8, Q$2, Cálculos!$I470:$QJ470) -> 0 | R125: =SUMIF(Cálculos!$I$8:$QJ$8, R$2, Cálculos!$I470:$QJ470) -> 0 | S125: =SUMIF(Cálculos!$I$8:$QJ$8, S$2, Cálculos!$I470:$QJ470) -> 0 | T125: =SUMIF(Cálculos!$I$8:$QJ$8, T$2, Cálculos!$I470:$QJ470) -> 0 | U125: =SUMIF(Cálculos!$I$8:$QJ$8, U$2, Cálculos!$I470:$QJ470) -> 0 | V125: =SUMIF(Cálculos!$I$8:$QJ$8, V$2, Cálculos!$I470:$QJ470) -> 0 | W125: =SUMIF(Cálculos!$I$8:$QJ$8, W$2, Cálculos!$I470:$QJ470) -> 0 | X125: =SUMIF(Cálculos!$I$8:$QJ$8, X$2, Cálculos!$I470:$QJ470) -> 0 | Y125: =SUMIF(Cálculos!$I$8:$QJ$8, Y$2, Cálculos!$I470:$QJ470) -> 0 | Z125: =SUMIF(Cálculos!$I$8:$QJ$8, Z$2, Cálculos!$I470:$QJ470) -> 0 | AA125: =SUMIF(Cálculos!$I$8:$QJ$8, AA$2, Cálculos!$I470:$QJ470) -> 0 | AB125: =SUMIF(Cálculos!$I$8:$QJ$8, AB$2, Cálculos!$I470:$QJ470) -> 0 | AC125: =SUMIF(Cálculos!$I$8:$QJ$8, AC$2, Cálculos!$I470:$QJ470) -> 0 | AD125: =SUMIF(Cálculos!$I$8:$QJ$8, AD$2, Cálculos!$I470:$QJ470) -> 0 | AE125: =SUMIF(Cálculos!$I$8:$QJ$8, AE$2, Cálculos!$I470:$QJ470) -> 0 | AF125: =SUMIF(Cálculos!$I$8:$QJ$8, AF$2, Cálculos!$I470:$QJ470) -> 0 | AG125: =SUMIF(Cálculos!$I$8:$QJ$8, AG$2, Cálculos!$I470:$QJ470) -> 0
C126: =Cálculos!C471 -> Menos: Reembolso de Capital – Dívida Subordinada | D126: =Cálculos!E471 -> EUR | F126: -4047500 | G126: =SUMIF(Cálculos!$I$8:$QJ$8, G$2, Cálculos!$I471:$QJ471) -> 0 | H126: =SUMIF(Cálculos!$I$8:$QJ$8, H$2, Cálculos!$I471:$QJ471) -> 0 | I126: =SUMIF(Cálculos!$I$8:$QJ$8, I$2, Cálculos!$I471:$QJ471) -> -50064.11563 | J126: =SUMIF(Cálculos!$I$8:$QJ$8, J$2, Cálculos!$I471:$QJ471) -> -74716.25064 | K126: =SUMIF(Cálculos!$I$8:$QJ$8, K$2, Cálculos!$I471:$QJ471) -> -84192.14138 | L126: =SUMIF(Cálculos!$I$8:$QJ$8, L$2, Cálculos!$I471:$QJ471) -> -94869.81225 | M126: =SUMIF(Cálculos!$I$8:$QJ$8, M$2, Cálculos!$I471:$QJ471) -> -106901.679 | N126: =SUMIF(Cálculos!$I$8:$QJ$8, N$2, Cálculos!$I471:$QJ471) -> -120459.4877 | O126: =SUMIF(Cálculos!$I$8:$QJ$8, O$2, Cálculos!$I471:$QJ471) -> -135736.7659 | P126: =SUMIF(Cálculos!$I$8:$QJ$8, P$2, Cálculos!$I471:$QJ471) -> -152951.5853 | Q126: =SUMIF(Cálculos!$I$8:$QJ$8, Q$2, Cálculos!$I471:$QJ471) -> -172349.6747 | R126: =SUMIF(Cálculos!$I$8:$QJ$8, R$2, Cálculos!$I471:$QJ471) -> -194207.9274 | S126: =SUMIF(Cálculos!$I$8:$QJ$8, S$2, Cálculos!$I471:$QJ471) -> -218838.3536 | T126: =SUMIF(Cálculos!$I$8:$QJ$8, T$2, Cálculos!$I471:$QJ471) -> -246592.5344 | U126: =SUMIF(Cálculos!$I$8:$QJ$8, U$2, Cálculos!$I471:$QJ471) -> -277866.64 | V126: =SUMIF(Cálculos!$I$8:$QJ$8, V$2, Cálculos!$I471:$QJ471) -> -313107.085 | W126: =SUMIF(Cálculos!$I$8:$QJ$8, W$2, Cálculos!$I471:$QJ471) -> -352816.9005 | X126: =SUMIF(Cálculos!$I$8:$QJ$8, X$2, Cálculos!$I471:$QJ471) -> -397562.9146 | Y126: =SUMIF(Cálculos!$I$8:$QJ$8, Y$2, Cálculos!$I471:$QJ471) -> -447983.8432 | Z126: =SUMIF(Cálculos!$I$8:$QJ$8, Z$2, Cálculos!$I471:$QJ471) -> -504799.4076 | AA126: =SUMIF(Cálculos!$I$8:$QJ$8, AA$2, Cálculos!$I471:$QJ471) -> -568820.6077 | AB126: =SUMIF(Cálculos!$I$8:$QJ$8, AB$2, Cálculos!$I471:$QJ471) -> -640961.2984 | AC126: =SUMIF(Cálculos!$I$8:$QJ$8, AC$2, Cálculos!$I471:$QJ471) -> -722251.2344 | AD126: =SUMIF(Cálculos!$I$8:$QJ$8, AD$2, Cálculos!$I471:$QJ471) -> -813850.7689 | AE126: =SUMIF(Cálculos!$I$8:$QJ$8, AE$2, Cálculos!$I471:$QJ471) -> 2644401.028 | AF126: =SUMIF(Cálculos!$I$8:$QJ$8, AF$2, Cálculos!$I471:$QJ471) -> 0 | AG126: =SUMIF(Cálculos!$I$8:$QJ$8, AG$2, Cálculos!$I471:$QJ471) -> 0
C127: =Cálculos!C472 -> Menos: Investimento | D127: =Cálculos!E472 -> EUR | F127: -17967827.81 | G127: =SUMIF(Cálculos!$I$8:$QJ$8, G$2, Cálculos!$I472:$QJ472) -> -8079155.568 | H127: =SUMIF(Cálculos!$I$8:$QJ$8, H$2, Cálculos!$I472:$QJ472) -> -7426934.751 | I127: =SUMIF(Cálculos!$I$8:$QJ$8, I$2, Cálculos!$I472:$QJ472) -> 0 | J127: =SUMIF(Cálculos!$I$8:$QJ$8, J$2, Cálculos!$I472:$QJ472) -> 0 | K127: =SUMIF(Cálculos!$I$8:$QJ$8, K$2, Cálculos!$I472:$QJ472) -> 0 | L127: =SUMIF(Cálculos!$I$8:$QJ$8, L$2, Cálculos!$I472:$QJ472) -> 0 | M127: =SUMIF(Cálculos!$I$8:$QJ$8, M$2, Cálculos!$I472:$QJ472) -> 0 | N127: =SUMIF(Cálculos!$I$8:$QJ$8, N$2, Cálculos!$I472:$QJ472) -> 0 | O127: =SUMIF(Cálculos!$I$8:$QJ$8, O$2, Cálculos!$I472:$QJ472) -> 0 | P127: =SUMIF(Cálculos!$I$8:$QJ$8, P$2, Cálculos!$I472:$QJ472) -> 0 | Q127: =SUMIF(Cálculos!$I$8:$QJ$8, Q$2, Cálculos!$I472:$QJ472) -> 0 | R127: =SUMIF(Cálculos!$I$8:$QJ$8, R$2, Cálculos!$I472:$QJ472) -> 0 | S127: =SUMIF(Cálculos!$I$8:$QJ$8, S$2, Cálculos!$I472:$QJ472) -> 0 | T127: =SUMIF(Cálculos!$I$8:$QJ$8, T$2, Cálculos!$I472:$QJ472) -> 0 | U127: =SUMIF(Cálculos!$I$8:$QJ$8, U$2, Cálculos!$I472:$QJ472) -> 0 | V127: =SUMIF(Cálculos!$I$8:$QJ$8, V$2, Cálculos!$I472:$QJ472) -> 0 | W127: =SUMIF(Cálculos!$I$8:$QJ$8, W$2, Cálculos!$I472:$QJ472) -> 0 | X127: =SUMIF(Cálculos!$I$8:$QJ$8, X$2, Cálculos!$I472:$QJ472) -> 0 | Y127: =SUMIF(Cálculos!$I$8:$QJ$8, Y$2, Cálculos!$I472:$QJ472) -> 0 | Z127: =SUMIF(Cálculos!$I$8:$QJ$8, Z$2, Cálculos!$I472:$QJ472) -> -7777.95982 | AA127: =SUMIF(Cálculos!$I$8:$QJ$8, AA$2, Cálculos!$I472:$QJ472) -> -2453959.528 | AB127: =SUMIF(Cálculos!$I$8:$QJ$8, AB$2, Cálculos!$I472:$QJ472) -> 0 | AC127: =SUMIF(Cálculos!$I$8:$QJ$8, AC$2, Cálculos!$I472:$QJ472) -> 0 | AD127: =SUMIF(Cálculos!$I$8:$QJ$8, AD$2, Cálculos!$I472:$QJ472) -> 0 | AE127: =SUMIF(Cálculos!$I$8:$QJ$8, AE$2, Cálculos!$I472:$QJ472) -> 0 | AF127: =SUMIF(Cálculos!$I$8:$QJ$8, AF$2, Cálculos!$I472:$QJ472) -> 0 | AG127: =SUMIF(Cálculos!$I$8:$QJ$8, AG$2, Cálculos!$I472:$QJ472) -> 0
C128: =Cálculos!C473 -> Caixa Disponível para Dividendos | D128: =Cálculos!E473 -> EUR | F128: 6817699.262 | G128: =SUMIF(Cálculos!$I$8:$QJ$8, G$2, Cálculos!$I473:$QJ473) -> 25703.12416 | H128: =SUMIF(Cálculos!$I$8:$QJ$8, H$2, Cálculos!$I473:$QJ473) -> 477382.646 | I128: =SUMIF(Cálculos!$I$8:$QJ$8, I$2, Cálculos!$I473:$QJ473) -> 217256.3749 | J128: =SUMIF(Cálculos!$I$8:$QJ$8, J$2, Cálculos!$I473:$QJ473) -> 306285.4308 | K128: =SUMIF(Cálculos!$I$8:$QJ$8, K$2, Cálculos!$I473:$QJ473) -> 289064.2342 | L128: =SUMIF(Cálculos!$I$8:$QJ$8, L$2, Cálculos!$I473:$QJ473) -> 265358.2521 | M128: =SUMIF(Cálculos!$I$8:$QJ$8, M$2, Cálculos!$I473:$QJ473) -> 239319.8242 | N128: =SUMIF(Cálculos!$I$8:$QJ$8, N$2, Cálculos!$I473:$QJ473) -> 214728.3795 | O128: =SUMIF(Cálculos!$I$8:$QJ$8, O$2, Cálculos!$I473:$QJ473) -> 189632.9833 | P128: =SUMIF(Cálculos!$I$8:$QJ$8, P$2, Cálculos!$I473:$QJ473) -> 164176.2735 | Q128: =SUMIF(Cálculos!$I$8:$QJ$8, Q$2, Cálculos!$I473:$QJ473) -> 138447.6648 | R128: =SUMIF(Cálculos!$I$8:$QJ$8, R$2, Cálculos!$I473:$QJ473) -> 113586.5512 | S128: =SUMIF(Cálculos!$I$8:$QJ$8, S$2, Cálculos!$I473:$QJ473) -> 88444.11924 | T128: =SUMIF(Cálculos!$I$8:$QJ$8, T$2, Cálculos!$I473:$QJ473) -> 63396.95293 | U128: =SUMIF(Cálculos!$I$8:$QJ$8, U$2, Cálculos!$I473:$QJ473) -> 38059.30678 | V128: =SUMIF(Cálculos!$I$8:$QJ$8, V$2, Cálculos!$I473:$QJ473) -> 13569.07437 | W128: =SUMIF(Cálculos!$I$8:$QJ$8, W$2, Cálculos!$I473:$QJ473) -> -11221.43349 | X128: =SUMIF(Cálculos!$I$8:$QJ$8, X$2, Cálculos!$I473:$QJ473) -> -35936.2708 | Y128: =SUMIF(Cálculos!$I$8:$QJ$8, Y$2, Cálculos!$I473:$QJ473) -> -60960.96888 | Z128: =SUMIF(Cálculos!$I$8:$QJ$8, Z$2, Cálculos!$I473:$QJ473) -> 487766.8166 | AA128: =SUMIF(Cálculos!$I$8:$QJ$8, AA$2, Cálculos!$I473:$QJ473) -> -1845945.223 | AB128: =SUMIF(Cálculos!$I$8:$QJ$8, AB$2, Cálculos!$I473:$QJ473) -> 423736.3748 | AC128: =SUMIF(Cálculos!$I$8:$QJ$8, AC$2, Cálculos!$I473:$QJ473) -> 389448.5824 | AD128: =SUMIF(Cálculos!$I$8:$QJ$8, AD$2, Cálculos!$I473:$QJ473) -> 354098.2794 | AE128: =SUMIF(Cálculos!$I$8:$QJ$8, AE$2, Cálculos!$I473:$QJ473) -> 3877981.031 | AF128: =SUMIF(Cálculos!$I$8:$QJ$8, AF$2, Cálculos!$I473:$QJ473) -> 912879.67 | AG128: =SUMIF(Cálculos!$I$8:$QJ$8, AG$2, Cálculos!$I473:$QJ473) -> -518558.7886
C129: =Cálculos!C474 -> Dividendo | D129: =Cálculos!E474 -> EUR | F129: 0 | G129: =SUMIF(Cálculos!$I$8:$QJ$8, G$2, Cálculos!$I474:$QJ474) -> 0 | H129: =SUMIF(Cálculos!$I$8:$QJ$8, H$2, Cálculos!$I474:$QJ474) -> 0 | I129: =SUMIF(Cálculos!$I$8:$QJ$8, I$2, Cálculos!$I474:$QJ474) -> 0 | J129: =SUMIF(Cálculos!$I$8:$QJ$8, J$2, Cálculos!$I474:$QJ474) -> 0 | K129: =SUMIF(Cálculos!$I$8:$QJ$8, K$2, Cálculos!$I474:$QJ474) -> 0 | L129: =SUMIF(Cálculos!$I$8:$QJ$8, L$2, Cálculos!$I474:$QJ474) -> 0 | M129: =SUMIF(Cálculos!$I$8:$QJ$8, M$2, Cálculos!$I474:$QJ474) -> 0 | N129: =SUMIF(Cálculos!$I$8:$QJ$8, N$2, Cálculos!$I474:$QJ474) -> 0 | O129: =SUMIF(Cálculos!$I$8:$QJ$8, O$2, Cálculos!$I474:$QJ474) -> 0 | P129: =SUMIF(Cálculos!$I$8:$QJ$8, P$2, Cálculos!$I474:$QJ474) -> 0 | Q129: =SUMIF(Cálculos!$I$8:$QJ$8, Q$2, Cálculos!$I474:$QJ474) -> 0 | R129: =SUMIF(Cálculos!$I$8:$QJ$8, R$2, Cálculos!$I474:$QJ474) -> 0 | S129: =SUMIF(Cálculos!$I$8:$QJ$8, S$2, Cálculos!$I474:$QJ474) -> 0 | T129: =SUMIF(Cálculos!$I$8:$QJ$8, T$2, Cálculos!$I474:$QJ474) -> 0 | U129: =SUMIF(Cálculos!$I$8:$QJ$8, U$2, Cálculos!$I474:$QJ474) -> 0 | V129: =SUMIF(Cálculos!$I$8:$QJ$8, V$2, Cálculos!$I474:$QJ474) -> 0 | W129: =SUMIF(Cálculos!$I$8:$QJ$8, W$2, Cálculos!$I474:$QJ474) -> 0 | X129: =SUMIF(Cálculos!$I$8:$QJ$8, X$2, Cálculos!$I474:$QJ474) -> 0 | Y129: =SUMIF(Cálculos!$I$8:$QJ$8, Y$2, Cálculos!$I474:$QJ474) -> 0 | Z129: =SUMIF(Cálculos!$I$8:$QJ$8, Z$2, Cálculos!$I474:$QJ474) -> 0 | AA129: =SUMIF(Cálculos!$I$8:$QJ$8, AA$2, Cálculos!$I474:$QJ474) -> 0 | AB129: =SUMIF(Cálculos!$I$8:$QJ$8, AB$2, Cálculos!$I474:$QJ474) -> 0 | AC129: =SUMIF(Cálculos!$I$8:$QJ$8, AC$2, Cálculos!$I474:$QJ474) -> 0 | AD129: =SUMIF(Cálculos!$I$8:$QJ$8, AD$2, Cálculos!$I474:$QJ474) -> 0 | AE129: =SUMIF(Cálculos!$I$8:$QJ$8, AE$2, Cálculos!$I474:$QJ474) -> 0 | AF129: =SUMIF(Cálculos!$I$8:$QJ$8, AF$2, Cálculos!$I474:$QJ474) -> 0 | AG129: =SUMIF(Cálculos!$I$8:$QJ$8, AG$2, Cálculos!$I474:$QJ474) -> 0
C130: =Cálculos!C475 -> Variação Líquida de Caixa | D130: =Cálculos!E475 -> EUR | F130: 6817699.262 | G130: =SUMIF(Cálculos!$I$8:$QJ$8, G$2, Cálculos!$I475:$QJ475) -> 25703.12416 | H130: =SUMIF(Cálculos!$I$8:$QJ$8, H$2, Cálculos!$I475:$QJ475) -> 477382.646 | I130: =SUMIF(Cálculos!$I$8:$QJ$8, I$2, Cálculos!$I475:$QJ475) -> 217256.3749 | J130: =SUMIF(Cálculos!$I$8:$QJ$8, J$2, Cálculos!$I475:$QJ475) -> 306285.4308 | K130: =SUMIF(Cálculos!$I$8:$QJ$8, K$2, Cálculos!$I475:$QJ475) -> 289064.2342 | L130: =SUMIF(Cálculos!$I$8:$QJ$8, L$2, Cálculos!$I475:$QJ475) -> 265358.2521 | M130: =SUMIF(Cálculos!$I$8:$QJ$8, M$2, Cálculos!$I475:$QJ475) -> 239319.8242 | N130: =SUMIF(Cálculos!$I$8:$QJ$8, N$2, Cálculos!$I475:$QJ475) -> 214728.3795 | O130: =SUMIF(Cálculos!$I$8:$QJ$8, O$2, Cálculos!$I475:$QJ475) -> 189632.9833 | P130: =SUMIF(Cálculos!$I$8:$QJ$8, P$2, Cálculos!$I475:$QJ475) -> 164176.2735 | Q130: =SUMIF(Cálculos!$I$8:$QJ$8, Q$2, Cálculos!$I475:$QJ475) -> 138447.6648 | R130: =SUMIF(Cálculos!$I$8:$QJ$8, R$2, Cálculos!$I475:$QJ475) -> 113586.5512 | S130: =SUMIF(Cálculos!$I$8:$QJ$8, S$2, Cálculos!$I475:$QJ475) -> 88444.11924 | T130: =SUMIF(Cálculos!$I$8:$QJ$8, T$2, Cálculos!$I475:$QJ475) -> 63396.95293 | U130: =SUMIF(Cálculos!$I$8:$QJ$8, U$2, Cálculos!$I475:$QJ475) -> 38059.30678 | V130: =SUMIF(Cálculos!$I$8:$QJ$8, V$2, Cálculos!$I475:$QJ475) -> 13569.07437 | W130: =SUMIF(Cálculos!$I$8:$QJ$8, W$2, Cálculos!$I475:$QJ475) -> -11221.43349 | X130: =SUMIF(Cálculos!$I$8:$QJ$8, X$2, Cálculos!$I475:$QJ475) -> -35936.2708 | Y130: =SUMIF(Cálculos!$I$8:$QJ$8, Y$2, Cálculos!$I475:$QJ475) -> -60960.96888 | Z130: =SUMIF(Cálculos!$I$8:$QJ$8, Z$2, Cálculos!$I475:$QJ475) -> 487766.8166 | AA130: =SUMIF(Cálculos!$I$8:$QJ$8, AA$2, Cálculos!$I475:$QJ475) -> -1845945.223 | AB130: =SUMIF(Cálculos!$I$8:$QJ$8, AB$2, Cálculos!$I475:$QJ475) -> 423736.3748 | AC130: =SUMIF(Cálculos!$I$8:$QJ$8, AC$2, Cálculos!$I475:$QJ475) -> 389448.5824 | AD130: =SUMIF(Cálculos!$I$8:$QJ$8, AD$2, Cálculos!$I475:$QJ475) -> 354098.2794 | AE130: =SUMIF(Cálculos!$I$8:$QJ$8, AE$2, Cálculos!$I475:$QJ475) -> 3877981.031 | AF130: =SUMIF(Cálculos!$I$8:$QJ$8, AF$2, Cálculos!$I475:$QJ475) -> 912879.67 | AG130: =SUMIF(Cálculos!$I$8:$QJ$8, AG$2, Cálculos!$I475:$QJ475) -> -518558.7886
C132: =Cálculos!C477 -> Saldo Inicial de Caixa | D132: =Cálculos!E477 -> EUR | G132: =F133 -> 0 | H132: =G133 -> 25703.12416 | I132: 503085.7702 | J132: 720342.1451 | K132: 1026627.576 | L132: =K133 -> 1315691.81 | M132: 1581050.062 | N132: 1820369.886 | O132: 2035098.266 | P132: 2224731.249 | Q132: 2388907.523 | R132: 2527355.187 | S132: 2640941.739 | T132: 2729385.858 | U132: 2792782.811 | V132: 2830842.118 | W132: 2844411.192 | X132: 2833189.758 | Y132: 2797253.488 | Z132: 2736292.519 | AA132: 3224059.335 | AB132: 1378114.112 | AC132: 1801850.487 | AD132: 2191299.07 | AE132: =AD133 -> 2545397.349 | AF132: 6423378.381 | AG132: 7336258.051
C133: =Cálculos!C478 -> Saldo Final de Caixa | D133: =Cálculos!E478 -> EUR | F133: 0 | G133: =G130+G132 -> 25703.12416 | H133: =H130+H132 -> 503085.7702 | I133: =I130+I132 -> 720342.1451 | J133: 1026627.576 | K133: 1315691.81 | L133: 1581050.062 | M133: 1820369.886 | N133: 2035098.266 | O133: 2224731.249 | P133: 2388907.523 | Q133: 2527355.187 | R133: 2640941.739 | S133: 2729385.858 | T133: 2792782.811 | U133: 2830842.118 | V133: 2844411.192 | W133: 2833189.758 | X133: 2797253.488 | Y133: 2736292.519 | Z133: 3224059.335 | AA133: 1378114.112 | AB133: 1801850.487 | AC133: 2191299.07 | AD133: 2545397.349 | AE133: =AE130+AE132 -> 6423378.381 | AF133: 7336258.051 | AG133: 6817699.262
C135: Verificação Anual = Mensal | D135: Check | E135: =IF(ROUND($F$28-Cálculos!$H$369+$F$106-Cálculos!$H$448, 0)=0, "OK", "NO") -> OK

Sheet DFT
A1: =Entradas!$D$6&" - Relatórios Financeiros Trimestrais" -> Força Açoreana, S.A.: Azores PV & BESS (São Miguel Poente) - Relatórios Financeiros Trimestrais
C3: Ano | H3: 2026 | I3: =H3 -> 2026 | J3: 2026 | K3: =J3 -> 2026 | L3: =H3+1 -> 2027 | M3: =I3+1 -> 2027 | N3: 2027 | O3: 2027 | P3: =L3+1 -> 2028 | Q3: =M3+1 -> 2028 | R3: =N3+1 -> 2028 | S3: =O3+1 -> 2028 | T3: =P3+1 -> 2029 | U3: =Q3+1 -> 2029 | V3: =R3+1 -> 2029 | W3: =S3+1 -> 2029 | X3: =T3+1 -> 2030 | Y3: =U3+1 -> 2030 | Z3: =V3+1 -> 2030 | AA3: =W3+1 -> 2030 | AB3: =X3+1 -> 2031 | AC3: =Y3+1 -> 2031 | AD3: =Z3+1 -> 2031 | AE3: =AA3+1 -> 2031 | AF3: =AB3+1 -> 2032 | AG3: =AC3+1 -> 2032 | AH3: =AD3+1 -> 2032 | AI3: =AE3+1 -> 2032 | AJ3: =AF3+1 -> 2033 | AK3: =AG3+1 -> 2033 | AL3: =AH3+1 -> 2033 | AM3: =AI3+1 -> 2033 | AN3: =AJ3+1 -> 2034 | AO3: =AK3+1 -> 2034 | AP3: =AL3+1 -> 2034 | AQ3: =AM3+1 -> 2034 | AR3: =AN3+1 -> 2035 | AS3: =AO3+1 -> 2035 | AT3: =AP3+1 -> 2035 | AU3: =AQ3+1 -> 2035 | AV3: =AR3+1 -> 2036 | AW3: =AS3+1 -> 2036 | AX3: =AT3+1 -> 2036 | AY3: =AU3+1 -> 2036 | AZ3: =AV3+1 -> 2037 | BA3: =AW3+1 -> 2037 | BB3: =AX3+1 -> 2037 | BC3: =AY3+1 -> 2037 | BD3: =AZ3+1 -> 2038 | BE3: =BA3+1 -> 2038 | BF3: =BB3+1 -> 2038 | BG3: =BC3+1 -> 2038 | BH3: =BD3+1 -> 2039 | BI3: =BE3+1 -> 2039 | BJ3: =BF3+1 -> 2039 | BK3: =BG3+1 -> 2039 | BL3: =BH3+1 -> 2040 | BM3: =BI3+1 -> 2040 | BN3: =BJ3+1 -> 2040 | BO3: =BK3+1 -> 2040 | BP3: =BL3+1 -> 2041 | BQ3: =BM3+1 -> 2041 | BR3: =BN3+1 -> 2041 | BS3: =BO3+1 -> 2041 | BT3: =BP3+1 -> 2042 | BU3: =BQ3+1 -> 2042 | BV3: =BR3+1 -> 2042 | BW3: =BS3+1 -> 2042 | BX3: =BT3+1 -> 2043 | BY3: =BU3+1 -> 2043 | BZ3: =BV3+1 -> 2043 | CA3: =BW3+1 -> 2043 | CB3: =BX3+1 -> 2044 | CC3: =BY3+1 -> 2044 | CD3: =BZ3+1 -> 2044 | CE3: =CA3+1 -> 2044 | CF3: =CB3+1 -> 2045 | CG3: =CC3+1 -> 2045 | CH3: =CD3+1 -> 2045 | CI3: =CE3+1 -> 2045 | CJ3: =CF3+1 -> 2046 | CK3: =CG3+1 -> 2046 | CL3: =CH3+1 -> 2046 | CM3: =CI3+1 -> 2046 | CN3: =CJ3+1 -> 2047 | CO3: =CK3+1 -> 2047 | CP3: =CL3+1 -> 2047 | CQ3: =CM3+1 -> 2047 | CR3: =CN3+1 -> 2048 | CS3: =CO3+1 -> 2048 | CT3: =CP3+1 -> 2048 | CU3: =CQ3+1 -> 2048 | CV3: =CR3+1 -> 2049 | CW3: =CS3+1 -> 2049 | CX3: =CT3+1 -> 2049 | CY3: =CU3+1 -> 2049 | CZ3: =CV3+1 -> 2050 | DA3: =CW3+1 -> 2050 | DB3: =CX3+1 -> 2050 | DC3: =CY3+1 -> 2050 | DD3: =CZ3+1 -> 2051 | DE3: =DA3+1 -> 2051 | DF3: =DB3+1 -> 2051 | DG3: =DC3+1 -> 2051 | DH3: =DD3+1 -> 2052 | DI3: =DE3+1 -> 2052 | DJ3: =DF3+1 -> 2052 | DK3: =DG3+1 -> 2052
C4: Trimestre | H4: 1 | I4: =IF(H4=4, 1, H4+1) -> 2 | J4: =IF(I4=4, 1, I4+1) -> 3 | K4: =IF(J4=4, 1, J4+1) -> 4 | L4: =IF(K4=4, 1, K4+1) -> 1 | M4: =IF(L4=4, 1, L4+1) -> 2 | N4: =IF(M4=4, 1, M4+1) -> 3 | O4: 4 | P4: 1 | Q4: 2 | R4: 3 | S4: 4 | T4: 1 | U4: 2 | V4: 3 | W4: 4 | X4: 1 | Y4: 2 | Z4: 3 | AA4: 4 | AB4: 1 | AC4: 2 | AD4: 3 | AE4: 4 | AF4: 1 | AG4: 2 | AH4: 3 | AI4: 4 | AJ4: 1 | AK4: 2 | AL4: 3 | AM4: 4 | AN4: 1 | AO4: 2 | AP4: 3 | AQ4: 4 | AR4: 1 | AS4: 2 | AT4: 3 | AU4: 4 | AV4: 1 | AW4: 2 | AX4: 3 | AY4: 4 | AZ4: 1 | BA4: 2 | BB4: 3 | BC4: 4 | BD4: 1 | BE4: 2 | BF4: 3 | BG4: 4 | BH4: 1 | BI4: 2 | BJ4: 3 | BK4: 4 | BL4: 1 | BM4: 2 | BN4: 3 | BO4: 4 | BP4: 1 | BQ4: 2 | BR4: 3 | BS4: 4 | BT4: 1 | BU4: 2 | BV4: 3 | BW4: 4 | BX4: 1 | BY4: 2 | BZ4: =IF(BY4=4, 1, BY4+1) -> 3 | CA4: 4 | CB4: 1 | CC4: 2 | CD4: 3 | CE4: 4 | CF4: 1 | CG4: 2 | CH4: 3 | CI4: 4 | CJ4: 1 | CK4: 2 | CL4: 3 | CM4: 4 | CN4: 1 | CO4: 2 | CP4: 3 | CQ4: 4 | CR4: 1 | CS4: 2 | CT4: 3 | CU4: 4 | CV4: 1 | CW4: 2 | CX4: 3 | CY4: 4 | CZ4: 1 | DA4: 2 | DB4: 3 | DC4: 4 | DD4: =IF(DC4=4, 1, DC4+1) -> 1 | DE4: 2 | DF4: 3 | DG4: 4 | DH4: 1 | DI4: 2 | DJ4: 3 | DK4: 4
C5: Fim do Período | H5: =EOMONTH(DATE(H3, H4*3, 1), 0) -> 2026-03-31 | I5: =EOMONTH(DATE(I3, I4*3, 1), 0) -> 2026-06-30 | J5: =EOMONTH(DATE(J3, J4*3, 1), 0) -> 2026-09-30 | K5: 2026-12-31 | L5: 2027-03-31 | M5: 2027-06-30 | N5: 2027-09-30 | O5: 2027-12-31 | P5: 2028-03-31 | Q5: 2028-06-30 | R5: 2028-09-30 | S5: 2028-12-31 | T5: 2029-03-31 | U5: 2029-06-30 | V5: 2029-09-30 | W5: 2029-12-31 | X5: 2030-03-31 | Y5: 2030-06-30 | Z5: 2030-09-30 | AA5: 2030-12-31 | AB5: 2031-03-31 | AC5: 2031-06-30 | AD5: 2031-09-30 | AE5: 2031-12-31 | AF5: 2032-03-31 | AG5: 2032-06-30 | AH5: 2032-09-30 | AI5: 2032-12-31 | AJ5: 2033-03-31 | AK5: 2033-06-30 | AL5: 2033-09-30 | AM5: 2033-12-31 | AN5: 2034-03-31 | AO5: 2034-06-30 | AP5: 2034-09-30 | AQ5: 2034-12-31 | AR5: 2035-03-31 | AS5: 2035-06-30 | AT5: 2035-09-30 | AU5: 2035-12-31 | AV5: 2036-03-31 | AW5: 2036-06-30 | AX5: 2036-09-30 | AY5: 2036-12-31 | AZ5: 2037-03-31 | BA5: 2037-06-30 | BB5: 2037-09-30 | BC5: 2037-12-31 | BD5: 2038-03-31 | BE5: 2038-06-30 | BF5: 2038-09-30 | BG5: 2038-12-31 | BH5: 2039-03-31 | BI5: 2039-06-30 | BJ5: 2039-09-30 | BK5: 2039-12-31 | BL5: 2040-03-31 | BM5: 2040-06-30 | BN5: 2040-09-30 | BO5: 2040-12-31 | BP5: 2041-03-31 | BQ5: 2041-06-30 | BR5: 2041-09-30 | BS5: 2041-12-31 | BT5: 2042-03-31 | BU5: 2042-06-30 | BV5: =EOMONTH(DATE(BV3, BV4*3, 1), 0) -> 2042-09-30 | BW5: 2042-12-31 | BX5: 2043-03-31 | BY5: 2043-06-30 | BZ5: 2043-09-30 | CA5: 2043-12-31 | CB5: 2044-03-31 | CC5: 2044-06-30 | CD5: 2044-09-30 | CE5: 2044-12-31 | CF5: 2045-03-31 | CG5: 2045-06-30 | CH5: 2045-09-30 | CI5: 2045-12-31 | CJ5: 2046-03-31 | CK5: 2046-06-30 | CL5: 2046-09-30 | CM5: 2046-12-31 | CN5: 2047-03-31 | CO5: 2047-06-30 | CP5: 2047-09-30 | CQ5: 2047-12-31 | CR5: 2048-03-31 | CS5: 2048-06-30 | CT5: 2048-09-30 | CU5: 2048-12-31 | CV5: 2049-03-31 | CW5: 2049-06-30 | CX5: 2049-09-30 | CY5: 2049-12-31 | CZ5: 2050-03-31 | DA5: 2050-06-30 | DB5: 2050-09-30 | DC5: 2050-12-31 | DD5: =EOMONTH(DATE(DD3, DD4*3, 1), 0) -> 2051-03-31 | DE5: 2051-06-30 | DF5: 2051-09-30 | DG5: 2051-12-31 | DH5: 2052-03-31 | DI5: 2052-06-30 | DJ5: 2052-09-30 | DK5: 2052-12-31
A6: · | B6: Demonstração de Resultados | E6: Unidade
A7: =Resumo!$C$49 -> OK
C8: Receitas | AG8: .
C9: =Cálculos!C352 -> Produção Vendida | E9: EUR | G9: =SUM(H9:FC9) -> 50222612.71 | H9: =SUMIFS(Cálculos!$I229:$QJ229, Cálculos!$I$8:$QJ$8, H$3, Cálculos!$I$10:$QJ$10, H$4) -> 0 | I9: =SUMIFS(Cálculos!$I229:$QJ229, Cálculos!$I$8:$QJ$8, I$3, Cálculos!$I$10:$QJ$10, I$4) -> 0 | J9: =SUMIFS(Cálculos!$I229:$QJ229, Cálculos!$I$8:$QJ$8, J$3, Cálculos!$I$10:$QJ$10, J$4) -> 0 | K9: =SUMIFS(Cálculos!$I229:$QJ229, Cálculos!$I$8:$QJ$8, K$3, Cálculos!$I$10:$QJ$10, K$4) -> 0 | L9: =SUMIFS(Cálculos!$I229:$QJ229, Cálculos!$I$8:$QJ$8, L$3, Cálculos!$I$10:$QJ$10, L$4) -> 0 | M9: =SUMIFS(Cálculos!$I229:$QJ229, Cálculos!$I$8:$QJ$8, M$3, Cálculos!$I$10:$QJ$10, M$4) -> 0 | N9: =SUMIFS(Cálculos!$I229:$QJ229, Cálculos!$I$8:$QJ$8, N$3, Cálculos!$I$10:$QJ$10, N$4) -> 0 | O9: =SUMIFS(Cálculos!$I229:$QJ229, Cálculos!$I$8:$QJ$8, O$3, Cálculos!$I$10:$QJ$10, O$4) -> 0 | P9: =SUMIFS(Cálculos!$I229:$QJ229, Cálculos!$I$8:$QJ$8, P$3, Cálculos!$I$10:$QJ$10, P$4) -> 419553.3994 | Q9: =SUMIFS(Cálculos!$I229:$QJ229, Cálculos!$I$8:$QJ$8, Q$3, Cálculos!$I$10:$QJ$10, Q$4) -> 626582.7711 | R9: =SUMIFS(Cálculos!$I229:$QJ229, Cálculos!$I$8:$QJ$8, R$3, Cálculos!$I$10:$QJ$10, R$4) -> 717272.7257 | S9: =SUMIFS(Cálculos!$I229:$QJ229, Cálculos!$I$8:$QJ$8, S$3, Cálculos!$I$10:$QJ$10, S$4) -> 386764.9645 | T9: =SUMIFS(Cálculos!$I229:$QJ229, Cálculos!$I$8:$QJ$8, T$3, Cálculos!$I$10:$QJ$10, T$4) -> 426511.6595 | U9: =SUMIFS(Cálculos!$I229:$QJ229, Cálculos!$I$8:$QJ$8, U$3, Cálculos!$I$10:$QJ$10, U$4) -> 637547.9695 | V9: =SUMIFS(Cálculos!$I229:$QJ229, Cálculos!$I$8:$QJ$8, V$3, Cálculos!$I$10:$QJ$10, V$4) -> 729824.9984 | W9: =SUMIFS(Cálculos!$I229:$QJ229, Cálculos!$I$8:$QJ$8, W$3, Cálculos!$I$10:$QJ$10, W$4) -> 386387.6685 | X9: =SUMIFS(Cálculos!$I229:$QJ229, Cálculos!$I$8:$QJ$8, X$3, Cálculos!$I$10:$QJ$10, X$4) -> 429868.1549 | Y9: =SUMIFS(Cálculos!$I229:$QJ229, Cálculos!$I$8:$QJ$8, Y$3, Cálculos!$I$10:$QJ$10, Y$4) -> 648705.059 | Z9: =SUMIFS(Cálculos!$I229:$QJ229, Cálculos!$I$8:$QJ$8, Z$3, Cálculos!$I$10:$QJ$10, Z$4) -> 730099.0688 | AA9: =SUMIFS(Cálculos!$I229:$QJ229, Cálculos!$I$8:$QJ$8, AA$3, Cálculos!$I$10:$QJ$10, AA$4) -> 382422.5119 | AB9: =SUMIFS(Cálculos!$I229:$QJ229, Cálculos!$I$8:$QJ$8, AB$3, Cálculos!$I$10:$QJ$10, AB$4) -> 430432.5761 | AC9: =SUMIFS(Cálculos!$I229:$QJ229, Cálculos!$I$8:$QJ$8, AC$3, Cálculos!$I$10:$QJ$10, AC$4) -> 660057.3975 | AD9: =SUMIFS(Cálculos!$I229:$QJ229, Cálculos!$I$8:$QJ$8, AD$3, Cálculos!$I$10:$QJ$10, AD$4) -> 723130.6677 | AE9: =SUMIFS(Cálculos!$I229:$QJ229, Cálculos!$I$8:$QJ$8, AE$3, Cálculos!$I$10:$QJ$10, AE$4) -> 378496.8255 | AF9: =SUMIFS(Cálculos!$I229:$QJ229, Cálculos!$I$8:$QJ$8, AF$3, Cálculos!$I$10:$QJ$10, AF$4) -> 426053.1806 | AG9: =SUMIFS(Cálculos!$I229:$QJ229, Cálculos!$I$8:$QJ$8, AG$3, Cálculos!$I$10:$QJ$10, AG$4) -> 660250.0241 | AH9: =SUMIFS(Cálculos!$I229:$QJ229, Cálculos!$I$8:$QJ$8, AH$3, Cálculos!$I$10:$QJ$10, AH$4) -> 715813.4723 | AI9: =SUMIFS(Cálculos!$I229:$QJ229, Cálculos!$I$8:$QJ$8, AI$3, Cálculos!$I$10:$QJ$10, AI$4) -> 374610.2166 | AJ9: =SUMIFS(Cálculos!$I229:$QJ229, Cálculos!$I$8:$QJ$8, AJ$3, Cálculos!$I$10:$QJ$10, AJ$4) -> 421824.3512 | AK9: =SUMIFS(Cálculos!$I229:$QJ229, Cálculos!$I$8:$QJ$8, AK$3, Cálculos!$I$10:$QJ$10, AK$4) -> 659155.2075 | AL9: =SUMIFS(Cálculos!$I229:$QJ229, Cálculos!$I$8:$QJ$8, AL$3, Cálculos!$I$10:$QJ$10, AL$4) -> 708569.1144 | AM9: =SUMIFS(Cálculos!$I229:$QJ229, Cálculos!$I$8:$QJ$8, AM$3, Cálculos!$I$10:$QJ$10, AM$4) -> 370762.2962 | AN9: =SUMIFS(Cálculos!$I229:$QJ229, Cálculos!$I$8:$QJ$8, AN$3, Cálculos!$I$10:$QJ$10, AN$4) -> 417509.0331 | AO9: =SUMIFS(Cálculos!$I229:$QJ229, Cálculos!$I$8:$QJ$8, AO$3, Cálculos!$I$10:$QJ$10, AO$4) -> 656214.8436 | AP9: =SUMIFS(Cálculos!$I229:$QJ229, Cálculos!$I$8:$QJ$8, AP$3, Cálculos!$I$10:$QJ$10, AP$4) -> 701396.869 | AQ9: =SUMIFS(Cálculos!$I229:$QJ229, Cálculos!$I$8:$QJ$8, AQ$3, Cálculos!$I$10:$QJ$10, AQ$4) -> 366952.6791 | AR9: =SUMIFS(Cálculos!$I229:$QJ229, Cálculos!$I$8:$QJ$8, AR$3, Cálculos!$I$10:$QJ$10, AR$4) -> 413236.6709 | AS9: =SUMIFS(Cálculos!$I229:$QJ229, Cálculos!$I$8:$QJ$8, AS$3, Cálculos!$I$10:$QJ$10, AS$4) -> 649565.0408 | AT9: =SUMIFS(Cálculos!$I229:$QJ229, Cálculos!$I$8:$QJ$8, AT$3, Cálculos!$I$10:$QJ$10, AT$4) -> 694296.0182 | AU9: =SUMIFS(Cálculos!$I229:$QJ229, Cálculos!$I$8:$QJ$8, AU$3, Cálculos!$I$10:$QJ$10, AU$4) -> 363180.984 | AV9: =SUMIFS(Cálculos!$I229:$QJ229, Cálculos!$I$8:$QJ$8, AV$3, Cálculos!$I$10:$QJ$10, AV$4) -> 408876.9604 | AW9: =SUMIFS(Cálculos!$I229:$QJ229, Cálculos!$I$8:$QJ$8, AW$3, Cálculos!$I$10:$QJ$10, AW$4) -> 642981.4321 | AX9: =SUMIFS(Cálculos!$I229:$QJ229, Cálculos!$I$8:$QJ$8, AX$3, Cálculos!$I$10:$QJ$10, AX$4) -> 687265.8514 | AY9: =SUMIFS(Cálculos!$I229:$QJ229, Cálculos!$I$8:$QJ$8, AY$3, Cálculos!$I$10:$QJ$10, AY$4) -> 359446.8335 | AZ9: =SUMIFS(Cálculos!$I229:$QJ229, Cálculos!$I$8:$QJ$8, AZ$3, Cálculos!$I$10:$QJ$10, AZ$4) -> 404819.1081 | BA9: =SUMIFS(Cálculos!$I229:$QJ229, Cálculos!$I$8:$QJ$8, BA$3, Cálculos!$I$10:$QJ$10, BA$4) -> 636463.3586 | BB9: =SUMIFS(Cálculos!$I229:$QJ229, Cálculos!$I$8:$QJ$8, BB$3, Cálculos!$I$10:$QJ$10, BB$4) -> 680305.6649 | BC9: =SUMIFS(Cálculos!$I229:$QJ229, Cálculos!$I$8:$QJ$8, BC$3, Cálculos!$I$10:$QJ$10, BC$4) -> 355749.8538 | BD9: =SUMIFS(Cálculos!$I229:$QJ229, Cálculos!$I$8:$QJ$8, BD$3, Cálculos!$I$10:$QJ$10, BD$4) -> 400673.0652 | BE9: =SUMIFS(Cálculos!$I229:$QJ229, Cálculos!$I$8:$QJ$8, BE$3, Cálculos!$I$10:$QJ$10, BE$4) -> 630010.1679 | BF9: =SUMIFS(Cálculos!$I229:$QJ229, Cálculos!$I$8:$QJ$8, BF$3, Cálculos!$I$10:$QJ$10, BF$4) -> 673414.7622 | BG9: =SUMIFS(Cálculos!$I229:$QJ229, Cálculos!$I$8:$QJ$8, BG$3, Cálculos!$I$10:$QJ$10, BG$4) -> 352089.675 | BH9: =SUMIFS(Cálculos!$I229:$QJ229, Cálculos!$I$8:$QJ$8, BH$3, Cálculos!$I$10:$QJ$10, BH$4) -> 396568.2932 | BI9: =SUMIFS(Cálculos!$I229:$QJ229, Cálculos!$I$8:$QJ$8, BI$3, Cálculos!$I$10:$QJ$10, BI$4) -> 623621.2142 | BJ9: =SUMIFS(Cálculos!$I229:$QJ229, Cálculos!$I$8:$QJ$8, BJ$3, Cálculos!$I$10:$QJ$10, BJ$4) -> 666592.4535 | BK9: =SUMIFS(Cálculos!$I229:$QJ229, Cálculos!$I$8:$QJ$8, BK$3, Cálculos!$I$10:$QJ$10, BK$4) -> 348465.9306 | BL9: =SUMIFS(Cálculos!$I229:$QJ229, Cálculos!$I$8:$QJ$8, BL$3, Cálculos!$I$10:$QJ$10, BL$4) -> 392374.5047 | BM9: =SUMIFS(Cálculos!$I229:$QJ229, Cálculos!$I$8:$QJ$8, BM$3, Cálculos!$I$10:$QJ$10, BM$4) -> 617295.8579 | BN9: =SUMIFS(Cálculos!$I229:$QJ229, Cálculos!$I$8:$QJ$8, BN$3, Cálculos!$I$10:$QJ$10, BN$4) -> 659838.0561 | BO9: =SUMIFS(Cálculos!$I229:$QJ229, Cálculos!$I$8:$QJ$8, BO$3, Cálculos!$I$10:$QJ$10, BO$4) -> 344878.2581 | BP9: =SUMIFS(Cálculos!$I229:$QJ229, Cálculos!$I$8:$QJ$8, BP$3, Cálculos!$I$10:$QJ$10, BP$4) -> 388480.9227 | BQ9: =SUMIFS(Cálculos!$I229:$QJ229, Cálculos!$I$8:$QJ$8, BQ$3, Cálculos!$I$10:$QJ$10, BQ$4) -> 611033.4662 | BR9: =SUMIFS(Cálculos!$I229:$QJ229, Cálculos!$I$8:$QJ$8, BR$3, Cálculos!$I$10:$QJ$10, BR$4) -> 653150.894 | BS9: =SUMIFS(Cálculos!$I229:$QJ229, Cálculos!$I$8:$QJ$8, BS$3, Cálculos!$I$10:$QJ$10, BS$4) -> 341326.2983 | BT9: =SUMIFS(Cálculos!$I229:$QJ229, Cálculos!$I$8:$QJ$8, BT$3, Cálculos!$I$10:$QJ$10, BT$4) -> 384497.5148 | BU9: =SUMIFS(Cálculos!$I229:$QJ229, Cálculos!$I$8:$QJ$8, BU$3, Cálculos!$I$10:$QJ$10, BU$4) -> 604833.4121 | BV9: =SUMIFS(Cálculos!$I229:$QJ229, Cálculos!$I$8:$QJ$8, BV$3, Cálculos!$I$10:$QJ$10, BV$4) -> 646530.2978 | BW9: =SUMIFS(Cálculos!$I229:$QJ229, Cálculos!$I$8:$QJ$8, BW$3, Cálculos!$I$10:$QJ$10, BW$4) -> 337809.6958 | BX9: =SUMIFS(Cálculos!$I229:$QJ229, Cálculos!$I$8:$QJ$8, BX$3, Cálculos!$I$10:$QJ$10, BX$4) -> 380553.7589 | BY9: =SUMIFS(Cálculos!$I229:$QJ229, Cálculos!$I$8:$QJ$8, BY$3, Cálculos!$I$10:$QJ$10, BY$4) -> 598695.0751 | BZ9: =SUMIFS(Cálculos!$I229:$QJ229, Cálculos!$I$8:$QJ$8, BZ$3, Cálculos!$I$10:$QJ$10, BZ$4) -> 639975.605 | CA9: =SUMIFS(Cálculos!$I229:$QJ229, Cálculos!$I$8:$QJ$8, CA$3, Cálculos!$I$10:$QJ$10, CA$4) -> 334328.0985 | CB9: =SUMIFS(Cálculos!$I229:$QJ229, Cálculos!$I$8:$QJ$8, CB$3, Cálculos!$I$10:$QJ$10, CB$4) -> 376519.3838 | CC9: =SUMIFS(Cálculos!$I229:$QJ229, Cálculos!$I$8:$QJ$8, CC$3, Cálculos!$I$10:$QJ$10, CC$4) -> 592617.841 | CD9: =SUMIFS(Cálculos!$I229:$QJ229, Cálculos!$I$8:$QJ$8, CD$3, Cálculos!$I$10:$QJ$10, CD$4) -> 633486.1596 | CE9: =SUMIFS(Cálculos!$I229:$QJ229, Cálculos!$I$8:$QJ$8, CE$3, Cálculos!$I$10:$QJ$10, CE$4) -> 330881.1581 | CF9: =SUMIFS(Cálculos!$I229:$QJ229, Cálculos!$I$8:$QJ$8, CF$3, Cálculos!$I$10:$QJ$10, CF$4) -> 372783.6284 | CG9: =SUMIFS(Cálculos!$I229:$QJ229, Cálculos!$I$8:$QJ$8, CG$3, Cálculos!$I$10:$QJ$10, CG$4) -> 586601.1015 | CH9: =SUMIFS(Cálculos!$I229:$QJ229, Cálculos!$I$8:$QJ$8, CH$3, Cálculos!$I$10:$QJ$10, CH$4) -> 627061.3119 | CI9: =SUMIFS(Cálculos!$I229:$QJ229, Cálculos!$I$8:$QJ$8, CI$3, Cálculos!$I$10:$QJ$10, CI$4) -> 327468.5296 | CJ9: =SUMIFS(Cálculos!$I229:$QJ229, Cálculos!$I$8:$QJ$8, CJ$3, Cálculos!$I$10:$QJ$10, CJ$4) -> 368956.476 | CK9: =SUMIFS(Cálculos!$I229:$QJ229, Cálculos!$I$8:$QJ$8, CK$3, Cálculos!$I$10:$QJ$10, CK$4) -> 580644.2543 | CL9: =SUMIFS(Cálculos!$I229:$QJ229, Cálculos!$I$8:$QJ$8, CL$3, Cálculos!$I$10:$QJ$10, CL$4) -> 620700.4191 | CM9: =SUMIFS(Cálculos!$I229:$QJ229, Cálculos!$I$8:$QJ$8, CM$3, Cálculos!$I$10:$QJ$10, CM$4) -> 324089.8713 | CN9: =SUMIFS(Cálculos!$I229:$QJ229, Cálculos!$I$8:$QJ$8, CN$3, Cálculos!$I$10:$QJ$10, CN$4) -> 365167.4202 | CO9: =SUMIFS(Cálculos!$I229:$QJ229, Cálculos!$I$8:$QJ$8, CO$3, Cálculos!$I$10:$QJ$10, CO$4) -> 574746.7034 | CP9: =SUMIFS(Cálculos!$I229:$QJ229, Cálculos!$I$8:$QJ$8, CP$3, Cálculos!$I$10:$QJ$10, CP$4) -> 614402.8445 | CQ9: =SUMIFS(Cálculos!$I229:$QJ229, Cálculos!$I$8:$QJ$8, CQ$3, Cálculos!$I$10:$QJ$10, CQ$4) -> 320744.8452 | CR9: =SUMIFS(Cálculos!$I229:$QJ229, Cálculos!$I$8:$QJ$8, CR$3, Cálculos!$I$10:$QJ$10, CR$4) -> 361286.2052 | CS9: =SUMIFS(Cálculos!$I229:$QJ229, Cálculos!$I$8:$QJ$8, CS$3, Cálculos!$I$10:$QJ$10, CS$4) -> 568907.8584 | CT9: =SUMIFS(Cálculos!$I229:$QJ229, Cálculos!$I$8:$QJ$8, CT$3, Cálculos!$I$10:$QJ$10, CT$4) -> 608167.9578 | CU9: =SUMIFS(Cálculos!$I229:$QJ229, Cálculos!$I$8:$QJ$8, CU$3, Cálculos!$I$10:$QJ$10, CU$4) -> 317433.1165 | CV9: =SUMIFS(Cálculos!$I229:$QJ229, Cálculos!$I$8:$QJ$8, CV$3, Cálculos!$I$10:$QJ$10, CV$4) -> 357702.0853 | CW9: =SUMIFS(Cálculos!$I229:$QJ229, Cálculos!$I$8:$QJ$8, CW$3, Cálculos!$I$10:$QJ$10, CW$4) -> 563127.135 | CX9: =SUMIFS(Cálculos!$I229:$QJ229, Cálculos!$I$8:$QJ$8, CX$3, Cálculos!$I$10:$QJ$10, CX$4) -> 601995.135 | CY9: =SUMIFS(Cálculos!$I229:$QJ229, Cálculos!$I$8:$QJ$8, CY$3, Cálculos!$I$10:$QJ$10, CY$4) -> 314154.3537 | CZ9: =SUMIFS(Cálculos!$I229:$QJ229, Cálculos!$I$8:$QJ$8, CZ$3, Cálculos!$I$10:$QJ$10, CZ$4) -> 354025.059 | DA9: =SUMIFS(Cálculos!$I229:$QJ229, Cálculos!$I$8:$QJ$8, DA$3, Cálculos!$I$10:$QJ$10, DA$4) -> 557403.9546 | DB9: =SUMIFS(Cálculos!$I229:$QJ229, Cálculos!$I$8:$QJ$8, DB$3, Cálculos!$I$10:$QJ$10, DB$4) -> 595883.7583 | DC9: =SUMIFS(Cálculos!$I229:$QJ229, Cálculos!$I$8:$QJ$8, DC$3, Cálculos!$I$10:$QJ$10, DC$4) -> 310908.2287 | DD9: =SUMIFS(Cálculos!$I229:$QJ229, Cálculos!$I$8:$QJ$8, DD$3, Cálculos!$I$10:$QJ$10, DD$4) -> 350384.6349 | DE9: =SUMIFS(Cálculos!$I229:$QJ229, Cálculos!$I$8:$QJ$8, DE$3, Cálculos!$I$10:$QJ$10, DE$4) -> 551737.7444 | DF9: =SUMIFS(Cálculos!$I229:$QJ229, Cálculos!$I$8:$QJ$8, DF$3, Cálculos!$I$10:$QJ$10, DF$4) -> 589833.216 | DG9: =SUMIFS(Cálculos!$I229:$QJ229, Cálculos!$I$8:$QJ$8, DG$3, Cálculos!$I$10:$QJ$10, DG$4) -> 307694.4166 | DH9: =SUMIFS(Cálculos!$I229:$QJ229, Cálculos!$I$8:$QJ$8, DH$3, Cálculos!$I$10:$QJ$10, DH$4) -> 346650.5721 | DI9: =SUMIFS(Cálculos!$I229:$QJ229, Cálculos!$I$8:$QJ$8, DI$3, Cálculos!$I$10:$QJ$10, DI$4) -> 546127.9374 | DJ9: =SUMIFS(Cálculos!$I229:$QJ229, Cálculos!$I$8:$QJ$8, DJ$3, Cálculos!$I$10:$QJ$10, DJ$4) -> 583842.9026 | DK9: =SUMIFS(Cálculos!$I229:$QJ229, Cálculos!$I$8:$QJ$8, DK$3, Cálculos!$I$10:$QJ$10, DK$4) -> 302479.7323
C10: Armazenamento | E10: EUR | G10: 3818063.808 | H10: =SUMIFS(Cálculos!$I230:$QJ230, Cálculos!$I$8:$QJ$8, H$3, Cálculos!$I$10:$QJ$10, H$4) -> 0 | I10: =SUMIFS(Cálculos!$I230:$QJ230, Cálculos!$I$8:$QJ$8, I$3, Cálculos!$I$10:$QJ$10, I$4) -> 0 | J10: =SUMIFS(Cálculos!$I230:$QJ230, Cálculos!$I$8:$QJ$8, J$3, Cálculos!$I$10:$QJ$10, J$4) -> 0 | K10: =SUMIFS(Cálculos!$I230:$QJ230, Cálculos!$I$8:$QJ$8, K$3, Cálculos!$I$10:$QJ$10, K$4) -> 0 | L10: =SUMIFS(Cálculos!$I230:$QJ230, Cálculos!$I$8:$QJ$8, L$3, Cálculos!$I$10:$QJ$10, L$4) -> 0 | M10: =SUMIFS(Cálculos!$I230:$QJ230, Cálculos!$I$8:$QJ$8, M$3, Cálculos!$I$10:$QJ$10, M$4) -> 0 | N10: =SUMIFS(Cálculos!$I230:$QJ230, Cálculos!$I$8:$QJ$8, N$3, Cálculos!$I$10:$QJ$10, N$4) -> 0 | O10: =SUMIFS(Cálculos!$I230:$QJ230, Cálculos!$I$8:$QJ$8, O$3, Cálculos!$I$10:$QJ$10, O$4) -> 0 | P10: =SUMIFS(Cálculos!$I230:$QJ230, Cálculos!$I$8:$QJ$8, P$3, Cálculos!$I$10:$QJ$10, P$4) -> 45539.05537 | Q10: =SUMIFS(Cálculos!$I230:$QJ230, Cálculos!$I$8:$QJ$8, Q$3, Cálculos!$I$10:$QJ$10, Q$4) -> 49712.31287 | R10: =SUMIFS(Cálculos!$I230:$QJ230, Cálculos!$I$8:$QJ$8, R$3, Cálculos!$I$10:$QJ$10, R$4) -> 46055.07145 | S10: =SUMIFS(Cálculos!$I230:$QJ230, Cálculos!$I$8:$QJ$8, S$3, Cálculos!$I$10:$QJ$10, S$4) -> 44525.09629 | T10: =SUMIFS(Cálculos!$I230:$QJ230, Cálculos!$I$8:$QJ$8, T$3, Cálculos!$I$10:$QJ$10, T$4) -> 44029.06162 | U10: =SUMIFS(Cálculos!$I230:$QJ230, Cálculos!$I$8:$QJ$8, U$3, Cálculos!$I$10:$QJ$10, U$4) -> 48545.4998 | V10: =SUMIFS(Cálculos!$I230:$QJ230, Cálculos!$I$8:$QJ$8, V$3, Cálculos!$I$10:$QJ$10, V$4) -> 44410.41051 | W10: =SUMIFS(Cálculos!$I230:$QJ230, Cálculos!$I$8:$QJ$8, W$3, Cálculos!$I$10:$QJ$10, W$4) -> 43766.24586 | X10: =SUMIFS(Cálculos!$I230:$QJ230, Cálculos!$I$8:$QJ$8, X$3, Cálculos!$I$10:$QJ$10, X$4) -> 42997.65625 | Y10: =SUMIFS(Cálculos!$I230:$QJ230, Cálculos!$I$8:$QJ$8, Y$3, Cálculos!$I$10:$QJ$10, Y$4) -> 45164.19278 | Z10: =SUMIFS(Cálculos!$I230:$QJ230, Cálculos!$I$8:$QJ$8, Z$3, Cálculos!$I$10:$QJ$10, Z$4) -> 43376.36481 | AA10: =SUMIFS(Cálculos!$I230:$QJ230, Cálculos!$I$8:$QJ$8, AA$3, Cálculos!$I$10:$QJ$10, AA$4) -> 43211.64349 | AB10: =SUMIFS(Cálculos!$I230:$QJ230, Cálculos!$I$8:$QJ$8, AB$3, Cálculos!$I$10:$QJ$10, AB$4) -> 42146.92127 | AC10: =SUMIFS(Cálculos!$I230:$QJ230, Cálculos!$I$8:$QJ$8, AC$3, Cálculos!$I$10:$QJ$10, AC$4) -> 43489.58725 | AD10: =SUMIFS(Cálculos!$I230:$QJ230, Cálculos!$I$8:$QJ$8, AD$3, Cálculos!$I$10:$QJ$10, AD$4) -> 42799.81357 | AE10: =SUMIFS(Cálculos!$I230:$QJ230, Cálculos!$I$8:$QJ$8, AE$3, Cálculos!$I$10:$QJ$10, AE$4) -> 42662.56179 | AF10: =SUMIFS(Cálculos!$I230:$QJ230, Cálculos!$I$8:$QJ$8, AF$3, Cálculos!$I$10:$QJ$10, AF$4) -> 42063.90692 | AG10: =SUMIFS(Cálculos!$I230:$QJ230, Cálculos!$I$8:$QJ$8, AG$3, Cálculos!$I$10:$QJ$10, AG$4) -> 42514.00989 | AH10: =SUMIFS(Cálculos!$I230:$QJ230, Cálculos!$I$8:$QJ$8, AH$3, Cálculos!$I$10:$QJ$10, AH$4) -> 42254.83135 | AI10: =SUMIFS(Cálculos!$I230:$QJ230, Cálculos!$I$8:$QJ$8, AI$3, Cálculos!$I$10:$QJ$10, AI$4) -> 42118.94581 | AJ10: =SUMIFS(Cálculos!$I230:$QJ230, Cálculos!$I$8:$QJ$8, AJ$3, Cálculos!$I$10:$QJ$10, AJ$4) -> 41071.19647 | AK10: =SUMIFS(Cálculos!$I230:$QJ230, Cálculos!$I$8:$QJ$8, AK$3, Cálculos!$I$10:$QJ$10, AK$4) -> 41627.55105 | AL10: =SUMIFS(Cálculos!$I230:$QJ230, Cálculos!$I$8:$QJ$8, AL$3, Cálculos!$I$10:$QJ$10, AL$4) -> 41715.27403 | AM10: =SUMIFS(Cálculos!$I230:$QJ230, Cálculos!$I$8:$QJ$8, AM$3, Cálculos!$I$10:$QJ$10, AM$4) -> 41580.74114 | AN10: =SUMIFS(Cálculos!$I230:$QJ230, Cálculos!$I$8:$QJ$8, AN$3, Cálculos!$I$10:$QJ$10, AN$4) -> 40546.00707 | AO10: =SUMIFS(Cálculos!$I230:$QJ230, Cálculos!$I$8:$QJ$8, AO$3, Cálculos!$I$10:$QJ$10, AO$4) -> 40864.5895 | AP10: =SUMIFS(Cálculos!$I230:$QJ230, Cálculos!$I$8:$QJ$8, AP$3, Cálculos!$I$10:$QJ$10, AP$4) -> 41181.08764 | AQ10: =SUMIFS(Cálculos!$I230:$QJ230, Cálculos!$I$8:$QJ$8, AQ$3, Cálculos!$I$10:$QJ$10, AQ$4) -> 41047.89392 | AR10: =SUMIFS(Cálculos!$I230:$QJ230, Cálculos!$I$8:$QJ$8, AR$3, Cálculos!$I$10:$QJ$10, AR$4) -> 40026.04555 | AS10: =SUMIFS(Cálculos!$I230:$QJ230, Cálculos!$I$8:$QJ$8, AS$3, Cálculos!$I$10:$QJ$10, AS$4) -> 40340.1639 | AT10: =SUMIFS(Cálculos!$I230:$QJ230, Cálculos!$I$8:$QJ$8, AT$3, Cálculos!$I$10:$QJ$10, AT$4) -> 40652.21869 | AU10: =SUMIFS(Cálculos!$I230:$QJ230, Cálculos!$I$8:$QJ$8, AU$3, Cálculos!$I$10:$QJ$10, AU$4) -> 40520.35082 | AV10: =SUMIFS(Cálculos!$I230:$QJ230, Cálculos!$I$8:$QJ$8, AV$3, Cálculos!$I$10:$QJ$10, AV$4) -> 39950.27375 | AW10: =SUMIFS(Cálculos!$I230:$QJ230, Cálculos!$I$8:$QJ$8, AW$3, Cálculos!$I$10:$QJ$10, AW$4) -> 39820.95858 | AX10: =SUMIFS(Cálculos!$I230:$QJ230, Cálculos!$I$8:$QJ$8, AX$3, Cálculos!$I$10:$QJ$10, AX$4) -> 40128.61425 | AY10: =SUMIFS(Cálculos!$I230:$QJ230, Cálculos!$I$8:$QJ$8, AY$3, Cálculos!$I$10:$QJ$10, AY$4) -> 39998.05904 | AZ10: =SUMIFS(Cálculos!$I230:$QJ230, Cálculos!$I$8:$QJ$8, AZ$3, Cálculos!$I$10:$QJ$10, AZ$4) -> 39001.59856 | BA10: =SUMIFS(Cálculos!$I230:$QJ230, Cálculos!$I$8:$QJ$8, BA$3, Cálculos!$I$10:$QJ$10, BA$4) -> 39306.92158 | BB10: =SUMIFS(Cálculos!$I230:$QJ230, Cálculos!$I$8:$QJ$8, BB$3, Cálculos!$I$10:$QJ$10, BB$4) -> 39610.22193 | BC10: =SUMIFS(Cálculos!$I230:$QJ230, Cálculos!$I$8:$QJ$8, BC$3, Cálculos!$I$10:$QJ$10, BC$4) -> 39480.9663 | BD10: =SUMIFS(Cálculos!$I230:$QJ230, Cálculos!$I$8:$QJ$8, BD$3, Cálculos!$I$10:$QJ$10, BD$4) -> 38497.01054 | BE10: =SUMIFS(Cálculos!$I230:$QJ230, Cálculos!$I$8:$QJ$8, BE$3, Cálculos!$I$10:$QJ$10, BE$4) -> 38798.00146 | BF10: =SUMIFS(Cálculos!$I230:$QJ230, Cálculos!$I$8:$QJ$8, BF$3, Cálculos!$I$10:$QJ$10, BF$4) -> 39096.98984 | BG10: =SUMIFS(Cálculos!$I230:$QJ230, Cálculos!$I$8:$QJ$8, BG$3, Cálculos!$I$10:$QJ$10, BG$4) -> 38969.02086 | BH10: =SUMIFS(Cálculos!$I230:$QJ230, Cálculos!$I$8:$QJ$8, BH$3, Cálculos!$I$10:$QJ$10, BH$4) -> 37997.44534 | BI10: =SUMIFS(Cálculos!$I230:$QJ230, Cálculos!$I$8:$QJ$8, BI$3, Cálculos!$I$10:$QJ$10, BI$4) -> 38294.14728 | BJ10: =SUMIFS(Cálculos!$I230:$QJ230, Cálculos!$I$8:$QJ$8, BJ$3, Cálculos!$I$10:$QJ$10, BJ$4) -> 38588.86661 | BK10: =SUMIFS(Cálculos!$I230:$QJ230, Cálculos!$I$8:$QJ$8, BK$3, Cálculos!$I$10:$QJ$10, BK$4) -> 38462.17147 | BL10: =SUMIFS(Cálculos!$I230:$QJ230, Cálculos!$I$8:$QJ$8, BL$3, Cálculos!$I$10:$QJ$10, BL$4) -> 37919.55119 | BM10: =SUMIFS(Cálculos!$I230:$QJ230, Cálculos!$I$8:$QJ$8, BM$3, Cálculos!$I$10:$QJ$10, BM$4) -> 37795.30861 | BN10: =SUMIFS(Cálculos!$I230:$QJ230, Cálculos!$I$8:$QJ$8, BN$3, Cálculos!$I$10:$QJ$10, BN$4) -> 38085.80139 | BO10: =SUMIFS(Cálculos!$I230:$QJ230, Cálculos!$I$8:$QJ$8, BO$3, Cálculos!$I$10:$QJ$10, BO$4) -> 37960.36741 | BP10: =SUMIFS(Cálculos!$I230:$QJ230, Cálculos!$I$8:$QJ$8, BP$3, Cálculos!$I$10:$QJ$10, BP$4) -> 37013.18389 | BQ10: =SUMIFS(Cálculos!$I230:$QJ230, Cálculos!$I$8:$QJ$8, BQ$3, Cálculos!$I$10:$QJ$10, BQ$4) -> 37301.43553 | BR10: =SUMIFS(Cálculos!$I230:$QJ230, Cálculos!$I$8:$QJ$8, BR$3, Cálculos!$I$10:$QJ$10, BR$4) -> 37587.74383 | BS10: =SUMIFS(Cálculos!$I230:$QJ230, Cálculos!$I$8:$QJ$8, BS$3, Cálculos!$I$10:$QJ$10, BS$4) -> 37463.55846 | BT10: =SUMIFS(Cálculos!$I230:$QJ230, Cálculos!$I$8:$QJ$8, BT$3, Cálculos!$I$10:$QJ$10, BT$4) -> 36528.38914 | BU10: =SUMIFS(Cálculos!$I230:$QJ230, Cálculos!$I$8:$QJ$8, BU$3, Cálculos!$I$10:$QJ$10, BU$4) -> 36812.47861 | BV10: =SUMIFS(Cálculos!$I230:$QJ230, Cálculos!$I$8:$QJ$8, BV$3, Cálculos!$I$10:$QJ$10, BV$4) -> 37094.64408 | BW10: =SUMIFS(Cálculos!$I230:$QJ230, Cálculos!$I$8:$QJ$8, BW$3, Cálculos!$I$10:$QJ$10, BW$4) -> 36971.69488 | BX10: =SUMIFS(Cálculos!$I230:$QJ230, Cálculos!$I$8:$QJ$8, BX$3, Cálculos!$I$10:$QJ$10, BX$4) -> 36048.42018 | BY10: =SUMIFS(Cálculos!$I230:$QJ230, Cálculos!$I$8:$QJ$8, BY$3, Cálculos!$I$10:$QJ$10, BY$4) -> 36328.3889 | BZ10: =SUMIFS(Cálculos!$I230:$QJ230, Cálculos!$I$8:$QJ$8, BZ$3, Cálculos!$I$10:$QJ$10, BZ$4) -> 36606.45279 | CA10: =SUMIFS(Cálculos!$I230:$QJ230, Cálculos!$I$8:$QJ$8, CA$3, Cálculos!$I$10:$QJ$10, CA$4) -> 36484.72747 | CB10: =SUMIFS(Cálculos!$I230:$QJ230, Cálculos!$I$8:$QJ$8, CB$3, Cálculos!$I$10:$QJ$10, CB$4) -> 35968.48694 | CC10: =SUMIFS(Cálculos!$I230:$QJ230, Cálculos!$I$8:$QJ$8, CC$3, Cálculos!$I$10:$QJ$10, CC$4) -> 35849.11797 | CD10: =SUMIFS(Cálculos!$I230:$QJ230, Cálculos!$I$8:$QJ$8, CD$3, Cálculos!$I$10:$QJ$10, CD$4) -> 36123.12109 | CE10: =SUMIFS(Cálculos!$I230:$QJ230, Cálculos!$I$8:$QJ$8, CE$3, Cálculos!$I$10:$QJ$10, CE$4) -> 36002.60746 | CF10: =SUMIFS(Cálculos!$I230:$QJ230, Cálculos!$I$8:$QJ$8, CF$3, Cálculos!$I$10:$QJ$10, CF$4) -> 35102.76795 | CG10: =SUMIFS(Cálculos!$I230:$QJ230, Cálculos!$I$8:$QJ$8, CG$3, Cálculos!$I$10:$QJ$10, CG$4) -> 35374.61784 | CH10: =SUMIFS(Cálculos!$I230:$QJ230, Cálculos!$I$8:$QJ$8, CH$3, Cálculos!$I$10:$QJ$10, CH$4) -> 35644.60063 | CI10: =SUMIFS(Cálculos!$I230:$QJ230, Cálculos!$I$8:$QJ$8, CI$3, Cálculos!$I$10:$QJ$10, CI$4) -> 35525.28663 | CJ10: =SUMIFS(Cálculos!$I230:$QJ230, Cálculos!$I$8:$QJ$8, CJ$3, Cálculos!$I$10:$QJ$10, CJ$4) -> 34636.99003 | CK10: =SUMIFS(Cálculos!$I230:$QJ230, Cálculos!$I$8:$QJ$8, CK$3, Cálculos!$I$10:$QJ$10, CK$4) -> 34904.84103 | CL10: =SUMIFS(Cálculos!$I230:$QJ230, Cálculos!$I$8:$QJ$8, CL$3, Cálculos!$I$10:$QJ$10, CL$4) -> 35170.8435 | CM10: =SUMIFS(Cálculos!$I230:$QJ230, Cálculos!$I$8:$QJ$8, CM$3, Cálculos!$I$10:$QJ$10, CM$4) -> 35052.71718 | CN10: =SUMIFS(Cálculos!$I230:$QJ230, Cálculos!$I$8:$QJ$8, CN$3, Cálculos!$I$10:$QJ$10, CN$4) -> 34175.84861 | CO10: =SUMIFS(Cálculos!$I230:$QJ230, Cálculos!$I$8:$QJ$8, CO$3, Cálculos!$I$10:$QJ$10, CO$4) -> 34439.74051 | CP10: =SUMIFS(Cálculos!$I230:$QJ230, Cálculos!$I$8:$QJ$8, CP$3, Cálculos!$I$10:$QJ$10, CP$4) -> 34701.80228 | CQ10: =SUMIFS(Cálculos!$I230:$QJ230, Cálculos!$I$8:$QJ$8, CQ$3, Cálculos!$I$10:$QJ$10, CQ$4) -> 34584.85183 | CR10: =SUMIFS(Cálculos!$I230:$QJ230, Cálculos!$I$8:$QJ$8, CR$3, Cálculos!$I$10:$QJ$10, CR$4) -> 34093.95627 | CS10: =SUMIFS(Cálculos!$I230:$QJ230, Cálculos!$I$8:$QJ$8, CS$3, Cálculos!$I$10:$QJ$10, CS$4) -> 33979.26974 | CT10: =SUMIFS(Cálculos!$I230:$QJ230, Cálculos!$I$8:$QJ$8, CT$3, Cálculos!$I$10:$QJ$10, CT$4) -> 34237.43004 | CU10: =SUMIFS(Cálculos!$I230:$QJ230, Cálculos!$I$8:$QJ$8, CU$3, Cálculos!$I$10:$QJ$10, CU$4) -> 34121.64375 | CV10: =SUMIFS(Cálculos!$I230:$QJ230, Cálculos!$I$8:$QJ$8, CV$3, Cálculos!$I$10:$QJ$10, CV$4) -> 33267.29109 | CW10: =SUMIFS(Cálculos!$I230:$QJ230, Cálculos!$I$8:$QJ$8, CW$3, Cálculos!$I$10:$QJ$10, CW$4) -> 33523.38263 | CX10: =SUMIFS(Cálculos!$I230:$QJ230, Cálculos!$I$8:$QJ$8, CX$3, Cálculos!$I$10:$QJ$10, CX$4) -> 33777.6803 | CY10: =SUMIFS(Cálculos!$I230:$QJ230, Cálculos!$I$8:$QJ$8, CY$3, Cálculos!$I$10:$QJ$10, CY$4) -> 33663.04658 | CZ10: =SUMIFS(Cálculos!$I230:$QJ230, Cálculos!$I$8:$QJ$8, CZ$3, Cálculos!$I$10:$QJ$10, CZ$4) -> 32819.78405 | DA10: =SUMIFS(Cálculos!$I230:$QJ230, Cálculos!$I$8:$QJ$8, DA$3, Cálculos!$I$10:$QJ$10, DA$4) -> 33072.03355 | DB10: =SUMIFS(Cálculos!$I230:$QJ230, Cálculos!$I$8:$QJ$8, DB$3, Cálculos!$I$10:$QJ$10, DB$4) -> 33322.50704 | DC10: =SUMIFS(Cálculos!$I230:$QJ230, Cálculos!$I$8:$QJ$8, DC$3, Cálculos!$I$10:$QJ$10, DC$4) -> 33209.01441 | DD10: =SUMIFS(Cálculos!$I230:$QJ230, Cálculos!$I$8:$QJ$8, DD$3, Cálculos!$I$10:$QJ$10, DD$4) -> 32376.73163 | DE10: =SUMIFS(Cálculos!$I230:$QJ230, Cálculos!$I$8:$QJ$8, DE$3, Cálculos!$I$10:$QJ$10, DE$4) -> 32625.17733 | DF10: =SUMIFS(Cálculos!$I230:$QJ230, Cálculos!$I$8:$QJ$8, DF$3, Cálculos!$I$10:$QJ$10, DF$4) -> 32871.86471 | DG10: =SUMIFS(Cálculos!$I230:$QJ230, Cálculos!$I$8:$QJ$8, DG$3, Cálculos!$I$10:$QJ$10, DG$4) -> 32759.50182 | DH10: =SUMIFS(Cálculos!$I230:$QJ230, Cálculos!$I$8:$QJ$8, DH$3, Cálculos!$I$10:$QJ$10, DH$4) -> 32292.95703 | DI10: =SUMIFS(Cálculos!$I230:$QJ230, Cálculos!$I$8:$QJ$8, DI$3, Cálculos!$I$10:$QJ$10, DI$4) -> 32182.76926 | DJ10: =SUMIFS(Cálculos!$I230:$QJ230, Cálculos!$I$8:$QJ$8, DJ$3, Cálculos!$I$10:$QJ$10, DJ$4) -> 32425.7082 | DK10: =SUMIFS(Cálculos!$I230:$QJ230, Cálculos!$I$8:$QJ$8, DK$3, Cálculos!$I$10:$QJ$10, DK$4) -> 31624.09508
C11: menos: Comprado à EDA | E11: EUR | G11: -3853913.13 | H11: =SUMIFS(Cálculos!$I354:$QJ354, Cálculos!$I$8:$QJ$8, H$3, Cálculos!$I$10:$QJ$10, H$4) -> 0 | I11: =SUMIFS(Cálculos!$I354:$QJ354, Cálculos!$I$8:$QJ$8, I$3, Cálculos!$I$10:$QJ$10, I$4) -> 0 | J11: =SUMIFS(Cálculos!$I354:$QJ354, Cálculos!$I$8:$QJ$8, J$3, Cálculos!$I$10:$QJ$10, J$4) -> 0 | K11: =SUMIFS(Cálculos!$I354:$QJ354, Cálculos!$I$8:$QJ$8, K$3, Cálculos!$I$10:$QJ$10, K$4) -> 0 | L11: =SUMIFS(Cálculos!$I354:$QJ354, Cálculos!$I$8:$QJ$8, L$3, Cálculos!$I$10:$QJ$10, L$4) -> 0 | M11: =SUMIFS(Cálculos!$I354:$QJ354, Cálculos!$I$8:$QJ$8, M$3, Cálculos!$I$10:$QJ$10, M$4) -> 0 | N11: =SUMIFS(Cálculos!$I354:$QJ354, Cálculos!$I$8:$QJ$8, N$3, Cálculos!$I$10:$QJ$10, N$4) -> 0 | O11: =SUMIFS(Cálculos!$I354:$QJ354, Cálculos!$I$8:$QJ$8, O$3, Cálculos!$I$10:$QJ$10, O$4) -> 0 | P11: =SUMIFS(Cálculos!$I354:$QJ354, Cálculos!$I$8:$QJ$8, P$3, Cálculos!$I$10:$QJ$10, P$4) -> -30175.2164 | Q11: =SUMIFS(Cálculos!$I354:$QJ354, Cálculos!$I$8:$QJ$8, Q$3, Cálculos!$I$10:$QJ$10, Q$4) -> -1762.433884 | R11: =SUMIFS(Cálculos!$I354:$QJ354, Cálculos!$I$8:$QJ$8, R$3, Cálculos!$I$10:$QJ$10, R$4) -> -26312.44559 | S11: =SUMIFS(Cálculos!$I354:$QJ354, Cálculos!$I$8:$QJ$8, S$3, Cálculos!$I$10:$QJ$10, S$4) -> -44370.94798 | T11: =SUMIFS(Cálculos!$I354:$QJ354, Cálculos!$I$8:$QJ$8, T$3, Cálculos!$I$10:$QJ$10, T$4) -> -35277.08182 | U11: =SUMIFS(Cálculos!$I354:$QJ354, Cálculos!$I$8:$QJ$8, U$3, Cálculos!$I$10:$QJ$10, U$4) -> -9377.751421 | V11: =SUMIFS(Cálculos!$I354:$QJ354, Cálculos!$I$8:$QJ$8, V$3, Cálculos!$I$10:$QJ$10, V$4) -> -39937.91486 | W11: =SUMIFS(Cálculos!$I354:$QJ354, Cálculos!$I$8:$QJ$8, W$3, Cálculos!$I$10:$QJ$10, W$4) -> -46403.9771 | X11: =SUMIFS(Cálculos!$I354:$QJ354, Cálculos!$I$8:$QJ$8, X$3, Cálculos!$I$10:$QJ$10, X$4) -> -41074.51338 | Y11: =SUMIFS(Cálculos!$I354:$QJ354, Cálculos!$I$8:$QJ$8, Y$3, Cálculos!$I$10:$QJ$10, Y$4) -> -17451.98351 | Z11: =SUMIFS(Cálculos!$I354:$QJ354, Cálculos!$I$8:$QJ$8, Z$3, Cálculos!$I$10:$QJ$10, Z$4) -> -45637.64762 | AA11: =SUMIFS(Cálculos!$I354:$QJ354, Cálculos!$I$8:$QJ$8, AA$3, Cálculos!$I$10:$QJ$10, AA$4) -> -45838.25035 | AB11: =SUMIFS(Cálculos!$I354:$QJ354, Cálculos!$I$8:$QJ$8, AB$3, Cálculos!$I$10:$QJ$10, AB$4) -> -44580.36988 | AC11: =SUMIFS(Cálculos!$I354:$QJ354, Cálculos!$I$8:$QJ$8, AC$3, Cálculos!$I$10:$QJ$10, AC$4) -> -31692.53452 | AD11: =SUMIFS(Cálculos!$I354:$QJ354, Cálculos!$I$8:$QJ$8, AD$3, Cálculos!$I$10:$QJ$10, AD$4) -> -45418.15983 | AE11: =SUMIFS(Cálculos!$I354:$QJ354, Cálculos!$I$8:$QJ$8, AE$3, Cálculos!$I$10:$QJ$10, AE$4) -> -45278.15502 | AF11: =SUMIFS(Cálculos!$I354:$QJ354, Cálculos!$I$8:$QJ$8, AF$3, Cálculos!$I$10:$QJ$10, AF$4) -> -44648.3633 | AG11: =SUMIFS(Cálculos!$I354:$QJ354, Cálculos!$I$8:$QJ$8, AG$3, Cálculos!$I$10:$QJ$10, AG$4) -> -36846.10463 | AH11: =SUMIFS(Cálculos!$I354:$QJ354, Cálculos!$I$8:$QJ$8, AH$3, Cálculos!$I$10:$QJ$10, AH$4) -> -44862.2462 | AI11: =SUMIFS(Cálculos!$I354:$QJ354, Cálculos!$I$8:$QJ$8, AI$3, Cálculos!$I$10:$QJ$10, AI$4) -> -44723.63503 | AJ11: =SUMIFS(Cálculos!$I354:$QJ354, Cálculos!$I$8:$QJ$8, AJ$3, Cálculos!$I$10:$QJ$10, AJ$4) -> -43616.61191 | AK11: =SUMIFS(Cálculos!$I354:$QJ354, Cálculos!$I$8:$QJ$8, AK$3, Cálculos!$I$10:$QJ$10, AK$4) -> -40907.40213 | AL11: =SUMIFS(Cálculos!$I354:$QJ354, Cálculos!$I$8:$QJ$8, AL$3, Cálculos!$I$10:$QJ$10, AL$4) -> -44311.86629 | AM11: =SUMIFS(Cálculos!$I354:$QJ354, Cálculos!$I$8:$QJ$8, AM$3, Cálculos!$I$10:$QJ$10, AM$4) -> -44174.6349 | AN11: =SUMIFS(Cálculos!$I354:$QJ354, Cálculos!$I$8:$QJ$8, AN$3, Cálculos!$I$10:$QJ$10, AN$4) -> -43080.88811 | AO11: =SUMIFS(Cálculos!$I354:$QJ354, Cálculos!$I$8:$QJ$8, AO$3, Cálculos!$I$10:$QJ$10, AO$4) -> -43424.98962 | AP11: =SUMIFS(Cálculos!$I354:$QJ354, Cálculos!$I$8:$QJ$8, AP$3, Cálculos!$I$10:$QJ$10, AP$4) -> -43766.96503 | AQ11: =SUMIFS(Cálculos!$I354:$QJ354, Cálculos!$I$8:$QJ$8, AQ$3, Cálculos!$I$10:$QJ$10, AQ$4) -> -43631.09968 | AR11: =SUMIFS(Cálculos!$I354:$QJ354, Cálculos!$I$8:$QJ$8, AR$3, Cálculos!$I$10:$QJ$10, AR$4) -> -42550.49706 | AS11: =SUMIFS(Cálculos!$I354:$QJ354, Cálculos!$I$8:$QJ$8, AS$3, Cálculos!$I$10:$QJ$10, AS$4) -> -42890.04494 | AT11: =SUMIFS(Cálculos!$I354:$QJ354, Cálculos!$I$8:$QJ$8, AT$3, Cálculos!$I$10:$QJ$10, AT$4) -> -43227.48787 | AU11: =SUMIFS(Cálculos!$I354:$QJ354, Cálculos!$I$8:$QJ$8, AU$3, Cálculos!$I$10:$QJ$10, AU$4) -> -43092.97496 | AV11: =SUMIFS(Cálculos!$I354:$QJ354, Cálculos!$I$8:$QJ$8, AV$3, Cálculos!$I$10:$QJ$10, AV$4) -> -42492.33426 | AW11: =SUMIFS(Cálculos!$I354:$QJ354, Cálculos!$I$8:$QJ$8, AW$3, Cálculos!$I$10:$QJ$10, AW$4) -> -42360.42525 | AX11: =SUMIFS(Cálculos!$I354:$QJ354, Cálculos!$I$8:$QJ$8, AX$3, Cálculos!$I$10:$QJ$10, AX$4) -> -42693.38083 | AY11: =SUMIFS(Cálculos!$I354:$QJ354, Cálculos!$I$8:$QJ$8, AY$3, Cálculos!$I$10:$QJ$10, AY$4) -> -42560.2069 | AZ11: =SUMIFS(Cálculos!$I354:$QJ354, Cálculos!$I$8:$QJ$8, AZ$3, Cálculos!$I$10:$QJ$10, AZ$4) -> -41505.5014 | BA11: =SUMIFS(Cálculos!$I354:$QJ354, Cálculos!$I$8:$QJ$8, BA$3, Cálculos!$I$10:$QJ$10, BA$4) -> -41836.07755 | BB11: =SUMIFS(Cálculos!$I354:$QJ354, Cálculos!$I$8:$QJ$8, BB$3, Cálculos!$I$10:$QJ$10, BB$4) -> -42164.59045 | BC11: =SUMIFS(Cálculos!$I354:$QJ354, Cálculos!$I$8:$QJ$8, BC$3, Cálculos!$I$10:$QJ$10, BC$4) -> -42032.74217 | BD11: =SUMIFS(Cálculos!$I354:$QJ354, Cálculos!$I$8:$QJ$8, BD$3, Cálculos!$I$10:$QJ$10, BD$4) -> -40990.79222 | BE11: =SUMIFS(Cálculos!$I354:$QJ354, Cálculos!$I$8:$QJ$8, BE$3, Cálculos!$I$10:$QJ$10, BE$4) -> -41316.94936 | BF11: =SUMIFS(Cálculos!$I354:$QJ354, Cálculos!$I$8:$QJ$8, BF$3, Cálculos!$I$10:$QJ$10, BF$4) -> -41641.0638 | BG11: =SUMIFS(Cálculos!$I354:$QJ354, Cálculos!$I$8:$QJ$8, BG$3, Cálculos!$I$10:$QJ$10, BG$4) -> -41510.52798 | BH11: =SUMIFS(Cálculos!$I354:$QJ354, Cálculos!$I$8:$QJ$8, BH$3, Cálculos!$I$10:$QJ$10, BH$4) -> -40481.20659 | BI11: =SUMIFS(Cálculos!$I354:$QJ354, Cálculos!$I$8:$QJ$8, BI$3, Cálculos!$I$10:$QJ$10, BI$4) -> -40802.98873 | BJ11: =SUMIFS(Cálculos!$I354:$QJ354, Cálculos!$I$8:$QJ$8, BJ$3, Cálculos!$I$10:$QJ$10, BJ$4) -> -41122.74849 | BK11: =SUMIFS(Cálculos!$I354:$QJ354, Cálculos!$I$8:$QJ$8, BK$3, Cálculos!$I$10:$QJ$10, BK$4) -> -40993.51206 | BL11: =SUMIFS(Cálculos!$I354:$QJ354, Cálculos!$I$8:$QJ$8, BL$3, Cálculos!$I$10:$QJ$10, BL$4) -> -40420.87889 | BM11: =SUMIFS(Cálculos!$I354:$QJ354, Cálculos!$I$8:$QJ$8, BM$3, Cálculos!$I$10:$QJ$10, BM$4) -> -40294.14421 | BN11: =SUMIFS(Cálculos!$I354:$QJ354, Cálculos!$I$8:$QJ$8, BN$3, Cálculos!$I$10:$QJ$10, BN$4) -> -40609.59264 | BO11: =SUMIFS(Cálculos!$I354:$QJ354, Cálculos!$I$8:$QJ$8, BO$3, Cálculos!$I$10:$QJ$10, BO$4) -> -40481.64267 | BP11: =SUMIFS(Cálculos!$I354:$QJ354, Cálculos!$I$8:$QJ$8, BP$3, Cálculos!$I$10:$QJ$10, BP$4) -> -39477.20255 | BQ11: =SUMIFS(Cálculos!$I354:$QJ354, Cálculos!$I$8:$QJ$8, BQ$3, Cálculos!$I$10:$QJ$10, BQ$4) -> -39790.36488 | BR11: =SUMIFS(Cálculos!$I354:$QJ354, Cálculos!$I$8:$QJ$8, BR$3, Cálculos!$I$10:$QJ$10, BR$4) -> -40101.54489 | BS11: =SUMIFS(Cálculos!$I354:$QJ354, Cálculos!$I$8:$QJ$8, BS$3, Cálculos!$I$10:$QJ$10, BS$4) -> -39974.86858 | BT11: =SUMIFS(Cálculos!$I354:$QJ354, Cálculos!$I$8:$QJ$8, BT$3, Cálculos!$I$10:$QJ$10, BT$4) -> -38982.68364 | BU11: =SUMIFS(Cálculos!$I354:$QJ354, Cálculos!$I$8:$QJ$8, BU$3, Cálculos!$I$10:$QJ$10, BU$4) -> -39291.60032 | BV11: =SUMIFS(Cálculos!$I354:$QJ354, Cálculos!$I$8:$QJ$8, BV$3, Cálculos!$I$10:$QJ$10, BV$4) -> -39598.55441 | BW11: =SUMIFS(Cálculos!$I354:$QJ354, Cálculos!$I$8:$QJ$8, BW$3, Cálculos!$I$10:$QJ$10, BW$4) -> -39473.13906 | BX11: =SUMIFS(Cálculos!$I354:$QJ354, Cálculos!$I$8:$QJ$8, BX$3, Cálculos!$I$10:$QJ$10, BX$4) -> -38493.08732 | BY11: =SUMIFS(Cálculos!$I354:$QJ354, Cálculos!$I$8:$QJ$8, BY$3, Cálculos!$I$10:$QJ$10, BY$4) -> -38797.8006 | BZ11: =SUMIFS(Cálculos!$I354:$QJ354, Cálculos!$I$8:$QJ$8, BZ$3, Cálculos!$I$10:$QJ$10, BZ$4) -> -39100.57083 | CA11: =SUMIFS(Cálculos!$I354:$QJ354, Cálculos!$I$8:$QJ$8, CA$3, Cálculos!$I$10:$QJ$10, CA$4) -> -38976.40391 | CB11: =SUMIFS(Cálculos!$I354:$QJ354, Cálculos!$I$8:$QJ$8, CB$3, Cálculos!$I$10:$QJ$10, CB$4) -> -38430.67962 | CC11: =SUMIFS(Cálculos!$I354:$QJ354, Cálculos!$I$8:$QJ$8, CC$3, Cálculos!$I$10:$QJ$10, CC$4) -> -38308.91631 | CD11: =SUMIFS(Cálculos!$I354:$QJ354, Cálculos!$I$8:$QJ$8, CD$3, Cálculos!$I$10:$QJ$10, CD$4) -> -38607.54434 | CE11: =SUMIFS(Cálculos!$I354:$QJ354, Cálculos!$I$8:$QJ$8, CE$3, Cálculos!$I$10:$QJ$10, CE$4) -> -38484.61341 | CF11: =SUMIFS(Cálculos!$I354:$QJ354, Cálculos!$I$8:$QJ$8, CF$3, Cálculos!$I$10:$QJ$10, CF$4) -> -37528.46693 | CG11: =SUMIFS(Cálculos!$I354:$QJ354, Cálculos!$I$8:$QJ$8, CG$3, Cálculos!$I$10:$QJ$10, CG$4) -> -37824.89853 | CH11: =SUMIFS(Cálculos!$I354:$QJ354, Cálculos!$I$8:$QJ$8, CH$3, Cálculos!$I$10:$QJ$10, CH$4) -> -38119.42557 | CI11: =SUMIFS(Cálculos!$I354:$QJ354, Cálculos!$I$8:$QJ$8, CI$3, Cálculos!$I$10:$QJ$10, CI$4) -> -37997.71833 | CJ11: =SUMIFS(Cálculos!$I354:$QJ354, Cálculos!$I$8:$QJ$8, CJ$3, Cálculos!$I$10:$QJ$10, CJ$4) -> -37053.34631 | CK11: =SUMIFS(Cálculos!$I354:$QJ354, Cálculos!$I$8:$QJ$8, CK$3, Cálculos!$I$10:$QJ$10, CK$4) -> -37345.69879 | CL11: =SUMIFS(Cálculos!$I354:$QJ354, Cálculos!$I$8:$QJ$8, CL$3, Cálculos!$I$10:$QJ$10, CL$4) -> -37636.16568 | CM11: =SUMIFS(Cálculos!$I354:$QJ354, Cálculos!$I$8:$QJ$8, CM$3, Cálculos!$I$10:$QJ$10, CM$4) -> -37515.66995 | CN11: =SUMIFS(Cálculos!$I354:$QJ354, Cálculos!$I$8:$QJ$8, CN$3, Cálculos!$I$10:$QJ$10, CN$4) -> -36582.95518 | CO11: =SUMIFS(Cálculos!$I354:$QJ354, Cálculos!$I$8:$QJ$8, CO$3, Cálculos!$I$10:$QJ$10, CO$4) -> -36871.26915 | CP11: =SUMIFS(Cálculos!$I354:$QJ354, Cálculos!$I$8:$QJ$8, CP$3, Cálculos!$I$10:$QJ$10, CP$4) -> -37157.7163 | CQ11: =SUMIFS(Cálculos!$I354:$QJ354, Cálculos!$I$8:$QJ$8, CQ$3, Cálculos!$I$10:$QJ$10, CQ$4) -> -37038.42002 | CR11: =SUMIFS(Cálculos!$I354:$QJ354, Cálculos!$I$8:$QJ$8, CR$3, Cálculos!$I$10:$QJ$10, CR$4) -> -36518.54907 | CS11: =SUMIFS(Cálculos!$I354:$QJ354, Cálculos!$I$8:$QJ$8, CS$3, Cálculos!$I$10:$QJ$10, CS$4) -> -36401.56213 | CT11: =SUMIFS(Cálculos!$I354:$QJ354, Cálculos!$I$8:$QJ$8, CT$3, Cálculos!$I$10:$QJ$10, CT$4) -> -36684.02955 | CU11: =SUMIFS(Cálculos!$I354:$QJ354, Cálculos!$I$8:$QJ$8, CU$3, Cálculos!$I$10:$QJ$10, CU$4) -> -36565.92078 | CV11: =SUMIFS(Cálculos!$I354:$QJ354, Cálculos!$I$8:$QJ$8, CV$3, Cálculos!$I$10:$QJ$10, CV$4) -> -35656.17354 | CW11: =SUMIFS(Cálculos!$I354:$QJ354, Cálculos!$I$8:$QJ$8, CW$3, Cálculos!$I$10:$QJ$10, CW$4) -> -35936.5307 | CX11: =SUMIFS(Cálculos!$I354:$QJ354, Cálculos!$I$8:$QJ$8, CX$3, Cálculos!$I$10:$QJ$10, CX$4) -> -36215.05801 | CY11: =SUMIFS(Cálculos!$I354:$QJ354, Cálculos!$I$8:$QJ$8, CY$3, Cálculos!$I$10:$QJ$10, CY$4) -> -36098.12493 | CZ11: =SUMIFS(Cálculos!$I354:$QJ354, Cálculos!$I$8:$QJ$8, CZ$3, Cálculos!$I$10:$QJ$10, CZ$4) -> -35199.69028 | DA11: =SUMIFS(Cálculos!$I354:$QJ354, Cálculos!$I$8:$QJ$8, DA$3, Cálculos!$I$10:$QJ$10, DA$4) -> -35476.12833 | DB11: =SUMIFS(Cálculos!$I354:$QJ354, Cálculos!$I$8:$QJ$8, DB$3, Cálculos!$I$10:$QJ$10, DB$4) -> -35750.75475 | DC11: =SUMIFS(Cálculos!$I354:$QJ354, Cálculos!$I$8:$QJ$8, DC$3, Cálculos!$I$10:$QJ$10, DC$4) -> -35634.98566 | DD11: =SUMIFS(Cálculos!$I354:$QJ354, Cálculos!$I$8:$QJ$8, DD$3, Cálculos!$I$10:$QJ$10, DD$4) -> -34747.75099 | DE11: =SUMIFS(Cálculos!$I354:$QJ354, Cálculos!$I$8:$QJ$8, DE$3, Cálculos!$I$10:$QJ$10, DE$4) -> -35020.30895 | DF11: =SUMIFS(Cálculos!$I354:$QJ354, Cálculos!$I$8:$QJ$8, DF$3, Cálculos!$I$10:$QJ$10, DF$4) -> -35291.07331 | DG11: =SUMIFS(Cálculos!$I354:$QJ354, Cálculos!$I$8:$QJ$8, DG$3, Cálculos!$I$10:$QJ$10, DG$4) -> -35176.45662 | DH11: =SUMIFS(Cálculos!$I354:$QJ354, Cálculos!$I$8:$QJ$8, DH$3, Cálculos!$I$10:$QJ$10, DH$4) -> -34681.42487 | DI11: =SUMIFS(Cálculos!$I354:$QJ354, Cálculos!$I$8:$QJ$8, DI$3, Cálculos!$I$10:$QJ$10, DI$4) -> -34569.02692 | DJ11: =SUMIFS(Cálculos!$I354:$QJ354, Cálculos!$I$8:$QJ$8, DJ$3, Cálculos!$I$10:$QJ$10, DJ$4) -> -34835.96767 | DK11: =SUMIFS(Cálculos!$I354:$QJ354, Cálculos!$I$8:$QJ$8, DK$3, Cálculos!$I$10:$QJ$10, DK$4) -> -34235.78635
C12: Receitas Totais | G12: 50186763.39 | H12: =+H9+H10+H11 -> 0 | I12: =+I9+I10+I11 -> 0 | J12: 0 | K12: 0 | L12: 0 | M12: 0 | N12: 0 | O12: 0 | P12: 434917.2383 | Q12: 674532.65 | R12: 737015.3516 | S12: 386919.1128 | T12: 435263.6393 | U12: 676715.7179 | V12: 734297.4941 | W12: 383749.9373 | X12: 431791.2978 | Y12: 676417.2683 | Z12: 727837.786 | AA12: 379795.905 | AB12: 427999.1275 | AC12: 671854.4503 | AD12: 720512.3214 | AE12: 375881.2323 | AF12: 423468.7243 | AG12: 665917.9294 | AH12: 713206.0574 | AI12: 372005.5274 | AJ12: 419278.9358 | AK12: 659875.3564 | AL12: 705972.5221 | AM12: 368168.4024 | AN12: 414974.152 | AO12: 653654.4435 | AP12: 698810.9916 | AQ12: 364369.4733 | AR12: 410712.2194 | AS12: 647015.1598 | AT12: 691720.749 | AU12: 360608.3599 | AV12: 406334.8999 | AW12: 640441.9655 | AX12: 684701.0848 | AY12: 356884.6857 | AZ12: 402315.2053 | BA12: 633934.2026 | BB12: 677751.2964 | BC12: 353198.078 | BD12: 398179.2835 | BE12: 627491.22 | BF12: 670870.6882 | BG12: 349548.1679 | BH12: 394084.5319 | BI12: 621112.3727 | BJ12: 664058.5717 | BK12: 345934.5901 | BL12: 389873.177 | BM12: 614797.0223 | BN12: 657314.2649 | BO12: 342356.9828 | BP12: 386016.904 | BQ12: 608544.5368 | BR12: 650637.0929 | BS12: 338814.9882 | BT12: 382043.2203 | BU12: =+BU9+BU10+BU11 -> 602354.2904 | BV12: 644026.3875 | BW12: 335308.2516 | BX12: 378109.0918 | BY12: 596225.6634 | BZ12: 637481.487 | CA12: 331836.4221 | CB12: 374057.1912 | CC12: 590158.0427 | CD12: 631001.7363 | CE12: 328399.1522 | CF12: 370357.9294 | CG12: 584150.8208 | CH12: 624586.487 | CI12: 324996.0979 | CJ12: 366540.1197 | CK12: 578203.3966 | CL12: 618235.097 | CM12: 321626.9185 | CN12: 362760.3136 | CO12: 572315.1747 | CP12: 611946.9305 | CQ12: 318291.277 | CR12: 358861.6124 | CS12: 566485.566 | CT12: 605721.3583 | CU12: 314988.8395 | CV12: 355313.2028 | CW12: 560713.9869 | CX12: 599557.7573 | CY12: 311719.2754 | CZ12: 351645.1528 | DA12: 554999.8598 | DB12: 593455.5106 | DC12: 308482.2575 | DD12: 348013.6156 | DE12: 549342.6128 | DF12: 587414.0074 | DG12: 305277.4618 | DH12: 344262.1043 | DI12: 543741.6797 | DJ12: 581432.6432 | DK12: 299868.0411
C13: =Cálculos!C356 -> Menos: Custos Operacionais | E13: =Cálculos!E356 -> EUR | G13: -18691139.3 | H13: =SUMIFS(Cálculos!$I356:$QJ356, Cálculos!$I$8:$QJ$8, H$3, Cálculos!$I$10:$QJ$10, H$4) -> 0 | I13: =SUMIFS(Cálculos!$I356:$QJ356, Cálculos!$I$8:$QJ$8, I$3, Cálculos!$I$10:$QJ$10, I$4) -> 0 | J13: =SUMIFS(Cálculos!$I356:$QJ356, Cálculos!$I$8:$QJ$8, J$3, Cálculos!$I$10:$QJ$10, J$4) -> 0 | K13: =SUMIFS(Cálculos!$I356:$QJ356, Cálculos!$I$8:$QJ$8, K$3, Cálculos!$I$10:$QJ$10, K$4) -> 0 | L13: =SUMIFS(Cálculos!$I356:$QJ356, Cálculos!$I$8:$QJ$8, L$3, Cálculos!$I$10:$QJ$10, L$4) -> 0 | M13: =SUMIFS(Cálculos!$I356:$QJ356, Cálculos!$I$8:$QJ$8, M$3, Cálculos!$I$10:$QJ$10, M$4) -> 0 | N13: =SUMIFS(Cálculos!$I356:$QJ356, Cálculos!$I$8:$QJ$8, N$3, Cálculos!$I$10:$QJ$10, N$4) -> 0 | O13: =SUMIFS(Cálculos!$I356:$QJ356, Cálculos!$I$8:$QJ$8, O$3, Cálculos!$I$10:$QJ$10, O$4) -> 0 | P13: =SUMIFS(Cálculos!$I356:$QJ356, Cálculos!$I$8:$QJ$8, P$3, Cálculos!$I$10:$QJ$10, P$4) -> -150719.5412 | Q13: =SUMIFS(Cálculos!$I356:$QJ356, Cálculos!$I$8:$QJ$8, Q$3, Cálculos!$I$10:$QJ$10, Q$4) -> -165261.8494 | R13: =SUMIFS(Cálculos!$I356:$QJ356, Cálculos!$I$8:$QJ$8, R$3, Cálculos!$I$10:$QJ$10, R$4) -> -157510.709 | S13: =SUMIFS(Cálculos!$I356:$QJ356, Cálculos!$I$8:$QJ$8, S$3, Cálculos!$I$10:$QJ$10, S$4) -> -150508.7843 | T13: =SUMIFS(Cálculos!$I356:$QJ356, Cálculos!$I$8:$QJ$8, T$3, Cálculos!$I$10:$QJ$10, T$4) -> -158910.7525 | U13: =SUMIFS(Cálculos!$I356:$QJ356, Cálculos!$I$8:$QJ$8, U$3, Cálculos!$I$10:$QJ$10, U$4) -> -163966.4997 | V13: =SUMIFS(Cálculos!$I356:$QJ356, Cálculos!$I$8:$QJ$8, V$3, Cálculos!$I$10:$QJ$10, V$4) -> -165344.8408 | W13: =SUMIFS(Cálculos!$I356:$QJ356, Cálculos!$I$8:$QJ$8, W$3, Cálculos!$I$10:$QJ$10, W$4) -> -158333.8897 | X13: =SUMIFS(Cálculos!$I356:$QJ356, Cálculos!$I$8:$QJ$8, X$3, Cálculos!$I$10:$QJ$10, X$4) -> -159752.0069 | Y13: =SUMIFS(Cálculos!$I356:$QJ356, Cálculos!$I$8:$QJ$8, Y$3, Cálculos!$I$10:$QJ$10, Y$4) -> -164871.2319 | Z13: =SUMIFS(Cálculos!$I356:$QJ356, Cálculos!$I$8:$QJ$8, Z$3, Cálculos!$I$10:$QJ$10, Z$4) -> -166126.3478 | AA13: =SUMIFS(Cálculos!$I356:$QJ356, Cálculos!$I$8:$QJ$8, AA$3, Cálculos!$I$10:$QJ$10, AA$4) -> -159165.5102 | AB13: =SUMIFS(Cálculos!$I356:$QJ356, Cálculos!$I$8:$QJ$8, AB$3, Cálculos!$I$10:$QJ$10, AB$4) -> -160609.6322 | AC13: =SUMIFS(Cálculos!$I356:$QJ356, Cálculos!$I$8:$QJ$8, AC$3, Cálculos!$I$10:$QJ$10, AC$4) -> -165713.4442 | AD13: =SUMIFS(Cálculos!$I356:$QJ356, Cálculos!$I$8:$QJ$8, AD$3, Cálculos!$I$10:$QJ$10, AD$4) -> -167288.3072 | AE13: =SUMIFS(Cálculos!$I356:$QJ356, Cálculos!$I$8:$QJ$8, AE$3, Cálculos!$I$10:$QJ$10, AE$4) -> -160395.6855 | AF13: =SUMIFS(Cálculos!$I356:$QJ356, Cálculos!$I$8:$QJ$8, AF$3, Cálculos!$I$10:$QJ$10, AF$4) -> -162077.5351 | AG13: =SUMIFS(Cálculos!$I356:$QJ356, Cálculos!$I$8:$QJ$8, AG$3, Cálculos!$I$10:$QJ$10, AG$4) -> -166926.5192 | AH13: =SUMIFS(Cálculos!$I356:$QJ356, Cálculos!$I$8:$QJ$8, AH$3, Cálculos!$I$10:$QJ$10, AH$4) -> -168098.9874 | AI13: =SUMIFS(Cálculos!$I356:$QJ356, Cálculos!$I$8:$QJ$8, AI$3, Cálculos!$I$10:$QJ$10, AI$4) -> -161274.9768 | AJ13: =SUMIFS(Cálculos!$I356:$QJ356, Cálculos!$I$8:$QJ$8, AJ$3, Cálculos!$I$10:$QJ$10, AJ$4) -> -162747.7593 | AK13: =SUMIFS(Cálculos!$I356:$QJ356, Cálculos!$I$8:$QJ$8, AK$3, Cálculos!$I$10:$QJ$10, AK$4) -> -167786.3933 | AL13: =SUMIFS(Cálculos!$I356:$QJ356, Cálculos!$I$8:$QJ$8, AL$3, Cálculos!$I$10:$QJ$10, AL$4) -> -168935.0422 | AM13: =SUMIFS(Cálculos!$I356:$QJ356, Cálculos!$I$8:$QJ$8, AM$3, Cálculos!$I$10:$QJ$10, AM$4) -> -162178.9598 | AN13: =SUMIFS(Cálculos!$I356:$QJ356, Cálculos!$I$8:$QJ$8, AN$3, Cálculos!$I$10:$QJ$10, AN$4) -> -163666.9073 | AO13: =SUMIFS(Cálculos!$I356:$QJ356, Cálculos!$I$8:$QJ$8, AO$3, Cálculos!$I$10:$QJ$10, AO$4) -> -168667.2187 | AP13: =SUMIFS(Cálculos!$I356:$QJ356, Cálculos!$I$8:$QJ$8, AP$3, Cálculos!$I$10:$QJ$10, AP$4) -> -169797.0553 | AQ13: =SUMIFS(Cálculos!$I356:$QJ356, Cálculos!$I$8:$QJ$8, AQ$3, Cálculos!$I$10:$QJ$10, AQ$4) -> -163108.2249 | AR13: =SUMIFS(Cálculos!$I356:$QJ356, Cálculos!$I$8:$QJ$8, AR$3, Cálculos!$I$10:$QJ$10, AR$4) -> -164612.0434 | AS13: =SUMIFS(Cálculos!$I356:$QJ356, Cálculos!$I$8:$QJ$8, AS$3, Cálculos!$I$10:$QJ$10, AS$4) -> -169564.8078 | AT13: =SUMIFS(Cálculos!$I356:$QJ356, Cálculos!$I$8:$QJ$8, AT$3, Cálculos!$I$10:$QJ$10, AT$4) -> -170685.6252 | AU13: =SUMIFS(Cálculos!$I356:$QJ356, Cálculos!$I$8:$QJ$8, AU$3, Cálculos!$I$10:$QJ$10, AU$4) -> -164063.3774 | AV13: =SUMIFS(Cálculos!$I356:$QJ356, Cálculos!$I$8:$QJ$8, AV$3, Cálculos!$I$10:$QJ$10, AV$4) -> -165807.3368 | AW13: =SUMIFS(Cálculos!$I356:$QJ356, Cálculos!$I$8:$QJ$8, AW$3, Cálculos!$I$10:$QJ$10, AW$4) -> -170489.4781 | AX13: =SUMIFS(Cálculos!$I356:$QJ356, Cálculos!$I$8:$QJ$8, AX$3, Cálculos!$I$10:$QJ$10, AX$4) -> -171601.3661 | AY13: =SUMIFS(Cálculos!$I356:$QJ356, Cálculos!$I$8:$QJ$8, AY$3, Cálculos!$I$10:$QJ$10, AY$4) -> -165045.0381 | AZ13: =SUMIFS(Cálculos!$I356:$QJ356, Cálculos!$I$8:$QJ$8, AZ$3, Cálculos!$I$10:$QJ$10, AZ$4) -> -166582.7748 | BA13: =SUMIFS(Cálculos!$I356:$QJ356, Cálculos!$I$8:$QJ$8, BA$3, Cálculos!$I$10:$QJ$10, BA$4) -> -171441.8603 | BB13: =SUMIFS(Cálculos!$I356:$QJ356, Cálculos!$I$8:$QJ$8, BB$3, Cálculos!$I$10:$QJ$10, BB$4) -> -172544.9078 | BC13: =SUMIFS(Cálculos!$I356:$QJ356, Cálculos!$I$8:$QJ$8, BC$3, Cálculos!$I$10:$QJ$10, BC$4) -> -166053.8434 | BD13: =SUMIFS(Cálculos!$I356:$QJ356, Cálculos!$I$8:$QJ$8, BD$3, Cálculos!$I$10:$QJ$10, BD$4) -> -167609.6573 | BE13: =SUMIFS(Cálculos!$I356:$QJ356, Cálculos!$I$8:$QJ$8, BE$3, Cálculos!$I$10:$QJ$10, BE$4) -> -172422.6016 | BF13: =SUMIFS(Cálculos!$I356:$QJ356, Cálculos!$I$8:$QJ$8, BF$3, Cálculos!$I$10:$QJ$10, BF$4) -> -173516.8966 | BG13: =SUMIFS(Cálculos!$I356:$QJ356, Cálculos!$I$8:$QJ$8, BG$3, Cálculos!$I$10:$QJ$10, BG$4) -> -167090.4461 | BH13: =SUMIFS(Cálculos!$I356:$QJ356, Cálculos!$I$8:$QJ$8, BH$3, Cálculos!$I$10:$QJ$10, BH$4) -> -168665.1032 | BI13: =SUMIFS(Cálculos!$I356:$QJ356, Cálculos!$I$8:$QJ$8, BI$3, Cálculos!$I$10:$QJ$10, BI$4) -> -173432.3656 | BJ13: =SUMIFS(Cálculos!$I356:$QJ356, Cálculos!$I$8:$QJ$8, BJ$3, Cálculos!$I$10:$QJ$10, BJ$4) -> -174517.9952 | BK13: =SUMIFS(Cálculos!$I356:$QJ356, Cálculos!$I$8:$QJ$8, BK$3, Cálculos!$I$10:$QJ$10, BK$4) -> -168155.5156 | BL13: =SUMIFS(Cálculos!$I356:$QJ356, Cálculos!$I$8:$QJ$8, BL$3, Cálculos!$I$10:$QJ$10, BL$4) -> -169973.3562 | BM13: =SUMIFS(Cálculos!$I356:$QJ356, Cálculos!$I$8:$QJ$8, BM$3, Cálculos!$I$10:$QJ$10, BM$4) -> -174471.8331 | BN13: =SUMIFS(Cálculos!$I356:$QJ356, Cálculos!$I$8:$QJ$8, BN$3, Cálculos!$I$10:$QJ$10, BN$4) -> -175548.8835 | BO13: =SUMIFS(Cálculos!$I356:$QJ356, Cálculos!$I$8:$QJ$8, BO$3, Cálculos!$I$10:$QJ$10, BO$4) -> -169249.7379 | BP13: =SUMIFS(Cálculos!$I356:$QJ356, Cálculos!$I$8:$QJ$8, BP$3, Cálculos!$I$10:$QJ$10, BP$4) -> -170864.444 | BQ13: =SUMIFS(Cálculos!$I356:$QJ356, Cálculos!$I$8:$QJ$8, BQ$3, Cálculos!$I$10:$QJ$10, BQ$4) -> -175541.7022 | BR13: =SUMIFS(Cálculos!$I356:$QJ356, Cálculos!$I$8:$QJ$8, BR$3, Cálculos!$I$10:$QJ$10, BR$4) -> -176610.2589 | BS13: =SUMIFS(Cálculos!$I356:$QJ356, Cálculos!$I$8:$QJ$8, BS$3, Cálculos!$I$10:$QJ$10, BS$4) -> -170373.8168 | BT13: =SUMIFS(Cálculos!$I356:$QJ356, Cálculos!$I$8:$QJ$8, BT$3, Cálculos!$I$10:$QJ$10, BT$4) -> -172009.7621 | BU13: =SUMIFS(Cálculos!$I356:$QJ356, Cálculos!$I$8:$QJ$8, BU$3, Cálculos!$I$10:$QJ$10, BU$4) -> -176642.6891 | BV13: =SUMIFS(Cálculos!$I356:$QJ356, Cálculos!$I$8:$QJ$8, BV$3, Cálculos!$I$10:$QJ$10, BV$4) -> -177702.8366 | BW13: =SUMIFS(Cálculos!$I356:$QJ356, Cálculos!$I$8:$QJ$8, BW$3, Cálculos!$I$10:$QJ$10, BW$4) -> -171528.4739 | BX13: =SUMIFS(Cálculos!$I356:$QJ356, Cálculos!$I$8:$QJ$8, BX$3, Cálculos!$I$10:$QJ$10, BX$4) -> -173186.4911 | BY13: =SUMIFS(Cálculos!$I356:$QJ356, Cálculos!$I$8:$QJ$8, BY$3, Cálculos!$I$10:$QJ$10, BY$4) -> -177775.5282 | BZ13: =SUMIFS(Cálculos!$I356:$QJ356, Cálculos!$I$8:$QJ$8, BZ$3, Cálculos!$I$10:$QJ$10, BZ$4) -> -178827.3502 | CA13: =SUMIFS(Cálculos!$I356:$QJ356, Cálculos!$I$8:$QJ$8, CA$3, Cálculos!$I$10:$QJ$10, CA$4) -> -172714.4489 | CB13: =SUMIFS(Cálculos!$I356:$QJ356, Cálculos!$I$8:$QJ$8, CB$3, Cálculos!$I$10:$QJ$10, CB$4) -> -174618.9556 | CC13: =SUMIFS(Cálculos!$I356:$QJ356, Cálculos!$I$8:$QJ$8, CC$3, Cálculos!$I$10:$QJ$10, CC$4) -> -178940.9727 | CD13: =SUMIFS(Cálculos!$I356:$QJ356, Cálculos!$I$8:$QJ$8, CD$3, Cálculos!$I$10:$QJ$10, CD$4) -> -179984.5521 | CE13: =SUMIFS(Cálculos!$I356:$QJ356, Cálculos!$I$8:$QJ$8, CE$3, Cálculos!$I$10:$QJ$10, CE$4) -> -173932.5004 | CF13: =SUMIFS(Cálculos!$I356:$QJ356, Cálculos!$I$8:$QJ$8, CF$3, Cálculos!$I$10:$QJ$10, CF$4) -> -175637.2316 | CG13: =SUMIFS(Cálculos!$I356:$QJ356, Cálculos!$I$8:$QJ$8, CG$3, Cálculos!$I$10:$QJ$10, CG$4) -> -180139.795 | CH13: =SUMIFS(Cálculos!$I356:$QJ356, Cálculos!$I$8:$QJ$8, CH$3, Cálculos!$I$10:$QJ$10, CH$4) -> -181175.214 | CI13: =SUMIFS(Cálculos!$I356:$QJ356, Cálculos!$I$8:$QJ$8, CI$3, Cálculos!$I$10:$QJ$10, CI$4) -> -175183.4062 | CJ13: =SUMIFS(Cálculos!$I356:$QJ356, Cálculos!$I$8:$QJ$8, CJ$3, Cálculos!$I$10:$QJ$10, CJ$4) -> -176912.8164 | CK13: =SUMIFS(Cálculos!$I356:$QJ356, Cálculos!$I$8:$QJ$8, CK$3, Cálculos!$I$10:$QJ$10, CK$4) -> -181372.7875 | CL13: =SUMIFS(Cálculos!$I356:$QJ356, Cálculos!$I$8:$QJ$8, CL$3, Cálculos!$I$10:$QJ$10, CL$4) -> -182400.1272 | CM13: =SUMIFS(Cálculos!$I356:$QJ356, Cálculos!$I$8:$QJ$8, CM$3, Cálculos!$I$10:$QJ$10, CM$4) -> -176467.9636 | CN13: =SUMIFS(Cálculos!$I356:$QJ356, Cálculos!$I$8:$QJ$8, CN$3, Cálculos!$I$10:$QJ$10, CN$4) -> -178222.9598 | CO13: =SUMIFS(Cálculos!$I356:$QJ356, Cálculos!$I$8:$QJ$8, CO$3, Cálculos!$I$10:$QJ$10, CO$4) -> -182640.7626 | CP13: =SUMIFS(Cálculos!$I356:$QJ356, Cálculos!$I$8:$QJ$8, CP$3, Cálculos!$I$10:$QJ$10, CP$4) -> -183660.1033 | CQ13: =SUMIFS(Cálculos!$I356:$QJ356, Cálculos!$I$8:$QJ$8, CQ$3, Cálculos!$I$10:$QJ$10, CQ$4) -> -177786.9903 | CR13: =SUMIFS(Cálculos!$I356:$QJ356, Cálculos!$I$8:$QJ$8, CR$3, Cálculos!$I$10:$QJ$10, CR$4) -> -179792.0744 | CS13: =SUMIFS(Cálculos!$I356:$QJ356, Cálculos!$I$8:$QJ$8, CS$3, Cálculos!$I$10:$QJ$10, CS$4) -> -183944.5535 | CT13: =SUMIFS(Cálculos!$I356:$QJ356, Cálculos!$I$8:$QJ$8, CT$3, Cálculos!$I$10:$QJ$10, CT$4) -> -184955.9749 | CU13: =SUMIFS(Cálculos!$I356:$QJ356, Cálculos!$I$8:$QJ$8, CU$3, Cálculos!$I$10:$QJ$10, CU$4) -> -179141.3245 | CV13: =SUMIFS(Cálculos!$I356:$QJ356, Cálculos!$I$8:$QJ$8, CV$3, Cálculos!$I$10:$QJ$10, CV$4) -> -180950.2932 | CW13: =SUMIFS(Cálculos!$I356:$QJ356, Cálculos!$I$8:$QJ$8, CW$3, Cálculos!$I$10:$QJ$10, CW$4) -> -185285.0145 | CX13: =SUMIFS(Cálculos!$I356:$QJ356, Cálculos!$I$8:$QJ$8, CX$3, Cálculos!$I$10:$QJ$10, CX$4) -> -186288.5955 | CY13: =SUMIFS(Cálculos!$I356:$QJ356, Cálculos!$I$8:$QJ$8, CY$3, Cálculos!$I$10:$QJ$10, CY$4) -> -180531.8258 | CZ13: =SUMIFS(Cálculos!$I356:$QJ356, Cálculos!$I$8:$QJ$8, CZ$3, Cálculos!$I$10:$QJ$10, CZ$4) -> -182369.2221 | DA13: =SUMIFS(Cálculos!$I356:$QJ356, Cálculos!$I$8:$QJ$8, DA$3, Cálculos!$I$10:$QJ$10, DA$4) -> -186663.0218 | DB13: =SUMIFS(Cálculos!$I356:$QJ356, Cálculos!$I$8:$QJ$8, DB$3, Cálculos!$I$10:$QJ$10, DB$4) -> -187658.8404 | DC13: =SUMIFS(Cálculos!$I356:$QJ356, Cálculos!$I$8:$QJ$8, DC$3, Cálculos!$I$10:$QJ$10, DC$4) -> -181959.3754 | DD13: =SUMIFS(Cálculos!$I356:$QJ356, Cálculos!$I$8:$QJ$8, DD$3, Cálculos!$I$10:$QJ$10, DD$4) -> -183826.1885 | DE13: =SUMIFS(Cálculos!$I356:$QJ356, Cálculos!$I$8:$QJ$8, DE$3, Cálculos!$I$10:$QJ$10, DE$4) -> -188079.474 | DF13: =SUMIFS(Cálculos!$I356:$QJ356, Cálculos!$I$8:$QJ$8, DF$3, Cálculos!$I$10:$QJ$10, DF$4) -> -189067.6075 | DG13: =SUMIFS(Cálculos!$I356:$QJ356, Cálculos!$I$8:$QJ$8, DG$3, Cálculos!$I$10:$QJ$10, DG$4) -> -183424.8766 | DH13: =SUMIFS(Cálculos!$I356:$QJ356, Cálculos!$I$8:$QJ$8, DH$3, Cálculos!$I$10:$QJ$10, DH$4) -> -185545.7009 | DI13: =SUMIFS(Cálculos!$I356:$QJ356, Cálculos!$I$8:$QJ$8, DI$3, Cálculos!$I$10:$QJ$10, DI$4) -> -189535.2924 | DJ13: =SUMIFS(Cálculos!$I356:$QJ356, Cálculos!$I$8:$QJ$8, DJ$3, Cálculos!$I$10:$QJ$10, DJ$4) -> -190515.8173 | DK13: =SUMIFS(Cálculos!$I356:$QJ356, Cálculos!$I$8:$QJ$8, DK$3, Cálculos!$I$10:$QJ$10, DK$4) -> -1595857.82
C14: =Cálculos!C357 -> EBITDA | G14: 31495624.1 | H14: =SUM(H12:H13) -> 0 | I14: 0 | J14: 0 | K14: 0 | L14: 0 | M14: 0 | N14: 0 | O14: 0 | P14: 284197.6972 | Q14: 509270.8006 | R14: 579504.6426 | S14: 236410.3286 | T14: 276352.8868 | U14: 512749.2182 | V14: 568952.6533 | W14: 225416.0476 | X14: 272039.2909 | Y14: 511546.0364 | Z14: 561711.4382 | AA14: 220630.3948 | AB14: 267389.4954 | AC14: 506141.0061 | AD14: 553224.0142 | AE14: 215485.5469 | AF14: 261391.1892 | AG14: 498991.4102 | AH14: 545107.0701 | AI14: 210730.5507 | AJ14: 256531.1765 | AK14: 492088.9631 | AL14: 537037.4799 | AM14: 205989.4426 | AN14: =SUM(AN12:AN13) -> 251307.2447 | AO14: 484987.2248 | AP14: 529013.9363 | AQ14: 201261.2484 | AR14: 246100.1759 | AS14: 477450.352 | AT14: 521035.1238 | AU14: 196544.9825 | AV14: 240527.5632 | AW14: 469952.4874 | AX14: 513099.7188 | AY14: 191839.6476 | AZ14: 235732.4305 | BA14: 462492.3423 | BB14: 505206.3886 | BC14: 187144.2346 | BD14: 230569.6262 | BE14: 455068.6184 | BF14: 497353.7917 | BG14: 182457.7217 | BH14: 225419.4287 | BI14: 447680.0071 | BJ14: 489540.5765 | BK14: 177779.0745 | BL14: 219899.8208 | BM14: 440325.1893 | BN14: 481765.3814 | BO14: 173107.245 | BP14: 215152.4601 | BQ14: 433002.8346 | BR14: 474026.834 | BS14: 168441.1713 | BT14: =SUM(BT12:BT13) -> 210033.4582 | BU14: 425711.6013 | BV14: 466323.5509 | BW14: 163779.7777 | BX14: 204922.6007 | BY14: 418450.1353 | BZ14: 458654.1367 | CA14: 159121.9731 | CB14: 199438.2355 | CC14: 411217.07 | CD14: 451017.1842 | CE14: 154466.6517 | CF14: 194720.6978 | CG14: 404011.0258 | CH14: 443411.273 | CI14: 149812.6917 | CJ14: 189627.3033 | CK14: 396830.609 | CL14: 435834.9698 | CM14: 145158.955 | CN14: 184537.3538 | CO14: 389674.4121 | CP14: 428286.8272 | CQ14: 140504.2868 | CR14: 179069.538 | CS14: 382541.0125 | CT14: 420765.3834 | CU14: 135847.515 | CV14: 174362.9097 | CW14: 375428.9724 | CX14: 413269.1618 | CY14: 131187.4495 | CZ14: =SUM(CZ12:CZ13) -> 169275.9307 | DA14: 368336.838 | DB14: 405796.6702 | DC14: 126522.8821 | DD14: 164187.4271 | DE14: 361263.1388 | DF14: 398346.3999 | DG14: 121852.5852 | DH14: 158716.4034 | DI14: 354206.3873 | DJ14: 390916.8259 | DK14: -1295989.779
C16: =Cálculos!C359 -> Menos: Depreciações e Amortizações | E16: =Cálculos!E359 -> EUR | G16: =SUM(H16:FC16) -> -14937688.52 | H16: =SUMIFS(Cálculos!$I359:$QJ359, Cálculos!$I$8:$QJ$8, H$3, Cálculos!$I$10:$QJ$10, H$4) -> 0 | I16: =SUMIFS(Cálculos!$I359:$QJ359, Cálculos!$I$8:$QJ$8, I$3, Cálculos!$I$10:$QJ$10, I$4) -> 0 | J16: =SUMIFS(Cálculos!$I359:$QJ359, Cálculos!$I$8:$QJ$8, J$3, Cálculos!$I$10:$QJ$10, J$4) -> 0 | K16: =SUMIFS(Cálculos!$I359:$QJ359, Cálculos!$I$8:$QJ$8, K$3, Cálculos!$I$10:$QJ$10, K$4) -> 0 | L16: =SUMIFS(Cálculos!$I359:$QJ359, Cálculos!$I$8:$QJ$8, L$3, Cálculos!$I$10:$QJ$10, L$4) -> 0 | M16: =SUMIFS(Cálculos!$I359:$QJ359, Cálculos!$I$8:$QJ$8, M$3, Cálculos!$I$10:$QJ$10, M$4) -> 0 | N16: =SUMIFS(Cálculos!$I359:$QJ359, Cálculos!$I$8:$QJ$8, N$3, Cálculos!$I$10:$QJ$10, N$4) -> 0 | O16: =SUMIFS(Cálculos!$I359:$QJ359, Cálculos!$I$8:$QJ$8, O$3, Cálculos!$I$10:$QJ$10, O$4) -> 0 | P16: =SUMIFS(Cálculos!$I359:$QJ359, Cálculos!$I$8:$QJ$8, P$3, Cálculos!$I$10:$QJ$10, P$4) -> -291375.3594 | Q16: =SUMIFS(Cálculos!$I359:$QJ359, Cálculos!$I$8:$QJ$8, Q$3, Cálculos!$I$10:$QJ$10, Q$4) -> -291375.3594 | R16: =SUMIFS(Cálculos!$I359:$QJ359, Cálculos!$I$8:$QJ$8, R$3, Cálculos!$I$10:$QJ$10, R$4) -> -291375.3594 | S16: =SUMIFS(Cálculos!$I359:$QJ359, Cálculos!$I$8:$QJ$8, S$3, Cálculos!$I$10:$QJ$10, S$4) -> -291375.3594 | T16: =SUMIFS(Cálculos!$I359:$QJ359, Cálculos!$I$8:$QJ$8, T$3, Cálculos!$I$10:$QJ$10, T$4) -> -291375.3594 | U16: =SUMIFS(Cálculos!$I359:$QJ359, Cálculos!$I$8:$QJ$8, U$3, Cálculos!$I$10:$QJ$10, U$4) -> -291375.3594 | V16: =SUMIFS(Cálculos!$I359:$QJ359, Cálculos!$I$8:$QJ$8, V$3, Cálculos!$I$10:$QJ$10, V$4) -> -291375.3594 | W16: =SUMIFS(Cálculos!$I359:$QJ359, Cálculos!$I$8:$QJ$8, W$3, Cálculos!$I$10:$QJ$10, W$4) -> -291375.3594 | X16: =SUMIFS(Cálculos!$I359:$QJ359, Cálculos!$I$8:$QJ$8, X$3, Cálculos!$I$10:$QJ$10, X$4) -> -291375.3594 | Y16: =SUMIFS(Cálculos!$I359:$QJ359, Cálculos!$I$8:$QJ$8, Y$3, Cálculos!$I$10:$QJ$10, Y$4) -> -291375.3594 | Z16: =SUMIFS(Cálculos!$I359:$QJ359, Cálculos!$I$8:$QJ$8, Z$3, Cálculos!$I$10:$QJ$10, Z$4) -> -291375.3594 | AA16: =SUMIFS(Cálculos!$I359:$QJ359, Cálculos!$I$8:$QJ$8, AA$3, Cálculos!$I$10:$QJ$10, AA$4) -> -291375.3594 | AB16: =SUMIFS(Cálculos!$I359:$QJ359, Cálculos!$I$8:$QJ$8, AB$3, Cálculos!$I$10:$QJ$10, AB$4) -> -291375.3594 | AC16: =SUMIFS(Cálculos!$I359:$QJ359, Cálculos!$I$8:$QJ$8, AC$3, Cálculos!$I$10:$QJ$10, AC$4) -> -291375.3594 | AD16: =SUMIFS(Cálculos!$I359:$QJ359, Cálculos!$I$8:$QJ$8, AD$3, Cálculos!$I$10:$QJ$10, AD$4) -> -291375.3594 | AE16: =SUMIFS(Cálculos!$I359:$QJ359, Cálculos!$I$8:$QJ$8, AE$3, Cálculos!$I$10:$QJ$10, AE$4) -> -291375.3594 | AF16: =SUMIFS(Cálculos!$I359:$QJ359, Cálculos!$I$8:$QJ$8, AF$3, Cálculos!$I$10:$QJ$10, AF$4) -> -291375.3594 | AG16: =SUMIFS(Cálculos!$I359:$QJ359, Cálculos!$I$8:$QJ$8, AG$3, Cálculos!$I$10:$QJ$10, AG$4) -> -291375.3594 | AH16: =SUMIFS(Cálculos!$I359:$QJ359, Cálculos!$I$8:$QJ$8, AH$3, Cálculos!$I$10:$QJ$10, AH$4) -> -291375.3594 | AI16: =SUMIFS(Cálculos!$I359:$QJ359, Cálculos!$I$8:$QJ$8, AI$3, Cálculos!$I$10:$QJ$10, AI$4) -> -291375.3594 | AJ16: =SUMIFS(Cálculos!$I359:$QJ359, Cálculos!$I$8:$QJ$8, AJ$3, Cálculos!$I$10:$QJ$10, AJ$4) -> -285850.3594 | AK16: =SUMIFS(Cálculos!$I359:$QJ359, Cálculos!$I$8:$QJ$8, AK$3, Cálculos!$I$10:$QJ$10, AK$4) -> -285850.3594 | AL16: =SUMIFS(Cálculos!$I359:$QJ359, Cálculos!$I$8:$QJ$8, AL$3, Cálculos!$I$10:$QJ$10, AL$4) -> -285850.3594 | AM16: =SUMIFS(Cálculos!$I359:$QJ359, Cálculos!$I$8:$QJ$8, AM$3, Cálculos!$I$10:$QJ$10, AM$4) -> -285850.3594 | AN16: =SUMIFS(Cálculos!$I359:$QJ359, Cálculos!$I$8:$QJ$8, AN$3, Cálculos!$I$10:$QJ$10, AN$4) -> -285850.3594 | AO16: =SUMIFS(Cálculos!$I359:$QJ359, Cálculos!$I$8:$QJ$8, AO$3, Cálculos!$I$10:$QJ$10, AO$4) -> -285850.3594 | AP16: =SUMIFS(Cálculos!$I359:$QJ359, Cálculos!$I$8:$QJ$8, AP$3, Cálculos!$I$10:$QJ$10, AP$4) -> -285850.3594 | AQ16: =SUMIFS(Cálculos!$I359:$QJ359, Cálculos!$I$8:$QJ$8, AQ$3, Cálculos!$I$10:$QJ$10, AQ$4) -> -285850.3594 | AR16: =SUMIFS(Cálculos!$I359:$QJ359, Cálculos!$I$8:$QJ$8, AR$3, Cálculos!$I$10:$QJ$10, AR$4) -> -160120.907 | AS16: =SUMIFS(Cálculos!$I359:$QJ359, Cálculos!$I$8:$QJ$8, AS$3, Cálculos!$I$10:$QJ$10, AS$4) -> -160120.907 | AT16: =SUMIFS(Cálculos!$I359:$QJ359, Cálculos!$I$8:$QJ$8, AT$3, Cálculos!$I$10:$QJ$10, AT$4) -> -160120.907 | AU16: =SUMIFS(Cálculos!$I359:$QJ359, Cálculos!$I$8:$QJ$8, AU$3, Cálculos!$I$10:$QJ$10, AU$4) -> -160120.907 | AV16: =SUMIFS(Cálculos!$I359:$QJ359, Cálculos!$I$8:$QJ$8, AV$3, Cálculos!$I$10:$QJ$10, AV$4) -> -160120.907 | AW16: =SUMIFS(Cálculos!$I359:$QJ359, Cálculos!$I$8:$QJ$8, AW$3, Cálculos!$I$10:$QJ$10, AW$4) -> -160120.907 | AX16: =SUMIFS(Cálculos!$I359:$QJ359, Cálculos!$I$8:$QJ$8, AX$3, Cálculos!$I$10:$QJ$10, AX$4) -> -160120.907 | AY16: =SUMIFS(Cálculos!$I359:$QJ359, Cálculos!$I$8:$QJ$8, AY$3, Cálculos!$I$10:$QJ$10, AY$4) -> -160120.907 | AZ16: =SUMIFS(Cálculos!$I359:$QJ359, Cálculos!$I$8:$QJ$8, AZ$3, Cálculos!$I$10:$QJ$10, AZ$4) -> -160120.907 | BA16: =SUMIFS(Cálculos!$I359:$QJ359, Cálculos!$I$8:$QJ$8, BA$3, Cálculos!$I$10:$QJ$10, BA$4) -> -160120.907 | BB16: =SUMIFS(Cálculos!$I359:$QJ359, Cálculos!$I$8:$QJ$8, BB$3, Cálculos!$I$10:$QJ$10, BB$4) -> -160010.907 | BC16: =SUMIFS(Cálculos!$I359:$QJ359, Cálculos!$I$8:$QJ$8, BC$3, Cálculos!$I$10:$QJ$10, BC$4) -> -160010.907 | BD16: =SUMIFS(Cálculos!$I359:$QJ359, Cálculos!$I$8:$QJ$8, BD$3, Cálculos!$I$10:$QJ$10, BD$4) -> -105640.0371 | BE16: =SUMIFS(Cálculos!$I359:$QJ359, Cálculos!$I$8:$QJ$8, BE$3, Cálculos!$I$10:$QJ$10, BE$4) -> -105640.0371 | BF16: =SUMIFS(Cálculos!$I359:$QJ359, Cálculos!$I$8:$QJ$8, BF$3, Cálculos!$I$10:$QJ$10, BF$4) -> -105640.0371 | BG16: =SUMIFS(Cálculos!$I359:$QJ359, Cálculos!$I$8:$QJ$8, BG$3, Cálculos!$I$10:$QJ$10, BG$4) -> -105640.0371 | BH16: =SUMIFS(Cálculos!$I359:$QJ359, Cálculos!$I$8:$QJ$8, BH$3, Cálculos!$I$10:$QJ$10, BH$4) -> -105640.0371 | BI16: =SUMIFS(Cálculos!$I359:$QJ359, Cálculos!$I$8:$QJ$8, BI$3, Cálculos!$I$10:$QJ$10, BI$4) -> -105640.0371 | BJ16: =SUMIFS(Cálculos!$I359:$QJ359, Cálculos!$I$8:$QJ$8, BJ$3, Cálculos!$I$10:$QJ$10, BJ$4) -> -105640.0371 | BK16: =SUMIFS(Cálculos!$I359:$QJ359, Cálculos!$I$8:$QJ$8, BK$3, Cálculos!$I$10:$QJ$10, BK$4) -> -105640.0371 | BL16: =SUMIFS(Cálculos!$I359:$QJ359, Cálculos!$I$8:$QJ$8, BL$3, Cálculos!$I$10:$QJ$10, BL$4) -> -105640.0371 | BM16: =SUMIFS(Cálculos!$I359:$QJ359, Cálculos!$I$8:$QJ$8, BM$3, Cálculos!$I$10:$QJ$10, BM$4) -> -105640.0371 | BN16: =SUMIFS(Cálculos!$I359:$QJ359, Cálculos!$I$8:$QJ$8, BN$3, Cálculos!$I$10:$QJ$10, BN$4) -> -76887.60856 | BO16: =SUMIFS(Cálculos!$I359:$QJ359, Cálculos!$I$8:$QJ$8, BO$3, Cálculos!$I$10:$QJ$10, BO$4) -> -76887.60856 | BP16: =SUMIFS(Cálculos!$I359:$QJ359, Cálculos!$I$8:$QJ$8, BP$3, Cálculos!$I$10:$QJ$10, BP$4) -> -76887.60856 | BQ16: =SUMIFS(Cálculos!$I359:$QJ359, Cálculos!$I$8:$QJ$8, BQ$3, Cálculos!$I$10:$QJ$10, BQ$4) -> -76887.60856 | BR16: =SUMIFS(Cálculos!$I359:$QJ359, Cálculos!$I$8:$QJ$8, BR$3, Cálculos!$I$10:$QJ$10, BR$4) -> -76887.60856 | BS16: =SUMIFS(Cálculos!$I359:$QJ359, Cálculos!$I$8:$QJ$8, BS$3, Cálculos!$I$10:$QJ$10, BS$4) -> -76887.60856 | BT16: =SUMIFS(Cálculos!$I359:$QJ359, Cálculos!$I$8:$QJ$8, BT$3, Cálculos!$I$10:$QJ$10, BT$4) -> -76887.60856 | BU16: =SUMIFS(Cálculos!$I359:$QJ359, Cálculos!$I$8:$QJ$8, BU$3, Cálculos!$I$10:$QJ$10, BU$4) -> -76887.60856 | BV16: =SUMIFS(Cálculos!$I359:$QJ359, Cálculos!$I$8:$QJ$8, BV$3, Cálculos!$I$10:$QJ$10, BV$4) -> -76887.60856 | BW16: =SUMIFS(Cálculos!$I359:$QJ359, Cálculos!$I$8:$QJ$8, BW$3, Cálculos!$I$10:$QJ$10, BW$4) -> -76887.60856 | BX16: =SUMIFS(Cálculos!$I359:$QJ359, Cálculos!$I$8:$QJ$8, BX$3, Cálculos!$I$10:$QJ$10, BX$4) -> -76887.60856 | BY16: =SUMIFS(Cálculos!$I359:$QJ359, Cálculos!$I$8:$QJ$8, BY$3, Cálculos!$I$10:$QJ$10, BY$4) -> -76887.60856 | BZ16: =SUMIFS(Cálculos!$I359:$QJ359, Cálculos!$I$8:$QJ$8, BZ$3, Cálculos!$I$10:$QJ$10, BZ$4) -> -76887.60856 | CA16: =SUMIFS(Cálculos!$I359:$QJ359, Cálculos!$I$8:$QJ$8, CA$3, Cálculos!$I$10:$QJ$10, CA$4) -> -76887.60856 | CB16: =SUMIFS(Cálculos!$I359:$QJ359, Cálculos!$I$8:$QJ$8, CB$3, Cálculos!$I$10:$QJ$10, CB$4) -> -76887.60856 | CC16: =SUMIFS(Cálculos!$I359:$QJ359, Cálculos!$I$8:$QJ$8, CC$3, Cálculos!$I$10:$QJ$10, CC$4) -> -76887.60856 | CD16: =SUMIFS(Cálculos!$I359:$QJ359, Cálculos!$I$8:$QJ$8, CD$3, Cálculos!$I$10:$QJ$10, CD$4) -> -76887.60856 | CE16: =SUMIFS(Cálculos!$I359:$QJ359, Cálculos!$I$8:$QJ$8, CE$3, Cálculos!$I$10:$QJ$10, CE$4) -> -76887.60856 | CF16: =SUMIFS(Cálculos!$I359:$QJ359, Cálculos!$I$8:$QJ$8, CF$3, Cálculos!$I$10:$QJ$10, CF$4) -> -76887.60856 | CG16: =SUMIFS(Cálculos!$I359:$QJ359, Cálculos!$I$8:$QJ$8, CG$3, Cálculos!$I$10:$QJ$10, CG$4) -> -76887.60856 | CH16: =SUMIFS(Cálculos!$I359:$QJ359, Cálculos!$I$8:$QJ$8, CH$3, Cálculos!$I$10:$QJ$10, CH$4) -> -76933.16775 | CI16: =SUMIFS(Cálculos!$I359:$QJ359, Cálculos!$I$8:$QJ$8, CI$3, Cálculos!$I$10:$QJ$10, CI$4) -> -76933.16775 | CJ16: =SUMIFS(Cálculos!$I359:$QJ359, Cálculos!$I$8:$QJ$8, CJ$3, Cálculos!$I$10:$QJ$10, CJ$4) -> -76933.16775 | CK16: =SUMIFS(Cálculos!$I359:$QJ359, Cálculos!$I$8:$QJ$8, CK$3, Cálculos!$I$10:$QJ$10, CK$4) -> -76933.16775 | CL16: =SUMIFS(Cálculos!$I359:$QJ359, Cálculos!$I$8:$QJ$8, CL$3, Cálculos!$I$10:$QJ$10, CL$4) -> -76933.16775 | CM16: =SUMIFS(Cálculos!$I359:$QJ359, Cálculos!$I$8:$QJ$8, CM$3, Cálculos!$I$10:$QJ$10, CM$4) -> -76933.16775 | CN16: =SUMIFS(Cálculos!$I359:$QJ359, Cálculos!$I$8:$QJ$8, CN$3, Cálculos!$I$10:$QJ$10, CN$4) -> -76933.16775 | CO16: =SUMIFS(Cálculos!$I359:$QJ359, Cálculos!$I$8:$QJ$8, CO$3, Cálculos!$I$10:$QJ$10, CO$4) -> -76933.16775 | CP16: =SUMIFS(Cálculos!$I359:$QJ359, Cálculos!$I$8:$QJ$8, CP$3, Cálculos!$I$10:$QJ$10, CP$4) -> -76933.16775 | CQ16: =SUMIFS(Cálculos!$I359:$QJ359, Cálculos!$I$8:$QJ$8, CQ$3, Cálculos!$I$10:$QJ$10, CQ$4) -> -76933.16775 | CR16: =SUMIFS(Cálculos!$I359:$QJ359, Cálculos!$I$8:$QJ$8, CR$3, Cálculos!$I$10:$QJ$10, CR$4) -> -76933.16775 | CS16: =SUMIFS(Cálculos!$I359:$QJ359, Cálculos!$I$8:$QJ$8, CS$3, Cálculos!$I$10:$QJ$10, CS$4) -> -76933.16775 | CT16: =SUMIFS(Cálculos!$I359:$QJ359, Cálculos!$I$8:$QJ$8, CT$3, Cálculos!$I$10:$QJ$10, CT$4) -> -76933.16775 | CU16: =SUMIFS(Cálculos!$I359:$QJ359, Cálculos!$I$8:$QJ$8, CU$3, Cálculos!$I$10:$QJ$10, CU$4) -> -76933.16775 | CV16: =SUMIFS(Cálculos!$I359:$QJ359, Cálculos!$I$8:$QJ$8, CV$3, Cálculos!$I$10:$QJ$10, CV$4) -> -76933.16775 | CW16: =SUMIFS(Cálculos!$I359:$QJ359, Cálculos!$I$8:$QJ$8, CW$3, Cálculos!$I$10:$QJ$10, CW$4) -> -76933.16775 | CX16: =SUMIFS(Cálculos!$I359:$QJ359, Cálculos!$I$8:$QJ$8, CX$3, Cálculos!$I$10:$QJ$10, CX$4) -> -76933.16775 | CY16: =SUMIFS(Cálculos!$I359:$QJ359, Cálculos!$I$8:$QJ$8, CY$3, Cálculos!$I$10:$QJ$10, CY$4) -> -76933.16775 | CZ16: =SUMIFS(Cálculos!$I359:$QJ359, Cálculos!$I$8:$QJ$8, CZ$3, Cálculos!$I$10:$QJ$10, CZ$4) -> -76933.16775 | DA16: =SUMIFS(Cálculos!$I359:$QJ359, Cálculos!$I$8:$QJ$8, DA$3, Cálculos!$I$10:$QJ$10, DA$4) -> -76933.16775 | DB16: =SUMIFS(Cálculos!$I359:$QJ359, Cálculos!$I$8:$QJ$8, DB$3, Cálculos!$I$10:$QJ$10, DB$4) -> -76933.16775 | DC16: =SUMIFS(Cálculos!$I359:$QJ359, Cálculos!$I$8:$QJ$8, DC$3, Cálculos!$I$10:$QJ$10, DC$4) -> -76933.16775 | DD16: =SUMIFS(Cálculos!$I359:$QJ359, Cálculos!$I$8:$QJ$8, DD$3, Cálculos!$I$10:$QJ$10, DD$4) -> -76933.16775 | DE16: =SUMIFS(Cálculos!$I359:$QJ359, Cálculos!$I$8:$QJ$8, DE$3, Cálculos!$I$10:$QJ$10, DE$4) -> -76933.16775 | DF16: =SUMIFS(Cálculos!$I359:$QJ359, Cálculos!$I$8:$QJ$8, DF$3, Cálculos!$I$10:$QJ$10, DF$4) -> -76933.16775 | DG16: =SUMIFS(Cálculos!$I359:$QJ359, Cálculos!$I$8:$QJ$8, DG$3, Cálculos!$I$10:$QJ$10, DG$4) -> -76933.16775 | DH16: =SUMIFS(Cálculos!$I359:$QJ359, Cálculos!$I$8:$QJ$8, DH$3, Cálculos!$I$10:$QJ$10, DH$4) -> -76933.16775 | DI16: =SUMIFS(Cálculos!$I359:$QJ359, Cálculos!$I$8:$QJ$8, DI$3, Cálculos!$I$10:$QJ$10, DI$4) -> -76933.16775 | DJ16: =SUMIFS(Cálculos!$I359:$QJ359, Cálculos!$I$8:$QJ$8, DJ$3, Cálculos!$I$10:$QJ$10, DJ$4) -> -76933.16775 | DK16: =SUMIFS(Cálculos!$I359:$QJ359, Cálculos!$I$8:$QJ$8, DK$3, Cálculos!$I$10:$QJ$10, DK$4) -> -76933.16775
C17: =Cálculos!C360 -> EBIT | E17: =Cálculos!E360 -> EUR | G17: =SUM(H17:FC17) -> 16557935.57 | H17: =H14+H16 -> 0 | I17: =I14+I16 -> 0 | J17: 0 | K17: 0 | L17: 0 | M17: 0 | N17: 0 | O17: 0 | P17: -7177.662259 | Q17: 217895.4412 | R17: 288129.2831 | S17: -54965.03086 | T17: -15022.47265 | U17: 221373.8588 | V17: 277577.2938 | W17: -65959.31184 | X17: -19336.06852 | Y17: 220170.677 | Z17: 270336.0788 | AA17: -70744.96464 | AB17: -23985.86405 | AC17: 214765.6467 | AD17: 261848.6547 | AE17: -75889.81256 | AF17: -29984.17026 | AG17: 207616.0507 | AH17: 253731.7106 | AI17: -80644.80875 | AJ17: -29319.18292 | AK17: 206238.6037 | AL17: 251187.1205 | AM17: -79860.91678 | AN17: -34543.11468 | AO17: 199136.8654 | AP17: 243163.5769 | AQ17: -84589.11098 | AR17: 85979.26892 | AS17: 317329.445 | AT17: 360914.2168 | AU17: 36424.07544 | AV17: 80406.65614 | AW17: 309831.5804 | AX17: 352978.8117 | AY17: 31718.74055 | AZ17: 75611.52351 | BA17: 302371.4353 | BB17: 345195.4816 | BC17: 27133.32753 | BD17: 124929.5891 | BE17: 349428.5813 | BF17: 391713.7546 | BG17: 76817.6846 | BH17: 119779.3916 | BI17: 342039.97 | BJ17: 383900.5393 | BK17: 72139.03738 | BL17: 114259.7837 | BM17: 334685.1521 | BN17: 404877.7728 | BO17: 96219.6364 | BP17: 138264.8515 | BQ17: 356115.226 | BR17: 397139.2254 | BS17: 91553.56279 | BT17: 133145.8497 | BU17: =BU14+BU16 -> 348823.9927 | BV17: 389435.9423 | BW17: 86892.16911 | BX17: 128034.9921 | BY17: 341562.5267 | BZ17: 381766.5282 | CA17: 82234.36457 | CB17: 122550.627 | CC17: 334329.4615 | CD17: 374129.5756 | CE17: 77579.04316 | CF17: 117833.0892 | CG17: 327123.4172 | CH17: 366478.1053 | CI17: 72879.52392 | CJ17: 112694.1355 | CK17: 319897.4413 | CL17: 358901.802 | CM17: 68225.78721 | CN17: 107604.1861 | CO17: 312741.2444 | CP17: 351353.6594 | CQ17: 63571.11901 | CR17: 102136.3703 | CS17: 305607.8448 | CT17: 343832.2157 | CU17: 58914.3472 | CV17: 97429.7419 | CW17: 298495.8047 | CX17: 336335.9941 | CY17: 54254.28178 | CZ17: 92342.76296 | DA17: 291403.6702 | DB17: 328863.5024 | DC17: 49589.71433 | DD17: =DD14+DD16 -> 87254.25935 | DE17: 284329.971 | DF17: 321413.2322 | DG17: 44919.41741 | DH17: 81783.23563 | DI17: 277273.2195 | DJ17: 313983.6581 | DK17: -1372922.946
C19: =Cálculos!C362 -> Menos: Juros da Dívida Sénior | E19: =Cálculos!E362 -> EUR | G19: =SUM(H19:FC19) -> -4700943.598 | H19: =SUMIFS(Cálculos!$I362:$QJ362, Cálculos!$I$8:$QJ$8, H$3, Cálculos!$I$10:$QJ$10, H$4) -> 0 | I19: =SUMIFS(Cálculos!$I362:$QJ362, Cálculos!$I$8:$QJ$8, I$3, Cálculos!$I$10:$QJ$10, I$4) -> 0 | J19: =SUMIFS(Cálculos!$I362:$QJ362, Cálculos!$I$8:$QJ$8, J$3, Cálculos!$I$10:$QJ$10, J$4) -> 0 | K19: =SUMIFS(Cálculos!$I362:$QJ362, Cálculos!$I$8:$QJ$8, K$3, Cálculos!$I$10:$QJ$10, K$4) -> 0 | L19: =SUMIFS(Cálculos!$I362:$QJ362, Cálculos!$I$8:$QJ$8, L$3, Cálculos!$I$10:$QJ$10, L$4) -> 0 | M19: =SUMIFS(Cálculos!$I362:$QJ362, Cálculos!$I$8:$QJ$8, M$3, Cálculos!$I$10:$QJ$10, M$4) -> 0 | N19: =SUMIFS(Cálculos!$I362:$QJ362, Cálculos!$I$8:$QJ$8, N$3, Cálculos!$I$10:$QJ$10, N$4) -> 0 | O19: =SUMIFS(Cálculos!$I362:$QJ362, Cálculos!$I$8:$QJ$8, O$3, Cálculos!$I$10:$QJ$10, O$4) -> 0 | P19: =SUMIFS(Cálculos!$I362:$QJ362, Cálculos!$I$8:$QJ$8, P$3, Cálculos!$I$10:$QJ$10, P$4) -> -111817.183 | Q19: =SUMIFS(Cálculos!$I362:$QJ362, Cálculos!$I$8:$QJ$8, Q$3, Cálculos!$I$10:$QJ$10, Q$4) -> -111700.3758 | R19: =SUMIFS(Cálculos!$I362:$QJ362, Cálculos!$I$8:$QJ$8, R$3, Cálculos!$I$10:$QJ$10, R$4) -> -110745.5643 | S19: =SUMIFS(Cálculos!$I362:$QJ362, Cálculos!$I$8:$QJ$8, S$3, Cálculos!$I$10:$QJ$10, S$4) -> -109777.5639 | T19: =SUMIFS(Cálculos!$I362:$QJ362, Cálculos!$I$8:$QJ$8, T$3, Cálculos!$I$10:$QJ$10, T$4) -> -108796.1924 | U19: =SUMIFS(Cálculos!$I362:$QJ362, Cálculos!$I$8:$QJ$8, U$3, Cálculos!$I$10:$QJ$10, U$4) -> -107801.2651 | V19: =SUMIFS(Cálculos!$I362:$QJ362, Cálculos!$I$8:$QJ$8, V$3, Cálculos!$I$10:$QJ$10, V$4) -> -106792.5947 | W19: =SUMIFS(Cálculos!$I362:$QJ362, Cálculos!$I$8:$QJ$8, W$3, Cálculos!$I$10:$QJ$10, W$4) -> -105769.9915 | X19: =SUMIFS(Cálculos!$I362:$QJ362, Cálculos!$I$8:$QJ$8, X$3, Cálculos!$I$10:$QJ$10, X$4) -> -104733.2629 | Y19: =SUMIFS(Cálculos!$I362:$QJ362, Cálculos!$I$8:$QJ$8, Y$3, Cálculos!$I$10:$QJ$10, Y$4) -> -103682.2138 | Z19: =SUMIFS(Cálculos!$I362:$QJ362, Cálculos!$I$8:$QJ$8, Z$3, Cálculos!$I$10:$QJ$10, Z$4) -> -102616.6465 | AA19: =SUMIFS(Cálculos!$I362:$QJ362, Cálculos!$I$8:$QJ$8, AA$3, Cálculos!$I$10:$QJ$10, AA$4) -> -101536.3604 | AB19: =SUMIFS(Cálculos!$I362:$QJ362, Cálculos!$I$8:$QJ$8, AB$3, Cálculos!$I$10:$QJ$10, AB$4) -> -100441.1522 | AC19: =SUMIFS(Cálculos!$I362:$QJ362, Cálculos!$I$8:$QJ$8, AC$3, Cálculos!$I$10:$QJ$10, AC$4) -> -99330.81572 | AD19: =SUMIFS(Cálculos!$I362:$QJ362, Cálculos!$I$8:$QJ$8, AD$3, Cálculos!$I$10:$QJ$10, AD$4) -> -98205.14205 | AE19: =SUMIFS(Cálculos!$I362:$QJ362, Cálculos!$I$8:$QJ$8, AE$3, Cálculos!$I$10:$QJ$10, AE$4) -> -97063.91931 | AF19: =SUMIFS(Cálculos!$I362:$QJ362, Cálculos!$I$8:$QJ$8, AF$3, Cálculos!$I$10:$QJ$10, AF$4) -> -95906.93273 | AG19: =SUMIFS(Cálculos!$I362:$QJ362, Cálculos!$I$8:$QJ$8, AG$3, Cálculos!$I$10:$QJ$10, AG$4) -> -94733.96456 | AH19: =SUMIFS(Cálculos!$I362:$QJ362, Cálculos!$I$8:$QJ$8, AH$3, Cálculos!$I$10:$QJ$10, AH$4) -> -93544.79404 | AI19: =SUMIFS(Cálculos!$I362:$QJ362, Cálculos!$I$8:$QJ$8, AI$3, Cálculos!$I$10:$QJ$10, AI$4) -> -92339.19737 | AJ19: =SUMIFS(Cálculos!$I362:$QJ362, Cálculos!$I$8:$QJ$8, AJ$3, Cálculos!$I$10:$QJ$10, AJ$4) -> -91116.94765 | AK19: =SUMIFS(Cálculos!$I362:$QJ362, Cálculos!$I$8:$QJ$8, AK$3, Cálculos!$I$10:$QJ$10, AK$4) -> -89877.81486 | AL19: =SUMIFS(Cálculos!$I362:$QJ362, Cálculos!$I$8:$QJ$8, AL$3, Cálculos!$I$10:$QJ$10, AL$4) -> -88621.56577 | AM19: =SUMIFS(Cálculos!$I362:$QJ362, Cálculos!$I$8:$QJ$8, AM$3, Cálculos!$I$10:$QJ$10, AM$4) -> -87347.96397 | AN19: =SUMIFS(Cálculos!$I362:$QJ362, Cálculos!$I$8:$QJ$8, AN$3, Cálculos!$I$10:$QJ$10, AN$4) -> -86056.76976 | AO19: =SUMIFS(Cálculos!$I362:$QJ362, Cálculos!$I$8:$QJ$8, AO$3, Cálculos!$I$10:$QJ$10, AO$4) -> -84747.74014 | AP19: =SUMIFS(Cálculos!$I362:$QJ362, Cálculos!$I$8:$QJ$8, AP$3, Cálculos!$I$10:$QJ$10, AP$4) -> -83420.62873 | AQ19: =SUMIFS(Cálculos!$I362:$QJ362, Cálculos!$I$8:$QJ$8, AQ$3, Cálculos!$I$10:$QJ$10, AQ$4) -> -82075.18578 | AR19: =SUMIFS(Cálculos!$I362:$QJ362, Cálculos!$I$8:$QJ$8, AR$3, Cálculos!$I$10:$QJ$10, AR$4) -> -80711.15807 | AS19: =SUMIFS(Cálculos!$I362:$QJ362, Cálculos!$I$8:$QJ$8, AS$3, Cálculos!$I$10:$QJ$10, AS$4) -> -79328.28888 | AT19: =SUMIFS(Cálculos!$I362:$QJ362, Cálculos!$I$8:$QJ$8, AT$3, Cálculos!$I$10:$QJ$10, AT$4) -> -77926.31796 | AU19: =SUMIFS(Cálculos!$I362:$QJ362, Cálculos!$I$8:$QJ$8, AU$3, Cálculos!$I$10:$QJ$10, AU$4) -> -76504.98145 | AV19: =SUMIFS(Cálculos!$I362:$QJ362, Cálculos!$I$8:$QJ$8, AV$3, Cálculos!$I$10:$QJ$10, AV$4) -> -75064.01186 | AW19: =SUMIFS(Cálculos!$I362:$QJ362, Cálculos!$I$8:$QJ$8, AW$3, Cálculos!$I$10:$QJ$10, AW$4) -> -73603.13798 | AX19: =SUMIFS(Cálculos!$I362:$QJ362, Cálculos!$I$8:$QJ$8, AX$3, Cálculos!$I$10:$QJ$10, AX$4) -> -72122.08488 | AY19: =SUMIFS(Cálculos!$I362:$QJ362, Cálculos!$I$8:$QJ$8, AY$3, Cálculos!$I$10:$QJ$10, AY$4) -> -70620.57382 | AZ19: =SUMIFS(Cálculos!$I362:$QJ362, Cálculos!$I$8:$QJ$8, AZ$3, Cálculos!$I$10:$QJ$10, AZ$4) -> -69098.32221 | BA19: =SUMIFS(Cálculos!$I362:$QJ362, Cálculos!$I$8:$QJ$8, BA$3, Cálculos!$I$10:$QJ$10, BA$4) -> -67555.04356 | BB19: =SUMIFS(Cálculos!$I362:$QJ362, Cálculos!$I$8:$QJ$8, BB$3, Cálculos!$I$10:$QJ$10, BB$4) -> -65990.44742 | BC19: =SUMIFS(Cálculos!$I362:$QJ362, Cálculos!$I$8:$QJ$8, BC$3, Cálculos!$I$10:$QJ$10, BC$4) -> -64404.23934 | BD19: =SUMIFS(Cálculos!$I362:$QJ362, Cálculos!$I$8:$QJ$8, BD$3, Cálculos!$I$10:$QJ$10, BD$4) -> -62796.12077 | BE19: =SUMIFS(Cálculos!$I362:$QJ362, Cálculos!$I$8:$QJ$8, BE$3, Cálculos!$I$10:$QJ$10, BE$4) -> -61165.78908 | BF19: =SUMIFS(Cálculos!$I362:$QJ362, Cálculos!$I$8:$QJ$8, BF$3, Cálculos!$I$10:$QJ$10, BF$4) -> -59512.93742 | BG19: =SUMIFS(Cálculos!$I362:$QJ362, Cálculos!$I$8:$QJ$8, BG$3, Cálculos!$I$10:$QJ$10, BG$4) -> -57837.25473 | BH19: =SUMIFS(Cálculos!$I362:$QJ362, Cálculos!$I$8:$QJ$8, BH$3, Cálculos!$I$10:$QJ$10, BH$4) -> -56138.42564 | BI19: =SUMIFS(Cálculos!$I362:$QJ362, Cálculos!$I$8:$QJ$8, BI$3, Cálculos!$I$10:$QJ$10, BI$4) -> -54416.13042 | BJ19: =SUMIFS(Cálculos!$I362:$QJ362, Cálculos!$I$8:$QJ$8, BJ$3, Cálculos!$I$10:$QJ$10, BJ$4) -> -52670.04494 | BK19: =SUMIFS(Cálculos!$I362:$QJ362, Cálculos!$I$8:$QJ$8, BK$3, Cálculos!$I$10:$QJ$10, BK$4) -> -50899.84057 | BL19: =SUMIFS(Cálculos!$I362:$QJ362, Cálculos!$I$8:$QJ$8, BL$3, Cálculos!$I$10:$QJ$10, BL$4) -> -49105.18416 | BM19: =SUMIFS(Cálculos!$I362:$QJ362, Cálculos!$I$8:$QJ$8, BM$3, Cálculos!$I$10:$QJ$10, BM$4) -> -47285.73796 | BN19: =SUMIFS(Cálculos!$I362:$QJ362, Cálculos!$I$8:$QJ$8, BN$3, Cálculos!$I$10:$QJ$10, BN$4) -> -45441.15953 | BO19: =SUMIFS(Cálculos!$I362:$QJ362, Cálculos!$I$8:$QJ$8, BO$3, Cálculos!$I$10:$QJ$10, BO$4) -> -43571.10172 | BP19: =SUMIFS(Cálculos!$I362:$QJ362, Cálculos!$I$8:$QJ$8, BP$3, Cálculos!$I$10:$QJ$10, BP$4) -> -41675.21259 | BQ19: =SUMIFS(Cálculos!$I362:$QJ362, Cálculos!$I$8:$QJ$8, BQ$3, Cálculos!$I$10:$QJ$10, BQ$4) -> -39753.13531 | BR19: =SUMIFS(Cálculos!$I362:$QJ362, Cálculos!$I$8:$QJ$8, BR$3, Cálculos!$I$10:$QJ$10, BR$4) -> -37804.50816 | BS19: =SUMIFS(Cálculos!$I362:$QJ362, Cálculos!$I$8:$QJ$8, BS$3, Cálculos!$I$10:$QJ$10, BS$4) -> -35828.96439 | BT19: =SUMIFS(Cálculos!$I362:$QJ362, Cálculos!$I$8:$QJ$8, BT$3, Cálculos!$I$10:$QJ$10, BT$4) -> -33826.13221 | BU19: =SUMIFS(Cálculos!$I362:$QJ362, Cálculos!$I$8:$QJ$8, BU$3, Cálculos!$I$10:$QJ$10, BU$4) -> -31795.63467 | BV19: =SUMIFS(Cálculos!$I362:$QJ362, Cálculos!$I$8:$QJ$8, BV$3, Cálculos!$I$10:$QJ$10, BV$4) -> -29737.08963 | BW19: =SUMIFS(Cálculos!$I362:$QJ362, Cálculos!$I$8:$QJ$8, BW$3, Cálculos!$I$10:$QJ$10, BW$4) -> -27650.10967 | BX19: =SUMIFS(Cálculos!$I362:$QJ362, Cálculos!$I$8:$QJ$8, BX$3, Cálculos!$I$10:$QJ$10, BX$4) -> -25534.302 | BY19: =SUMIFS(Cálculos!$I362:$QJ362, Cálculos!$I$8:$QJ$8, BY$3, Cálculos!$I$10:$QJ$10, BY$4) -> -23389.26844 | BZ19: =SUMIFS(Cálculos!$I362:$QJ362, Cálculos!$I$8:$QJ$8, BZ$3, Cálculos!$I$10:$QJ$10, BZ$4) -> -21214.60528 | CA19: =SUMIFS(Cálculos!$I362:$QJ362, Cálculos!$I$8:$QJ$8, CA$3, Cálculos!$I$10:$QJ$10, CA$4) -> -19009.90324 | CB19: =SUMIFS(Cálculos!$I362:$QJ362, Cálculos!$I$8:$QJ$8, CB$3, Cálculos!$I$10:$QJ$10, CB$4) -> -16774.7474 | CC19: =SUMIFS(Cálculos!$I362:$QJ362, Cálculos!$I$8:$QJ$8, CC$3, Cálculos!$I$10:$QJ$10, CC$4) -> -14508.71708 | CD19: =SUMIFS(Cálculos!$I362:$QJ362, Cálculos!$I$8:$QJ$8, CD$3, Cálculos!$I$10:$QJ$10, CD$4) -> -12211.38582 | CE19: =SUMIFS(Cálculos!$I362:$QJ362, Cálculos!$I$8:$QJ$8, CE$3, Cálculos!$I$10:$QJ$10, CE$4) -> -9882.321262 | CF19: =SUMIFS(Cálculos!$I362:$QJ362, Cálculos!$I$8:$QJ$8, CF$3, Cálculos!$I$10:$QJ$10, CF$4) -> -7521.085058 | CG19: =SUMIFS(Cálculos!$I362:$QJ362, Cálculos!$I$8:$QJ$8, CG$3, Cálculos!$I$10:$QJ$10, CG$4) -> -5127.232821 | CH19: =SUMIFS(Cálculos!$I362:$QJ362, Cálculos!$I$8:$QJ$8, CH$3, Cálculos!$I$10:$QJ$10, CH$4) -> -2700.314023 | CI19: =SUMIFS(Cálculos!$I362:$QJ362, Cálculos!$I$8:$QJ$8, CI$3, Cálculos!$I$10:$QJ$10, CI$4) -> -630.8452055 | CJ19: =SUMIFS(Cálculos!$I362:$QJ362, Cálculos!$I$8:$QJ$8, CJ$3, Cálculos!$I$10:$QJ$10, CJ$4) -> 0 | CK19: =SUMIFS(Cálculos!$I362:$QJ362, Cálculos!$I$8:$QJ$8, CK$3, Cálculos!$I$10:$QJ$10, CK$4) -> 0 | CL19: =SUMIFS(Cálculos!$I362:$QJ362, Cálculos!$I$8:$QJ$8, CL$3, Cálculos!$I$10:$QJ$10, CL$4) -> 0 | CM19: =SUMIFS(Cálculos!$I362:$QJ362, Cálculos!$I$8:$QJ$8, CM$3, Cálculos!$I$10:$QJ$10, CM$4) -> 0 | CN19: =SUMIFS(Cálculos!$I362:$QJ362, Cálculos!$I$8:$QJ$8, CN$3, Cálculos!$I$10:$QJ$10, CN$4) -> 0 | CO19: =SUMIFS(Cálculos!$I362:$QJ362, Cálculos!$I$8:$QJ$8, CO$3, Cálculos!$I$10:$QJ$10, CO$4) -> 0 | CP19: =SUMIFS(Cálculos!$I362:$QJ362, Cálculos!$I$8:$QJ$8, CP$3, Cálculos!$I$10:$QJ$10, CP$4) -> 0 | CQ19: =SUMIFS(Cálculos!$I362:$QJ362, Cálculos!$I$8:$QJ$8, CQ$3, Cálculos!$I$10:$QJ$10, CQ$4) -> 0 | CR19: =SUMIFS(Cálculos!$I362:$QJ362, Cálculos!$I$8:$QJ$8, CR$3, Cálculos!$I$10:$QJ$10, CR$4) -> 0 | CS19: =SUMIFS(Cálculos!$I362:$QJ362, Cálculos!$I$8:$QJ$8, CS$3, Cálculos!$I$10:$QJ$10, CS$4) -> 0 | CT19: =SUMIFS(Cálculos!$I362:$QJ362, Cálculos!$I$8:$QJ$8, CT$3, Cálculos!$I$10:$QJ$10, CT$4) -> 0 | CU19: =SUMIFS(Cálculos!$I362:$QJ362, Cálculos!$I$8:$QJ$8, CU$3, Cálculos!$I$10:$QJ$10, CU$4) -> 0 | CV19: =SUMIFS(Cálculos!$I362:$QJ362, Cálculos!$I$8:$QJ$8, CV$3, Cálculos!$I$10:$QJ$10, CV$4) -> 0 | CW19: =SUMIFS(Cálculos!$I362:$QJ362, Cálculos!$I$8:$QJ$8, CW$3, Cálculos!$I$10:$QJ$10, CW$4) -> 0 | CX19: =SUMIFS(Cálculos!$I362:$QJ362, Cálculos!$I$8:$QJ$8, CX$3, Cálculos!$I$10:$QJ$10, CX$4) -> 0 | CY19: =SUMIFS(Cálculos!$I362:$QJ362, Cálculos!$I$8:$QJ$8, CY$3, Cálculos!$I$10:$QJ$10, CY$4) -> 0 | CZ19: =SUMIFS(Cálculos!$I362:$QJ362, Cálculos!$I$8:$QJ$8, CZ$3, Cálculos!$I$10:$QJ$10, CZ$4) -> 0 | DA19: =SUMIFS(Cálculos!$I362:$QJ362, Cálculos!$I$8:$QJ$8, DA$3, Cálculos!$I$10:$QJ$10, DA$4) -> 0 | DB19: =SUMIFS(Cálculos!$I362:$QJ362, Cálculos!$I$8:$QJ$8, DB$3, Cálculos!$I$10:$QJ$10, DB$4) -> 0 | DC19: =SUMIFS(Cálculos!$I362:$QJ362, Cálculos!$I$8:$QJ$8, DC$3, Cálculos!$I$10:$QJ$10, DC$4) -> 0 | DD19: =SUMIFS(Cálculos!$I362:$QJ362, Cálculos!$I$8:$QJ$8, DD$3, Cálculos!$I$10:$QJ$10, DD$4) -> 0 | DE19: =SUMIFS(Cálculos!$I362:$QJ362, Cálculos!$I$8:$QJ$8, DE$3, Cálculos!$I$10:$QJ$10, DE$4) -> 0 | DF19: =SUMIFS(Cálculos!$I362:$QJ362, Cálculos!$I$8:$QJ$8, DF$3, Cálculos!$I$10:$QJ$10, DF$4) -> 0 | DG19: =SUMIFS(Cálculos!$I362:$QJ362, Cálculos!$I$8:$QJ$8, DG$3, Cálculos!$I$10:$QJ$10, DG$4) -> 0 | DH19: =SUMIFS(Cálculos!$I362:$QJ362, Cálculos!$I$8:$QJ$8, DH$3, Cálculos!$I$10:$QJ$10, DH$4) -> 0 | DI19: =SUMIFS(Cálculos!$I362:$QJ362, Cálculos!$I$8:$QJ$8, DI$3, Cálculos!$I$10:$QJ$10, DI$4) -> 0 | DJ19: =SUMIFS(Cálculos!$I362:$QJ362, Cálculos!$I$8:$QJ$8, DJ$3, Cálculos!$I$10:$QJ$10, DJ$4) -> 0 | DK19: =SUMIFS(Cálculos!$I362:$QJ362, Cálculos!$I$8:$QJ$8, DK$3, Cálculos!$I$10:$QJ$10, DK$4) -> 0
C20: =Cálculos!C363 -> Menos: Juros da Dívida Subordinada | E20: =Cálculos!E363 -> EUR | G20: =SUM(H20:FC20) -> -5079271.693 | H20: =SUMIFS(Cálculos!$I363:$QJ363, Cálculos!$I$8:$QJ$8, H$3, Cálculos!$I$10:$QJ$10, H$4) -> 0 | I20: =SUMIFS(Cálculos!$I363:$QJ363, Cálculos!$I$8:$QJ$8, I$3, Cálculos!$I$10:$QJ$10, I$4) -> 0 | J20: =SUMIFS(Cálculos!$I363:$QJ363, Cálculos!$I$8:$QJ$8, J$3, Cálculos!$I$10:$QJ$10, J$4) -> 0 | K20: =SUMIFS(Cálculos!$I363:$QJ363, Cálculos!$I$8:$QJ$8, K$3, Cálculos!$I$10:$QJ$10, K$4) -> 0 | L20: =SUMIFS(Cálculos!$I363:$QJ363, Cálculos!$I$8:$QJ$8, L$3, Cálculos!$I$10:$QJ$10, L$4) -> 0 | M20: =SUMIFS(Cálculos!$I363:$QJ363, Cálculos!$I$8:$QJ$8, M$3, Cálculos!$I$10:$QJ$10, M$4) -> 0 | N20: =SUMIFS(Cálculos!$I363:$QJ363, Cálculos!$I$8:$QJ$8, N$3, Cálculos!$I$10:$QJ$10, N$4) -> 0 | O20: =SUMIFS(Cálculos!$I363:$QJ363, Cálculos!$I$8:$QJ$8, O$3, Cálculos!$I$10:$QJ$10, O$4) -> 0 | P20: =SUMIFS(Cálculos!$I363:$QJ363, Cálculos!$I$8:$QJ$8, P$3, Cálculos!$I$10:$QJ$10, P$4) -> -122643.2975 | Q20: =SUMIFS(Cálculos!$I363:$QJ363, Cálculos!$I$8:$QJ$8, Q$3, Cálculos!$I$10:$QJ$10, Q$4) -> -122736.1647 | R20: =SUMIFS(Cálculos!$I363:$QJ363, Cálculos!$I$8:$QJ$8, R$3, Cálculos!$I$10:$QJ$10, R$4) -> -121822.8518 | S20: =SUMIFS(Cálculos!$I363:$QJ363, Cálculos!$I$8:$QJ$8, S$3, Cálculos!$I$10:$QJ$10, S$4) -> -121303.0491 | T20: =SUMIFS(Cálculos!$I363:$QJ363, Cálculos!$I$8:$QJ$8, T$3, Cálculos!$I$10:$QJ$10, T$4) -> -120767.4959 | U20: =SUMIFS(Cálculos!$I363:$QJ363, Cálculos!$I$8:$QJ$8, U$3, Cálculos!$I$10:$QJ$10, U$4) -> -120215.7149 | V20: =SUMIFS(Cálculos!$I363:$QJ363, Cálculos!$I$8:$QJ$8, V$3, Cálculos!$I$10:$QJ$10, V$4) -> -119647.2143 | W20: =SUMIFS(Cálculos!$I363:$QJ363, Cálculos!$I$8:$QJ$8, W$3, Cálculos!$I$10:$QJ$10, W$4) -> -119061.4876 | X20: =SUMIFS(Cálculos!$I363:$QJ363, Cálculos!$I$8:$QJ$8, X$3, Cálculos!$I$10:$QJ$10, X$4) -> -118458.0129 | Y20: =SUMIFS(Cálculos!$I363:$QJ363, Cálculos!$I$8:$QJ$8, Y$3, Cálculos!$I$10:$QJ$10, Y$4) -> -117836.2522 | Z20: =SUMIFS(Cálculos!$I363:$QJ363, Cálculos!$I$8:$QJ$8, Z$3, Cálculos!$I$10:$QJ$10, Z$4) -> -117195.6515 | AA20: =SUMIFS(Cálculos!$I363:$QJ363, Cálculos!$I$8:$QJ$8, AA$3, Cálculos!$I$10:$QJ$10, AA$4) -> -116535.64 | AB20: =SUMIFS(Cálculos!$I363:$QJ363, Cálculos!$I$8:$QJ$8, AB$3, Cálculos!$I$10:$QJ$10, AB$4) -> -115855.6295 | AC20: =SUMIFS(Cálculos!$I363:$QJ363, Cálculos!$I$8:$QJ$8, AC$3, Cálculos!$I$10:$QJ$10, AC$4) -> -115155.0141 | AD20: =SUMIFS(Cálculos!$I363:$QJ363, Cálculos!$I$8:$QJ$8, AD$3, Cálculos!$I$10:$QJ$10, AD$4) -> -114433.1692 | AE20: =SUMIFS(Cálculos!$I363:$QJ363, Cálculos!$I$8:$QJ$8, AE$3, Cálculos!$I$10:$QJ$10, AE$4) -> -113689.4517 | AF20: =SUMIFS(Cálculos!$I363:$QJ363, Cálculos!$I$8:$QJ$8, AF$3, Cálculos!$I$10:$QJ$10, AF$4) -> -112923.1989 | AG20: =SUMIFS(Cálculos!$I363:$QJ363, Cálculos!$I$8:$QJ$8, AG$3, Cálculos!$I$10:$QJ$10, AG$4) -> -112133.7278 | AH20: =SUMIFS(Cálculos!$I363:$QJ363, Cálculos!$I$8:$QJ$8, AH$3, Cálculos!$I$10:$QJ$10, AH$4) -> -111320.335 | AI20: =SUMIFS(Cálculos!$I363:$QJ363, Cálculos!$I$8:$QJ$8, AI$3, Cálculos!$I$10:$QJ$10, AI$4) -> -110482.2955 | AJ20: =SUMIFS(Cálculos!$I363:$QJ363, Cálculos!$I$8:$QJ$8, AJ$3, Cálculos!$I$10:$QJ$10, AJ$4) -> -109618.8626 | AK20: =SUMIFS(Cálculos!$I363:$QJ363, Cálculos!$I$8:$QJ$8, AK$3, Cálculos!$I$10:$QJ$10, AK$4) -> -108729.2669 | AL20: =SUMIFS(Cálculos!$I363:$QJ363, Cálculos!$I$8:$QJ$8, AL$3, Cálculos!$I$10:$QJ$10, AL$4) -> -107812.7155 | AM20: =SUMIFS(Cálculos!$I363:$QJ363, Cálculos!$I$8:$QJ$8, AM$3, Cálculos!$I$10:$QJ$10, AM$4) -> -106868.3916 | AN20: =SUMIFS(Cálculos!$I363:$QJ363, Cálculos!$I$8:$QJ$8, AN$3, Cálculos!$I$10:$QJ$10, AN$4) -> -105895.4538 | AO20: =SUMIFS(Cálculos!$I363:$QJ363, Cálculos!$I$8:$QJ$8, AO$3, Cálculos!$I$10:$QJ$10, AO$4) -> -104893.0351 | AP20: =SUMIFS(Cálculos!$I363:$QJ363, Cálculos!$I$8:$QJ$8, AP$3, Cálculos!$I$10:$QJ$10, AP$4) -> -103860.242 | AQ20: =SUMIFS(Cálculos!$I363:$QJ363, Cálculos!$I$8:$QJ$8, AQ$3, Cálculos!$I$10:$QJ$10, AQ$4) -> -102796.1543 | AR20: =SUMIFS(Cálculos!$I363:$QJ363, Cálculos!$I$8:$QJ$8, AR$3, Cálculos!$I$10:$QJ$10, AR$4) -> -101699.8236 | AS20: =SUMIFS(Cálculos!$I363:$QJ363, Cálculos!$I$8:$QJ$8, AS$3, Cálculos!$I$10:$QJ$10, AS$4) -> -100570.273 | AT20: =SUMIFS(Cálculos!$I363:$QJ363, Cálculos!$I$8:$QJ$8, AT$3, Cálculos!$I$10:$QJ$10, AT$4) -> -99406.49596 | AU20: =SUMIFS(Cálculos!$I363:$QJ363, Cálculos!$I$8:$QJ$8, AU$3, Cálculos!$I$10:$QJ$10, AU$4) -> -98207.45527 | AV20: =SUMIFS(Cálculos!$I363:$QJ363, Cálculos!$I$8:$QJ$8, AV$3, Cálculos!$I$10:$QJ$10, AV$4) -> -96972.08245 | AW20: =SUMIFS(Cálculos!$I363:$QJ363, Cálculos!$I$8:$QJ$8, AW$3, Cálculos!$I$10:$QJ$10, AW$4) -> -95699.27659 | AX20: =SUMIFS(Cálculos!$I363:$QJ363, Cálculos!$I$8:$QJ$8, AX$3, Cálculos!$I$10:$QJ$10, AX$4) -> -94387.90345 | AY20: =SUMIFS(Cálculos!$I363:$QJ363, Cálculos!$I$8:$QJ$8, AY$3, Cálculos!$I$10:$QJ$10, AY$4) -> -93036.79439 | AZ20: =SUMIFS(Cálculos!$I363:$QJ363, Cálculos!$I$8:$QJ$8, AZ$3, Cálculos!$I$10:$QJ$10, AZ$4) -> -91644.74537 | BA20: =SUMIFS(Cálculos!$I363:$QJ363, Cálculos!$I$8:$QJ$8, BA$3, Cálculos!$I$10:$QJ$10, BA$4) -> -90210.51587 | BB20: =SUMIFS(Cálculos!$I363:$QJ363, Cálculos!$I$8:$QJ$8, BB$3, Cálculos!$I$10:$QJ$10, BB$4) -> -88732.82779 | BC20: =SUMIFS(Cálculos!$I363:$QJ363, Cálculos!$I$8:$QJ$8, BC$3, Cálculos!$I$10:$QJ$10, BC$4) -> -87210.36428 | BD20: =SUMIFS(Cálculos!$I363:$QJ363, Cálculos!$I$8:$QJ$8, BD$3, Cálculos!$I$10:$QJ$10, BD$4) -> -85641.7686 | BE20: =SUMIFS(Cálculos!$I363:$QJ363, Cálculos!$I$8:$QJ$8, BE$3, Cálculos!$I$10:$QJ$10, BE$4) -> -84025.64291 | BF20: =SUMIFS(Cálculos!$I363:$QJ363, Cálculos!$I$8:$QJ$8, BF$3, Cálculos!$I$10:$QJ$10, BF$4) -> -82360.54699 | BG20: =SUMIFS(Cálculos!$I363:$QJ363, Cálculos!$I$8:$QJ$8, BG$3, Cálculos!$I$10:$QJ$10, BG$4) -> -80644.997 | BH20: =SUMIFS(Cálculos!$I363:$QJ363, Cálculos!$I$8:$QJ$8, BH$3, Cálculos!$I$10:$QJ$10, BH$4) -> -78877.46413 | BI20: =SUMIFS(Cálculos!$I363:$QJ363, Cálculos!$I$8:$QJ$8, BI$3, Cálculos!$I$10:$QJ$10, BI$4) -> -77056.37324 | BJ20: =SUMIFS(Cálculos!$I363:$QJ363, Cálculos!$I$8:$QJ$8, BJ$3, Cálculos!$I$10:$QJ$10, BJ$4) -> -75180.10148 | BK20: =SUMIFS(Cálculos!$I363:$QJ363, Cálculos!$I$8:$QJ$8, BK$3, Cálculos!$I$10:$QJ$10, BK$4) -> -73246.97681 | BL20: =SUMIFS(Cálculos!$I363:$QJ363, Cálculos!$I$8:$QJ$8, BL$3, Cálculos!$I$10:$QJ$10, BL$4) -> -71255.27653 | BM20: =SUMIFS(Cálculos!$I363:$QJ363, Cálculos!$I$8:$QJ$8, BM$3, Cálculos!$I$10:$QJ$10, BM$4) -> -69203.22574 | BN20: =SUMIFS(Cálculos!$I363:$QJ363, Cálculos!$I$8:$QJ$8, BN$3, Cálculos!$I$10:$QJ$10, BN$4) -> -67088.99576 | BO20: =SUMIFS(Cálculos!$I363:$QJ363, Cálculos!$I$8:$QJ$8, BO$3, Cálculos!$I$10:$QJ$10, BO$4) -> -64910.7025 | BP20: =SUMIFS(Cálculos!$I363:$QJ363, Cálculos!$I$8:$QJ$8, BP$3, Cálculos!$I$10:$QJ$10, BP$4) -> -62666.40477 | BQ20: =SUMIFS(Cálculos!$I363:$QJ363, Cálculos!$I$8:$QJ$8, BQ$3, Cálculos!$I$10:$QJ$10, BQ$4) -> -60354.10258 | BR20: =SUMIFS(Cálculos!$I363:$QJ363, Cálculos!$I$8:$QJ$8, BR$3, Cálculos!$I$10:$QJ$10, BR$4) -> -57971.73531 | BS20: =SUMIFS(Cálculos!$I363:$QJ363, Cálculos!$I$8:$QJ$8, BS$3, Cálculos!$I$10:$QJ$10, BS$4) -> -55517.17994 | BT20: =SUMIFS(Cálculos!$I363:$QJ363, Cálculos!$I$8:$QJ$8, BT$3, Cálculos!$I$10:$QJ$10, BT$4) -> -52988.24908 | BU20: =SUMIFS(Cálculos!$I363:$QJ363, Cálculos!$I$8:$QJ$8, BU$3, Cálculos!$I$10:$QJ$10, BU$4) -> -50382.6891 | BV20: =SUMIFS(Cálculos!$I363:$QJ363, Cálculos!$I$8:$QJ$8, BV$3, Cálculos!$I$10:$QJ$10, BV$4) -> -47698.17803 | BW20: =SUMIFS(Cálculos!$I363:$QJ363, Cálculos!$I$8:$QJ$8, BW$3, Cálculos!$I$10:$QJ$10, BW$4) -> -44932.3236 | BX20: =SUMIFS(Cálculos!$I363:$QJ363, Cálculos!$I$8:$QJ$8, BX$3, Cálculos!$I$10:$QJ$10, BX$4) -> -42082.66101 | BY20: =SUMIFS(Cálculos!$I363:$QJ363, Cálculos!$I$8:$QJ$8, BY$3, Cálculos!$I$10:$QJ$10, BY$4) -> -39146.6508 | BZ20: =SUMIFS(Cálculos!$I363:$QJ363, Cálculos!$I$8:$QJ$8, BZ$3, Cálculos!$I$10:$QJ$10, BZ$4) -> -36121.67654 | CA20: =SUMIFS(Cálculos!$I363:$QJ363, Cálculos!$I$8:$QJ$8, CA$3, Cálculos!$I$10:$QJ$10, CA$4) -> -33005.04254 | CB20: =SUMIFS(Cálculos!$I363:$QJ363, Cálculos!$I$8:$QJ$8, CB$3, Cálculos!$I$10:$QJ$10, CB$4) -> -29793.97141 | CC20: =SUMIFS(Cálculos!$I363:$QJ363, Cálculos!$I$8:$QJ$8, CC$3, Cálculos!$I$10:$QJ$10, CC$4) -> -26485.60161 | CD20: =SUMIFS(Cálculos!$I363:$QJ363, Cálculos!$I$8:$QJ$8, CD$3, Cálculos!$I$10:$QJ$10, CD$4) -> -23076.9849 | CE20: =SUMIFS(Cálculos!$I363:$QJ363, Cálculos!$I$8:$QJ$8, CE$3, Cálculos!$I$10:$QJ$10, CE$4) -> -19565.08369 | CF20: =SUMIFS(Cálculos!$I363:$QJ363, Cálculos!$I$8:$QJ$8, CF$3, Cálculos!$I$10:$QJ$10, CF$4) -> -15946.76837 | CG20: =SUMIFS(Cálculos!$I363:$QJ363, Cálculos!$I$8:$QJ$8, CG$3, Cálculos!$I$10:$QJ$10, CG$4) -> -12218.81447 | CH20: =SUMIFS(Cálculos!$I363:$QJ363, Cálculos!$I$8:$QJ$8, CH$3, Cálculos!$I$10:$QJ$10, CH$4) -> -8377.899846 | CI20: =SUMIFS(Cálculos!$I363:$QJ363, Cálculos!$I$8:$QJ$8, CI$3, Cálculos!$I$10:$QJ$10, CI$4) -> -4420.601664 | CJ20: =SUMIFS(Cálculos!$I363:$QJ363, Cálculos!$I$8:$QJ$8, CJ$3, Cálculos!$I$10:$QJ$10, CJ$4) -> -343.3933905 | CK20: =SUMIFS(Cálculos!$I363:$QJ363, Cálculos!$I$8:$QJ$8, CK$3, Cálculos!$I$10:$QJ$10, CK$4) -> 3857.358371 | CL20: =SUMIFS(Cálculos!$I363:$QJ363, Cálculos!$I$8:$QJ$8, CL$3, Cálculos!$I$10:$QJ$10, CL$4) -> 8185.397112 | CM20: =SUMIFS(Cálculos!$I363:$QJ363, Cálculos!$I$8:$QJ$8, CM$3, Cálculos!$I$10:$QJ$10, CM$4) -> 12644.57975 | CN20: =SUMIFS(Cálculos!$I363:$QJ363, Cálculos!$I$8:$QJ$8, CN$3, Cálculos!$I$10:$QJ$10, CN$4) -> 17238.88009 | CO20: =SUMIFS(Cálculos!$I363:$QJ363, Cálculos!$I$8:$QJ$8, CO$3, Cálculos!$I$10:$QJ$10, CO$4) -> 21972.39232 | CP20: =SUMIFS(Cálculos!$I363:$QJ363, Cálculos!$I$8:$QJ$8, CP$3, Cálculos!$I$10:$QJ$10, CP$4) -> 26849.33471 | CQ20: =SUMIFS(Cálculos!$I363:$QJ363, Cálculos!$I$8:$QJ$8, CQ$3, Cálculos!$I$10:$QJ$10, CQ$4) -> 31874.05332 | CR20: =SUMIFS(Cálculos!$I363:$QJ363, Cálculos!$I$8:$QJ$8, CR$3, Cálculos!$I$10:$QJ$10, CR$4) -> 37051.02594 | CS20: =SUMIFS(Cálculos!$I363:$QJ363, Cálculos!$I$8:$QJ$8, CS$3, Cálculos!$I$10:$QJ$10, CS$4) -> 42384.866 | CT20: =SUMIFS(Cálculos!$I363:$QJ363, Cálculos!$I$8:$QJ$8, CT$3, Cálculos!$I$10:$QJ$10, CT$4) -> 47880.32675 | CU20: =SUMIFS(Cálculos!$I363:$QJ363, Cálculos!$I$8:$QJ$8, CU$3, Cálculos!$I$10:$QJ$10, CU$4) -> 53542.30545 | CV20: =SUMIFS(Cálculos!$I363:$QJ363, Cálculos!$I$8:$QJ$8, CV$3, Cálculos!$I$10:$QJ$10, CV$4) -> 59375.84777 | CW20: =SUMIFS(Cálculos!$I363:$QJ363, Cálculos!$I$8:$QJ$8, CW$3, Cálculos!$I$10:$QJ$10, CW$4) -> 65386.15226 | CX20: =SUMIFS(Cálculos!$I363:$QJ363, Cálculos!$I$8:$QJ$8, CX$3, Cálculos!$I$10:$QJ$10, CX$4) -> 71578.57499 | CY20: =SUMIFS(Cálculos!$I363:$QJ363, Cálculos!$I$8:$QJ$8, CY$3, Cálculos!$I$10:$QJ$10, CY$4) -> 77958.63431 | CZ20: =SUMIFS(Cálculos!$I363:$QJ363, Cálculos!$I$8:$QJ$8, CZ$3, Cálculos!$I$10:$QJ$10, CZ$4) -> 84532.01582 | DA20: =SUMIFS(Cálculos!$I363:$QJ363, Cálculos!$I$8:$QJ$8, DA$3, Cálculos!$I$10:$QJ$10, DA$4) -> 91304.57735 | DB20: =SUMIFS(Cálculos!$I363:$QJ363, Cálculos!$I$8:$QJ$8, DB$3, Cálculos!$I$10:$QJ$10, DB$4) -> 98282.35427 | DC20: =SUMIFS(Cálculos!$I363:$QJ363, Cálculos!$I$8:$QJ$8, DC$3, Cálculos!$I$10:$QJ$10, DC$4) -> 33886.04906 | DD20: =SUMIFS(Cálculos!$I363:$QJ363, Cálculos!$I$8:$QJ$8, DD$3, Cálculos!$I$10:$QJ$10, DD$4) -> 0 | DE20: =SUMIFS(Cálculos!$I363:$QJ363, Cálculos!$I$8:$QJ$8, DE$3, Cálculos!$I$10:$QJ$10, DE$4) -> 0 | DF20: =SUMIFS(Cálculos!$I363:$QJ363, Cálculos!$I$8:$QJ$8, DF$3, Cálculos!$I$10:$QJ$10, DF$4) -> 0 | DG20: =SUMIFS(Cálculos!$I363:$QJ363, Cálculos!$I$8:$QJ$8, DG$3, Cálculos!$I$10:$QJ$10, DG$4) -> 0 | DH20: =SUMIFS(Cálculos!$I363:$QJ363, Cálculos!$I$8:$QJ$8, DH$3, Cálculos!$I$10:$QJ$10, DH$4) -> 0 | DI20: =SUMIFS(Cálculos!$I363:$QJ363, Cálculos!$I$8:$QJ$8, DI$3, Cálculos!$I$10:$QJ$10, DI$4) -> 0 | DJ20: =SUMIFS(Cálculos!$I363:$QJ363, Cálculos!$I$8:$QJ$8, DJ$3, Cálculos!$I$10:$QJ$10, DJ$4) -> 0 | DK20: =SUMIFS(Cálculos!$I363:$QJ363, Cálculos!$I$8:$QJ$8, DK$3, Cálculos!$I$10:$QJ$10, DK$4) -> 0
C21: =Cálculos!C364 -> Mais: Juros das Contas de Reserva | E21: =Cálculos!E364 -> EUR | G21: =SUM(H21:FC21) -> 0 | H21: =SUMIFS(Cálculos!$I364:$QJ364, Cálculos!$I$8:$QJ$8, H$3, Cálculos!$I$10:$QJ$10, H$4) -> 0 | I21: =SUMIFS(Cálculos!$I364:$QJ364, Cálculos!$I$8:$QJ$8, I$3, Cálculos!$I$10:$QJ$10, I$4) -> 0 | J21: =SUMIFS(Cálculos!$I364:$QJ364, Cálculos!$I$8:$QJ$8, J$3, Cálculos!$I$10:$QJ$10, J$4) -> 0 | K21: =SUMIFS(Cálculos!$I364:$QJ364, Cálculos!$I$8:$QJ$8, K$3, Cálculos!$I$10:$QJ$10, K$4) -> 0 | L21: =SUMIFS(Cálculos!$I364:$QJ364, Cálculos!$I$8:$QJ$8, L$3, Cálculos!$I$10:$QJ$10, L$4) -> 0 | M21: =SUMIFS(Cálculos!$I364:$QJ364, Cálculos!$I$8:$QJ$8, M$3, Cálculos!$I$10:$QJ$10, M$4) -> 0 | N21: =SUMIFS(Cálculos!$I364:$QJ364, Cálculos!$I$8:$QJ$8, N$3, Cálculos!$I$10:$QJ$10, N$4) -> 0 | O21: =SUMIFS(Cálculos!$I364:$QJ364, Cálculos!$I$8:$QJ$8, O$3, Cálculos!$I$10:$QJ$10, O$4) -> 0 | P21: =SUMIFS(Cálculos!$I364:$QJ364, Cálculos!$I$8:$QJ$8, P$3, Cálculos!$I$10:$QJ$10, P$4) -> 0 | Q21: =SUMIFS(Cálculos!$I364:$QJ364, Cálculos!$I$8:$QJ$8, Q$3, Cálculos!$I$10:$QJ$10, Q$4) -> 0 | R21: =SUMIFS(Cálculos!$I364:$QJ364, Cálculos!$I$8:$QJ$8, R$3, Cálculos!$I$10:$QJ$10, R$4) -> 0 | S21: =SUMIFS(Cálculos!$I364:$QJ364, Cálculos!$I$8:$QJ$8, S$3, Cálculos!$I$10:$QJ$10, S$4) -> 0 | T21: =SUMIFS(Cálculos!$I364:$QJ364, Cálculos!$I$8:$QJ$8, T$3, Cálculos!$I$10:$QJ$10, T$4) -> 0 | U21: =SUMIFS(Cálculos!$I364:$QJ364, Cálculos!$I$8:$QJ$8, U$3, Cálculos!$I$10:$QJ$10, U$4) -> 0 | V21: =SUMIFS(Cálculos!$I364:$QJ364, Cálculos!$I$8:$QJ$8, V$3, Cálculos!$I$10:$QJ$10, V$4) -> 0 | W21: =SUMIFS(Cálculos!$I364:$QJ364, Cálculos!$I$8:$QJ$8, W$3, Cálculos!$I$10:$QJ$10, W$4) -> 0 | X21: =SUMIFS(Cálculos!$I364:$QJ364, Cálculos!$I$8:$QJ$8, X$3, Cálculos!$I$10:$QJ$10, X$4) -> 0 | Y21: =SUMIFS(Cálculos!$I364:$QJ364, Cálculos!$I$8:$QJ$8, Y$3, Cálculos!$I$10:$QJ$10, Y$4) -> 0 | Z21: =SUMIFS(Cálculos!$I364:$QJ364, Cálculos!$I$8:$QJ$8, Z$3, Cálculos!$I$10:$QJ$10, Z$4) -> 0 | AA21: =SUMIFS(Cálculos!$I364:$QJ364, Cálculos!$I$8:$QJ$8, AA$3, Cálculos!$I$10:$QJ$10, AA$4) -> 0 | AB21: =SUMIFS(Cálculos!$I364:$QJ364, Cálculos!$I$8:$QJ$8, AB$3, Cálculos!$I$10:$QJ$10, AB$4) -> 0 | AC21: =SUMIFS(Cálculos!$I364:$QJ364, Cálculos!$I$8:$QJ$8, AC$3, Cálculos!$I$10:$QJ$10, AC$4) -> 0 | AD21: =SUMIFS(Cálculos!$I364:$QJ364, Cálculos!$I$8:$QJ$8, AD$3, Cálculos!$I$10:$QJ$10, AD$4) -> 0 | AE21: =SUMIFS(Cálculos!$I364:$QJ364, Cálculos!$I$8:$QJ$8, AE$3, Cálculos!$I$10:$QJ$10, AE$4) -> 0 | AF21: =SUMIFS(Cálculos!$I364:$QJ364, Cálculos!$I$8:$QJ$8, AF$3, Cálculos!$I$10:$QJ$10, AF$4) -> 0 | AG21: =SUMIFS(Cálculos!$I364:$QJ364, Cálculos!$I$8:$QJ$8, AG$3, Cálculos!$I$10:$QJ$10, AG$4) -> 0 | AH21: =SUMIFS(Cálculos!$I364:$QJ364, Cálculos!$I$8:$QJ$8, AH$3, Cálculos!$I$10:$QJ$10, AH$4) -> 0 | AI21: =SUMIFS(Cálculos!$I364:$QJ364, Cálculos!$I$8:$QJ$8, AI$3, Cálculos!$I$10:$QJ$10, AI$4) -> 0 | AJ21: =SUMIFS(Cálculos!$I364:$QJ364, Cálculos!$I$8:$QJ$8, AJ$3, Cálculos!$I$10:$QJ$10, AJ$4) -> 0 | AK21: =SUMIFS(Cálculos!$I364:$QJ364, Cálculos!$I$8:$QJ$8, AK$3, Cálculos!$I$10:$QJ$10, AK$4) -> 0 | AL21: =SUMIFS(Cálculos!$I364:$QJ364, Cálculos!$I$8:$QJ$8, AL$3, Cálculos!$I$10:$QJ$10, AL$4) -> 0 | AM21: =SUMIFS(Cálculos!$I364:$QJ364, Cálculos!$I$8:$QJ$8, AM$3, Cálculos!$I$10:$QJ$10, AM$4) -> 0 | AN21: =SUMIFS(Cálculos!$I364:$QJ364, Cálculos!$I$8:$QJ$8, AN$3, Cálculos!$I$10:$QJ$10, AN$4) -> 0 | AO21: =SUMIFS(Cálculos!$I364:$QJ364, Cálculos!$I$8:$QJ$8, AO$3, Cálculos!$I$10:$QJ$10, AO$4) -> 0 | AP21: =SUMIFS(Cálculos!$I364:$QJ364, Cálculos!$I$8:$QJ$8, AP$3, Cálculos!$I$10:$QJ$10, AP$4) -> 0 | AQ21: =SUMIFS(Cálculos!$I364:$QJ364, Cálculos!$I$8:$QJ$8, AQ$3, Cálculos!$I$10:$QJ$10, AQ$4) -> 0 | AR21: =SUMIFS(Cálculos!$I364:$QJ364, Cálculos!$I$8:$QJ$8, AR$3, Cálculos!$I$10:$QJ$10, AR$4) -> 0 | AS21: =SUMIFS(Cálculos!$I364:$QJ364, Cálculos!$I$8:$QJ$8, AS$3, Cálculos!$I$10:$QJ$10, AS$4) -> 0 | AT21: =SUMIFS(Cálculos!$I364:$QJ364, Cálculos!$I$8:$QJ$8, AT$3, Cálculos!$I$10:$QJ$10, AT$4) -> 0 | AU21: =SUMIFS(Cálculos!$I364:$QJ364, Cálculos!$I$8:$QJ$8, AU$3, Cálculos!$I$10:$QJ$10, AU$4) -> 0 | AV21: =SUMIFS(Cálculos!$I364:$QJ364, Cálculos!$I$8:$QJ$8, AV$3, Cálculos!$I$10:$QJ$10, AV$4) -> 0 | AW21: =SUMIFS(Cálculos!$I364:$QJ364, Cálculos!$I$8:$QJ$8, AW$3, Cálculos!$I$10:$QJ$10, AW$4) -> 0 | AX21: =SUMIFS(Cálculos!$I364:$QJ364, Cálculos!$I$8:$QJ$8, AX$3, Cálculos!$I$10:$QJ$10, AX$4) -> 0 | AY21: =SUMIFS(Cálculos!$I364:$QJ364, Cálculos!$I$8:$QJ$8, AY$3, Cálculos!$I$10:$QJ$10, AY$4) -> 0 | AZ21: =SUMIFS(Cálculos!$I364:$QJ364, Cálculos!$I$8:$QJ$8, AZ$3, Cálculos!$I$10:$QJ$10, AZ$4) -> 0 | BA21: =SUMIFS(Cálculos!$I364:$QJ364, Cálculos!$I$8:$QJ$8, BA$3, Cálculos!$I$10:$QJ$10, BA$4) -> 0 | BB21: =SUMIFS(Cálculos!$I364:$QJ364, Cálculos!$I$8:$QJ$8, BB$3, Cálculos!$I$10:$QJ$10, BB$4) -> 0 | BC21: =SUMIFS(Cálculos!$I364:$QJ364, Cálculos!$I$8:$QJ$8, BC$3, Cálculos!$I$10:$QJ$10, BC$4) -> 0 | BD21: =SUMIFS(Cálculos!$I364:$QJ364, Cálculos!$I$8:$QJ$8, BD$3, Cálculos!$I$10:$QJ$10, BD$4) -> 0 | BE21: =SUMIFS(Cálculos!$I364:$QJ364, Cálculos!$I$8:$QJ$8, BE$3, Cálculos!$I$10:$QJ$10, BE$4) -> 0 | BF21: =SUMIFS(Cálculos!$I364:$QJ364, Cálculos!$I$8:$QJ$8, BF$3, Cálculos!$I$10:$QJ$10, BF$4) -> 0 | BG21: =SUMIFS(Cálculos!$I364:$QJ364, Cálculos!$I$8:$QJ$8, BG$3, Cálculos!$I$10:$QJ$10, BG$4) -> 0 | BH21: =SUMIFS(Cálculos!$I364:$QJ364, Cálculos!$I$8:$QJ$8, BH$3, Cálculos!$I$10:$QJ$10, BH$4) -> 0 | BI21: =SUMIFS(Cálculos!$I364:$QJ364, Cálculos!$I$8:$QJ$8, BI$3, Cálculos!$I$10:$QJ$10, BI$4) -> 0 | BJ21: =SUMIFS(Cálculos!$I364:$QJ364, Cálculos!$I$8:$QJ$8, BJ$3, Cálculos!$I$10:$QJ$10, BJ$4) -> 0 | BK21: =SUMIFS(Cálculos!$I364:$QJ364, Cálculos!$I$8:$QJ$8, BK$3, Cálculos!$I$10:$QJ$10, BK$4) -> 0 | BL21: =SUMIFS(Cálculos!$I364:$QJ364, Cálculos!$I$8:$QJ$8, BL$3, Cálculos!$I$10:$QJ$10, BL$4) -> 0 | BM21: =SUMIFS(Cálculos!$I364:$QJ364, Cálculos!$I$8:$QJ$8, BM$3, Cálculos!$I$10:$QJ$10, BM$4) -> 0 | BN21: =SUMIFS(Cálculos!$I364:$QJ364, Cálculos!$I$8:$QJ$8, BN$3, Cálculos!$I$10:$QJ$10, BN$4) -> 0 | BO21: =SUMIFS(Cálculos!$I364:$QJ364, Cálculos!$I$8:$QJ$8, BO$3, Cálculos!$I$10:$QJ$10, BO$4) -> 0 | BP21: =SUMIFS(Cálculos!$I364:$QJ364, Cálculos!$I$8:$QJ$8, BP$3, Cálculos!$I$10:$QJ$10, BP$4) -> 0 | BQ21: =SUMIFS(Cálculos!$I364:$QJ364, Cálculos!$I$8:$QJ$8, BQ$3, Cálculos!$I$10:$QJ$10, BQ$4) -> 0 | BR21: =SUMIFS(Cálculos!$I364:$QJ364, Cálculos!$I$8:$QJ$8, BR$3, Cálculos!$I$10:$QJ$10, BR$4) -> 0 | BS21: =SUMIFS(Cálculos!$I364:$QJ364, Cálculos!$I$8:$QJ$8, BS$3, Cálculos!$I$10:$QJ$10, BS$4) -> 0 | BT21: =SUMIFS(Cálculos!$I364:$QJ364, Cálculos!$I$8:$QJ$8, BT$3, Cálculos!$I$10:$QJ$10, BT$4) -> 0 | BU21: =SUMIFS(Cálculos!$I364:$QJ364, Cálculos!$I$8:$QJ$8, BU$3, Cálculos!$I$10:$QJ$10, BU$4) -> 0 | BV21: =SUMIFS(Cálculos!$I364:$QJ364, Cálculos!$I$8:$QJ$8, BV$3, Cálculos!$I$10:$QJ$10, BV$4) -> 0 | BW21: =SUMIFS(Cálculos!$I364:$QJ364, Cálculos!$I$8:$QJ$8, BW$3, Cálculos!$I$10:$QJ$10, BW$4) -> 0 | BX21: =SUMIFS(Cálculos!$I364:$QJ364, Cálculos!$I$8:$QJ$8, BX$3, Cálculos!$I$10:$QJ$10, BX$4) -> 0 | BY21: =SUMIFS(Cálculos!$I364:$QJ364, Cálculos!$I$8:$QJ$8, BY$3, Cálculos!$I$10:$QJ$10, BY$4) -> 0 | BZ21: =SUMIFS(Cálculos!$I364:$QJ364, Cálculos!$I$8:$QJ$8, BZ$3, Cálculos!$I$10:$QJ$10, BZ$4) -> 0 | CA21: =SUMIFS(Cálculos!$I364:$QJ364, Cálculos!$I$8:$QJ$8, CA$3, Cálculos!$I$10:$QJ$10, CA$4) -> 0 | CB21: =SUMIFS(Cálculos!$I364:$QJ364, Cálculos!$I$8:$QJ$8, CB$3, Cálculos!$I$10:$QJ$10, CB$4) -> 0 | CC21: =SUMIFS(Cálculos!$I364:$QJ364, Cálculos!$I$8:$QJ$8, CC$3, Cálculos!$I$10:$QJ$10, CC$4) -> 0 | CD21: =SUMIFS(Cálculos!$I364:$QJ364, Cálculos!$I$8:$QJ$8, CD$3, Cálculos!$I$10:$QJ$10, CD$4) -> 0 | CE21: =SUMIFS(Cálculos!$I364:$QJ364, Cálculos!$I$8:$QJ$8, CE$3, Cálculos!$I$10:$QJ$10, CE$4) -> 0 | CF21: =SUMIFS(Cálculos!$I364:$QJ364, Cálculos!$I$8:$QJ$8, CF$3, Cálculos!$I$10:$QJ$10, CF$4) -> 0 | CG21: =SUMIFS(Cálculos!$I364:$QJ364, Cálculos!$I$8:$QJ$8, CG$3, Cálculos!$I$10:$QJ$10, CG$4) -> 0 | CH21: =SUMIFS(Cálculos!$I364:$QJ364, Cálculos!$I$8:$QJ$8, CH$3, Cálculos!$I$10:$QJ$10, CH$4) -> 0 | CI21: =SUMIFS(Cálculos!$I364:$QJ364, Cálculos!$I$8:$QJ$8, CI$3, Cálculos!$I$10:$QJ$10, CI$4) -> 0 | CJ21: =SUMIFS(Cálculos!$I364:$QJ364, Cálculos!$I$8:$QJ$8, CJ$3, Cálculos!$I$10:$QJ$10, CJ$4) -> 0 | CK21: =SUMIFS(Cálculos!$I364:$QJ364, Cálculos!$I$8:$QJ$8, CK$3, Cálculos!$I$10:$QJ$10, CK$4) -> 0 | CL21: =SUMIFS(Cálculos!$I364:$QJ364, Cálculos!$I$8:$QJ$8, CL$3, Cálculos!$I$10:$QJ$10, CL$4) -> 0 | CM21: =SUMIFS(Cálculos!$I364:$QJ364, Cálculos!$I$8:$QJ$8, CM$3, Cálculos!$I$10:$QJ$10, CM$4) -> 0 | CN21: =SUMIFS(Cálculos!$I364:$QJ364, Cálculos!$I$8:$QJ$8, CN$3, Cálculos!$I$10:$QJ$10, CN$4) -> 0 | CO21: =SUMIFS(Cálculos!$I364:$QJ364, Cálculos!$I$8:$QJ$8, CO$3, Cálculos!$I$10:$QJ$10, CO$4) -> 0 | CP21: =SUMIFS(Cálculos!$I364:$QJ364, Cálculos!$I$8:$QJ$8, CP$3, Cálculos!$I$10:$QJ$10, CP$4) -> 0 | CQ21: =SUMIFS(Cálculos!$I364:$QJ364, Cálculos!$I$8:$QJ$8, CQ$3, Cálculos!$I$10:$QJ$10, CQ$4) -> 0 | CR21: =SUMIFS(Cálculos!$I364:$QJ364, Cálculos!$I$8:$QJ$8, CR$3, Cálculos!$I$10:$QJ$10, CR$4) -> 0 | CS21: =SUMIFS(Cálculos!$I364:$QJ364, Cálculos!$I$8:$QJ$8, CS$3, Cálculos!$I$10:$QJ$10, CS$4) -> 0 | CT21: =SUMIFS(Cálculos!$I364:$QJ364, Cálculos!$I$8:$QJ$8, CT$3, Cálculos!$I$10:$QJ$10, CT$4) -> 0 | CU21: =SUMIFS(Cálculos!$I364:$QJ364, Cálculos!$I$8:$QJ$8, CU$3, Cálculos!$I$10:$QJ$10, CU$4) -> 0 | CV21: =SUMIFS(Cálculos!$I364:$QJ364, Cálculos!$I$8:$QJ$8, CV$3, Cálculos!$I$10:$QJ$10, CV$4) -> 0 | CW21: =SUMIFS(Cálculos!$I364:$QJ364, Cálculos!$I$8:$QJ$8, CW$3, Cálculos!$I$10:$QJ$10, CW$4) -> 0 | CX21: =SUMIFS(Cálculos!$I364:$QJ364, Cálculos!$I$8:$QJ$8, CX$3, Cálculos!$I$10:$QJ$10, CX$4) -> 0 | CY21: =SUMIFS(Cálculos!$I364:$QJ364, Cálculos!$I$8:$QJ$8, CY$3, Cálculos!$I$10:$QJ$10, CY$4) -> 0 | CZ21: =SUMIFS(Cálculos!$I364:$QJ364, Cálculos!$I$8:$QJ$8, CZ$3, Cálculos!$I$10:$QJ$10, CZ$4) -> 0 | DA21: =SUMIFS(Cálculos!$I364:$QJ364, Cálculos!$I$8:$QJ$8, DA$3, Cálculos!$I$10:$QJ$10, DA$4) -> 0 | DB21: =SUMIFS(Cálculos!$I364:$QJ364, Cálculos!$I$8:$QJ$8, DB$3, Cálculos!$I$10:$QJ$10, DB$4) -> 0 | DC21: =SUMIFS(Cálculos!$I364:$QJ364, Cálculos!$I$8:$QJ$8, DC$3, Cálculos!$I$10:$QJ$10, DC$4) -> 0 | DD21: =SUMIFS(Cálculos!$I364:$QJ364, Cálculos!$I$8:$QJ$8, DD$3, Cálculos!$I$10:$QJ$10, DD$4) -> 0 | DE21: =SUMIFS(Cálculos!$I364:$QJ364, Cálculos!$I$8:$QJ$8, DE$3, Cálculos!$I$10:$QJ$10, DE$4) -> 0 | DF21: =SUMIFS(Cálculos!$I364:$QJ364, Cálculos!$I$8:$QJ$8, DF$3, Cálculos!$I$10:$QJ$10, DF$4) -> 0 | DG21: =SUMIFS(Cálculos!$I364:$QJ364, Cálculos!$I$8:$QJ$8, DG$3, Cálculos!$I$10:$QJ$10, DG$4) -> 0 | DH21: =SUMIFS(Cálculos!$I364:$QJ364, Cálculos!$I$8:$QJ$8, DH$3, Cálculos!$I$10:$QJ$10, DH$4) -> 0 | DI21: =SUMIFS(Cálculos!$I364:$QJ364, Cálculos!$I$8:$QJ$8, DI$3, Cálculos!$I$10:$QJ$10, DI$4) -> 0 | DJ21: =SUMIFS(Cálculos!$I364:$QJ364, Cálculos!$I$8:$QJ$8, DJ$3, Cálculos!$I$10:$QJ$10, DJ$4) -> 0 | DK21: =SUMIFS(Cálculos!$I364:$QJ364, Cálculos!$I$8:$QJ$8, DK$3, Cálculos!$I$10:$QJ$10, DK$4) -> 0
C22: =Cálculos!C365 -> EBT | E22: =Cálculos!E365 -> EUR | G22: =SUM(H22:FC22) -> 6777720.282 | H22: =H17+SUM(H19:H21) -> 0 | I22: =I17+SUM(I19:I21) -> 0 | J22: 0 | K22: 0 | L22: 0 | M22: 0 | N22: 0 | O22: 0 | P22: -241638.1428 | Q22: -16541.09931 | R22: 55560.86699 | S22: -286045.6439 | T22: -244586.1609 | U22: -6643.121142 | V22: 51137.48482 | W22: -290790.7909 | X22: -242527.3442 | Y22: -1347.789024 | Z22: 50523.78073 | AA22: -288816.9651 | AB22: -240282.6458 | AC22: 279.8168832 | AD22: 49210.34349 | AE22: -286643.1836 | AF22: -238814.3019 | AG22: 748.3583633 | AH22: 48866.58162 | AI22: -283466.3017 | AJ22: -230054.9932 | AK22: 7631.52197 | AL22: 54752.83928 | AM22: -274077.2724 | AN22: -226495.3383 | AO22: 9496.090181 | AP22: 55882.70618 | AQ22: -269460.451 | AR22: -96431.71277 | AS22: 137430.883 | AT22: 183581.4029 | AU22: -138288.3613 | AV22: -91629.43817 | AW22: 140529.1658 | AX22: 186468.8234 | AY22: -131938.6276 | AZ22: -85131.54407 | BA22: 144605.8759 | BB22: 190472.2064 | BC22: -124481.2761 | BD22: -23508.30025 | BE22: 204237.1493 | BF22: 249840.2701 | BG22: -61664.56712 | BH22: -15236.49818 | BI22: 210567.4663 | BJ22: 256050.3929 | BK22: -52007.78001 | BL22: -6100.677023 | BM22: 218196.1884 | BN22: 292347.6175 | BO22: -12262.16782 | BP22: 33923.23415 | BQ22: 256007.9882 | BR22: 301362.982 | BS22: 207.4184578 | BT22: 46331.46836 | BU22: =BU17+SUM(BU19:BU21) -> 266645.6689 | BV22: 312000.6746 | BW22: 14309.73584 | BX22: 60418.02909 | BY22: 279026.6075 | BZ22: 324430.2464 | CA22: 30219.41879 | CB22: 75981.90817 | CC22: 293335.1428 | CD22: 338841.2049 | CE22: 48131.63821 | CF22: 94365.2358 | CG22: 309777.3699 | CH22: 355399.8914 | CI22: 67828.07705 | CJ22: 112350.7422 | CK22: 323754.7996 | CL22: 367087.1992 | CM22: 80870.36696 | CN22: 124843.0662 | CO22: 334713.6367 | CP22: 378202.9941 | CQ22: 95445.17233 | CR22: 139187.3962 | CS22: 347992.7108 | CT22: 391712.5424 | CU22: 112456.6527 | CV22: 156805.5897 | CW22: 363881.957 | CX22: 407914.5691 | CY22: 132212.9161 | CZ22: 176874.7788 | DA22: 382708.2476 | DB22: 427145.8567 | DC22: 83475.76339 | DD22: =DD17+SUM(DD19:DD21) -> 87254.25935 | DE22: 284329.971 | DF22: 321413.2322 | DG22: 44919.41741 | DH22: 81783.23563 | DI22: 277273.2195 | DJ22: 313983.6581 | DK22: -1372922.946
C24: =Cálculos!C367 -> Menos: Impostos | E24: =Cálculos!E367 -> EUR | G24: =SUM(H24:FC24) -> -1001128.501 | H24: =SUMIFS(Cálculos!$I367:$QJ367, Cálculos!$I$8:$QJ$8, H$3, Cálculos!$I$10:$QJ$10, H$4) -> 0 | I24: =SUMIFS(Cálculos!$I367:$QJ367, Cálculos!$I$8:$QJ$8, I$3, Cálculos!$I$10:$QJ$10, I$4) -> 0 | J24: =SUMIFS(Cálculos!$I367:$QJ367, Cálculos!$I$8:$QJ$8, J$3, Cálculos!$I$10:$QJ$10, J$4) -> 0 | K24: =SUMIFS(Cálculos!$I367:$QJ367, Cálculos!$I$8:$QJ$8, K$3, Cálculos!$I$10:$QJ$10, K$4) -> 0 | L24: =SUMIFS(Cálculos!$I367:$QJ367, Cálculos!$I$8:$QJ$8, L$3, Cálculos!$I$10:$QJ$10, L$4) -> 0 | M24: =SUMIFS(Cálculos!$I367:$QJ367, Cálculos!$I$8:$QJ$8, M$3, Cálculos!$I$10:$QJ$10, M$4) -> 0 | N24: =SUMIFS(Cálculos!$I367:$QJ367, Cálculos!$I$8:$QJ$8, N$3, Cálculos!$I$10:$QJ$10, N$4) -> 0 | O24: =SUMIFS(Cálculos!$I367:$QJ367, Cálculos!$I$8:$QJ$8, O$3, Cálculos!$I$10:$QJ$10, O$4) -> 0 | P24: =SUMIFS(Cálculos!$I367:$QJ367, Cálculos!$I$8:$QJ$8, P$3, Cálculos!$I$10:$QJ$10, P$4) -> 0 | Q24: =SUMIFS(Cálculos!$I367:$QJ367, Cálculos!$I$8:$QJ$8, Q$3, Cálculos!$I$10:$QJ$10, Q$4) -> 0 | R24: =SUMIFS(Cálculos!$I367:$QJ367, Cálculos!$I$8:$QJ$8, R$3, Cálculos!$I$10:$QJ$10, R$4) -> 0 | S24: =SUMIFS(Cálculos!$I367:$QJ367, Cálculos!$I$8:$QJ$8, S$3, Cálculos!$I$10:$QJ$10, S$4) -> 0 | T24: =SUMIFS(Cálculos!$I367:$QJ367, Cálculos!$I$8:$QJ$8, T$3, Cálculos!$I$10:$QJ$10, T$4) -> 0 | U24: =SUMIFS(Cálculos!$I367:$QJ367, Cálculos!$I$8:$QJ$8, U$3, Cálculos!$I$10:$QJ$10, U$4) -> 0 | V24: =SUMIFS(Cálculos!$I367:$QJ367, Cálculos!$I$8:$QJ$8, V$3, Cálculos!$I$10:$QJ$10, V$4) -> 0 | W24: =SUMIFS(Cálculos!$I367:$QJ367, Cálculos!$I$8:$QJ$8, W$3, Cálculos!$I$10:$QJ$10, W$4) -> 0 | X24: =SUMIFS(Cálculos!$I367:$QJ367, Cálculos!$I$8:$QJ$8, X$3, Cálculos!$I$10:$QJ$10, X$4) -> 0 | Y24: =SUMIFS(Cálculos!$I367:$QJ367, Cálculos!$I$8:$QJ$8, Y$3, Cálculos!$I$10:$QJ$10, Y$4) -> 0 | Z24: =SUMIFS(Cálculos!$I367:$QJ367, Cálculos!$I$8:$QJ$8, Z$3, Cálculos!$I$10:$QJ$10, Z$4) -> 0 | AA24: =SUMIFS(Cálculos!$I367:$QJ367, Cálculos!$I$8:$QJ$8, AA$3, Cálculos!$I$10:$QJ$10, AA$4) -> 0 | AB24: =SUMIFS(Cálculos!$I367:$QJ367, Cálculos!$I$8:$QJ$8, AB$3, Cálculos!$I$10:$QJ$10, AB$4) -> 0 | AC24: =SUMIFS(Cálculos!$I367:$QJ367, Cálculos!$I$8:$QJ$8, AC$3, Cálculos!$I$10:$QJ$10, AC$4) -> 0 | AD24: =SUMIFS(Cálculos!$I367:$QJ367, Cálculos!$I$8:$QJ$8, AD$3, Cálculos!$I$10:$QJ$10, AD$4) -> 0 | AE24: =SUMIFS(Cálculos!$I367:$QJ367, Cálculos!$I$8:$QJ$8, AE$3, Cálculos!$I$10:$QJ$10, AE$4) -> 0 | AF24: =SUMIFS(Cálculos!$I367:$QJ367, Cálculos!$I$8:$QJ$8, AF$3, Cálculos!$I$10:$QJ$10, AF$4) -> 0 | AG24: =SUMIFS(Cálculos!$I367:$QJ367, Cálculos!$I$8:$QJ$8, AG$3, Cálculos!$I$10:$QJ$10, AG$4) -> 0 | AH24: =SUMIFS(Cálculos!$I367:$QJ367, Cálculos!$I$8:$QJ$8, AH$3, Cálculos!$I$10:$QJ$10, AH$4) -> 0 | AI24: =SUMIFS(Cálculos!$I367:$QJ367, Cálculos!$I$8:$QJ$8, AI$3, Cálculos!$I$10:$QJ$10, AI$4) -> 0 | AJ24: =SUMIFS(Cálculos!$I367:$QJ367, Cálculos!$I$8:$QJ$8, AJ$3, Cálculos!$I$10:$QJ$10, AJ$4) -> 0 | AK24: =SUMIFS(Cálculos!$I367:$QJ367, Cálculos!$I$8:$QJ$8, AK$3, Cálculos!$I$10:$QJ$10, AK$4) -> 0 | AL24: =SUMIFS(Cálculos!$I367:$QJ367, Cálculos!$I$8:$QJ$8, AL$3, Cálculos!$I$10:$QJ$10, AL$4) -> 0 | AM24: =SUMIFS(Cálculos!$I367:$QJ367, Cálculos!$I$8:$QJ$8, AM$3, Cálculos!$I$10:$QJ$10, AM$4) -> 0 | AN24: =SUMIFS(Cálculos!$I367:$QJ367, Cálculos!$I$8:$QJ$8, AN$3, Cálculos!$I$10:$QJ$10, AN$4) -> 0 | AO24: =SUMIFS(Cálculos!$I367:$QJ367, Cálculos!$I$8:$QJ$8, AO$3, Cálculos!$I$10:$QJ$10, AO$4) -> 0 | AP24: =SUMIFS(Cálculos!$I367:$QJ367, Cálculos!$I$8:$QJ$8, AP$3, Cálculos!$I$10:$QJ$10, AP$4) -> 0 | AQ24: =SUMIFS(Cálculos!$I367:$QJ367, Cálculos!$I$8:$QJ$8, AQ$3, Cálculos!$I$10:$QJ$10, AQ$4) -> 0 | AR24: =SUMIFS(Cálculos!$I367:$QJ367, Cálculos!$I$8:$QJ$8, AR$3, Cálculos!$I$10:$QJ$10, AR$4) -> 0 | AS24: =SUMIFS(Cálculos!$I367:$QJ367, Cálculos!$I$8:$QJ$8, AS$3, Cálculos!$I$10:$QJ$10, AS$4) -> 0 | AT24: =SUMIFS(Cálculos!$I367:$QJ367, Cálculos!$I$8:$QJ$8, AT$3, Cálculos!$I$10:$QJ$10, AT$4) -> 0 | AU24: =SUMIFS(Cálculos!$I367:$QJ367, Cálculos!$I$8:$QJ$8, AU$3, Cálculos!$I$10:$QJ$10, AU$4) -> 0 | AV24: =SUMIFS(Cálculos!$I367:$QJ367, Cálculos!$I$8:$QJ$8, AV$3, Cálculos!$I$10:$QJ$10, AV$4) -> 0 | AW24: =SUMIFS(Cálculos!$I367:$QJ367, Cálculos!$I$8:$QJ$8, AW$3, Cálculos!$I$10:$QJ$10, AW$4) -> 0 | AX24: =SUMIFS(Cálculos!$I367:$QJ367, Cálculos!$I$8:$QJ$8, AX$3, Cálculos!$I$10:$QJ$10, AX$4) -> 0 | AY24: =SUMIFS(Cálculos!$I367:$QJ367, Cálculos!$I$8:$QJ$8, AY$3, Cálculos!$I$10:$QJ$10, AY$4) -> 0 | AZ24: =SUMIFS(Cálculos!$I367:$QJ367, Cálculos!$I$8:$QJ$8, AZ$3, Cálculos!$I$10:$QJ$10, AZ$4) -> 0 | BA24: =SUMIFS(Cálculos!$I367:$QJ367, Cálculos!$I$8:$QJ$8, BA$3, Cálculos!$I$10:$QJ$10, BA$4) -> 0 | BB24: =SUMIFS(Cálculos!$I367:$QJ367, Cálculos!$I$8:$QJ$8, BB$3, Cálculos!$I$10:$QJ$10, BB$4) -> 0 | BC24: =SUMIFS(Cálculos!$I367:$QJ367, Cálculos!$I$8:$QJ$8, BC$3, Cálculos!$I$10:$QJ$10, BC$4) -> 0 | BD24: =SUMIFS(Cálculos!$I367:$QJ367, Cálculos!$I$8:$QJ$8, BD$3, Cálculos!$I$10:$QJ$10, BD$4) -> 0 | BE24: =SUMIFS(Cálculos!$I367:$QJ367, Cálculos!$I$8:$QJ$8, BE$3, Cálculos!$I$10:$QJ$10, BE$4) -> 0 | BF24: =SUMIFS(Cálculos!$I367:$QJ367, Cálculos!$I$8:$QJ$8, BF$3, Cálculos!$I$10:$QJ$10, BF$4) -> 0 | BG24: =SUMIFS(Cálculos!$I367:$QJ367, Cálculos!$I$8:$QJ$8, BG$3, Cálculos!$I$10:$QJ$10, BG$4) -> 0 | BH24: =SUMIFS(Cálculos!$I367:$QJ367, Cálculos!$I$8:$QJ$8, BH$3, Cálculos!$I$10:$QJ$10, BH$4) -> 0 | BI24: =SUMIFS(Cálculos!$I367:$QJ367, Cálculos!$I$8:$QJ$8, BI$3, Cálculos!$I$10:$QJ$10, BI$4) -> 0 | BJ24: =SUMIFS(Cálculos!$I367:$QJ367, Cálculos!$I$8:$QJ$8, BJ$3, Cálculos!$I$10:$QJ$10, BJ$4) -> 0 | BK24: =SUMIFS(Cálculos!$I367:$QJ367, Cálculos!$I$8:$QJ$8, BK$3, Cálculos!$I$10:$QJ$10, BK$4) -> 0 | BL24: =SUMIFS(Cálculos!$I367:$QJ367, Cálculos!$I$8:$QJ$8, BL$3, Cálculos!$I$10:$QJ$10, BL$4) -> 0 | BM24: =SUMIFS(Cálculos!$I367:$QJ367, Cálculos!$I$8:$QJ$8, BM$3, Cálculos!$I$10:$QJ$10, BM$4) -> 0 | BN24: =SUMIFS(Cálculos!$I367:$QJ367, Cálculos!$I$8:$QJ$8, BN$3, Cálculos!$I$10:$QJ$10, BN$4) -> 0 | BO24: =SUMIFS(Cálculos!$I367:$QJ367, Cálculos!$I$8:$QJ$8, BO$3, Cálculos!$I$10:$QJ$10, BO$4) -> 0 | BP24: =SUMIFS(Cálculos!$I367:$QJ367, Cálculos!$I$8:$QJ$8, BP$3, Cálculos!$I$10:$QJ$10, BP$4) -> 0 | BQ24: =SUMIFS(Cálculos!$I367:$QJ367, Cálculos!$I$8:$QJ$8, BQ$3, Cálculos!$I$10:$QJ$10, BQ$4) -> 0 | BR24: =SUMIFS(Cálculos!$I367:$QJ367, Cálculos!$I$8:$QJ$8, BR$3, Cálculos!$I$10:$QJ$10, BR$4) -> 0 | BS24: =SUMIFS(Cálculos!$I367:$QJ367, Cálculos!$I$8:$QJ$8, BS$3, Cálculos!$I$10:$QJ$10, BS$4) -> 0 | BT24: =SUMIFS(Cálculos!$I367:$QJ367, Cálculos!$I$8:$QJ$8, BT$3, Cálculos!$I$10:$QJ$10, BT$4) -> 0 | BU24: =SUMIFS(Cálculos!$I367:$QJ367, Cálculos!$I$8:$QJ$8, BU$3, Cálculos!$I$10:$QJ$10, BU$4) -> 0 | BV24: =SUMIFS(Cálculos!$I367:$QJ367, Cálculos!$I$8:$QJ$8, BV$3, Cálculos!$I$10:$QJ$10, BV$4) -> 0 | BW24: =SUMIFS(Cálculos!$I367:$QJ367, Cálculos!$I$8:$QJ$8, BW$3, Cálculos!$I$10:$QJ$10, BW$4) -> 0 | BX24: =SUMIFS(Cálculos!$I367:$QJ367, Cálculos!$I$8:$QJ$8, BX$3, Cálculos!$I$10:$QJ$10, BX$4) -> 0 | BY24: =SUMIFS(Cálculos!$I367:$QJ367, Cálculos!$I$8:$QJ$8, BY$3, Cálculos!$I$10:$QJ$10, BY$4) -> 0 | BZ24: =SUMIFS(Cálculos!$I367:$QJ367, Cálculos!$I$8:$QJ$8, BZ$3, Cálculos!$I$10:$QJ$10, BZ$4) -> 0 | CA24: =SUMIFS(Cálculos!$I367:$QJ367, Cálculos!$I$8:$QJ$8, CA$3, Cálculos!$I$10:$QJ$10, CA$4) -> 0 | CB24: =SUMIFS(Cálculos!$I367:$QJ367, Cálculos!$I$8:$QJ$8, CB$3, Cálculos!$I$10:$QJ$10, CB$4) -> 0 | CC24: =SUMIFS(Cálculos!$I367:$QJ367, Cálculos!$I$8:$QJ$8, CC$3, Cálculos!$I$10:$QJ$10, CC$4) -> 0 | CD24: =SUMIFS(Cálculos!$I367:$QJ367, Cálculos!$I$8:$QJ$8, CD$3, Cálculos!$I$10:$QJ$10, CD$4) -> 0 | CE24: =SUMIFS(Cálculos!$I367:$QJ367, Cálculos!$I$8:$QJ$8, CE$3, Cálculos!$I$10:$QJ$10, CE$4) -> 0 | CF24: =SUMIFS(Cálculos!$I367:$QJ367, Cálculos!$I$8:$QJ$8, CF$3, Cálculos!$I$10:$QJ$10, CF$4) -> 0 | CG24: =SUMIFS(Cálculos!$I367:$QJ367, Cálculos!$I$8:$QJ$8, CG$3, Cálculos!$I$10:$QJ$10, CG$4) -> 0 | CH24: =SUMIFS(Cálculos!$I367:$QJ367, Cálculos!$I$8:$QJ$8, CH$3, Cálculos!$I$10:$QJ$10, CH$4) -> 0 | CI24: =SUMIFS(Cálculos!$I367:$QJ367, Cálculos!$I$8:$QJ$8, CI$3, Cálculos!$I$10:$QJ$10, CI$4) -> 0 | CJ24: =SUMIFS(Cálculos!$I367:$QJ367, Cálculos!$I$8:$QJ$8, CJ$3, Cálculos!$I$10:$QJ$10, CJ$4) -> 0 | CK24: =SUMIFS(Cálculos!$I367:$QJ367, Cálculos!$I$8:$QJ$8, CK$3, Cálculos!$I$10:$QJ$10, CK$4) -> 0 | CL24: =SUMIFS(Cálculos!$I367:$QJ367, Cálculos!$I$8:$QJ$8, CL$3, Cálculos!$I$10:$QJ$10, CL$4) -> 0 | CM24: =SUMIFS(Cálculos!$I367:$QJ367, Cálculos!$I$8:$QJ$8, CM$3, Cálculos!$I$10:$QJ$10, CM$4) -> -11970.75212 | CN24: =SUMIFS(Cálculos!$I367:$QJ367, Cálculos!$I$8:$QJ$8, CN$3, Cálculos!$I$10:$QJ$10, CN$4) -> -22292.65557 | CO24: =SUMIFS(Cálculos!$I367:$QJ367, Cálculos!$I$8:$QJ$8, CO$3, Cálculos!$I$10:$QJ$10, CO$4) -> -58817.36569 | CP24: =SUMIFS(Cálculos!$I367:$QJ367, Cálculos!$I$8:$QJ$8, CP$3, Cálculos!$I$10:$QJ$10, CP$4) -> -66123.57774 | CQ24: =SUMIFS(Cálculos!$I367:$QJ367, Cálculos!$I$8:$QJ$8, CQ$3, Cálculos!$I$10:$QJ$10, CQ$4) -> -18992.89173 | CR24: =SUMIFS(Cálculos!$I367:$QJ367, Cálculos!$I$8:$QJ$8, CR$3, Cálculos!$I$10:$QJ$10, CR$4) -> -25596.32925 | CS24: =SUMIFS(Cálculos!$I367:$QJ367, Cálculos!$I$8:$QJ$8, CS$3, Cálculos!$I$10:$QJ$10, CS$4) -> -61048.25014 | CT24: =SUMIFS(Cálculos!$I367:$QJ367, Cálculos!$I$8:$QJ$8, CT$3, Cálculos!$I$10:$QJ$10, CT$4) -> -68393.18186 | CU24: =SUMIFS(Cálculos!$I367:$QJ367, Cálculos!$I$8:$QJ$8, CU$3, Cálculos!$I$10:$QJ$10, CU$4) -> -21478.19238 | CV24: =SUMIFS(Cálculos!$I367:$QJ367, Cálculos!$I$8:$QJ$8, CV$3, Cálculos!$I$10:$QJ$10, CV$4) -> -28928.8138 | CW24: =SUMIFS(Cálculos!$I367:$QJ367, Cálculos!$I$8:$QJ$8, CW$3, Cálculos!$I$10:$QJ$10, CW$4) -> -63717.6435 | CX24: =SUMIFS(Cálculos!$I367:$QJ367, Cálculos!$I$8:$QJ$8, CX$3, Cálculos!$I$10:$QJ$10, CX$4) -> -71115.12234 | CY24: =SUMIFS(Cálculos!$I367:$QJ367, Cálculos!$I$8:$QJ$8, CY$3, Cálculos!$I$10:$QJ$10, CY$4) -> -24797.24464 | CZ24: =SUMIFS(Cálculos!$I367:$QJ367, Cálculos!$I$8:$QJ$8, CZ$3, Cálculos!$I$10:$QJ$10, CZ$4) -> -32300.43757 | DA24: =SUMIFS(Cálculos!$I367:$QJ367, Cálculos!$I$8:$QJ$8, DA$3, Cálculos!$I$10:$QJ$10, DA$4) -> -66880.46033 | DB24: =SUMIFS(Cálculos!$I367:$QJ367, Cálculos!$I$8:$QJ$8, DB$3, Cálculos!$I$10:$QJ$10, DB$4) -> -74345.97866 | DC24: =SUMIFS(Cálculos!$I367:$QJ367, Cálculos!$I$8:$QJ$8, DC$3, Cálculos!$I$10:$QJ$10, DC$4) -> -19448.80739 | DD24: =SUMIFS(Cálculos!$I367:$QJ367, Cálculos!$I$8:$QJ$8, DD$3, Cálculos!$I$10:$QJ$10, DD$4) -> -14404.7859 | DE24: =SUMIFS(Cálculos!$I367:$QJ367, Cálculos!$I$8:$QJ$8, DE$3, Cálculos!$I$10:$QJ$10, DE$4) -> -50352.90986 | DF24: =SUMIFS(Cálculos!$I367:$QJ367, Cálculos!$I$8:$QJ$8, DF$3, Cálculos!$I$10:$QJ$10, DF$4) -> -56582.89774 | DG24: =SUMIFS(Cálculos!$I367:$QJ367, Cálculos!$I$8:$QJ$8, DG$3, Cálculos!$I$10:$QJ$10, DG$4) -> -13168.5978 | DH24: =SUMIFS(Cálculos!$I367:$QJ367, Cálculos!$I$8:$QJ$8, DH$3, Cálculos!$I$10:$QJ$10, DH$4) -> -13288.39737 | DI24: =SUMIFS(Cálculos!$I367:$QJ367, Cálculos!$I$8:$QJ$8, DI$3, Cálculos!$I$10:$QJ$10, DI$4) -> -49167.37561 | DJ24: =SUMIFS(Cálculos!$I367:$QJ367, Cálculos!$I$8:$QJ$8, DJ$3, Cálculos!$I$10:$QJ$10, DJ$4) -> -55334.7293 | DK24: =SUMIFS(Cálculos!$I367:$QJ367, Cálculos!$I$8:$QJ$8, DK$3, Cálculos!$I$10:$QJ$10, DK$4) -> -12581.10296
C25: =Cálculos!C368 -> Mais: Variação do Ativo por Impostos Diferidos | E25: =Cálculos!E368 -> EUR | G25: =SUM(H25:FC25) -> 240646.6832 | H25: =SUMIFS(Cálculos!$I368:$QJ368, Cálculos!$I$8:$QJ$8, H$3, Cálculos!$I$10:$QJ$10, H$4) -> 0 | I25: =SUMIFS(Cálculos!$I368:$QJ368, Cálculos!$I$8:$QJ$8, I$3, Cálculos!$I$10:$QJ$10, I$4) -> 0 | J25: =SUMIFS(Cálculos!$I368:$QJ368, Cálculos!$I$8:$QJ$8, J$3, Cálculos!$I$10:$QJ$10, J$4) -> 0 | K25: =SUMIFS(Cálculos!$I368:$QJ368, Cálculos!$I$8:$QJ$8, K$3, Cálculos!$I$10:$QJ$10, K$4) -> 0 | L25: =SUMIFS(Cálculos!$I368:$QJ368, Cálculos!$I$8:$QJ$8, L$3, Cálculos!$I$10:$QJ$10, L$4) -> 0 | M25: =SUMIFS(Cálculos!$I368:$QJ368, Cálculos!$I$8:$QJ$8, M$3, Cálculos!$I$10:$QJ$10, M$4) -> 0 | N25: =SUMIFS(Cálculos!$I368:$QJ368, Cálculos!$I$8:$QJ$8, N$3, Cálculos!$I$10:$QJ$10, N$4) -> 0 | O25: =SUMIFS(Cálculos!$I368:$QJ368, Cálculos!$I$8:$QJ$8, O$3, Cálculos!$I$10:$QJ$10, O$4) -> 0 | P25: =SUMIFS(Cálculos!$I368:$QJ368, Cálculos!$I$8:$QJ$8, P$3, Cálculos!$I$10:$QJ$10, P$4) -> 56769.72695 | Q25: =SUMIFS(Cálculos!$I368:$QJ368, Cálculos!$I$8:$QJ$8, Q$3, Cálculos!$I$10:$QJ$10, Q$4) -> 18953.42364 | R25: =SUMIFS(Cálculos!$I368:$QJ368, Cálculos!$I$8:$QJ$8, R$3, Cálculos!$I$10:$QJ$10, R$4) -> 6840.293302 | S25: =SUMIFS(Cálculos!$I368:$QJ368, Cálculos!$I$8:$QJ$8, S$3, Cálculos!$I$10:$QJ$10, S$4) -> 64230.18713 | T25: =SUMIFS(Cálculos!$I368:$QJ368, Cálculos!$I$8:$QJ$8, T$3, Cálculos!$I$10:$QJ$10, T$4) -> 57264.994 | U25: =SUMIFS(Cálculos!$I368:$QJ368, Cálculos!$I$8:$QJ$8, U$3, Cálculos!$I$10:$QJ$10, U$4) -> 17290.56331 | V25: =SUMIFS(Cálculos!$I368:$QJ368, Cálculos!$I$8:$QJ$8, V$3, Cálculos!$I$10:$QJ$10, V$4) -> 7583.421507 | W25: =SUMIFS(Cálculos!$I368:$QJ368, Cálculos!$I$8:$QJ$8, W$3, Cálculos!$I$10:$QJ$10, W$4) -> 65027.37183 | X25: =SUMIFS(Cálculos!$I368:$QJ368, Cálculos!$I$8:$QJ$8, X$3, Cálculos!$I$10:$QJ$10, X$4) -> 56919.11279 | Y25: =SUMIFS(Cálculos!$I368:$QJ368, Cálculos!$I$8:$QJ$8, Y$3, Cálculos!$I$10:$QJ$10, Y$4) -> 16400.94751 | Z25: =SUMIFS(Cálculos!$I368:$QJ368, Cálculos!$I$8:$QJ$8, Z$3, Cálculos!$I$10:$QJ$10, Z$4) -> 7686.523794 | AA25: =SUMIFS(Cálculos!$I368:$QJ368, Cálculos!$I$8:$QJ$8, AA$3, Cálculos!$I$10:$QJ$10, AA$4) -> 64695.76909 | AB25: =SUMIFS(Cálculos!$I368:$QJ368, Cálculos!$I$8:$QJ$8, AB$3, Cálculos!$I$10:$QJ$10, AB$4) -> 56542.00345 | AC25: =SUMIFS(Cálculos!$I368:$QJ368, Cálculos!$I$8:$QJ$8, AC$3, Cálculos!$I$10:$QJ$10, AC$4) -> 16127.50972 | AD25: =SUMIFS(Cálculos!$I368:$QJ368, Cálculos!$I$8:$QJ$8, AD$3, Cálculos!$I$10:$QJ$10, AD$4) -> 7907.18125 | AE25: =SUMIFS(Cálculos!$I368:$QJ368, Cálculos!$I$8:$QJ$8, AE$3, Cálculos!$I$10:$QJ$10, AE$4) -> 64330.5738 | AF25: =SUMIFS(Cálculos!$I368:$QJ368, Cálculos!$I$8:$QJ$8, AF$3, Cálculos!$I$10:$QJ$10, AF$4) -> 56295.32167 | AG25: =SUMIFS(Cálculos!$I368:$QJ368, Cálculos!$I$8:$QJ$8, AG$3, Cálculos!$I$10:$QJ$10, AG$4) -> 16048.79475 | AH25: =SUMIFS(Cálculos!$I368:$QJ368, Cálculos!$I$8:$QJ$8, AH$3, Cálculos!$I$10:$QJ$10, AH$4) -> 7964.933245 | AI25: =SUMIFS(Cálculos!$I368:$QJ368, Cálculos!$I$8:$QJ$8, AI$3, Cálculos!$I$10:$QJ$10, AI$4) -> 63796.85763 | AJ25: =SUMIFS(Cálculos!$I368:$QJ368, Cálculos!$I$8:$QJ$8, AJ$3, Cálculos!$I$10:$QJ$10, AJ$4) -> 55751.95782 | AK25: =SUMIFS(Cálculos!$I368:$QJ368, Cálculos!$I$8:$QJ$8, AK$3, Cálculos!$I$10:$QJ$10, AK$4) -> 15820.62327 | AL25: =SUMIFS(Cálculos!$I368:$QJ368, Cálculos!$I$8:$QJ$8, AL$3, Cálculos!$I$10:$QJ$10, AL$4) -> 7904.241956 | AM25: =SUMIFS(Cálculos!$I368:$QJ368, Cálculos!$I$8:$QJ$8, AM$3, Cálculos!$I$10:$QJ$10, AM$4) -> 63147.70072 | AN25: =SUMIFS(Cálculos!$I368:$QJ368, Cálculos!$I$8:$QJ$8, AN$3, Cálculos!$I$10:$QJ$10, AN$4) -> 55153.93579 | AO25: =SUMIFS(Cálculos!$I368:$QJ368, Cálculos!$I$8:$QJ$8, AO$3, Cálculos!$I$10:$QJ$10, AO$4) -> 15507.37581 | AP25: =SUMIFS(Cálculos!$I368:$QJ368, Cálculos!$I$8:$QJ$8, AP$3, Cálculos!$I$10:$QJ$10, AP$4) -> 7714.424318 | AQ25: =SUMIFS(Cálculos!$I368:$QJ368, Cálculos!$I$8:$QJ$8, AQ$3, Cálculos!$I$10:$QJ$10, AQ$4) -> 62372.07473 | AR25: =SUMIFS(Cálculos!$I368:$QJ368, Cálculos!$I$8:$QJ$8, AR$3, Cálculos!$I$10:$QJ$10, AR$4) -> 54425.7947 | AS25: =SUMIFS(Cálculos!$I368:$QJ368, Cálculos!$I$8:$QJ$8, AS$3, Cálculos!$I$10:$QJ$10, AS$4) -> 15136.87861 | AT25: =SUMIFS(Cálculos!$I368:$QJ368, Cálculos!$I$8:$QJ$8, AT$3, Cálculos!$I$10:$QJ$10, AT$4) -> 7383.591273 | AU25: =SUMIFS(Cálculos!$I368:$QJ368, Cálculos!$I$8:$QJ$8, AU$3, Cálculos!$I$10:$QJ$10, AU$4) -> 61457.71165 | AV25: =SUMIFS(Cálculos!$I368:$QJ368, Cálculos!$I$8:$QJ$8, AV$3, Cálculos!$I$10:$QJ$10, AV$4) -> 53619.01257 | AW25: =SUMIFS(Cálculos!$I368:$QJ368, Cálculos!$I$8:$QJ$8, AW$3, Cálculos!$I$10:$QJ$10, AW$4) -> 14616.3671 | AX25: =SUMIFS(Cálculos!$I368:$QJ368, Cálculos!$I$8:$QJ$8, AX$3, Cálculos!$I$10:$QJ$10, AX$4) -> 6898.504624 | AY25: =SUMIFS(Cálculos!$I368:$QJ368, Cálculos!$I$8:$QJ$8, AY$3, Cálculos!$I$10:$QJ$10, AY$4) -> 60390.9564 | AZ25: =SUMIFS(Cálculos!$I368:$QJ368, Cálculos!$I$8:$QJ$8, AZ$3, Cálculos!$I$10:$QJ$10, AZ$4) -> 52527.36636 | BA25: =SUMIFS(Cálculos!$I368:$QJ368, Cálculos!$I$8:$QJ$8, BA$3, Cálculos!$I$10:$QJ$10, BA$4) -> 13931.47981 | BB25: =SUMIFS(Cálculos!$I368:$QJ368, Cálculos!$I$8:$QJ$8, BB$3, Cálculos!$I$10:$QJ$10, BB$4) -> 6244.416284 | BC25: =SUMIFS(Cálculos!$I368:$QJ368, Cálculos!$I$8:$QJ$8, BC$3, Cálculos!$I$10:$QJ$10, BC$4) -> 59156.60134 | BD25: =SUMIFS(Cálculos!$I368:$QJ368, Cálculos!$I$8:$QJ$8, BD$3, Cálculos!$I$10:$QJ$10, BD$4) -> -13798.13179 | BE25: =SUMIFS(Cálculos!$I368:$QJ368, Cálculos!$I$8:$QJ$8, BE$3, Cálculos!$I$10:$QJ$10, BE$4) -> -52059.36732 | BF25: =SUMIFS(Cálculos!$I368:$QJ368, Cálculos!$I$8:$QJ$8, BF$3, Cálculos!$I$10:$QJ$10, BF$4) -> -59720.69162 | BG25: =SUMIFS(Cálculos!$I368:$QJ368, Cálculos!$I$8:$QJ$8, BG$3, Cálculos!$I$10:$QJ$10, BG$4) -> -7387.87896 | BH25: =SUMIFS(Cálculos!$I368:$QJ368, Cálculos!$I$8:$QJ$8, BH$3, Cálculos!$I$10:$QJ$10, BH$4) -> -15187.79454 | BI25: =SUMIFS(Cálculos!$I368:$QJ368, Cálculos!$I$8:$QJ$8, BI$3, Cálculos!$I$10:$QJ$10, BI$4) -> -53122.86058 | BJ25: =SUMIFS(Cálculos!$I368:$QJ368, Cálculos!$I$8:$QJ$8, BJ$3, Cálculos!$I$10:$QJ$10, BJ$4) -> -60763.99225 | BK25: =SUMIFS(Cálculos!$I368:$QJ368, Cálculos!$I$8:$QJ$8, BK$3, Cálculos!$I$10:$QJ$10, BK$4) -> -9010.219196 | BL25: =SUMIFS(Cálculos!$I368:$QJ368, Cálculos!$I$8:$QJ$8, BL$3, Cálculos!$I$10:$QJ$10, BL$4) -> -16722.6125 | BM25: =SUMIFS(Cálculos!$I368:$QJ368, Cálculos!$I$8:$QJ$8, BM$3, Cálculos!$I$10:$QJ$10, BM$4) -> -54404.48589 | BN25: =SUMIFS(Cálculos!$I368:$QJ368, Cálculos!$I$8:$QJ$8, BN$3, Cálculos!$I$10:$QJ$10, BN$4) -> -62031.51798 | BO25: =SUMIFS(Cálculos!$I368:$QJ368, Cálculos!$I$8:$QJ$8, BO$3, Cálculos!$I$10:$QJ$10, BO$4) -> -10857.07404 | BP25: =SUMIFS(Cálculos!$I368:$QJ368, Cálculos!$I$8:$QJ$8, BP$3, Cálculos!$I$10:$QJ$10, BP$4) -> -18616.22157 | BQ25: =SUMIFS(Cálculos!$I368:$QJ368, Cálculos!$I$8:$QJ$8, BQ$3, Cálculos!$I$10:$QJ$10, BQ$4) -> -55926.46025 | BR25: =SUMIFS(Cálculos!$I368:$QJ368, Cálculos!$I$8:$QJ$8, BR$3, Cálculos!$I$10:$QJ$10, BR$4) -> -63546.09921 | BS25: =SUMIFS(Cálculos!$I368:$QJ368, Cálculos!$I$8:$QJ$8, BS$3, Cálculos!$I$10:$QJ$10, BS$4) -> -12951.96454 | BT25: =SUMIFS(Cálculos!$I368:$QJ368, Cálculos!$I$8:$QJ$8, BT$3, Cálculos!$I$10:$QJ$10, BT$4) -> -20700.80492 | BU25: =SUMIFS(Cálculos!$I368:$QJ368, Cálculos!$I$8:$QJ$8, BU$3, Cálculos!$I$10:$QJ$10, BU$4) -> -57713.59062 | BV25: =SUMIFS(Cálculos!$I368:$QJ368, Cálculos!$I$8:$QJ$8, BV$3, Cálculos!$I$10:$QJ$10, BV$4) -> -65333.23158 | BW25: =SUMIFS(Cálculos!$I368:$QJ368, Cálculos!$I$8:$QJ$8, BW$3, Cálculos!$I$10:$QJ$10, BW$4) -> -15321.15386 | BX25: =SUMIFS(Cálculos!$I368:$QJ368, Cálculos!$I$8:$QJ$8, BX$3, Cálculos!$I$10:$QJ$10, BX$4) -> -23067.34713 | BY25: =SUMIFS(Cálculos!$I368:$QJ368, Cálculos!$I$8:$QJ$8, BY$3, Cálculos!$I$10:$QJ$10, BY$4) -> -59793.58829 | BZ25: =SUMIFS(Cálculos!$I368:$QJ368, Cálculos!$I$8:$QJ$8, BZ$3, Cálculos!$I$10:$QJ$10, BZ$4) -> -67421.39963 | CA25: =SUMIFS(Cálculos!$I368:$QJ368, Cálculos!$I$8:$QJ$8, CA$3, Cálculos!$I$10:$QJ$10, CA$4) -> -17993.98059 | CB25: =SUMIFS(Cálculos!$I368:$QJ368, Cálculos!$I$8:$QJ$8, CB$3, Cálculos!$I$10:$QJ$10, CB$4) -> -25682.07881 | CC25: =SUMIFS(Cálculos!$I368:$QJ368, Cálculos!$I$8:$QJ$8, CC$3, Cálculos!$I$10:$QJ$10, CC$4) -> -62197.42222 | CD25: =SUMIFS(Cálculos!$I368:$QJ368, Cálculos!$I$8:$QJ$8, CD$3, Cálculos!$I$10:$QJ$10, CD$4) -> -69842.44066 | CE25: =SUMIFS(Cálculos!$I368:$QJ368, Cálculos!$I$8:$QJ$8, CE$3, Cálculos!$I$10:$QJ$10, CE$4) -> -21003.23346 | CF25: =SUMIFS(Cálculos!$I368:$QJ368, Cálculos!$I$8:$QJ$8, CF$3, Cálculos!$I$10:$QJ$10, CF$4) -> -28770.47785 | CG25: =SUMIFS(Cálculos!$I368:$QJ368, Cálculos!$I$8:$QJ$8, CG$3, Cálculos!$I$10:$QJ$10, CG$4) -> -64959.71638 | CH25: =SUMIFS(Cálculos!$I368:$QJ368, Cálculos!$I$8:$QJ$8, CH$3, Cálculos!$I$10:$QJ$10, CH$4) -> -72610.17565 | CI25: =SUMIFS(Cálculos!$I368:$QJ368, Cálculos!$I$8:$QJ$8, CI$3, Cálculos!$I$10:$QJ$10, CI$4) -> -24287.2217 | CJ25: =SUMIFS(Cálculos!$I368:$QJ368, Cálculos!$I$8:$QJ$8, CJ$3, Cálculos!$I$10:$QJ$10, CJ$4) -> -28331.48609 | CK25: =SUMIFS(Cálculos!$I368:$QJ368, Cálculos!$I$8:$QJ$8, CK$3, Cálculos!$I$10:$QJ$10, CK$4) -> -56976.28107 | CL25: =SUMIFS(Cálculos!$I368:$QJ368, Cálculos!$I$8:$QJ$8, CL$3, Cálculos!$I$10:$QJ$10, CL$4) -> -64256.12419 | CM25: =SUMIFS(Cálculos!$I368:$QJ368, Cálculos!$I$8:$QJ$8, CM$3, Cálculos!$I$10:$QJ$10, CM$4) -> -4200.944259 | CN25: =SUMIFS(Cálculos!$I368:$QJ368, Cálculos!$I$8:$QJ$8, CN$3, Cálculos!$I$10:$QJ$10, CN$4) -> -1266.454275 | CO25: =SUMIFS(Cálculos!$I368:$QJ368, Cálculos!$I$8:$QJ$8, CO$3, Cálculos!$I$10:$QJ$10, CO$4) -> 0 | CP25: =SUMIFS(Cálculos!$I368:$QJ368, Cálculos!$I$8:$QJ$8, CP$3, Cálculos!$I$10:$QJ$10, CP$4) -> 0 | CQ25: =SUMIFS(Cálculos!$I368:$QJ368, Cálculos!$I$8:$QJ$8, CQ$3, Cálculos!$I$10:$QJ$10, CQ$4) -> 372.6280433 | CR25: =SUMIFS(Cálculos!$I368:$QJ368, Cálculos!$I$8:$QJ$8, CR$3, Cálculos!$I$10:$QJ$10, CR$4) -> -372.6280433 | CS25: =SUMIFS(Cálculos!$I368:$QJ368, Cálculos!$I$8:$QJ$8, CS$3, Cálculos!$I$10:$QJ$10, CS$4) -> 0 | CT25: =SUMIFS(Cálculos!$I368:$QJ368, Cálculos!$I$8:$QJ$8, CT$3, Cálculos!$I$10:$QJ$10, CT$4) -> 0 | CU25: =SUMIFS(Cálculos!$I368:$QJ368, Cálculos!$I$8:$QJ$8, CU$3, Cálculos!$I$10:$QJ$10, CU$4) -> 0 | CV25: =SUMIFS(Cálculos!$I368:$QJ368, Cálculos!$I$8:$QJ$8, CV$3, Cálculos!$I$10:$QJ$10, CV$4) -> 0 | CW25: =SUMIFS(Cálculos!$I368:$QJ368, Cálculos!$I$8:$QJ$8, CW$3, Cálculos!$I$10:$QJ$10, CW$4) -> 0 | CX25: =SUMIFS(Cálculos!$I368:$QJ368, Cálculos!$I$8:$QJ$8, CX$3, Cálculos!$I$10:$QJ$10, CX$4) -> 0 | CY25: =SUMIFS(Cálculos!$I368:$QJ368, Cálculos!$I$8:$QJ$8, CY$3, Cálculos!$I$10:$QJ$10, CY$4) -> 0 | CZ25: =SUMIFS(Cálculos!$I368:$QJ368, Cálculos!$I$8:$QJ$8, CZ$3, Cálculos!$I$10:$QJ$10, CZ$4) -> 0 | DA25: =SUMIFS(Cálculos!$I368:$QJ368, Cálculos!$I$8:$QJ$8, DA$3, Cálculos!$I$10:$QJ$10, DA$4) -> 0 | DB25: =SUMIFS(Cálculos!$I368:$QJ368, Cálculos!$I$8:$QJ$8, DB$3, Cálculos!$I$10:$QJ$10, DB$4) -> 0 | DC25: =SUMIFS(Cálculos!$I368:$QJ368, Cálculos!$I$8:$QJ$8, DC$3, Cálculos!$I$10:$QJ$10, DC$4) -> 2839.404403 | DD25: =SUMIFS(Cálculos!$I368:$QJ368, Cálculos!$I$8:$QJ$8, DD$3, Cálculos!$I$10:$QJ$10, DD$4) -> -2839.404403 | DE25: =SUMIFS(Cálculos!$I368:$QJ368, Cálculos!$I$8:$QJ$8, DE$3, Cálculos!$I$10:$QJ$10, DE$4) -> 0 | DF25: =SUMIFS(Cálculos!$I368:$QJ368, Cálculos!$I$8:$QJ$8, DF$3, Cálculos!$I$10:$QJ$10, DF$4) -> 0 | DG25: =SUMIFS(Cálculos!$I368:$QJ368, Cálculos!$I$8:$QJ$8, DG$3, Cálculos!$I$10:$QJ$10, DG$4) -> 3036.660946 | DH25: =SUMIFS(Cálculos!$I368:$QJ368, Cálculos!$I$8:$QJ$8, DH$3, Cálculos!$I$10:$QJ$10, DH$4) -> -3036.660946 | DI25: =SUMIFS(Cálculos!$I368:$QJ368, Cálculos!$I$8:$QJ$8, DI$3, Cálculos!$I$10:$QJ$10, DI$4) -> 0 | DJ25: =SUMIFS(Cálculos!$I368:$QJ368, Cálculos!$I$8:$QJ$8, DJ$3, Cálculos!$I$10:$QJ$10, DJ$4) -> 0 | DK25: =SUMIFS(Cálculos!$I368:$QJ368, Cálculos!$I$8:$QJ$8, DK$3, Cálculos!$I$10:$QJ$10, DK$4) -> 240646.6832
